{"text_format":"1","workbook":"xlsx","n_sheets":7,"sheets":["Setup & SAVE","Instructions","Name & ID Reference Table","BUILDINGS","FLEET","SUPPLIES","Positions & Reference"],"not_rendered":{"charts":0,"images":0,"macros":1,"external_links":0,"defined_names":22,"comments":0,"pivot_tables":0},"unopened":[],"bounds":{"document_bytes":16777216,"sheet_cells":100000,"rows_first":2000,"rows_last":500,"rows_between":2000,"halvings":0,"cell_chars":16384,"cell_head_chars":4096},"cells_cut":0,"cells_raw":0,"read":"whole","date_system":"1900"}

{"sheet":"Setup & SAVE","index":0,"n_rows":19,"n_cols":1,"rows_kept":19,"cut":false,"hidden":false,"merged":[]}
["Note: You must click 'Enable Content' button on the                                                                 Security Warning that appears above to use this tool"]
[]
["This workbook contains code that generates file(s) compatible with CGRT."]
["Follow the Instructions tab carefully to complete CGRT BulkLoading:"]
[]
["Step 1 - 'Import Organizational Structure Configuration Report'. "]
["Step 2 - 'Save Load Files' will save flat excel file(s) ready for loading into CGRT. "]
[]
[]
[]
[]
[]
[]
[]
["Version 1.7"]
["Release Date: October 23, 2020"]
[]
["This may be distributed to clients as an \"as is\" tool"]
["for entering activity data in preparation for loading into CGRT."]

{"sheet":"Instructions","index":1,"n_rows":60,"n_cols":3,"rows_kept":60,"cut":false,"hidden":false,"merged":[[2,1,2,6]]}
["Instructions"]
[]
["A.","Import Organizational Structure Configuration Report "]
[]
[1,"In CGRT navigate to Analytics / Intelligence Centre. "]
[2,"Search for the Organizational Structure Configuration Report (OSCR). "]
[3,"Right click on the OSCR and select 'Open in Generator View'."]
[3,"Update the Date in the upper left-hand corner of the generator view for the appropriate reporting year to ensure all Sites are available to be included in the report. "]
[4,"Select the blue 'Sites' box. Clear the selected Sites by clicking the trash can icon.  "]
[5,"Click the building icon next to your Root Organization Site. An blue box will appear in the middle of the screen."]
[6,"Click the top icon in the blue box, 'Add search result to selected values', which will ensure all Sites are included in the report.  Click OK."]
[7,"In the upper righthand corner of the Generator View, select the download icon and then select download to excel. "]
[8,"Navigate to the Setup & SAVE tab in this tool and click the Import Organizational Struture Configuration Report. Select the downloaded OSCR. "]
[9,"Once the OSCR is successfully imported the 'Site Name' dropdown lists on the BUILDINGS, FLEET, and SUPPLIES tabs will be populated with your sites."]
[]
["B.","Save Load Files"]
[]
[1,"Populate the Site Name, Position, and Unit Columns using the dropdown lists in the BUILDINGS, FLEET and/or SUPPLIES tabs."]
[2,"The dropdowns must be used as these columns are linked and automatically populate the essential ID fields. "]
[3,"Enter or copy and paste consumption data into the Quantity Column in the BUILDINGS, FLEET, and/or SUPPLIES tabs."]
[4,"Enter or copy and paste Reading Start and End Dates in the BUILDINGS tab in YYYY-MM-DD format. "]
[5,"You can test the calendarization of your building consumption data at any time by clicking the 'Calendarize' button located in the K column in the BUILDINGS tab."]
[4,"Once consumption data has been entered in the BUILDINGS, FLEET, and/or SUPPLIES tabs, navigate to the Setup & SAVE tab and click the Save Load Files button."]
[5,"Select the folder where you would like the calendarized file(s) to be saved."]
[6,"In the selected folder, one file will be saved for each tab that has been populated (BUILDINGS, FLEET, SUPPLIES) with the file name containing a date and time stamp."]
[7,"The saved files are standard excel files which are compatible with CGRT  and can be inported via the File Importer."]
[]
["Troubleshooting - CGR Bulk Load Template Generator "]
["Q1","Why is the Site Name dropdown empty?  "]
["A1","You must initially complete Part A. \"Import  Organizational Structure Configuration Report\" for the Site Name dropdowns to populate. "]
["Q2","When exporting my OSCR there are Sites missing from the inventory? "]
["A2","You have to update the date selection in the upper lefthand corner. Sites that have been expired before the date selected and Sites added after the data selected will not appear. "]
["Q3","Some of my Sites are missing from the dropdown?"]
["A3","Under Part A. you must complete steps 4-6. "]
["Q4","I have cleared a row and now the ID's don't work.  How do I fix this?  "]
["A4","Copy a working row and paste it to replace the formulas that were deleted. Re-enter the details as needed."]
[]
["C.","File Importer - Bulk Loading  into CGRT"]
[1,"Launch CGRT:","https://gov-bc.mythinkstep.com/login"]
[2,"Go to Data Entry / File Importer."]
[3,"Browse for and select the Calendarized Output File - DO NOT load this CGR BulkLoad Tool into the system - that you saved in section B above. "]
[4,"Click Upload. Next to Available Mappings select the dropdown and select ‘Load Template or Calendarizer File’ from the list. "]
[5,"Click Read. A list of prepopulated fields will display. "]
[6,"Click Test. If no errors occur, click Import. "]
[7,"Navigate to your Job Tray. Click the refresh icon in the lower right corner of the dropdown. When the file turns green, click on the file."]
[8,"A dialogue box will appear indicating that the file imported with no errors. "]
[9,"You may navigate to your building Sites (Data Entry > Data Acquisition) and verify that the data imported into CGRT aligns with your calendarized output file. "]
[]
["Troubleshooting - File Importer"]
["Q1","My files are not loading due to errors. What do I do?  "]
["A1","Check for missing ID's (Site ID, Positon ID, Unit ID, Term)."]
["Q2","The rows that are failing have no ID's missing. "]
["A2","Watch the Common Data Loading Errors Demonstration located under the Resources tab on the CGRT Welcome Page."]
[]
[]
["Frequently Asked Questions"]
["Q1","I've watched the Common Data Errors Demonstration and I'm unsure which Questionnaires I need to add and how to add them in CGRT?"]
["A1","Using the errors provided by CGRT, see the Positions & Reference ID tab where you can cross reference Position and Questionnaire Names and IDs. To add Questionnaires see the Setup section of the CGRT User Guide. "]
["Q2","I keep getting an error when trying to use this CGR BulkLoad Tool?"]
["A2","Check that you have enabled the macros by click 'enable content'. Some organizations are restricted from using macro-enabled excels and will need to contact their IT to remove this restriction. "]

{"sheet":"Name & ID Reference Table","index":2,"n_rows":127,"n_cols":10,"rows_kept":127,"cut":false,"hidden":false,"merged":[]}
["POSITION_NAME","POSITION_ID",null,"Questionnaire_Name","QUESTIONNAIRE_ID",null,"SOURCE",null,"UNIT_NAME","UNIT_ID"]
[]
["Electricity - BC - Integrated Grid - BC Hydro",787,null,"Building- Electricity B.C. Grid ",5069,null,"Buildings",null,"kWh",50]
["Electricity -  BC - Integrated Grid - Fortis",784,null,"Building- Electricity B.C. Grid ",5069,null,"Buildings",null,"GJ",49]
["Electricity -  BC - Integrated Grid - Nelson Hydro",845,null,"Building- Electricity B.C. Grid ",5069,null,"Buildings",null,"l",123]
["Electricity -  BC - Integrated Grid - Penticton Electrical",846,null,"Building- Electricity B.C. Grid ",5069,null,"Buildings",null,"kg",89]
["Natural Gas (Standard)",15,null,"Building  - Natural Gas (incl. Renewables)",5068,null,"Buildings",null,"lb",91]
["Natural Gas (R100)",13,null,"Building  - Natural Gas (incl. Renewables)",5068,null,"Buildings",null,"unit",190]
["Propane",16,null,"Building - Standard Fuels (incl. Renewables) ",5070,null,"Buildings"]
["B5",6,null,"Building - Standard Fuels (incl. Renewables) ",5070,null,"Buildings"]
["B20",5,null,"Building - Standard Fuels (incl. Renewables) ",5070,null,"Buildings"]
["B100",4,null,"Building - Standard Fuels (incl. Renewables) ",5070,null,"Buildings"]
["District Energy (T1)",21,null,"Building - District Energy ",5072,null,"Buildings"]
["District Energy (T2)",22,null,"Building - District Energy ",5072,null,"Buildings"]
["District Energy (T3)",23,null,"Building - District Energy ",5072,null,"Buildings"]
["District Energy (T4)",24,null,"Building - District Energy ",5072,null,"Buildings"]
["District Energy (T5)",25,null,"Building - District Energy ",5072,null,"Buildings"]
["District Energy (T6)",26,null,"Building - District Energy ",5072,null,"Buildings"]
["District Energy (T7)",27,null,"Building - District Energy ",5072,null,"Buildings"]
["District Energy (T8)",28,null,"Building - District Energy ",5072,null,"Buildings"]
["District Energy (T9)",29,null,"Building - District Energy ",5072,null,"Buildings"]
["District Energy (T10)",30,null,"Building - District Energy ",5072,null,"Buildings"]
["Diesel (Marine)",8,null,"Building - Standard Fuels (incl. Renewables) ",5070,null,"Buildings"]
["Diesel (Standard B4)",7,null,"Building - Standard Fuels (incl. Renewables) ",5070,null,"Buildings"]
["Fuel Oil (B5)",12,null,"Building - Standard Fuels (incl. Renewables) ",5070,null,"Buildings"]
["Fuel Oil (Light)",11,null,"Building - Standard Fuels (incl. Renewables) ",5070,null,"Buildings"]
["Gasoline (Standard E5)",9,null,"Building - Standard Fuels (incl. Renewables) ",5070,null,"Buildings"]
["Wood Fuel (Industrial)",17,null,"Building - Standard Fuels (incl. Renewables) ",5070,null,"Buildings"]
["Wood Fuel (Residential)",18,null,"Building - Standard Fuels (incl. Renewables) ",5070,null,"Buildings"]
["Electricity - Alberta",32,null,"Building - Electricity Outside B.C. ",13141,null,"Buildings"]
["Electricity - Bullfrog",868,null,"Building - Electricity Outside B.C. ",13141,null,"Buildings"]
["Electricity - China",872,null,"Building - Electricity Outside B.C. ",13141,null,"Buildings"]
["Electricity - India",874,null,"Building - Electricity Outside B.C. ",13141,null,"Buildings"]
["Electricity - Japan",875,null,"Building - Electricity Outside B.C. ",13141,null,"Buildings"]
["Electricity - Nova Scotia",869,null,"Building - Electricity Outside B.C. ",13141,null,"Buildings"]
["Electricity - Ontario",870,null,"Building - Electricity Outside B.C. ",13141,null,"Buildings"]
["Electricity - Quebec",871,null,"Building - Electricity Outside B.C. ",13141,null,"Buildings"]
["Electricity - UK",873,null,"Building - Electricity Outside B.C. ",13141,null,"Buildings"]
[]
["Aviation - Gasoline",37,null,"Fleet - Other vehicles ",5076,null,"Fleet"]
["Aviation - Turbo Fuel",38,null,"Fleet - Other vehicles ",5076,null,"Fleet"]
["Heavy Duty Truck - Diesel (Standard)",43,null,"Fleet - Standard Fuels ",5073,null,"Fleet"]
["Heavy Duty Truck - Diesel (B5)",42,null,"Fleet - Renewable Fuels ",5074,null,"Fleet"]
["Heavy Duty Truck - Diesel (B20)",41,null,"Fleet - Renewable Fuels ",5074,null,"Fleet"]
["Heavy Duty Truck - Diesel (B100)",40,null,"Fleet - Renewable Fuels ",5074,null,"Fleet"]
["Heavy Duty Truck - Gasoline (Standard)",48,null,"Fleet - Standard Fuels ",5073,null,"Fleet"]
["Heavy Duty Truck - Gasoline (E10)",44,null,"Fleet - Renewable Fuels ",5074,null,"Fleet"]
["Heavy Duty Truck - Gasoline (E15)",46,null,"Fleet - Renewable Fuels ",5074,null,"Fleet"]
["Heavy Duty Truck - Gasoline (E100)",45,null,"Fleet - Renewable Fuels ",5074,null,"Fleet"]
["Heavy Duty Truck - Natural Gas",49,null,"Fleet - Propane and Natural Gas",5075,null,"Fleet"]
["Heavy Duty Truck - Propane",50,null,"Fleet - Propane and Natural Gas",5075,null,"Fleet"]
["Light Duty Truck - Diesel (Standard)",55,null,"Fleet - Standard Fuels ",5073,null,"Fleet"]
["Light Duty Truck - Diesel (B5)",54,null,"Fleet - Renewable Fuels ",5074,null,"Fleet"]
["Light Duty Truck - Diesel (B20)",53,null,"Fleet - Renewable Fuels ",5074,null,"Fleet"]
["Light Duty Truck - Diesel (B100)",52,null,"Fleet - Renewable Fuels ",5074,null,"Fleet"]
["Light Duty Truck - Gasoline (Standard)",60,null,"Fleet - Standard Fuels ",5073,null,"Fleet"]
["Light Duty Truck - Gasoline (E10)",56,null,"Fleet - Renewable Fuels ",5074,null,"Fleet"]
["Light Duty Truck - Gasoline (E15)",58,null,"Fleet - Renewable Fuels ",5074,null,"Fleet"]
["Light Duty Truck - Gasoline (E100)",57,null,"Fleet - Renewable Fuels ",5074,null,"Fleet"]
["Light Duty Truck - Natural Gas",61,null,"Fleet - Propane and Natural Gas",5075,null,"Fleet"]
["Light Duty Truck - Propane",62,null,"Fleet - Propane and Natural Gas",5075,null,"Fleet"]
["Light Duty Vehicle - Diesel (Standard)",67,null,"Fleet - Standard Fuels ",5073,null,"Fleet"]
["Light Duty Vehicle - Diesel (B5)",66,null,"Fleet - Renewable Fuels ",5074,null,"Fleet"]
["Light Duty Vehicle - Diesel (B20)",65,null,"Fleet - Renewable Fuels ",5074,null,"Fleet"]
["Light Duty Vehicle - Diesel (B100)",64,null,"Fleet - Renewable Fuels ",5074,null,"Fleet"]
["Light Duty Vehicle - Gasoline (Standard)",72,null,"Fleet - Standard Fuels ",5073,null,"Fleet"]
["Light Duty Vehicle - Gasoline (E10)",68,null,"Fleet - Renewable Fuels ",5074,null,"Fleet"]
["Light Duty Vehicle - Gasoline (E15)",70,null,"Fleet - Renewable Fuels ",5074,null,"Fleet"]
["Light Duty Vehicle - Gasoline (E100)",69,null,"Fleet - Renewable Fuels ",5074,null,"Fleet"]
["Light Duty Vehicle - Natural Gas",73,null,"Fleet - Propane and Natural Gas",5075,null,"Fleet"]
["Light Duty Vehicle - Propane",74,null,"Fleet - Propane and Natural Gas",5075,null,"Fleet"]
["Marine - Diesel (Standard)",76,null,"Fleet - Other vehicles ",5076,null,"Fleet"]
["Marine - Gasoline (Standard)",77,null,"Fleet - Other vehicles ",5076,null,"Fleet"]
["Motorcycle - Gasoline (Standard)",79,null,"Fleet - Other vehicles ",5076,null,"Fleet"]
["Off Road Vehicle - Diesel (Standard)",84,null,"Fleet - Standard Fuels ",5073,null,"Fleet"]
["Off Road Vehicle - Diesel (B5)",83,null,"Fleet - Renewable Fuels ",5074,null,"Fleet"]
["Off Road Vehicle - Diesel (B20)",82,null,"Fleet - Renewable Fuels ",5074,null,"Fleet"]
["Off Road Vehicle - Diesel (B100)",81,null,"Fleet - Renewable Fuels ",5074,null,"Fleet"]
["Off Road Vehicle - Gasoline (Standard)",89,null,"Fleet - Standard Fuels ",5073,null,"Fleet"]
["Off Road Vehicle - Gasoline (E10)",85,null,"Fleet - Renewable Fuels ",5074,null,"Fleet"]
["Off Road Vehicle - Gasoline (E15)",87,null,"Fleet - Renewable Fuels ",5074,null,"Fleet"]
["Off Road Vehicle - Gasoline (E100)",86,null,"Fleet - Renewable Fuels ",5074,null,"Fleet"]
["Off Road Vehicle - Natural Gas",90,null,"Fleet - Propane and Natural Gas",5075,null,"Fleet"]
["Off Road Vehicle - Propane",91,null,"Fleet - Propane and Natural Gas",5075,null,"Fleet"]
["Mobile Electricity BC - Integrated Grid - BC Hydro",2325,null,"Fleet – Electricity",58386,null,"Fleet"]
["Mobile Electricity BC - Fort Nelson Grid",2326,null,"Fleet – Electricity",58386,null,"Fleet"]
["Mobile - Natural Gas (R100)",2323,null,"Fleet - Renewable Fuels ",5074,null,"Fleet"]
[]
["8.5 x 11 - 0% Recycled",107,null,"Office Paper ",5077,null,"Supplies"]
["8.5 x 11 - 10% Recycled",108,null,"Office Paper ",5077,null,"Supplies"]
["8.5 x 11 - 20% Recycled",109,null,"Office Paper ",5077,null,"Supplies"]
["8.5 x 11 - 30% Recycled",110,null,"Office Paper ",5077,null,"Supplies"]
["8.5 x 11 - 40% Recycled",111,null,"Office Paper ",5077,null,"Supplies"]
["8.5 x 11 - 50% Recycled",112,null,"Office Paper ",5077,null,"Supplies"]
["8.5 x 11 - 60% Recycled",113,null,"Office Paper ",5077,null,"Supplies"]
["8.5 x 11 - 70% Recycled",114,null,"Office Paper ",5077,null,"Supplies"]
["8.5 x 11 - 80% Recycled",115,null,"Office Paper ",5077,null,"Supplies"]
["8.5 x 11 - 90% Recycled",116,null,"Office Paper ",5077,null,"Supplies"]
["8.5 x 11 - 100% Recycled",117,null,"Office Paper ",5077,null,"Supplies"]
["8.5 x 14 - 0% Recycled",119,null,"Office Paper ",5077,null,"Supplies"]
["8.5 x 14 - 10% Recycled",120,null,"Office Paper ",5077,null,"Supplies"]
["8.5 x 14 - 20% Recycled",121,null,"Office Paper ",5077,null,"Supplies"]
["8.5 x 14 - 30% Recycled",122,null,"Office Paper ",5077,null,"Supplies"]
["8.5 x 14 - 40% Recycled",123,null,"Office Paper ",5077,null,"Supplies"]
["8.5 x 14 - 50% Recycled",124,null,"Office Paper ",5077,null,"Supplies"]
["8.5 x 14 - 60% Recycled",125,null,"Office Paper ",5077,null,"Supplies"]
["8.5 x 14 - 70% Recycled",126,null,"Office Paper ",5077,null,"Supplies"]
["8.5 x 14 - 80% Recycled",127,null,"Office Paper ",5077,null,"Supplies"]
["8.5 x 14 - 90% Recycled",128,null,"Office Paper ",5077,null,"Supplies"]
["8.5 x 14 - 100% Recycled",129,null,"Office Paper ",5077,null,"Supplies"]
["11 x 17 - 0% Recycled",95,null,"Office Paper ",5077,null,"Supplies"]
["11 x 17 - 10% Recycled",96,null,"Office Paper ",5077,null,"Supplies"]
["11 x 17 - 20% Recycled",97,null,"Office Paper ",5077,null,"Supplies"]
["11 x 17 - 30% Recycled",98,null,"Office Paper ",5077,null,"Supplies"]
["11 x 17 - 40% Recycled",99,null,"Office Paper ",5077,null,"Supplies"]
["11 x 17 - 50% Recycled",100,null,"Office Paper ",5077,null,"Supplies"]
["11 x 17 - 60% Recycled",101,null,"Office Paper ",5077,null,"Supplies"]
["11 x 17 - 70% Recycled",102,null,"Office Paper ",5077,null,"Supplies"]
["11 x 17 - 80% Recycled",103,null,"Office Paper ",5077,null,"Supplies"]
["11 x 17 - 90% Recycled",104,null,"Office Paper ",5077,null,"Supplies"]
["11 x 17 - 100% Recycled",105,null,"Office Paper ",5077,null,"Supplies"]
["HFC R-134",132,null,"Fugitive Emissions",5128,null,"Supplies"]
["HFC R-134a",133,null,"Fugitive Emissions",5128,null,"Supplies"]
["HFC R-404a",134,null,"Fugitive Emissions",5128,null,"Supplies"]
["HFC R-407c",135,null,"Fugitive Emissions",5128,null,"Supplies"]
["HFC R-410a",136,null,"Fugitive Emissions",5128,null,"Supplies"]
["HFC R-507",2300,null,"Fugitive Emissions",5128,null,"Supplies"]

{"sheet":"BUILDINGS","index":3,"n_rows":3136,"n_cols":10,"rows_kept":3136,"cut":false,"hidden":false,"merged":[]}
["SITE_NAME","POSITION","QUANTITY","UNIT_NAME","READING_START_DATE","READING_END_DATE","TRANSACTION_REF","SITE_ID","POSITION_ID","UNIT_ID"]
[null,null,null,null,null,null,null,{"$f":"IF(ISBLANK(A2),\"\",VLOOKUP(A2,BLDG_SITE_LU,2,FALSE))","v":""},{"$f":"IF(ISBLANK(B2),\"\",VLOOKUP(B2,POSITION_LU,2,FALSE))","v":""},{"$f":"IF(ISBLANK(D2),\"\",VLOOKUP(D2,UNIT_LU,2,FALSE))","v":""}]
[null,null,null,null,null,null,null,{"$f":"IF(ISBLANK(A3),\"\",VLOOKUP(A3,BLDG_SITE_LU,2,FALSE))","v":""},{"$f":"IF(ISBLANK(B3),\"\",VLOOKUP(B3,POSITION_LU,2,FALSE))","v":""},{"$f":"IF(ISBLANK(D3),\"\",VLOOKUP(D3,UNIT_LU,2,FALSE))","v":""}]
[null,null,null,null,null,null,null,"","",""]
[null,null,null,null,null,null,null,"","",""]
[null,null,null,null,null,null,null,"","",""]
[null,null,null,null,null,null,null,"","",""]
[null,null,null,null,null,null,null,"","",""]
[null,null,null,null,null,null,null,"","",""]
[null,null,null,null,null,null,null,"","",""]
[null,null,null,null,null,null,null,"","",""]
[null,null,null,null,null,null,null,"","",""]
[null,null,null,null,null,null,null,"","",""]
[null,null,null,null,null,null,null,"","",""]
[null,null,null,null,null,null,null,{"$f":"IF(ISBLANK(A15),\"\",VLOOKUP(A15,BLDG_SITE_LU,2,FALSE))","v":""},{"$f":"IF(ISBLANK(B15),\"\",VLOOKUP(B15,POSITION_LU,2,FALSE))","v":""},{"$f":"IF(ISBLANK(D15),\"\",VLOOKUP(D15,UNIT_LU,2,FALSE))","v":""}]
[null,null,null,null,null,null,null,"","",""]
[null,null,null,null,null,null,null,"","",""]
[null,null,null,null,null,null,null,"","",""]
[null,null,null,null,null,null,null,"","",""]
[null,null,null,null,null,null,null,"","",""]
[null,null,null,null,null,null,null,"","",""]
[null,null,null,null,null,null,null,"","",""]
[null,null,null,null,null,null,null,"","",""]
[null,null,null,null,null,null,null,"","",""]
[null,null,null,null,null,null,null,"","",""]
[null,null,null,null,null,null,null,"","",""]
[null,null,null,null,null,null,null,{"$f":"IF(ISBLANK(A27),\"\",VLOOKUP(A27,BLDG_SITE_LU,2,FALSE))","v":""},{"$f":"IF(ISBLANK(B27),\"\",VLOOKUP(B27,POSITION_LU,2,FALSE))","v":""},{"$f":"IF(ISBLANK(D27),\"\",VLOOKUP(D27,UNIT_LU,2,FALSE))","v":""}]
[null,null,null,null,null,null,null,"","",""]
[null,null,null,null,null,null,null,"","",""]
[null,null,null,null,null,null,null,"","",""]
[null,null,null,null,null,null,null,"","",""]
[null,null,null,null,null,null,null,"","",""]
[null,null,null,null,null,null,null,"","",""]
[null,null,null,null,null,null,null,"","",""]
[null,null,null,null,null,null,null,"","",""]
[null,null,null,null,null,null,null,"","",""]
[null,null,null,null,null,null,null,"","",""]
[null,null,null,null,null,null,null,"","",""]
[null,null,null,null,null,null,null,{"$f":"IF(ISBLANK(A39),\"\",VLOOKUP(A39,BLDG_SITE_LU,2,FALSE))","v":""},{"$f":"IF(ISBLANK(B39),\"\",VLOOKUP(B39,POSITION_LU,2,FALSE))","v":""},{"$f":"IF(ISBLANK(D39),\"\",VLOOKUP(D39,UNIT_LU,2,FALSE))","v":""}]
[null,null,null,null,null,null,null,"","",""]
[null,null,null,null,null,null,null,"","",""]
[null,null,null,null,null,null,null,"","",""]
[null,null,null,null,null,null,null,"","",""]
[null,null,null,null,null,null,null,"","",""]
[null,null,null,null,null,null,null,"","",""]
[null,null,null,null,null,null,null,"","",""]
[null,null,null,null,null,null,null,"","",""]
[null,null,null,null,null,null,null,"","",""]
[null,null,null,null,null,null,null,"","",""]
[null,null,null,null,null,null,null,"","",""]
[null,null,null,null,null,null,null,{"$f":"IF(ISBLANK(A51),\"\",VLOOKUP(A51,BLDG_SITE_LU,2,FALSE))","v":""},{"$f":"IF(ISBLANK(B51),\"\",VLOOKUP(B51,POSITION_LU,2,FALSE))","v":""},{"$f":"IF(ISBLANK(D51),\"\",VLOOKUP(D51,UNIT_LU,2,FALSE))","v":""}]
[null,null,null,null,null,null,null,"","",""]
[null,null,null,null,null,null,null,"","",""]
[null,null,null,null,null,null,null,"","",""]
[null,null,null,null,null,null,null,"","",""]
[null,null,null,null,null,null,null,"","",""]
[null,null,null,null,null,null,null,"","",""]
[null,null,null,null,null,null,null,"","",""]
[null,null,null,null,null,null,null,"","",""]
[null,null,null,null,null,null,null,"","",""]
[null,null,null,null,null,null,null,"","",""]
[null,null,null,null,null,null,null,"","",""]
[null,null,null,null,null,null,null,{"$f":"IF(ISBLANK(A63),\"\",VLOOKUP(A63,BLDG_SITE_LU,2,FALSE))","v":""},{"$f":"IF(ISBLANK(B63),\"\",VLOOKUP(B63,POSITION_LU,2,FALSE))","v":""},{"$f":"IF(ISBLANK(D63),\"\",VLOOKUP(D63,UNIT_LU,2,FALSE))","v":""}]
[null,null,null,null,null,null,null,"","",""]
[null,null,null,null,null,null,null,"","",""]
[null,null,null,null,null,null,null,"","",""]
[null,null,null,null,null,null,null,"","",""]
[null,null,null,null,null,null,null,"","",""]
[null,null,null,null,null,null,null,"","",""]
[null,null,null,null,null,null,null,"","",""]
[null,null,null,null,null,null,null,"","",""]
[null,null,null,null,null,null,null,"","",""]
[null,null,null,null,null,null,null,"","",""]
[null,null,null,null,null,null,null,{"$f":"IF(ISBLANK(A74),\"\",VLOOKUP(A74,BLDG_SITE_LU,2,FALSE))","v":""},{"$f":"IF(ISBLANK(B74),\"\",VLOOKUP(B74,POSITION_LU,2,FALSE))","v":""},{"$f":"IF(ISBLANK(D74),\"\",VLOOKUP(D74,UNIT_LU,2,FALSE))","v":""}]
[null,null,null,null,null,null,null,"","",""]
[null,null,null,null,null,null,null,"","",""]
[null,null,null,null,null,null,null,"","",""]
[null,null,null,null,null,null,null,"","",""]
[null,null,null,null,null,null,null,"","",""]
[null,null,null,null,null,null,null,"","",""]
[null,null,null,null,null,null,null,{"$f":"IF(ISBLANK(A81),\"\",VLOOKUP(A81,BLDG_SITE_LU,2,FALSE))","v":""},{"$f":"IF(ISBLANK(B81),\"\",VLOOKUP(B81,POSITION_LU,2,FALSE))","v":""},{"$f":"IF(ISBLANK(D81),\"\",VLOOKUP(D81,UNIT_LU,2,FALSE))","v":""}]
[null,null,null,null,null,null,null,"","",""]
[null,null,null,null,null,null,null,"","",""]
[null,null,null,null,null,null,null,"","",""]
[null,null,null,null,null,null,null,"","",""]
[null,null,null,null,null,null,null,{"$f":"IF(ISBLANK(A86),\"\",VLOOKUP(A86,BLDG_SITE_LU,2,FALSE))","v":""},"",""]
[null,null,null,null,null,null,null,"",{"$f":"IF(ISBLANK(B87),\"\",VLOOKUP(B87,POSITION_LU,2,FALSE))","v":""},{"$f":"IF(ISBLANK(D87),\"\",VLOOKUP(D87,UNIT_LU,2,FALSE))","v":""}]
[null,null,null,null,null,null,null,"","",""]
[null,null,null,null,null,null,null,"","",""]
[null,null,null,null,null,null,null,"","",""]
[null,null,null,null,null,null,null,"","",""]
[null,null,null,null,null,null,null,{"$f":"IF(ISBLANK(A92),\"\",VLOOKUP(A92,BLDG_SITE_LU,2,FALSE))","v":""},"",""]
[null,null,null,null,null,null,null,"","",""]
[null,null,null,null,null,null,null,"","",""]
[null,null,null,null,null,null,null,"","",""]
[null,null,null,null,null,null,null,"","",""]
[null,null,null,null,null,null,null,"","",""]
[null,null,null,null,null,null,null,"","",""]
[null,null,null,null,null,null,null,"","",""]
[null,null,null,null,null,null,null,"",{"$f":"IF(ISBLANK(B100),\"\",VLOOKUP(B100,POSITION_LU,2,FALSE))","v":""},{"$f":"IF(ISBLANK(D100),\"\",VLOOKUP(D100,UNIT_LU,2,FALSE))","v":""}]
[null,null,null,null,null,null,null,"","",""]
[null,null,null,null,null,null,null,"","",""]
[null,null,null,null,null,null,null,"","",""]
[null,null,null,null,null,null,null,"","",""]
[null,null,null,null,null,null,null,"","",""]
[null,null,null,null,null,null,null,"","",""]
[null,null,null,null,null,null,null,"","",""]
[null,null,null,null,null,null,null,"","",""]
[null,null,null,null,null,null,null,"","",""]
[null,null,null,null,null,null,null,"","",""]
[null,null,null,null,null,null,null,"","",""]
[null,null,null,null,null,null,null,"","",""]
[null,null,null,null,null,null,null,"","",""]
[null,null,null,null,null,null,null,"","",""]
[null,null,null,null,null,null,null,"","",""]
[null,null,null,null,null,null,null,"","",""]
[null,null,null,null,null,null,null,"","",""]
[null,null,null,null,null,null,null,"","",""]
[null,null,null,null,null,null,null,"","",""]
[null,null,null,null,null,null,null,"",{"$f":"IF(ISBLANK(B120),\"\",VLOOKUP(B120,POSITION_LU,2,FALSE))","v":""},{"$f":"IF(ISBLANK(D120),\"\",VLOOKUP(D120,UNIT_LU,2,FALSE))","v":""}]
[null,null,null,null,null,null,null,"","",""]
[null,null,null,null,null,null,null,"","",""]
[null,null,null,null,null,null,null,"","",""]
[null,null,null,null,null,null,null,{"$f":"IF(ISBLANK(A124),\"\",VLOOKUP(A124,BLDG_SITE_LU,2,FALSE))","v":""},"",""]
[null,null,null,null,null,null,null,"","",""]
[null,null,null,null,null,null,null,"","",""]
[null,null,null,null,null,null,null,"","",""]
[null,null,null,null,null,null,null,"","",""]
[null,null,null,null,null,null,null,"",{"$f":"IF(ISBLANK(B129),\"\",VLOOKUP(B129,POSITION_LU,2,FALSE))","v":""},{"$f":"IF(ISBLANK(D129),\"\",VLOOKUP(D129,UNIT_LU,2,FALSE))","v":""}]
[null,null,null,null,null,null,null,"","",""]
[null,null,null,null,null,null,null,"","",""]
[null,null,null,null,null,null,null,"","",""]
[null,null,null,null,null,null,null,"","",""]
[null,null,null,null,null,null,null,"","",""]
[null,null,null,null,null,null,null,"","",""]
[null,null,null,null,null,null,null,"","",""]
[null,null,null,null,null,null,null,"","",""]
[null,null,null,null,null,null,null,"","",""]
[null,null,null,null,null,null,null,"","",""]
[null,null,null,null,null,null,null,"","",""]
[null,null,null,null,null,null,null,"",{"$f":"IF(ISBLANK(B141),\"\",VLOOKUP(B141,POSITION_LU,2,FALSE))","v":""},{"$f":"IF(ISBLANK(D141),\"\",VLOOKUP(D141,UNIT_LU,2,FALSE))","v":""}]
[null,null,null,null,null,null,null,"","",""]
[null,null,null,null,null,null,null,"","",""]
[null,null,null,null,null,null,null,"","",""]
[null,null,null,null,null,null,null,"","",""]
[null,null,null,null,null,null,null,"","",""]
[null,null,null,null,null,null,null,"","",""]
[null,null,null,null,null,null,null,"",{"$f":"IF(ISBLANK(B148),\"\",VLOOKUP(B148,POSITION_LU,2,FALSE))","v":""},{"$f":"IF(ISBLANK(D148),\"\",VLOOKUP(D148,UNIT_LU,2,FALSE))","v":""}]
[null,null,null,null,null,null,null,"","",""]
[null,null,null,null,null,null,null,"","",""]
[null,null,null,null,null,null,null,"","",""]
[null,null,null,null,null,null,null,"","",""]
[null,null,null,null,null,null,null,"","",""]
[null,null,null,null,null,null,null,"","",""]
[null,null,null,null,null,null,null,"","",""]
[null,null,null,null,null,null,null,"","",""]
[null,null,null,null,null,null,null,{"$f":"IF(ISBLANK(A157),\"\",VLOOKUP(A157,BLDG_SITE_LU,2,FALSE))","v":""},"",""]
[null,null,null,null,null,null,null,"",{"$f":"IF(ISBLANK(B158),\"\",VLOOKUP(B158,POSITION_LU,2,FALSE))","v":""},{"$f":"IF(ISBLANK(D158),\"\",VLOOKUP(D158,UNIT_LU,2,FALSE))","v":""}]
[null,null,null,null,null,null,null,"","",""]
[null,null,null,null,null,null,null,"","",""]
[null,null,null,null,null,null,null,"","",""]
[null,null,null,null,null,null,null,"","",""]
[null,null,null,null,null,null,null,"","",""]
[null,null,null,null,null,null,null,"","",""]
[null,null,null,null,null,null,null,"","",""]
[null,null,null,null,null,null,null,"","",""]
[null,null,null,null,null,null,null,"","",""]
[null,null,null,null,null,null,null,"","",""]
[null,null,null,null,null,null,null,"","",""]
[null,null,null,null,null,null,null,"",{"$f":"IF(ISBLANK(B170),\"\",VLOOKUP(B170,POSITION_LU,2,FALSE))","v":""},{"$f":"IF(ISBLANK(D170),\"\",VLOOKUP(D170,UNIT_LU,2,FALSE))","v":""}]
[null,null,null,null,null,null,null,"","",""]
[null,null,null,null,null,null,null,"","",""]
[null,null,null,null,null,null,null,"","",""]
[null,null,null,null,null,null,null,"","",""]
[null,null,null,null,null,null,null,"","",""]
[null,null,null,null,null,null,null,"","",""]
[null,null,null,null,null,null,null,"","",""]
[null,null,null,null,null,null,null,"","",""]
[null,null,null,null,null,null,null,"","",""]
[null,null,null,null,null,null,null,"",{"$f":"IF(ISBLANK(B180),\"\",VLOOKUP(B180,POSITION_LU,2,FALSE))","v":""},{"$f":"IF(ISBLANK(D180),\"\",VLOOKUP(D180,UNIT_LU,2,FALSE))","v":""}]
[null,null,null,null,null,null,null,"","",""]
[null,null,null,null,null,null,null,"","",""]
[null,null,null,null,null,null,null,"","",""]
[null,null,null,null,null,null,null,"","",""]
[null,null,null,null,null,null,null,"","",""]
[null,null,null,null,null,null,null,"","",""]
[null,null,null,null,null,null,null,"","",""]
[null,null,null,null,null,null,null,"","",""]
[null,null,null,null,null,null,null,{"$f":"IF(ISBLANK(A189),\"\",VLOOKUP(A189,BLDG_SITE_LU,2,FALSE))","v":""},"",""]
[null,null,null,null,null,null,null,"","",""]
[null,null,null,null,null,null,null,"","",""]
[null,null,null,null,null,null,null,"",{"$f":"IF(ISBLANK(B192),\"\",VLOOKUP(B192,POSITION_LU,2,FALSE))","v":""},{"$f":"IF(ISBLANK(D192),\"\",VLOOKUP(D192,UNIT_LU,2,FALSE))","v":""}]
[null,null,null,null,null,null,null,"","",""]
[null,null,null,null,null,null,null,"","",""]
[null,null,null,null,null,null,null,"","",""]
[null,null,null,null,null,null,null,"","",""]
[null,null,null,null,null,null,null,"","",""]
[null,null,null,null,null,null,null,"","",""]
[null,null,null,null,null,null,null,"","",""]
[null,null,null,null,null,null,null,"","",""]
[null,null,null,null,null,null,null,"","",""]
[null,null,null,null,null,null,null,"","",""]
[null,null,null,null,null,null,null,"","",""]
[null,null,null,null,null,null,null,"",{"$f":"IF(ISBLANK(B204),\"\",VLOOKUP(B204,POSITION_LU,2,FALSE))","v":""},{"$f":"IF(ISBLANK(D204),\"\",VLOOKUP(D204,UNIT_LU,2,FALSE))","v":""}]
[null,null,null,null,null,null,null,"","",""]
[null,null,null,null,null,null,null,"","",""]
[null,null,null,null,null,null,null,"","",""]
[null,null,null,null,null,null,null,"","",""]
[null,null,null,null,null,null,null,"","",""]
[null,null,null,null,null,null,null,"","",""]
[null,null,null,null,null,null,null,"","",""]
[null,null,null,null,null,null,null,"","",""]
[null,null,null,null,null,null,null,"","",""]
[null,null,null,null,null,null,null,"","",""]
[null,null,null,null,null,null,null,"","",""]
[null,null,null,null,null,null,null,"",{"$f":"IF(ISBLANK(B216),\"\",VLOOKUP(B216,POSITION_LU,2,FALSE))","v":""},{"$f":"IF(ISBLANK(D216),\"\",VLOOKUP(D216,UNIT_LU,2,FALSE))","v":""}]
[null,null,null,null,null,null,null,"","",""]
[null,null,null,null,null,null,null,"","",""]
[null,null,null,null,null,null,null,"","",""]
[null,null,null,null,null,null,null,"","",""]
[null,null,null,null,null,null,null,{"$f":"IF(ISBLANK(A221),\"\",VLOOKUP(A221,BLDG_SITE_LU,2,FALSE))","v":""},"",""]
[null,null,null,null,null,null,null,"","",""]
[null,null,null,null,null,null,null,"","",""]
[null,null,null,null,null,null,null,"","",""]
[null,null,null,null,null,null,null,"","",""]
[null,null,null,null,null,null,null,"","",""]
[null,null,null,null,null,null,null,"","",""]
[null,null,null,null,null,null,null,"","",""]
[null,null,null,null,null,null,null,"",{"$f":"IF(ISBLANK(B229),\"\",VLOOKUP(B229,POSITION_LU,2,FALSE))","v":""},{"$f":"IF(ISBLANK(D229),\"\",VLOOKUP(D229,UNIT_LU,2,FALSE))","v":""}]
[null,null,null,null,null,null,null,"","",""]
[null,null,null,null,null,null,null,"","",""]
[null,null,null,null,null,null,null,"","",""]
[null,null,null,null,null,null,null,"","",""]
[null,null,null,null,null,null,null,"","",""]
[null,null,null,null,null,null,null,"","",""]
[null,null,null,null,null,null,null,"","",""]
[null,null,null,null,null,null,null,"","",""]
[null,null,null,null,null,null,null,"","",""]
[null,null,null,null,null,null,null,"","",""]
[null,null,null,null,null,null,null,"",{"$f":"IF(ISBLANK(B240),\"\",VLOOKUP(B240,POSITION_LU,2,FALSE))","v":""},{"$f":"IF(ISBLANK(D240),\"\",VLOOKUP(D240,UNIT_LU,2,FALSE))","v":""}]
[null,null,null,null,null,null,null,"","",""]
[null,null,null,null,null,null,null,"","",""]
[null,null,null,null,null,null,null,"","",""]
[null,null,null,null,null,null,null,"","",""]
[null,null,null,null,null,null,null,"","",""]
[null,null,null,null,null,null,null,"","",""]
[null,null,null,null,null,null,null,"","",""]
[null,null,null,null,null,null,null,"","",""]
[null,null,null,null,null,null,null,"","",""]
[null,null,null,null,null,null,null,"","",""]
[null,null,null,null,null,null,null,"",{"$f":"IF(ISBLANK(B251),\"\",VLOOKUP(B251,POSITION_LU,2,FALSE))","v":""},{"$f":"IF(ISBLANK(D251),\"\",VLOOKUP(D251,UNIT_LU,2,FALSE))","v":""}]
[null,null,null,null,null,null,null,"","",""]
[null,null,null,null,null,null,null,{"$f":"IF(ISBLANK(A253),\"\",VLOOKUP(A253,BLDG_SITE_LU,2,FALSE))","v":""},"",""]
[null,null,null,null,null,null,null,"","",""]
[null,null,null,null,null,null,null,"","",""]
[null,null,null,null,null,null,null,"","",""]
[null,null,null,null,null,null,null,"","",""]
[null,null,null,null,null,null,null,"","",""]
[null,null,null,null,null,null,null,"","",""]
[null,null,null,null,null,null,null,"","",""]
[null,null,null,null,null,null,null,"","",""]
[null,null,null,null,null,null,null,"","",""]
[null,null,null,null,null,null,null,"","",""]
[null,null,null,null,null,null,null,"","",""]
[null,null,null,null,null,null,null,"","",""]
[null,null,null,null,null,null,null,"",{"$f":"IF(ISBLANK(B266),\"\",VLOOKUP(B266,POSITION_LU,2,FALSE))","v":""},{"$f":"IF(ISBLANK(D266),\"\",VLOOKUP(D266,UNIT_LU,2,FALSE))","v":""}]
[null,null,null,null,null,null,null,"","",""]
[null,null,null,null,null,null,null,"","",""]
[null,null,null,null,null,null,null,"","",""]
[null,null,null,null,null,null,null,"","",""]
[null,null,null,null,null,null,null,"","",""]
[null,null,null,null,null,null,null,"","",""]
[null,null,null,null,null,null,null,"","",""]
[null,null,null,null,null,null,null,"","",""]
[null,null,null,null,null,null,null,"",{"$f":"IF(ISBLANK(B275),\"\",VLOOKUP(B275,POSITION_LU,2,FALSE))","v":""},{"$f":"IF(ISBLANK(D275),\"\",VLOOKUP(D275,UNIT_LU,2,FALSE))","v":""}]
[null,null,null,null,null,null,null,"","",""]
[null,null,null,null,null,null,null,"","",""]
[null,null,null,null,null,null,null,"","",""]
[null,null,null,null,null,null,null,"","",""]
[null,null,null,null,null,null,null,"","",""]
[null,null,null,null,null,null,null,"","",""]
[null,null,null,null,null,null,null,"","",""]
[null,null,null,null,null,null,null,"","",""]
[null,null,null,null,null,null,null,"","",""]
[null,null,null,null,null,null,null,{"$f":"IF(ISBLANK(A285),\"\",VLOOKUP(A285,BLDG_SITE_LU,2,FALSE))","v":""},"",""]
[null,null,null,null,null,null,null,"","",""]
[null,null,null,null,null,null,null,"",{"$f":"IF(ISBLANK(B287),\"\",VLOOKUP(B287,POSITION_LU,2,FALSE))","v":""},{"$f":"IF(ISBLANK(D287),\"\",VLOOKUP(D287,UNIT_LU,2,FALSE))","v":""}]
[null,null,null,null,null,null,null,"","",""]
[null,null,null,null,null,null,null,"","",""]
[null,null,null,null,null,null,null,"","",""]
[null,null,null,null,null,null,null,"","",""]
[null,null,null,null,null,null,null,"","",""]
[null,null,null,null,null,null,null,"","",""]
[null,null,null,null,null,null,null,"","",""]
[null,null,null,null,null,null,null,"","",""]
[null,null,null,null,null,null,null,"","",""]
[null,null,null,null,null,null,null,"","",""]
[null,null,null,null,null,null,null,"","",""]
[null,null,null,null,null,null,null,"","",""]
[null,null,null,null,null,null,null,"","",""]
[null,null,null,null,null,null,null,"","",""]
[null,null,null,null,null,null,null,"","",""]
[null,null,null,null,null,null,null,"","",""]
[null,null,null,null,null,null,null,"","",""]
[null,null,null,null,null,null,null,"","",""]
[null,null,null,null,null,null,null,"","",""]
[null,null,null,null,null,null,null,"","",""]
[null,null,null,null,null,null,null,"","",""]
[null,null,null,null,null,null,null,"","",""]
[null,null,null,null,null,null,null,"","",""]
[null,null,null,null,null,null,null,"","",""]
[null,null,null,null,null,null,null,"","",""]
[null,null,null,null,null,null,null,"","",""]
[null,null,null,null,null,null,null,"","",""]
[null,null,null,null,null,null,null,"","",""]
[null,null,null,null,null,null,null,"","",""]
[null,null,null,null,null,null,null,"","",""]
[null,null,null,null,null,null,null,"","",""]
[null,null,null,null,null,null,null,"","",""]
[null,null,null,null,null,null,null,"","",""]
[null,null,null,null,null,null,null,"","",""]
[null,null,null,null,null,null,null,{"$f":"IF(ISBLANK(A322),\"\",VLOOKUP(A322,BLDG_SITE_LU,2,FALSE))","v":""},"",""]
[null,null,null,null,null,null,null,"","",""]
[null,null,null,null,null,null,null,"","",""]
[null,null,null,null,null,null,null,"","",""]
[null,null,null,null,null,null,null,"","",""]
[null,null,null,null,null,null,null,"","",""]
[null,null,null,null,null,null,null,"","",""]
[null,null,null,null,null,null,null,"","",""]
[null,null,null,null,null,null,null,"","",""]
[null,null,null,null,null,null,null,"","",""]
[null,null,null,null,null,null,null,"","",""]
[null,null,null,null,null,null,null,"",{"$f":"IF(ISBLANK(B333),\"\",VLOOKUP(B333,POSITION_LU,2,FALSE))","v":""},{"$f":"IF(ISBLANK(D333),\"\",VLOOKUP(D333,UNIT_LU,2,FALSE))","v":""}]
[null,null,null,null,null,null,null,"","",""]
[null,null,null,null,null,null,null,"","",""]
[null,null,null,null,null,null,null,"","",""]
[null,null,null,null,null,null,null,"","",""]
[null,null,null,null,null,null,null,"","",""]
[null,null,null,null,null,null,null,"","",""]
[null,null,null,null,null,null,null,"","",""]
[null,null,null,null,null,null,null,"","",""]
[null,null,null,null,null,null,null,"","",""]
[null,null,null,null,null,null,null,"","",""]
[null,null,null,null,null,null,null,"","",""]
[null,null,null,null,null,null,null,"","",""]
[null,null,null,null,null,null,null,"","",""]
[null,null,null,null,null,null,null,"","",""]
[null,null,null,null,null,null,null,"","",""]
[null,null,null,null,null,null,null,"","",""]
[null,null,null,null,null,null,null,"","",""]
[null,null,null,null,null,null,null,"","",""]
[null,null,null,null,null,null,null,"","",""]
[null,null,null,null,null,null,null,"","",""]
[null,null,null,null,null,null,null,"","",""]
[null,null,null,null,null,null,null,"","",""]
[null,null,null,null,null,null,null,"","",""]
[null,null,null,null,null,null,null,"","",""]
[null,null,null,null,null,null,null,"","",""]
[null,null,null,null,null,null,null,"","",""]
[null,null,null,null,null,null,null,"","",""]
[null,null,null,null,null,null,null,"","",""]
[null,null,null,null,null,null,null,"","",""]
[null,null,null,null,null,null,null,"","",""]
[null,null,null,null,null,null,null,"","",""]
[null,null,null,null,null,null,null,"","",""]
[null,null,null,null,null,null,null,"","",""]
[null,null,null,null,null,null,null,"","",""]
[null,null,null,null,null,null,null,"","",""]
[null,null,null,null,null,null,null,"","",""]
[null,null,null,null,null,null,null,"","",""]
[null,null,null,null,null,null,null,"","",""]
[null,null,null,null,null,null,null,"","",""]
[null,null,null,null,null,null,null,"","",""]
[null,null,null,null,null,null,null,"","",""]
[null,null,null,null,null,null,null,"","",""]
[null,null,null,null,null,null,null,"","",""]
[null,null,null,null,null,null,null,"","",""]
[null,null,null,null,null,null,null,"","",""]
[null,null,null,null,null,null,null,"","",""]
[null,null,null,null,null,null,null,"","",""]
[null,null,null,null,null,null,null,"","",""]
[null,null,null,null,null,null,null,"","",""]
[null,null,null,null,null,null,null,{"$f":"IF(ISBLANK(A383),\"\",VLOOKUP(A383,BLDG_SITE_LU,2,FALSE))","v":""},"",""]
[null,null,null,null,null,null,null,"","",""]
[null,null,null,null,null,null,null,"","",""]
[null,null,null,null,null,null,null,"","",""]
[null,null,null,null,null,null,null,"","",""]
[null,null,null,null,null,null,null,"","",""]
[null,null,null,null,null,null,null,"","",""]
[null,null,null,null,null,null,null,"","",""]
[null,null,null,null,null,null,null,"","",""]
[null,null,null,null,null,null,null,"","",""]
[null,null,null,null,null,null,null,"",{"$f":"IF(ISBLANK(B393),\"\",VLOOKUP(B393,POSITION_LU,2,FALSE))","v":""},{"$f":"IF(ISBLANK(D393),\"\",VLOOKUP(D393,UNIT_LU,2,FALSE))","v":""}]
[null,null,null,null,null,null,null,"","",""]
[null,null,null,null,null,null,null,"","",""]
[null,null,null,null,null,null,null,"","",""]
[null,null,null,null,null,null,null,"","",""]
[null,null,null,null,null,null,null,"","",""]
[null,null,null,null,null,null,null,"","",""]
[null,null,null,null,null,null,null,"","",""]
[null,null,null,null,null,null,null,"","",""]
[null,null,null,null,null,null,null,"","",""]
[null,null,null,null,null,null,null,"","",""]
[null,null,null,null,null,null,null,"","",""]
[null,null,null,null,null,null,null,"","",""]
[null,null,null,null,null,null,null,"","",""]
[null,null,null,null,null,null,null,"","",""]
[null,null,null,null,null,null,null,"","",""]
[null,null,null,null,null,null,null,"","",""]
[null,null,null,null,null,null,null,"","",""]
[null,null,null,null,null,null,null,"","",""]
[null,null,null,null,null,null,null,"","",""]
[null,null,null,null,null,null,null,"","",""]
[null,null,null,null,null,null,null,"","",""]
[null,null,null,null,null,null,null,"","",""]
[null,null,null,null,null,null,null,"","",""]
[null,null,null,null,null,null,null,"","",""]
[null,null,null,null,null,null,null,"","",""]
[null,null,null,null,null,null,null,"","",""]
[null,null,null,null,null,null,null,"","",""]
[null,null,null,null,null,null,null,"","",""]
[null,null,null,null,null,null,null,"","",""]
[null,null,null,null,null,null,null,"","",""]
[null,null,null,null,null,null,null,"","",""]
[null,null,null,null,null,null,null,"","",""]
[null,null,null,null,null,null,null,"","",""]
[null,null,null,null,null,null,null,"","",""]
[null,null,null,null,null,null,null,"","",""]
[null,null,null,null,null,null,null,"","",""]
[null,null,null,null,null,null,null,"","",""]
[null,null,null,null,null,null,null,"","",""]
[null,null,null,null,null,null,null,"","",""]
[null,null,null,null,null,null,null,"","",""]
[null,null,null,null,null,null,null,"","",""]
[null,null,null,null,null,null,null,"","",""]
[null,null,null,null,null,null,null,"","",""]
[null,null,null,null,null,null,null,"","",""]
[null,null,null,null,null,null,null,"","",""]
[null,null,null,null,null,null,null,"","",""]
[null,null,null,null,null,null,null,"","",""]
[null,null,null,null,null,null,null,"","",""]
[null,null,null,null,null,null,null,"","",""]
[null,null,null,null,null,null,null,"","",""]
[null,null,null,null,null,null,null,"","",""]
[null,null,null,null,null,null,null,"","",""]
[null,null,null,null,null,null,null,"","",""]
[null,null,null,null,null,null,null,{"$f":"IF(ISBLANK(A447),\"\",VLOOKUP(A447,BLDG_SITE_LU,2,FALSE))","v":""},"",""]
[null,null,null,null,null,null,null,"","",""]
[null,null,null,null,null,null,null,"","",""]
[null,null,null,null,null,null,null,"","",""]
[null,null,null,null,null,null,null,"","",""]
[null,null,null,null,null,null,null,"","",""]
[null,null,null,null,null,null,null,"","",""]
[null,null,null,null,null,null,null,"","",""]
[null,null,null,null,null,null,null,"","",""]
[null,null,null,null,null,null,null,"","",""]
[null,null,null,null,null,null,null,"",{"$f":"IF(ISBLANK(B457),\"\",VLOOKUP(B457,POSITION_LU,2,FALSE))","v":""},{"$f":"IF(ISBLANK(D457),\"\",VLOOKUP(D457,UNIT_LU,2,FALSE))","v":""}]
[null,null,null,null,null,null,null,"","",""]
[null,null,null,null,null,null,null,"","",""]
[null,null,null,null,null,null,null,"","",""]
[null,null,null,null,null,null,null,"","",""]
[null,null,null,null,null,null,null,"","",""]
[null,null,null,null,null,null,null,"","",""]
[null,null,null,null,null,null,null,"","",""]
[null,null,null,null,null,null,null,"","",""]
[null,null,null,null,null,null,null,"","",""]
[null,null,null,null,null,null,null,"","",""]
[null,null,null,null,null,null,null,"","",""]
[null,null,null,null,null,null,null,"","",""]
[null,null,null,null,null,null,null,"","",""]
[null,null,null,null,null,null,null,"","",""]
[null,null,null,null,null,null,null,"","",""]
[null,null,null,null,null,null,null,"","",""]
[null,null,null,null,null,null,null,"","",""]
[null,null,null,null,null,null,null,"","",""]
[null,null,null,null,null,null,null,"","",""]
[null,null,null,null,null,null,null,"","",""]
[null,null,null,null,null,null,null,"","",""]
[null,null,null,null,null,null,null,"","",""]
[null,null,null,null,null,null,null,"","",""]
[null,null,null,null,null,null,null,"","",""]
[null,null,null,null,null,null,null,"","",""]
[null,null,null,null,null,null,null,"","",""]
[null,null,null,null,null,null,null,"","",""]
[null,null,null,null,null,null,null,"","",""]
[null,null,null,null,null,null,null,"","",""]
[null,null,null,null,null,null,null,"","",""]
[null,null,null,null,null,null,null,"","",""]
[null,null,null,null,null,null,null,"","",""]
[null,null,null,null,null,null,null,"","",""]
[null,null,null,null,null,null,null,"","",""]
[null,null,null,null,null,null,null,"","",""]
[null,null,null,null,null,null,null,"","",""]
[null,null,null,null,null,null,null,"","",""]
[null,null,null,null,null,null,null,"","",""]
[null,null,null,null,null,null,null,"","",""]
[null,null,null,null,null,null,null,"","",""]
[null,null,null,null,null,null,null,"","",""]
[null,null,null,null,null,null,null,"","",""]
[null,null,null,null,null,null,null,"","",""]
[null,null,null,null,null,null,null,"","",""]
[null,null,null,null,null,null,null,"","",""]
[null,null,null,null,null,null,null,"","",""]
[null,null,null,null,null,null,null,"","",""]
[null,null,null,null,null,null,null,"","",""]
[null,null,null,null,null,null,null,"","",""]
[null,null,null,null,null,null,null,"","",""]
[null,null,null,null,null,null,null,"","",""]
[null,null,null,null,null,null,null,"","",""]
[null,null,null,null,null,null,null,"","",""]
[null,null,null,null,null,null,null,{"$f":"IF(ISBLANK(A511),\"\",VLOOKUP(A511,BLDG_SITE_LU,2,FALSE))","v":""},"",""]
[null,null,null,null,null,null,null,"","",""]
[null,null,null,null,null,null,null,"","",""]
[null,null,null,null,null,null,null,"","",""]
[null,null,null,null,null,null,null,"","",""]
[null,null,null,null,null,null,null,"","",""]
[null,null,null,null,null,null,null,"","",""]
[null,null,null,null,null,null,null,"","",""]
[null,null,null,null,null,null,null,"","",""]
[null,null,null,null,null,null,null,"","",""]
[null,null,null,null,null,null,null,"",{"$f":"IF(ISBLANK(B521),\"\",VLOOKUP(B521,POSITION_LU,2,FALSE))","v":""},{"$f":"IF(ISBLANK(D521),\"\",VLOOKUP(D521,UNIT_LU,2,FALSE))","v":""}]
[null,null,null,null,null,null,null,"","",""]
[null,null,null,null,null,null,null,"","",""]
[null,null,null,null,null,null,null,"","",""]
[null,null,null,null,null,null,null,"","",""]
[null,null,null,null,null,null,null,"","",""]
[null,null,null,null,null,null,null,"","",""]
[null,null,null,null,null,null,null,"","",""]
[null,null,null,null,null,null,null,"","",""]
[null,null,null,null,null,null,null,"","",""]
[null,null,null,null,null,null,null,"","",""]
[null,null,null,null,null,null,null,"","",""]
[null,null,null,null,null,null,null,"","",""]
[null,null,null,null,null,null,null,"","",""]
[null,null,null,null,null,null,null,"","",""]
[null,null,null,null,null,null,null,"","",""]
[null,null,null,null,null,null,null,"","",""]
[null,null,null,null,null,null,null,"","",""]
[null,null,null,null,null,null,null,"","",""]
[null,null,null,null,null,null,null,"","",""]
[null,null,null,null,null,null,null,"","",""]
[null,null,null,null,null,null,null,"","",""]
[null,null,null,null,null,null,null,"","",""]
[null,null,null,null,null,null,null,"","",""]
[null,null,null,null,null,null,null,"","",""]
[null,null,null,null,null,null,null,"","",""]
[null,null,null,null,null,null,null,"","",""]
[null,null,null,null,null,null,null,"","",""]
[null,null,null,null,null,null,null,"","",""]
[null,null,null,null,null,null,null,"","",""]
[null,null,null,null,null,null,null,"","",""]
[null,null,null,null,null,null,null,"","",""]
[null,null,null,null,null,null,null,"","",""]
[null,null,null,null,null,null,null,"","",""]
[null,null,null,null,null,null,null,"","",""]
[null,null,null,null,null,null,null,"","",""]
[null,null,null,null,null,null,null,"","",""]
[null,null,null,null,null,null,null,"","",""]
[null,null,null,null,null,null,null,"","",""]
[null,null,null,null,null,null,null,"","",""]
[null,null,null,null,null,null,null,"","",""]
[null,null,null,null,null,null,null,"","",""]
[null,null,null,null,null,null,null,"","",""]
[null,null,null,null,null,null,null,"","",""]
[null,null,null,null,null,null,null,"","",""]
[null,null,null,null,null,null,null,"","",""]
[null,null,null,null,null,null,null,"","",""]
[null,null,null,null,null,null,null,"","",""]
[null,null,null,null,null,null,null,"","",""]
[null,null,null,null,null,null,null,"","",""]
[null,null,null,null,null,null,null,"","",""]
[null,null,null,null,null,null,null,"","",""]
[null,null,null,null,null,null,null,"","",""]
[null,null,null,null,null,null,null,"","",""]
[null,null,null,null,null,null,null,{"$f":"IF(ISBLANK(A575),\"\",VLOOKUP(A575,BLDG_SITE_LU,2,FALSE))","v":""},"",""]
[null,null,null,null,null,null,null,"","",""]
[null,null,null,null,null,null,null,"","",""]
[null,null,null,null,null,null,null,"","",""]
[null,null,null,null,null,null,null,"","",""]
[null,null,null,null,null,null,null,"","",""]
[null,null,null,null,null,null,null,"","",""]
[null,null,null,null,null,null,null,"","",""]
[null,null,null,null,null,null,null,"","",""]
[null,null,null,null,null,null,null,"","",""]
[null,null,null,null,null,null,null,"",{"$f":"IF(ISBLANK(B585),\"\",VLOOKUP(B585,POSITION_LU,2,FALSE))","v":""},{"$f":"IF(ISBLANK(D585),\"\",VLOOKUP(D585,UNIT_LU,2,FALSE))","v":""}]
[null,null,null,null,null,null,null,"","",""]
[null,null,null,null,null,null,null,"","",""]
[null,null,null,null,null,null,null,"","",""]
[null,null,null,null,null,null,null,"","",""]
[null,null,null,null,null,null,null,"","",""]
[null,null,null,null,null,null,null,"","",""]
[null,null,null,null,null,null,null,"","",""]
[null,null,null,null,null,null,null,"","",""]
[null,null,null,null,null,null,null,"","",""]
[null,null,null,null,null,null,null,"","",""]
[null,null,null,null,null,null,null,"","",""]
[null,null,null,null,null,null,null,"","",""]
[null,null,null,null,null,null,null,"","",""]
[null,null,null,null,null,null,null,"","",""]
[null,null,null,null,null,null,null,"","",""]
[null,null,null,null,null,null,null,"","",""]
[null,null,null,null,null,null,null,"","",""]
[null,null,null,null,null,null,null,"","",""]
[null,null,null,null,null,null,null,"","",""]
[null,null,null,null,null,null,null,"","",""]
[null,null,null,null,null,null,null,"","",""]
[null,null,null,null,null,null,null,"","",""]
[null,null,null,null,null,null,null,"","",""]
[null,null,null,null,null,null,null,"","",""]
[null,null,null,null,null,null,null,"","",""]
[null,null,null,null,null,null,null,"","",""]
[null,null,null,null,null,null,null,"","",""]
[null,null,null,null,null,null,null,"","",""]
[null,null,null,null,null,null,null,"","",""]
[null,null,null,null,null,null,null,"","",""]
[null,null,null,null,null,null,null,"","",""]
[null,null,null,null,null,null,null,"","",""]
[null,null,null,null,null,null,null,"","",""]
[null,null,null,null,null,null,null,"","",""]
[null,null,null,null,null,null,null,"","",""]
[null,null,null,null,null,null,null,"","",""]
[null,null,null,null,null,null,null,"","",""]
[null,null,null,null,null,null,null,"","",""]
[null,null,null,null,null,null,null,"","",""]
[null,null,null,null,null,null,null,"","",""]
[null,null,null,null,null,null,null,"","",""]
[null,null,null,null,null,null,null,"","",""]
[null,null,null,null,null,null,null,"","",""]
[null,null,null,null,null,null,null,"","",""]
[null,null,null,null,null,null,null,"","",""]
[null,null,null,null,null,null,null,"","",""]
[null,null,null,null,null,null,null,"","",""]
[null,null,null,null,null,null,null,"","",""]
[null,null,null,null,null,null,null,"","",""]
[null,null,null,null,null,null,null,"","",""]
[null,null,null,null,null,null,null,"","",""]
[null,null,null,null,null,null,null,"","",""]
[null,null,null,null,null,null,null,"","",""]
[null,null,null,null,null,null,null,{"$f":"IF(ISBLANK(A639),\"\",VLOOKUP(A639,BLDG_SITE_LU,2,FALSE))","v":""},"",""]
[null,null,null,null,null,null,null,"","",""]
[null,null,null,null,null,null,null,"","",""]
[null,null,null,null,null,null,null,"","",""]
[null,null,null,null,null,null,null,"","",""]
[null,null,null,null,null,null,null,"","",""]
[null,null,null,null,null,null,null,"","",""]
[null,null,null,null,null,null,null,"","",""]
[null,null,null,null,null,null,null,"","",""]
[null,null,null,null,null,null,null,"","",""]
[null,null,null,null,null,null,null,"",{"$f":"IF(ISBLANK(B649),\"\",VLOOKUP(B649,POSITION_LU,2,FALSE))","v":""},{"$f":"IF(ISBLANK(D649),\"\",VLOOKUP(D649,UNIT_LU,2,FALSE))","v":""}]
[null,null,null,null,null,null,null,"","",""]
[null,null,null,null,null,null,null,"","",""]
[null,null,null,null,null,null,null,"","",""]
[null,null,null,null,null,null,null,"","",""]
[null,null,null,null,null,null,null,"","",""]
[null,null,null,null,null,null,null,"","",""]
[null,null,null,null,null,null,null,"","",""]
[null,null,null,null,null,null,null,"","",""]
[null,null,null,null,null,null,null,"","",""]
[null,null,null,null,null,null,null,"","",""]
[null,null,null,null,null,null,null,"","",""]
[null,null,null,null,null,null,null,"","",""]
[null,null,null,null,null,null,null,"","",""]
[null,null,null,null,null,null,null,"","",""]
[null,null,null,null,null,null,null,"","",""]
[null,null,null,null,null,null,null,"","",""]
[null,null,null,null,null,null,null,"","",""]
[null,null,null,null,null,null,null,"","",""]
[null,null,null,null,null,null,null,"","",""]
[null,null,null,null,null,null,null,"","",""]
[null,null,null,null,null,null,null,"","",""]
[null,null,null,null,null,null,null,"","",""]
[null,null,null,null,null,null,null,"","",""]
[null,null,null,null,null,null,null,"","",""]
[null,null,null,null,null,null,null,"","",""]
[null,null,null,null,null,null,null,"","",""]
[null,null,null,null,null,null,null,"","",""]
[null,null,null,null,null,null,null,"","",""]
[null,null,null,null,null,null,null,"","",""]
[null,null,null,null,null,null,null,"","",""]
[null,null,null,null,null,null,null,"","",""]
[null,null,null,null,null,null,null,"","",""]
[null,null,null,null,null,null,null,"","",""]
[null,null,null,null,null,null,null,"","",""]
[null,null,null,null,null,null,null,"","",""]
[null,null,null,null,null,null,null,"","",""]
[null,null,null,null,null,null,null,"","",""]
[null,null,null,null,null,null,null,"","",""]
[null,null,null,null,null,null,null,"","",""]
[null,null,null,null,null,null,null,"","",""]
[null,null,null,null,null,null,null,"","",""]
[null,null,null,null,null,null,null,"","",""]
[null,null,null,null,null,null,null,"","",""]
[null,null,null,null,null,null,null,"","",""]
[null,null,null,null,null,null,null,"","",""]
[null,null,null,null,null,null,null,"","",""]
[null,null,null,null,null,null,null,"","",""]
[null,null,null,null,null,null,null,"","",""]
[null,null,null,null,null,null,null,"","",""]
[null,null,null,null,null,null,null,"","",""]
[null,null,null,null,null,null,null,"","",""]
[null,null,null,null,null,null,null,"","",""]
[null,null,null,null,null,null,null,"","",""]
[null,null,null,null,null,null,null,{"$f":"IF(ISBLANK(A703),\"\",VLOOKUP(A703,BLDG_SITE_LU,2,FALSE))","v":""},"",""]
[null,null,null,null,null,null,null,"","",""]
[null,null,null,null,null,null,null,"","",""]
[null,null,null,null,null,null,null,"","",""]
[null,null,null,null,null,null,null,"","",""]
[null,null,null,null,null,null,null,"","",""]
[null,null,null,null,null,null,null,"","",""]
[null,null,null,null,null,null,null,"","",""]
[null,null,null,null,null,null,null,"","",""]
[null,null,null,null,null,null,null,"","",""]
[null,null,null,null,null,null,null,"",{"$f":"IF(ISBLANK(B713),\"\",VLOOKUP(B713,POSITION_LU,2,FALSE))","v":""},{"$f":"IF(ISBLANK(D713),\"\",VLOOKUP(D713,UNIT_LU,2,FALSE))","v":""}]
[null,null,null,null,null,null,null,"","",""]
[null,null,null,null,null,null,null,"","",""]
[null,null,null,null,null,null,null,"","",""]
[null,null,null,null,null,null,null,"","",""]
[null,null,null,null,null,null,null,"","",""]
[null,null,null,null,null,null,null,"","",""]
[null,null,null,null,null,null,null,"","",""]
[null,null,null,null,null,null,null,"","",""]
[null,null,null,null,null,null,null,"","",""]
[null,null,null,null,null,null,null,"","",""]
[null,null,null,null,null,null,null,"","",""]
[null,null,null,null,null,null,null,"","",""]
[null,null,null,null,null,null,null,"","",""]
[null,null,null,null,null,null,null,"","",""]
[null,null,null,null,null,null,null,"","",""]
[null,null,null,null,null,null,null,"","",""]
[null,null,null,null,null,null,null,"","",""]
[null,null,null,null,null,null,null,"","",""]
[null,null,null,null,null,null,null,"","",""]
[null,null,null,null,null,null,null,"","",""]
[null,null,null,null,null,null,null,"","",""]
[null,null,null,null,null,null,null,"","",""]
[null,null,null,null,null,null,null,"","",""]
[null,null,null,null,null,null,null,"","",""]
[null,null,null,null,null,null,null,"","",""]
[null,null,null,null,null,null,null,"","",""]
[null,null,null,null,null,null,null,"","",""]
[null,null,null,null,null,null,null,"","",""]
[null,null,null,null,null,null,null,"","",""]
[null,null,null,null,null,null,null,"","",""]
[null,null,null,null,null,null,null,"","",""]
[null,null,null,null,null,null,null,"","",""]
[null,null,null,null,null,null,null,"","",""]
[null,null,null,null,null,null,null,"","",""]
[null,null,null,null,null,null,null,"","",""]
[null,null,null,null,null,null,null,"","",""]
[null,null,null,null,null,null,null,"","",""]
[null,null,null,null,null,null,null,"","",""]
[null,null,null,null,null,null,null,"","",""]
[null,null,null,null,null,null,null,"","",""]
[null,null,null,null,null,null,null,"","",""]
[null,null,null,null,null,null,null,"","",""]
[null,null,null,null,null,null,null,"","",""]
[null,null,null,null,null,null,null,"","",""]
[null,null,null,null,null,null,null,"","",""]
[null,null,null,null,null,null,null,"","",""]
[null,null,null,null,null,null,null,"","",""]
[null,null,null,null,null,null,null,"","",""]
[null,null,null,null,null,null,null,"","",""]
[null,null,null,null,null,null,null,"","",""]
[null,null,null,null,null,null,null,"","",""]
[null,null,null,null,null,null,null,"","",""]
[null,null,null,null,null,null,null,"","",""]
[null,null,null,null,null,null,null,{"$f":"IF(ISBLANK(A767),\"\",VLOOKUP(A767,BLDG_SITE_LU,2,FALSE))","v":""},"",""]
[null,null,null,null,null,null,null,"","",""]
[null,null,null,null,null,null,null,"","",""]
[null,null,null,null,null,null,null,"","",""]
[null,null,null,null,null,null,null,"","",""]
[null,null,null,null,null,null,null,"","",""]
[null,null,null,null,null,null,null,"","",""]
[null,null,null,null,null,null,null,"","",""]
[null,null,null,null,null,null,null,"","",""]
[null,null,null,null,null,null,null,"","",""]
[null,null,null,null,null,null,null,"",{"$f":"IF(ISBLANK(B777),\"\",VLOOKUP(B777,POSITION_LU,2,FALSE))","v":""},{"$f":"IF(ISBLANK(D777),\"\",VLOOKUP(D777,UNIT_LU,2,FALSE))","v":""}]
[null,null,null,null,null,null,null,"","",""]
[null,null,null,null,null,null,null,"","",""]
[null,null,null,null,null,null,null,"","",""]
[null,null,null,null,null,null,null,"","",""]
[null,null,null,null,null,null,null,"","",""]
[null,null,null,null,null,null,null,"","",""]
[null,null,null,null,null,null,null,"","",""]
[null,null,null,null,null,null,null,"","",""]
[null,null,null,null,null,null,null,"","",""]
[null,null,null,null,null,null,null,"","",""]
[null,null,null,null,null,null,null,"","",""]
[null,null,null,null,null,null,null,"","",""]
[null,null,null,null,null,null,null,"","",""]
[null,null,null,null,null,null,null,"","",""]
[null,null,null,null,null,null,null,"","",""]
[null,null,null,null,null,null,null,"","",""]
[null,null,null,null,null,null,null,"","",""]
[null,null,null,null,null,null,null,"","",""]
[null,null,null,null,null,null,null,"","",""]
[null,null,null,null,null,null,null,"","",""]
[null,null,null,null,null,null,null,"","",""]
[null,null,null,null,null,null,null,"","",""]
[null,null,null,null,null,null,null,"","",""]
[null,null,null,null,null,null,null,"","",""]
[null,null,null,null,null,null,null,"","",""]
[null,null,null,null,null,null,null,"","",""]
[null,null,null,null,null,null,null,"","",""]
[null,null,null,null,null,null,null,"","",""]
[null,null,null,null,null,null,null,"","",""]
[null,null,null,null,null,null,null,"","",""]
[null,null,null,null,null,null,null,"","",""]
[null,null,null,null,null,null,null,"","",""]
[null,null,null,null,null,null,null,"","",""]
[null,null,null,null,null,null,null,"","",""]
[null,null,null,null,null,null,null,"","",""]
[null,null,null,null,null,null,null,"","",""]
[null,null,null,null,null,null,null,"","",""]
[null,null,null,null,null,null,null,"","",""]
[null,null,null,null,null,null,null,"","",""]
[null,null,null,null,null,null,null,"","",""]
[null,null,null,null,null,null,null,"","",""]
[null,null,null,null,null,null,null,"","",""]
[null,null,null,null,null,null,null,"","",""]
[null,null,null,null,null,null,null,"","",""]
[null,null,null,null,null,null,null,"","",""]
[null,null,null,null,null,null,null,"","",""]
[null,null,null,null,null,null,null,"","",""]
[null,null,null,null,null,null,null,"","",""]
[null,null,null,null,null,null,null,"","",""]
[null,null,null,null,null,null,null,"","",""]
[null,null,null,null,null,null,null,"","",""]
[null,null,null,null,null,null,null,"","",""]
[null,null,null,null,null,null,null,"","",""]
[null,null,null,null,null,null,null,{"$f":"IF(ISBLANK(A831),\"\",VLOOKUP(A831,BLDG_SITE_LU,2,FALSE))","v":""},"",""]
[null,null,null,null,null,null,null,"","",""]
[null,null,null,null,null,null,null,"","",""]
[null,null,null,null,null,null,null,"","",""]
[null,null,null,null,null,null,null,"","",""]
[null,null,null,null,null,null,null,"","",""]
[null,null,null,null,null,null,null,"","",""]
[null,null,null,null,null,null,null,"","",""]
[null,null,null,null,null,null,null,"","",""]
[null,null,null,null,null,null,null,"","",""]
[null,null,null,null,null,null,null,"",{"$f":"IF(ISBLANK(B841),\"\",VLOOKUP(B841,POSITION_LU,2,FALSE))","v":""},{"$f":"IF(ISBLANK(D841),\"\",VLOOKUP(D841,UNIT_LU,2,FALSE))","v":""}]
[null,null,null,null,null,null,null,"","",""]
[null,null,null,null,null,null,null,"","",""]
[null,null,null,null,null,null,null,"","",""]
[null,null,null,null,null,null,null,"","",""]
[null,null,null,null,null,null,null,"","",""]
[null,null,null,null,null,null,null,"","",""]
[null,null,null,null,null,null,null,"","",""]
[null,null,null,null,null,null,null,"","",""]
[null,null,null,null,null,null,null,"","",""]
[null,null,null,null,null,null,null,"","",""]
[null,null,null,null,null,null,null,"","",""]
[null,null,null,null,null,null,null,"","",""]
[null,null,null,null,null,null,null,"","",""]
[null,null,null,null,null,null,null,"","",""]
[null,null,null,null,null,null,null,"","",""]
[null,null,null,null,null,null,null,"","",""]
[null,null,null,null,null,null,null,"","",""]
[null,null,null,null,null,null,null,"","",""]
[null,null,null,null,null,null,null,"","",""]
[null,null,null,null,null,null,null,"","",""]
[null,null,null,null,null,null,null,"","",""]
[null,null,null,null,null,null,null,"","",""]
[null,null,null,null,null,null,null,"","",""]
[null,null,null,null,null,null,null,"","",""]
[null,null,null,null,null,null,null,"","",""]
[null,null,null,null,null,null,null,"","",""]
[null,null,null,null,null,null,null,"","",""]
[null,null,null,null,null,null,null,"","",""]
[null,null,null,null,null,null,null,"","",""]
[null,null,null,null,null,null,null,"","",""]
[null,null,null,null,null,null,null,"","",""]
[null,null,null,null,null,null,null,"","",""]
[null,null,null,null,null,null,null,"","",""]
[null,null,null,null,null,null,null,"","",""]
[null,null,null,null,null,null,null,"","",""]
[null,null,null,null,null,null,null,"","",""]
[null,null,null,null,null,null,null,"","",""]
[null,null,null,null,null,null,null,"","",""]
[null,null,null,null,null,null,null,"","",""]
[null,null,null,null,null,null,null,"","",""]
[null,null,null,null,null,null,null,"","",""]
[null,null,null,null,null,null,null,"","",""]
[null,null,null,null,null,null,null,"","",""]
[null,null,null,null,null,null,null,"","",""]
[null,null,null,null,null,null,null,"","",""]
[null,null,null,null,null,null,null,"","",""]
[null,null,null,null,null,null,null,"","",""]
[null,null,null,null,null,null,null,"","",""]
[null,null,null,null,null,null,null,"","",""]
[null,null,null,null,null,null,null,"","",""]
[null,null,null,null,null,null,null,"","",""]
[null,null,null,null,null,null,null,"","",""]
[null,null,null,null,null,null,null,"","",""]
[null,null,null,null,null,null,null,{"$f":"IF(ISBLANK(A895),\"\",VLOOKUP(A895,BLDG_SITE_LU,2,FALSE))","v":""},"",""]
[null,null,null,null,null,null,null,"","",""]
[null,null,null,null,null,null,null,"","",""]
[null,null,null,null,null,null,null,"","",""]
[null,null,null,null,null,null,null,"","",""]
[null,null,null,null,null,null,null,"","",""]
[null,null,null,null,null,null,null,"","",""]
[null,null,null,null,null,null,null,"","",""]
[null,null,null,null,null,null,null,"","",""]
[null,null,null,null,null,null,null,"","",""]
[null,null,null,null,null,null,null,"",{"$f":"IF(ISBLANK(B905),\"\",VLOOKUP(B905,POSITION_LU,2,FALSE))","v":""},{"$f":"IF(ISBLANK(D905),\"\",VLOOKUP(D905,UNIT_LU,2,FALSE))","v":""}]
[null,null,null,null,null,null,null,"","",""]
[null,null,null,null,null,null,null,"","",""]
[null,null,null,null,null,null,null,"","",""]
[null,null,null,null,null,null,null,"","",""]
[null,null,null,null,null,null,null,"","",""]
[null,null,null,null,null,null,null,"","",""]
[null,null,null,null,null,null,null,"","",""]
[null,null,null,null,null,null,null,"","",""]
[null,null,null,null,null,null,null,"","",""]
[null,null,null,null,null,null,null,"","",""]
[null,null,null,null,null,null,null,"","",""]
[null,null,null,null,null,null,null,"","",""]
[null,null,null,null,null,null,null,"","",""]
[null,null,null,null,null,null,null,"","",""]
[null,null,null,null,null,null,null,"","",""]
[null,null,null,null,null,null,null,"","",""]
[null,null,null,null,null,null,null,"","",""]
[null,null,null,null,null,null,null,"","",""]
[null,null,null,null,null,null,null,"","",""]
[null,null,null,null,null,null,null,"","",""]
[null,null,null,null,null,null,null,"","",""]
[null,null,null,null,null,null,null,"","",""]
[null,null,null,null,null,null,null,"","",""]
[null,null,null,null,null,null,null,"","",""]
[null,null,null,null,null,null,null,"","",""]
[null,null,null,null,null,null,null,"","",""]
[null,null,null,null,null,null,null,"","",""]
[null,null,null,null,null,null,null,"","",""]
[null,null,null,null,null,null,null,"","",""]
[null,null,null,null,null,null,null,"","",""]
[null,null,null,null,null,null,null,"","",""]
[null,null,null,null,null,null,null,"","",""]
[null,null,null,null,null,null,null,"","",""]
[null,null,null,null,null,null,null,"","",""]
[null,null,null,null,null,null,null,"","",""]
[null,null,null,null,null,null,null,"","",""]
[null,null,null,null,null,null,null,"","",""]
[null,null,null,null,null,null,null,"","",""]
[null,null,null,null,null,null,null,"","",""]
[null,null,null,null,null,null,null,"","",""]
[null,null,null,null,null,null,null,"","",""]
[null,null,null,null,null,null,null,"","",""]
[null,null,null,null,null,null,null,"","",""]
[null,null,null,null,null,null,null,"","",""]
[null,null,null,null,null,null,null,"","",""]
[null,null,null,null,null,null,null,"","",""]
[null,null,null,null,null,null,null,"","",""]
[null,null,null,null,null,null,null,"","",""]
[null,null,null,null,null,null,null,"","",""]
[null,null,null,null,null,null,null,"","",""]
[null,null,null,null,null,null,null,"","",""]
[null,null,null,null,null,null,null,"","",""]
[null,null,null,null,null,null,null,"","",""]
[null,null,null,null,null,null,null,{"$f":"IF(ISBLANK(A959),\"\",VLOOKUP(A959,BLDG_SITE_LU,2,FALSE))","v":""},"",""]
[null,null,null,null,null,null,null,"","",""]
[null,null,null,null,null,null,null,"","",""]
[null,null,null,null,null,null,null,"","",""]
[null,null,null,null,null,null,null,"","",""]
[null,null,null,null,null,null,null,"","",""]
[null,null,null,null,null,null,null,"","",""]
[null,null,null,null,null,null,null,"","",""]
[null,null,null,null,null,null,null,"","",""]
[null,null,null,null,null,null,null,"","",""]
[null,null,null,null,null,null,null,"",{"$f":"IF(ISBLANK(B969),\"\",VLOOKUP(B969,POSITION_LU,2,FALSE))","v":""},{"$f":"IF(ISBLANK(D969),\"\",VLOOKUP(D969,UNIT_LU,2,FALSE))","v":""}]
[null,null,null,null,null,null,null,"","",""]
[null,null,null,null,null,null,null,"","",""]
[null,null,null,null,null,null,null,"","",""]
[null,null,null,null,null,null,null,"","",""]
[null,null,null,null,null,null,null,"","",""]
[null,null,null,null,null,null,null,"","",""]
[null,null,null,null,null,null,null,"","",""]
[null,null,null,null,null,null,null,"","",""]
[null,null,null,null,null,null,null,"","",""]
[null,null,null,null,null,null,null,"","",""]
[null,null,null,null,null,null,null,"","",""]
[null,null,null,null,null,null,null,"","",""]
[null,null,null,null,null,null,null,"","",""]
[null,null,null,null,null,null,null,"","",""]
[null,null,null,null,null,null,null,"","",""]
[null,null,null,null,null,null,null,"","",""]
[null,null,null,null,null,null,null,"","",""]
[null,null,null,null,null,null,null,"","",""]
[null,null,null,null,null,null,null,"","",""]
[null,null,null,null,null,null,null,"","",""]
[null,null,null,null,null,null,null,"","",""]
[null,null,null,null,null,null,null,"","",""]
[null,null,null,null,null,null,null,"","",""]
[null,null,null,null,null,null,null,"","",""]
[null,null,null,null,null,null,null,"","",""]
[null,null,null,null,null,null,null,"","",""]
[null,null,null,null,null,null,null,"","",""]
[null,null,null,null,null,null,null,"","",""]
[null,null,null,null,null,null,null,"","",""]
[null,null,null,null,null,null,null,"","",""]
[null,null,null,null,null,null,null,"","",""]
[null,null,null,null,null,null,null,"","",""]
[null,null,null,null,null,null,null,"","",""]
[null,null,null,null,null,null,null,"","",""]
[null,null,null,null,null,null,null,"","",""]
[null,null,null,null,null,null,null,"","",""]
[null,null,null,null,null,null,null,"","",""]
[null,null,null,null,null,null,null,"","",""]
[null,null,null,null,null,null,null,"","",""]
[null,null,null,null,null,null,null,"","",""]
[null,null,null,null,null,null,null,"","",""]
[null,null,null,null,null,null,null,"","",""]
[null,null,null,null,null,null,null,"","",""]
[null,null,null,null,null,null,null,"","",""]
[null,null,null,null,null,null,null,"","",""]
[null,null,null,null,null,null,null,"","",""]
[null,null,null,null,null,null,null,"","",""]
[null,null,null,null,null,null,null,"","",""]
[null,null,null,null,null,null,null,"","",""]
[null,null,null,null,null,null,null,"","",""]
[null,null,null,null,null,null,null,"","",""]
[null,null,null,null,null,null,null,"","",""]
[null,null,null,null,null,null,null,"","",""]
[null,null,null,null,null,null,null,{"$f":"IF(ISBLANK(A1023),\"\",VLOOKUP(A1023,BLDG_SITE_LU,2,FALSE))","v":""},"",""]
[null,null,null,null,null,null,null,"","",""]
[null,null,null,null,null,null,null,"","",""]
[null,null,null,null,null,null,null,"","",""]
[null,null,null,null,null,null,null,"","",""]
[null,null,null,null,null,null,null,"","",""]
[null,null,null,null,null,null,null,"","",""]
[null,null,null,null,null,null,null,"","",""]
[null,null,null,null,null,null,null,"","",""]
[null,null,null,null,null,null,null,"","",""]
[null,null,null,null,null,null,null,"",{"$f":"IF(ISBLANK(B1033),\"\",VLOOKUP(B1033,POSITION_LU,2,FALSE))","v":""},{"$f":"IF(ISBLANK(D1033),\"\",VLOOKUP(D1033,UNIT_LU,2,FALSE))","v":""}]
[null,null,null,null,null,null,null,"","",""]
[null,null,null,null,null,null,null,"","",""]
[null,null,null,null,null,null,null,"","",""]
[null,null,null,null,null,null,null,"","",""]
[null,null,null,null,null,null,null,"","",""]
[null,null,null,null,null,null,null,"","",""]
[null,null,null,null,null,null,null,"","",""]
[null,null,null,null,null,null,null,"","",""]
[null,null,null,null,null,null,null,"","",""]
[null,null,null,null,null,null,null,"","",""]
[null,null,null,null,null,null,null,"","",""]
[null,null,null,null,null,null,null,"","",""]
[null,null,null,null,null,null,null,"","",""]
[null,null,null,null,null,null,null,"","",""]
[null,null,null,null,null,null,null,"","",""]
[null,null,null,null,null,null,null,"","",""]
[null,null,null,null,null,null,null,"","",""]
[null,null,null,null,null,null,null,"","",""]
[null,null,null,null,null,null,null,"","",""]
[null,null,null,null,null,null,null,"","",""]
[null,null,null,null,null,null,null,"","",""]
[null,null,null,null,null,null,null,"","",""]
[null,null,null,null,null,null,null,"","",""]
[null,null,null,null,null,null,null,"","",""]
[null,null,null,null,null,null,null,"","",""]
[null,null,null,null,null,null,null,"","",""]
[null,null,null,null,null,null,null,"","",""]
[null,null,null,null,null,null,null,"","",""]
[null,null,null,null,null,null,null,"","",""]
[null,null,null,null,null,null,null,"","",""]
[null,null,null,null,null,null,null,"","",""]
[null,null,null,null,null,null,null,"","",""]
[null,null,null,null,null,null,null,"","",""]
[null,null,null,null,null,null,null,"","",""]
[null,null,null,null,null,null,null,"","",""]
[null,null,null,null,null,null,null,"","",""]
[null,null,null,null,null,null,null,"","",""]
[null,null,null,null,null,null,null,"","",""]
[null,null,null,null,null,null,null,"","",""]
[null,null,null,null,null,null,null,"","",""]
[null,null,null,null,null,null,null,"","",""]
[null,null,null,null,null,null,null,"","",""]
[null,null,null,null,null,null,null,"","",""]
[null,null,null,null,null,null,null,"","",""]
[null,null,null,null,null,null,null,"","",""]
[null,null,null,null,null,null,null,"","",""]
[null,null,null,null,null,null,null,"","",""]
[null,null,null,null,null,null,null,"","",""]
[null,null,null,null,null,null,null,"","",""]
[null,null,null,null,null,null,null,"","",""]
[null,null,null,null,null,null,null,"","",""]
[null,null,null,null,null,null,null,"","",""]
[null,null,null,null,null,null,null,"","",""]
[null,null,null,null,null,null,null,{"$f":"IF(ISBLANK(A1087),\"\",VLOOKUP(A1087,BLDG_SITE_LU,2,FALSE))","v":""},"",""]
[null,null,null,null,null,null,null,"","",""]
[null,null,null,null,null,null,null,"","",""]
[null,null,null,null,null,null,null,"","",""]
[null,null,null,null,null,null,null,"","",""]
[null,null,null,null,null,null,null,"","",""]
[null,null,null,null,null,null,null,"","",""]
[null,null,null,null,null,null,null,"","",""]
[null,null,null,null,null,null,null,"","",""]
[null,null,null,null,null,null,null,"","",""]
[null,null,null,null,null,null,null,"",{"$f":"IF(ISBLANK(B1097),\"\",VLOOKUP(B1097,POSITION_LU,2,FALSE))","v":""},{"$f":"IF(ISBLANK(D1097),\"\",VLOOKUP(D1097,UNIT_LU,2,FALSE))","v":""}]
[null,null,null,null,null,null,null,"","",""]
[null,null,null,null,null,null,null,"","",""]
[null,null,null,null,null,null,null,"","",""]
[null,null,null,null,null,null,null,"","",""]
[null,null,null,null,null,null,null,"","",""]
[null,null,null,null,null,null,null,"","",""]
[null,null,null,null,null,null,null,"","",""]
[null,null,null,null,null,null,null,"","",""]
[null,null,null,null,null,null,null,"","",""]
[null,null,null,null,null,null,null,"","",""]
[null,null,null,null,null,null,null,"","",""]
[null,null,null,null,null,null,null,"","",""]
[null,null,null,null,null,null,null,"","",""]
[null,null,null,null,null,null,null,"","",""]
[null,null,null,null,null,null,null,"","",""]
[null,null,null,null,null,null,null,"","",""]
[null,null,null,null,null,null,null,"","",""]
[null,null,null,null,null,null,null,"","",""]
[null,null,null,null,null,null,null,"","",""]
[null,null,null,null,null,null,null,"","",""]
[null,null,null,null,null,null,null,"","",""]
[null,null,null,null,null,null,null,"","",""]
[null,null,null,null,null,null,null,"","",""]
[null,null,null,null,null,null,null,"","",""]
[null,null,null,null,null,null,null,"","",""]
[null,null,null,null,null,null,null,"","",""]
[null,null,null,null,null,null,null,"","",""]
[null,null,null,null,null,null,null,"","",""]
[null,null,null,null,null,null,null,"","",""]
[null,null,null,null,null,null,null,"","",""]
[null,null,null,null,null,null,null,"","",""]
[null,null,null,null,null,null,null,"","",""]
[null,null,null,null,null,null,null,"","",""]
[null,null,null,null,null,null,null,"","",""]
[null,null,null,null,null,null,null,"","",""]
[null,null,null,null,null,null,null,"","",""]
[null,null,null,null,null,null,null,"","",""]
[null,null,null,null,null,null,null,"","",""]
[null,null,null,null,null,null,null,"","",""]
[null,null,null,null,null,null,null,"","",""]
[null,null,null,null,null,null,null,"","",""]
[null,null,null,null,null,null,null,"","",""]
[null,null,null,null,null,null,null,"","",""]
[null,null,null,null,null,null,null,"","",""]
[null,null,null,null,null,null,null,"","",""]
[null,null,null,null,null,null,null,"","",""]
[null,null,null,null,null,null,null,"","",""]
[null,null,null,null,null,null,null,"","",""]
[null,null,null,null,null,null,null,"","",""]
[null,null,null,null,null,null,null,"","",""]
[null,null,null,null,null,null,null,"","",""]
[null,null,null,null,null,null,null,"","",""]
[null,null,null,null,null,null,null,"","",""]
[null,null,null,null,null,null,null,{"$f":"IF(ISBLANK(A1151),\"\",VLOOKUP(A1151,BLDG_SITE_LU,2,FALSE))","v":""},"",""]
[null,null,null,null,null,null,null,"","",""]
[null,null,null,null,null,null,null,"","",""]
[null,null,null,null,null,null,null,"","",""]
[null,null,null,null,null,null,null,"","",""]
[null,null,null,null,null,null,null,"","",""]
[null,null,null,null,null,null,null,"","",""]
[null,null,null,null,null,null,null,"","",""]
[null,null,null,null,null,null,null,"","",""]
[null,null,null,null,null,null,null,"","",""]
[null,null,null,null,null,null,null,"",{"$f":"IF(ISBLANK(B1161),\"\",VLOOKUP(B1161,POSITION_LU,2,FALSE))","v":""},{"$f":"IF(ISBLANK(D1161),\"\",VLOOKUP(D1161,UNIT_LU,2,FALSE))","v":""}]
[null,null,null,null,null,null,null,"","",""]
[null,null,null,null,null,null,null,"","",""]
[null,null,null,null,null,null,null,"","",""]
[null,null,null,null,null,null,null,"","",""]
[null,null,null,null,null,null,null,"","",""]
[null,null,null,null,null,null,null,"","",""]
[null,null,null,null,null,null,null,"","",""]
[null,null,null,null,null,null,null,"","",""]
[null,null,null,null,null,null,null,"","",""]
[null,null,null,null,null,null,null,"","",""]
[null,null,null,null,null,null,null,"","",""]
[null,null,null,null,null,null,null,"","",""]
[null,null,null,null,null,null,null,"","",""]
[null,null,null,null,null,null,null,"","",""]
[null,null,null,null,null,null,null,"","",""]
[null,null,null,null,null,null,null,"","",""]
[null,null,null,null,null,null,null,"","",""]
[null,null,null,null,null,null,null,"","",""]
[null,null,null,null,null,null,null,"","",""]
[null,null,null,null,null,null,null,"","",""]
[null,null,null,null,null,null,null,"","",""]
[null,null,null,null,null,null,null,"","",""]
[null,null,null,null,null,null,null,"","",""]
[null,null,null,null,null,null,null,"","",""]
[null,null,null,null,null,null,null,"","",""]
[null,null,null,null,null,null,null,"","",""]
[null,null,null,null,null,null,null,"","",""]
[null,null,null,null,null,null,null,"","",""]
[null,null,null,null,null,null,null,"","",""]
[null,null,null,null,null,null,null,"","",""]
[null,null,null,null,null,null,null,"","",""]
[null,null,null,null,null,null,null,"","",""]
[null,null,null,null,null,null,null,"","",""]
[null,null,null,null,null,null,null,"","",""]
[null,null,null,null,null,null,null,"","",""]
[null,null,null,null,null,null,null,"","",""]
[null,null,null,null,null,null,null,"","",""]
[null,null,null,null,null,null,null,"","",""]
[null,null,null,null,null,null,null,"","",""]
[null,null,null,null,null,null,null,"","",""]
[null,null,null,null,null,null,null,"","",""]
[null,null,null,null,null,null,null,"","",""]
[null,null,null,null,null,null,null,"","",""]
[null,null,null,null,null,null,null,"","",""]
[null,null,null,null,null,null,null,"","",""]
[null,null,null,null,null,null,null,"","",""]
[null,null,null,null,null,null,null,"","",""]
[null,null,null,null,null,null,null,"","",""]
[null,null,null,null,null,null,null,"","",""]
[null,null,null,null,null,null,null,"","",""]
[null,null,null,null,null,null,null,"","",""]
[null,null,null,null,null,null,null,"","",""]
[null,null,null,null,null,null,null,"","",""]
[null,null,null,null,null,null,null,{"$f":"IF(ISBLANK(A1215),\"\",VLOOKUP(A1215,BLDG_SITE_LU,2,FALSE))","v":""},"",""]
[null,null,null,null,null,null,null,"","",""]
[null,null,null,null,null,null,null,"","",""]
[null,null,null,null,null,null,null,"","",""]
[null,null,null,null,null,null,null,"","",""]
[null,null,null,null,null,null,null,"","",""]
[null,null,null,null,null,null,null,"","",""]
[null,null,null,null,null,null,null,"","",""]
[null,null,null,null,null,null,null,"","",""]
[null,null,null,null,null,null,null,"","",""]
[null,null,null,null,null,null,null,"",{"$f":"IF(ISBLANK(B1225),\"\",VLOOKUP(B1225,POSITION_LU,2,FALSE))","v":""},{"$f":"IF(ISBLANK(D1225),\"\",VLOOKUP(D1225,UNIT_LU,2,FALSE))","v":""}]
[null,null,null,null,null,null,null,"","",""]
[null,null,null,null,null,null,null,"","",""]
[null,null,null,null,null,null,null,"","",""]
[null,null,null,null,null,null,null,"","",""]
[null,null,null,null,null,null,null,"","",""]
[null,null,null,null,null,null,null,"","",""]
[null,null,null,null,null,null,null,"","",""]
[null,null,null,null,null,null,null,"","",""]
[null,null,null,null,null,null,null,"","",""]
[null,null,null,null,null,null,null,"","",""]
[null,null,null,null,null,null,null,"","",""]
[null,null,null,null,null,null,null,"","",""]
[null,null,null,null,null,null,null,"","",""]
[null,null,null,null,null,null,null,"","",""]
[null,null,null,null,null,null,null,"","",""]
[null,null,null,null,null,null,null,"","",""]
[null,null,null,null,null,null,null,"","",""]
[null,null,null,null,null,null,null,"","",""]
[null,null,null,null,null,null,null,"","",""]
[null,null,null,null,null,null,null,"","",""]
[null,null,null,null,null,null,null,"","",""]
[null,null,null,null,null,null,null,"","",""]
[null,null,null,null,null,null,null,"","",""]
[null,null,null,null,null,null,null,"","",""]
[null,null,null,null,null,null,null,"","",""]
[null,null,null,null,null,null,null,"","",""]
[null,null,null,null,null,null,null,"","",""]
[null,null,null,null,null,null,null,"","",""]
[null,null,null,null,null,null,null,"","",""]
[null,null,null,null,null,null,null,"","",""]
[null,null,null,null,null,null,null,"","",""]
[null,null,null,null,null,null,null,"","",""]
[null,null,null,null,null,null,null,"","",""]
[null,null,null,null,null,null,null,"","",""]
[null,null,null,null,null,null,null,"","",""]
[null,null,null,null,null,null,null,"","",""]
[null,null,null,null,null,null,null,"","",""]
[null,null,null,null,null,null,null,"","",""]
[null,null,null,null,null,null,null,"","",""]
[null,null,null,null,null,null,null,"","",""]
[null,null,null,null,null,null,null,"","",""]
[null,null,null,null,null,null,null,"","",""]
[null,null,null,null,null,null,null,"","",""]
[null,null,null,null,null,null,null,"","",""]
[null,null,null,null,null,null,null,"","",""]
[null,null,null,null,null,null,null,"","",""]
[null,null,null,null,null,null,null,"","",""]
[null,null,null,null,null,null,null,"","",""]
[null,null,null,null,null,null,null,"","",""]
[null,null,null,null,null,null,null,"","",""]
[null,null,null,null,null,null,null,"","",""]
[null,null,null,null,null,null,null,"","",""]
[null,null,null,null,null,null,null,"","",""]
[null,null,null,null,null,null,null,{"$f":"IF(ISBLANK(A1279),\"\",VLOOKUP(A1279,BLDG_SITE_LU,2,FALSE))","v":""},"",""]
[null,null,null,null,null,null,null,"","",""]
[null,null,null,null,null,null,null,"","",""]
[null,null,null,null,null,null,null,"","",""]
[null,null,null,null,null,null,null,"","",""]
[null,null,null,null,null,null,null,"","",""]
[null,null,null,null,null,null,null,"","",""]
[null,null,null,null,null,null,null,"","",""]
[null,null,null,null,null,null,null,"","",""]
[null,null,null,null,null,null,null,"","",""]
[null,null,null,null,null,null,null,"",{"$f":"IF(ISBLANK(B1289),\"\",VLOOKUP(B1289,POSITION_LU,2,FALSE))","v":""},{"$f":"IF(ISBLANK(D1289),\"\",VLOOKUP(D1289,UNIT_LU,2,FALSE))","v":""}]
[null,null,null,null,null,null,null,"","",""]
[null,null,null,null,null,null,null,"","",""]
[null,null,null,null,null,null,null,"","",""]
[null,null,null,null,null,null,null,"","",""]
[null,null,null,null,null,null,null,"","",""]
[null,null,null,null,null,null,null,"","",""]
[null,null,null,null,null,null,null,"","",""]
[null,null,null,null,null,null,null,"","",""]
[null,null,null,null,null,null,null,"","",""]
[null,null,null,null,null,null,null,"","",""]
[null,null,null,null,null,null,null,"","",""]
[null,null,null,null,null,null,null,"","",""]
[null,null,null,null,null,null,null,"","",""]
[null,null,null,null,null,null,null,"","",""]
[null,null,null,null,null,null,null,"","",""]
[null,null,null,null,null,null,null,"","",""]
[null,null,null,null,null,null,null,"","",""]
[null,null,null,null,null,null,null,"","",""]
[null,null,null,null,null,null,null,"","",""]
[null,null,null,null,null,null,null,"","",""]
[null,null,null,null,null,null,null,"","",""]
[null,null,null,null,null,null,null,"","",""]
[null,null,null,null,null,null,null,"","",""]
[null,null,null,null,null,null,null,"","",""]
[null,null,null,null,null,null,null,"","",""]
[null,null,null,null,null,null,null,"","",""]
[null,null,null,null,null,null,null,"","",""]
[null,null,null,null,null,null,null,"","",""]
[null,null,null,null,null,null,null,"","",""]
[null,null,null,null,null,null,null,"","",""]
[null,null,null,null,null,null,null,"","",""]
[null,null,null,null,null,null,null,"","",""]
[null,null,null,null,null,null,null,"","",""]
[null,null,null,null,null,null,null,"","",""]
[null,null,null,null,null,null,null,"","",""]
[null,null,null,null,null,null,null,"","",""]
[null,null,null,null,null,null,null,"","",""]
[null,null,null,null,null,null,null,"","",""]
[null,null,null,null,null,null,null,"","",""]
[null,null,null,null,null,null,null,"","",""]
[null,null,null,null,null,null,null,"","",""]
[null,null,null,null,null,null,null,"","",""]
[null,null,null,null,null,null,null,"","",""]
[null,null,null,null,null,null,null,"","",""]
[null,null,null,null,null,null,null,"","",""]
[null,null,null,null,null,null,null,"","",""]
[null,null,null,null,null,null,null,"","",""]
[null,null,null,null,null,null,null,"","",""]
[null,null,null,null,null,null,null,"","",""]
[null,null,null,null,null,null,null,"","",""]
[null,null,null,null,null,null,null,"","",""]
[null,null,null,null,null,null,null,"","",""]
[null,null,null,null,null,null,null,"","",""]
[null,null,null,null,null,null,null,{"$f":"IF(ISBLANK(A1343),\"\",VLOOKUP(A1343,BLDG_SITE_LU,2,FALSE))","v":""},"",""]
[null,null,null,null,null,null,null,"","",""]
[null,null,null,null,null,null,null,"","",""]
[null,null,null,null,null,null,null,"","",""]
[null,null,null,null,null,null,null,"","",""]
[null,null,null,null,null,null,null,"","",""]
[null,null,null,null,null,null,null,"","",""]
[null,null,null,null,null,null,null,"","",""]
[null,null,null,null,null,null,null,"","",""]
[null,null,null,null,null,null,null,"","",""]
[null,null,null,null,null,null,null,"",{"$f":"IF(ISBLANK(B1353),\"\",VLOOKUP(B1353,POSITION_LU,2,FALSE))","v":""},{"$f":"IF(ISBLANK(D1353),\"\",VLOOKUP(D1353,UNIT_LU,2,FALSE))","v":""}]
[null,null,null,null,null,null,null,"","",""]
[null,null,null,null,null,null,null,"","",""]
[null,null,null,null,null,null,null,"","",""]
[null,null,null,null,null,null,null,"","",""]
[null,null,null,null,null,null,null,"","",""]
[null,null,null,null,null,null,null,"","",""]
[null,null,null,null,null,null,null,"","",""]
[null,null,null,null,null,null,null,"","",""]
[null,null,null,null,null,null,null,"","",""]
[null,null,null,null,null,null,null,"","",""]
[null,null,null,null,null,null,null,"","",""]
[null,null,null,null,null,null,null,"","",""]
[null,null,null,null,null,null,null,"","",""]
[null,null,null,null,null,null,null,"","",""]
[null,null,null,null,null,null,null,"","",""]
[null,null,null,null,null,null,null,"","",""]
[null,null,null,null,null,null,null,"","",""]
[null,null,null,null,null,null,null,"","",""]
[null,null,null,null,null,null,null,"","",""]
[null,null,null,null,null,null,null,"","",""]
[null,null,null,null,null,null,null,"","",""]
[null,null,null,null,null,null,null,"","",""]
[null,null,null,null,null,null,null,"","",""]
[null,null,null,null,null,null,null,"","",""]
[null,null,null,null,null,null,null,"","",""]
[null,null,null,null,null,null,null,"","",""]
[null,null,null,null,null,null,null,"","",""]
[null,null,null,null,null,null,null,"","",""]
[null,null,null,null,null,null,null,"","",""]
[null,null,null,null,null,null,null,"","",""]
[null,null,null,null,null,null,null,"","",""]
[null,null,null,null,null,null,null,"","",""]
[null,null,null,null,null,null,null,"","",""]
[null,null,null,null,null,null,null,"","",""]
[null,null,null,null,null,null,null,"","",""]
[null,null,null,null,null,null,null,"","",""]
[null,null,null,null,null,null,null,"","",""]
[null,null,null,null,null,null,null,"","",""]
[null,null,null,null,null,null,null,"","",""]
[null,null,null,null,null,null,null,"","",""]
[null,null,null,null,null,null,null,"","",""]
[null,null,null,null,null,null,null,"","",""]
[null,null,null,null,null,null,null,"","",""]
[null,null,null,null,null,null,null,"","",""]
[null,null,null,null,null,null,null,"","",""]
[null,null,null,null,null,null,null,"","",""]
[null,null,null,null,null,null,null,"","",""]
[null,null,null,null,null,null,null,"","",""]
[null,null,null,null,null,null,null,"","",""]
[null,null,null,null,null,null,null,"","",""]
[null,null,null,null,null,null,null,"","",""]
[null,null,null,null,null,null,null,"","",""]
[null,null,null,null,null,null,null,"","",""]
[null,null,null,null,null,null,null,{"$f":"IF(ISBLANK(A1407),\"\",VLOOKUP(A1407,BLDG_SITE_LU,2,FALSE))","v":""},"",""]
[null,null,null,null,null,null,null,"","",""]
[null,null,null,null,null,null,null,"","",""]
[null,null,null,null,null,null,null,"","",""]
[null,null,null,null,null,null,null,"","",""]
[null,null,null,null,null,null,null,"","",""]
[null,null,null,null,null,null,null,"","",""]
[null,null,null,null,null,null,null,"","",""]
[null,null,null,null,null,null,null,"","",""]
[null,null,null,null,null,null,null,"","",""]
[null,null,null,null,null,null,null,"",{"$f":"IF(ISBLANK(B1417),\"\",VLOOKUP(B1417,POSITION_LU,2,FALSE))","v":""},{"$f":"IF(ISBLANK(D1417),\"\",VLOOKUP(D1417,UNIT_LU,2,FALSE))","v":""}]
[null,null,null,null,null,null,null,"","",""]
[null,null,null,null,null,null,null,"","",""]
[null,null,null,null,null,null,null,"","",""]
[null,null,null,null,null,null,null,"","",""]
[null,null,null,null,null,null,null,"","",""]
[null,null,null,null,null,null,null,"","",""]
[null,null,null,null,null,null,null,"","",""]
[null,null,null,null,null,null,null,"","",""]
[null,null,null,null,null,null,null,"","",""]
[null,null,null,null,null,null,null,"","",""]
[null,null,null,null,null,null,null,"","",""]
[null,null,null,null,null,null,null,"","",""]
[null,null,null,null,null,null,null,"","",""]
[null,null,null,null,null,null,null,"","",""]
[null,null,null,null,null,null,null,"","",""]
[null,null,null,null,null,null,null,"","",""]
[null,null,null,null,null,null,null,"","",""]
[null,null,null,null,null,null,null,"","",""]
[null,null,null,null,null,null,null,"","",""]
[null,null,null,null,null,null,null,"","",""]
[null,null,null,null,null,null,null,"","",""]
[null,null,null,null,null,null,null,"","",""]
[null,null,null,null,null,null,null,"","",""]
[null,null,null,null,null,null,null,"","",""]
[null,null,null,null,null,null,null,"","",""]
[null,null,null,null,null,null,null,"","",""]
[null,null,null,null,null,null,null,"","",""]
[null,null,null,null,null,null,null,"","",""]
[null,null,null,null,null,null,null,"","",""]
[null,null,null,null,null,null,null,"","",""]
[null,null,null,null,null,null,null,"","",""]
[null,null,null,null,null,null,null,"","",""]
[null,null,null,null,null,null,null,"","",""]
[null,null,null,null,null,null,null,"","",""]
[null,null,null,null,null,null,null,"","",""]
[null,null,null,null,null,null,null,"","",""]
[null,null,null,null,null,null,null,"","",""]
[null,null,null,null,null,null,null,"","",""]
[null,null,null,null,null,null,null,"","",""]
[null,null,null,null,null,null,null,"","",""]
[null,null,null,null,null,null,null,"","",""]
[null,null,null,null,null,null,null,"","",""]
[null,null,null,null,null,null,null,"","",""]
[null,null,null,null,null,null,null,"","",""]
[null,null,null,null,null,null,null,"","",""]
[null,null,null,null,null,null,null,"","",""]
[null,null,null,null,null,null,null,"","",""]
[null,null,null,null,null,null,null,"","",""]
[null,null,null,null,null,null,null,"","",""]
[null,null,null,null,null,null,null,"","",""]
[null,null,null,null,null,null,null,"","",""]
[null,null,null,null,null,null,null,"","",""]
[null,null,null,null,null,null,null,"","",""]
[null,null,null,null,null,null,null,{"$f":"IF(ISBLANK(A1471),\"\",VLOOKUP(A1471,BLDG_SITE_LU,2,FALSE))","v":""},"",""]
[null,null,null,null,null,null,null,"","",""]
[null,null,null,null,null,null,null,"","",""]
[null,null,null,null,null,null,null,"","",""]
[null,null,null,null,null,null,null,"","",""]
[null,null,null,null,null,null,null,"","",""]
[null,null,null,null,null,null,null,"","",""]
[null,null,null,null,null,null,null,"","",""]
[null,null,null,null,null,null,null,"","",""]
[null,null,null,null,null,null,null,"","",""]
[null,null,null,null,null,null,null,"",{"$f":"IF(ISBLANK(B1481),\"\",VLOOKUP(B1481,POSITION_LU,2,FALSE))","v":""},{"$f":"IF(ISBLANK(D1481),\"\",VLOOKUP(D1481,UNIT_LU,2,FALSE))","v":""}]
[null,null,null,null,null,null,null,"","",""]
[null,null,null,null,null,null,null,"","",""]
[null,null,null,null,null,null,null,"","",""]
[null,null,null,null,null,null,null,"","",""]
[null,null,null,null,null,null,null,"","",""]
[null,null,null,null,null,null,null,"","",""]
[null,null,null,null,null,null,null,"","",""]
[null,null,null,null,null,null,null,"","",""]
[null,null,null,null,null,null,null,"","",""]
[null,null,null,null,null,null,null,"","",""]
[null,null,null,null,null,null,null,"","",""]
[null,null,null,null,null,null,null,"","",""]
[null,null,null,null,null,null,null,"","",""]
[null,null,null,null,null,null,null,"","",""]
[null,null,null,null,null,null,null,"","",""]
[null,null,null,null,null,null,null,"","",""]
[null,null,null,null,null,null,null,"","",""]
[null,null,null,null,null,null,null,"","",""]
[null,null,null,null,null,null,null,"","",""]
[null,null,null,null,null,null,null,"","",""]
[null,null,null,null,null,null,null,"","",""]
[null,null,null,null,null,null,null,"","",""]
[null,null,null,null,null,null,null,"","",""]
[null,null,null,null,null,null,null,"","",""]
[null,null,null,null,null,null,null,"","",""]
[null,null,null,null,null,null,null,"","",""]
[null,null,null,null,null,null,null,"","",""]
[null,null,null,null,null,null,null,"","",""]
[null,null,null,null,null,null,null,"","",""]
[null,null,null,null,null,null,null,"","",""]
[null,null,null,null,null,null,null,"","",""]
[null,null,null,null,null,null,null,"","",""]
[null,null,null,null,null,null,null,"","",""]
[null,null,null,null,null,null,null,"","",""]
[null,null,null,null,null,null,null,"","",""]
[null,null,null,null,null,null,null,"","",""]
[null,null,null,null,null,null,null,"","",""]
[null,null,null,null,null,null,null,"","",""]
[null,null,null,null,null,null,null,"","",""]
[null,null,null,null,null,null,null,"","",""]
[null,null,null,null,null,null,null,"","",""]
[null,null,null,null,null,null,null,"","",""]
[null,null,null,null,null,null,null,"","",""]
[null,null,null,null,null,null,null,"","",""]
[null,null,null,null,null,null,null,"","",""]
[null,null,null,null,null,null,null,"","",""]
[null,null,null,null,null,null,null,"","",""]
[null,null,null,null,null,null,null,"","",""]
[null,null,null,null,null,null,null,"","",""]
[null,null,null,null,null,null,null,"","",""]
[null,null,null,null,null,null,null,"","",""]
[null,null,null,null,null,null,null,"","",""]
[null,null,null,null,null,null,null,"","",""]
[null,null,null,null,null,null,null,{"$f":"IF(ISBLANK(A1535),\"\",VLOOKUP(A1535,BLDG_SITE_LU,2,FALSE))","v":""},"",""]
[null,null,null,null,null,null,null,"","",""]
[null,null,null,null,null,null,null,"","",""]
[null,null,null,null,null,null,null,"","",""]
[null,null,null,null,null,null,null,"","",""]
[null,null,null,null,null,null,null,"","",""]
[null,null,null,null,null,null,null,"","",""]
[null,null,null,null,null,null,null,"","",""]
[null,null,null,null,null,null,null,"","",""]
[null,null,null,null,null,null,null,"","",""]
[null,null,null,null,null,null,null,"",{"$f":"IF(ISBLANK(B1545),\"\",VLOOKUP(B1545,POSITION_LU,2,FALSE))","v":""},{"$f":"IF(ISBLANK(D1545),\"\",VLOOKUP(D1545,UNIT_LU,2,FALSE))","v":""}]
[null,null,null,null,null,null,null,"","",""]
[null,null,null,null,null,null,null,"","",""]
[null,null,null,null,null,null,null,"","",""]
[null,null,null,null,null,null,null,"","",""]
[null,null,null,null,null,null,null,"","",""]
[null,null,null,null,null,null,null,"","",""]
[null,null,null,null,null,null,null,"","",""]
[null,null,null,null,null,null,null,"","",""]
[null,null,null,null,null,null,null,"","",""]
[null,null,null,null,null,null,null,"","",""]
[null,null,null,null,null,null,null,"","",""]
[null,null,null,null,null,null,null,"","",""]
[null,null,null,null,null,null,null,"","",""]
[null,null,null,null,null,null,null,"","",""]
[null,null,null,null,null,null,null,"","",""]
[null,null,null,null,null,null,null,"","",""]
[null,null,null,null,null,null,null,"","",""]
[null,null,null,null,null,null,null,"","",""]
[null,null,null,null,null,null,null,"","",""]
[null,null,null,null,null,null,null,"","",""]
[null,null,null,null,null,null,null,"","",""]
[null,null,null,null,null,null,null,"","",""]
[null,null,null,null,null,null,null,"","",""]
[null,null,null,null,null,null,null,"","",""]
[null,null,null,null,null,null,null,"","",""]
[null,null,null,null,null,null,null,"","",""]
[null,null,null,null,null,null,null,"","",""]
[null,null,null,null,null,null,null,"","",""]
[null,null,null,null,null,null,null,"","",""]
[null,null,null,null,null,null,null,"","",""]
[null,null,null,null,null,null,null,"","",""]
[null,null,null,null,null,null,null,"","",""]
[null,null,null,null,null,null,null,"","",""]
[null,null,null,null,null,null,null,"","",""]
[null,null,null,null,null,null,null,"","",""]
[null,null,null,null,null,null,null,"","",""]
[null,null,null,null,null,null,null,"","",""]
[null,null,null,null,null,null,null,"","",""]
[null,null,null,null,null,null,null,"","",""]
[null,null,null,null,null,null,null,"","",""]
[null,null,null,null,null,null,null,"","",""]
[null,null,null,null,null,null,null,"","",""]
[null,null,null,null,null,null,null,"","",""]
[null,null,null,null,null,null,null,"","",""]
[null,null,null,null,null,null,null,"","",""]
[null,null,null,null,null,null,null,"","",""]
[null,null,null,null,null,null,null,"","",""]
[null,null,null,null,null,null,null,"","",""]
[null,null,null,null,null,null,null,"","",""]
[null,null,null,null,null,null,null,"","",""]
[null,null,null,null,null,null,null,"","",""]
[null,null,null,null,null,null,null,"","",""]
[null,null,null,null,null,null,null,"","",""]
[null,null,null,null,null,null,null,{"$f":"IF(ISBLANK(A1599),\"\",VLOOKUP(A1599,BLDG_SITE_LU,2,FALSE))","v":""},"",""]
[null,null,null,null,null,null,null,"","",""]
[null,null,null,null,null,null,null,"","",""]
[null,null,null,null,null,null,null,"","",""]
[null,null,null,null,null,null,null,"","",""]
[null,null,null,null,null,null,null,"","",""]
[null,null,null,null,null,null,null,"","",""]
[null,null,null,null,null,null,null,"","",""]
[null,null,null,null,null,null,null,"","",""]
[null,null,null,null,null,null,null,"","",""]
[null,null,null,null,null,null,null,"",{"$f":"IF(ISBLANK(B1609),\"\",VLOOKUP(B1609,POSITION_LU,2,FALSE))","v":""},{"$f":"IF(ISBLANK(D1609),\"\",VLOOKUP(D1609,UNIT_LU,2,FALSE))","v":""}]
[null,null,null,null,null,null,null,"","",""]
[null,null,null,null,null,null,null,"","",""]
[null,null,null,null,null,null,null,"","",""]
[null,null,null,null,null,null,null,"","",""]
[null,null,null,null,null,null,null,"","",""]
[null,null,null,null,null,null,null,"","",""]
[null,null,null,null,null,null,null,"","",""]
[null,null,null,null,null,null,null,"","",""]
[null,null,null,null,null,null,null,"","",""]
[null,null,null,null,null,null,null,"","",""]
[null,null,null,null,null,null,null,"","",""]
[null,null,null,null,null,null,null,"","",""]
[null,null,null,null,null,null,null,"","",""]
[null,null,null,null,null,null,null,"","",""]
[null,null,null,null,null,null,null,"","",""]
[null,null,null,null,null,null,null,"","",""]
[null,null,null,null,null,null,null,"","",""]
[null,null,null,null,null,null,null,"","",""]
[null,null,null,null,null,null,null,"","",""]
[null,null,null,null,null,null,null,"","",""]
[null,null,null,null,null,null,null,"","",""]
[null,null,null,null,null,null,null,"","",""]
[null,null,null,null,null,null,null,"","",""]
[null,null,null,null,null,null,null,"","",""]
[null,null,null,null,null,null,null,"","",""]
[null,null,null,null,null,null,null,"","",""]
[null,null,null,null,null,null,null,"","",""]
[null,null,null,null,null,null,null,"","",""]
[null,null,null,null,null,null,null,"","",""]
[null,null,null,null,null,null,null,"","",""]
[null,null,null,null,null,null,null,"","",""]
[null,null,null,null,null,null,null,"","",""]
[null,null,null,null,null,null,null,"","",""]
[null,null,null,null,null,null,null,"","",""]
[null,null,null,null,null,null,null,"","",""]
[null,null,null,null,null,null,null,"","",""]
[null,null,null,null,null,null,null,"","",""]
[null,null,null,null,null,null,null,"","",""]
[null,null,null,null,null,null,null,"","",""]
[null,null,null,null,null,null,null,"","",""]
[null,null,null,null,null,null,null,"","",""]
[null,null,null,null,null,null,null,"","",""]
[null,null,null,null,null,null,null,"","",""]
[null,null,null,null,null,null,null,"","",""]
[null,null,null,null,null,null,null,"","",""]
[null,null,null,null,null,null,null,"","",""]
[null,null,null,null,null,null,null,"","",""]
[null,null,null,null,null,null,null,"","",""]
[null,null,null,null,null,null,null,"","",""]
[null,null,null,null,null,null,null,"","",""]
[null,null,null,null,null,null,null,"","",""]
[null,null,null,null,null,null,null,"","",""]
[null,null,null,null,null,null,null,"","",""]
[null,null,null,null,null,null,null,{"$f":"IF(ISBLANK(A1663),\"\",VLOOKUP(A1663,BLDG_SITE_LU,2,FALSE))","v":""},"",""]
[null,null,null,null,null,null,null,"","",""]
[null,null,null,null,null,null,null,"","",""]
[null,null,null,null,null,null,null,"","",""]
[null,null,null,null,null,null,null,"","",""]
[null,null,null,null,null,null,null,"","",""]
[null,null,null,null,null,null,null,"","",""]
[null,null,null,null,null,null,null,"","",""]
[null,null,null,null,null,null,null,"","",""]
[null,null,null,null,null,null,null,"","",""]
[null,null,null,null,null,null,null,"",{"$f":"IF(ISBLANK(B1673),\"\",VLOOKUP(B1673,POSITION_LU,2,FALSE))","v":""},{"$f":"IF(ISBLANK(D1673),\"\",VLOOKUP(D1673,UNIT_LU,2,FALSE))","v":""}]
[null,null,null,null,null,null,null,"","",""]
[null,null,null,null,null,null,null,"","",""]
[null,null,null,null,null,null,null,"","",""]
[null,null,null,null,null,null,null,"","",""]
[null,null,null,null,null,null,null,"","",""]
[null,null,null,null,null,null,null,"","",""]
[null,null,null,null,null,null,null,"","",""]
[null,null,null,null,null,null,null,"","",""]
[null,null,null,null,null,null,null,"","",""]
[null,null,null,null,null,null,null,"","",""]
[null,null,null,null,null,null,null,"","",""]
[null,null,null,null,null,null,null,"","",""]
[null,null,null,null,null,null,null,"","",""]
[null,null,null,null,null,null,null,"","",""]
[null,null,null,null,null,null,null,"","",""]
[null,null,null,null,null,null,null,"","",""]
[null,null,null,null,null,null,null,"","",""]
[null,null,null,null,null,null,null,"","",""]
[null,null,null,null,null,null,null,"","",""]
[null,null,null,null,null,null,null,"","",""]
[null,null,null,null,null,null,null,"","",""]
[null,null,null,null,null,null,null,"","",""]
[null,null,null,null,null,null,null,"","",""]
[null,null,null,null,null,null,null,"","",""]
[null,null,null,null,null,null,null,"","",""]
[null,null,null,null,null,null,null,"","",""]
[null,null,null,null,null,null,null,"","",""]
[null,null,null,null,null,null,null,"","",""]
[null,null,null,null,null,null,null,"","",""]
[null,null,null,null,null,null,null,"","",""]
[null,null,null,null,null,null,null,"","",""]
[null,null,null,null,null,null,null,"","",""]
[null,null,null,null,null,null,null,"","",""]
[null,null,null,null,null,null,null,"","",""]
[null,null,null,null,null,null,null,"","",""]
[null,null,null,null,null,null,null,"","",""]
[null,null,null,null,null,null,null,"","",""]
[null,null,null,null,null,null,null,"","",""]
[null,null,null,null,null,null,null,"","",""]
[null,null,null,null,null,null,null,"","",""]
[null,null,null,null,null,null,null,"","",""]
[null,null,null,null,null,null,null,"","",""]
[null,null,null,null,null,null,null,"","",""]
[null,null,null,null,null,null,null,"","",""]
[null,null,null,null,null,null,null,"","",""]
[null,null,null,null,null,null,null,"","",""]
[null,null,null,null,null,null,null,"","",""]
[null,null,null,null,null,null,null,"","",""]
[null,null,null,null,null,null,null,"","",""]
[null,null,null,null,null,null,null,"","",""]
[null,null,null,null,null,null,null,"","",""]
[null,null,null,null,null,null,null,"","",""]
[null,null,null,null,null,null,null,"","",""]
[null,null,null,null,null,null,null,{"$f":"IF(ISBLANK(A1727),\"\",VLOOKUP(A1727,BLDG_SITE_LU,2,FALSE))","v":""},"",""]
[null,null,null,null,null,null,null,"","",""]
[null,null,null,null,null,null,null,"","",""]
[null,null,null,null,null,null,null,"","",""]
[null,null,null,null,null,null,null,"","",""]
[null,null,null,null,null,null,null,"","",""]
[null,null,null,null,null,null,null,"","",""]
[null,null,null,null,null,null,null,"","",""]
[null,null,null,null,null,null,null,"","",""]
[null,null,null,null,null,null,null,"","",""]
[null,null,null,null,null,null,null,"",{"$f":"IF(ISBLANK(B1737),\"\",VLOOKUP(B1737,POSITION_LU,2,FALSE))","v":""},{"$f":"IF(ISBLANK(D1737),\"\",VLOOKUP(D1737,UNIT_LU,2,FALSE))","v":""}]
[null,null,null,null,null,null,null,"","",""]
[null,null,null,null,null,null,null,"","",""]
[null,null,null,null,null,null,null,"","",""]
[null,null,null,null,null,null,null,"","",""]
[null,null,null,null,null,null,null,"","",""]
[null,null,null,null,null,null,null,"","",""]
[null,null,null,null,null,null,null,"","",""]
[null,null,null,null,null,null,null,"","",""]
[null,null,null,null,null,null,null,"","",""]
[null,null,null,null,null,null,null,"","",""]
[null,null,null,null,null,null,null,"","",""]
[null,null,null,null,null,null,null,"","",""]
[null,null,null,null,null,null,null,"","",""]
[null,null,null,null,null,null,null,"","",""]
[null,null,null,null,null,null,null,"","",""]
[null,null,null,null,null,null,null,"","",""]
[null,null,null,null,null,null,null,"","",""]
[null,null,null,null,null,null,null,"","",""]
[null,null,null,null,null,null,null,"","",""]
[null,null,null,null,null,null,null,"","",""]
[null,null,null,null,null,null,null,"","",""]
[null,null,null,null,null,null,null,"","",""]
[null,null,null,null,null,null,null,"","",""]
[null,null,null,null,null,null,null,"","",""]
[null,null,null,null,null,null,null,"","",""]
[null,null,null,null,null,null,null,"","",""]
[null,null,null,null,null,null,null,"","",""]
[null,null,null,null,null,null,null,"","",""]
[null,null,null,null,null,null,null,"","",""]
[null,null,null,null,null,null,null,"","",""]
[null,null,null,null,null,null,null,"","",""]
[null,null,null,null,null,null,null,"","",""]
[null,null,null,null,null,null,null,"","",""]
[null,null,null,null,null,null,null,"","",""]
[null,null,null,null,null,null,null,"","",""]
[null,null,null,null,null,null,null,"","",""]
[null,null,null,null,null,null,null,"","",""]
[null,null,null,null,null,null,null,"","",""]
[null,null,null,null,null,null,null,"","",""]
[null,null,null,null,null,null,null,"","",""]
[null,null,null,null,null,null,null,"","",""]
[null,null,null,null,null,null,null,"","",""]
[null,null,null,null,null,null,null,"","",""]
[null,null,null,null,null,null,null,"","",""]
[null,null,null,null,null,null,null,"","",""]
[null,null,null,null,null,null,null,"","",""]
[null,null,null,null,null,null,null,"","",""]
[null,null,null,null,null,null,null,"","",""]
[null,null,null,null,null,null,null,"","",""]
[null,null,null,null,null,null,null,"","",""]
[null,null,null,null,null,null,null,"","",""]
[null,null,null,null,null,null,null,"","",""]
[null,null,null,null,null,null,null,"","",""]
[null,null,null,null,null,null,null,{"$f":"IF(ISBLANK(A1791),\"\",VLOOKUP(A1791,BLDG_SITE_LU,2,FALSE))","v":""},"",""]
[null,null,null,null,null,null,null,"","",""]
[null,null,null,null,null,null,null,"","",""]
[null,null,null,null,null,null,null,"","",""]
[null,null,null,null,null,null,null,"","",""]
[null,null,null,null,null,null,null,"","",""]
[null,null,null,null,null,null,null,"","",""]
[null,null,null,null,null,null,null,"","",""]
[null,null,null,null,null,null,null,"","",""]
[null,null,null,null,null,null,null,"","",""]
[null,null,null,null,null,null,null,"",{"$f":"IF(ISBLANK(B1801),\"\",VLOOKUP(B1801,POSITION_LU,2,FALSE))","v":""},{"$f":"IF(ISBLANK(D1801),\"\",VLOOKUP(D1801,UNIT_LU,2,FALSE))","v":""}]
[null,null,null,null,null,null,null,"","",""]
[null,null,null,null,null,null,null,"","",""]
[null,null,null,null,null,null,null,"","",""]
[null,null,null,null,null,null,null,"","",""]
[null,null,null,null,null,null,null,"","",""]
[null,null,null,null,null,null,null,"","",""]
[null,null,null,null,null,null,null,"","",""]
[null,null,null,null,null,null,null,"","",""]
[null,null,null,null,null,null,null,"","",""]
[null,null,null,null,null,null,null,"","",""]
[null,null,null,null,null,null,null,"","",""]
[null,null,null,null,null,null,null,"","",""]
[null,null,null,null,null,null,null,"","",""]
[null,null,null,null,null,null,null,"","",""]
[null,null,null,null,null,null,null,"","",""]
[null,null,null,null,null,null,null,"","",""]
[null,null,null,null,null,null,null,"","",""]
[null,null,null,null,null,null,null,"","",""]
[null,null,null,null,null,null,null,"","",""]
[null,null,null,null,null,null,null,"","",""]
[null,null,null,null,null,null,null,"","",""]
[null,null,null,null,null,null,null,"","",""]
[null,null,null,null,null,null,null,"","",""]
[null,null,null,null,null,null,null,"","",""]
[null,null,null,null,null,null,null,"","",""]
[null,null,null,null,null,null,null,"","",""]
[null,null,null,null,null,null,null,"","",""]
[null,null,null,null,null,null,null,"","",""]
[null,null,null,null,null,null,null,"","",""]
[null,null,null,null,null,null,null,"","",""]
[null,null,null,null,null,null,null,"","",""]
[null,null,null,null,null,null,null,"","",""]
[null,null,null,null,null,null,null,"","",""]
[null,null,null,null,null,null,null,"","",""]
[null,null,null,null,null,null,null,"","",""]
[null,null,null,null,null,null,null,"","",""]
[null,null,null,null,null,null,null,"","",""]
[null,null,null,null,null,null,null,"","",""]
[null,null,null,null,null,null,null,"","",""]
[null,null,null,null,null,null,null,"","",""]
[null,null,null,null,null,null,null,"","",""]
[null,null,null,null,null,null,null,"","",""]
[null,null,null,null,null,null,null,"","",""]
[null,null,null,null,null,null,null,"","",""]
[null,null,null,null,null,null,null,"","",""]
[null,null,null,null,null,null,null,"","",""]
[null,null,null,null,null,null,null,"","",""]
[null,null,null,null,null,null,null,"","",""]
[null,null,null,null,null,null,null,"","",""]
[null,null,null,null,null,null,null,"","",""]
[null,null,null,null,null,null,null,"","",""]
[null,null,null,null,null,null,null,"","",""]
[null,null,null,null,null,null,null,"","",""]
[null,null,null,null,null,null,null,{"$f":"IF(ISBLANK(A1855),\"\",VLOOKUP(A1855,BLDG_SITE_LU,2,FALSE))","v":""},"",""]
[null,null,null,null,null,null,null,"","",""]
[null,null,null,null,null,null,null,"","",""]
[null,null,null,null,null,null,null,"","",""]
[null,null,null,null,null,null,null,"","",""]
[null,null,null,null,null,null,null,"","",""]
[null,null,null,null,null,null,null,"","",""]
[null,null,null,null,null,null,null,"","",""]
[null,null,null,null,null,null,null,"","",""]
[null,null,null,null,null,null,null,"","",""]
[null,null,null,null,null,null,null,"",{"$f":"IF(ISBLANK(B1865),\"\",VLOOKUP(B1865,POSITION_LU,2,FALSE))","v":""},{"$f":"IF(ISBLANK(D1865),\"\",VLOOKUP(D1865,UNIT_LU,2,FALSE))","v":""}]
[null,null,null,null,null,null,null,"","",""]
[null,null,null,null,null,null,null,"","",""]
[null,null,null,null,null,null,null,"","",""]
[null,null,null,null,null,null,null,"","",""]
[null,null,null,null,null,null,null,"","",""]
[null,null,null,null,null,null,null,"","",""]
[null,null,null,null,null,null,null,"","",""]
[null,null,null,null,null,null,null,"","",""]
[null,null,null,null,null,null,null,"","",""]
[null,null,null,null,null,null,null,"","",""]
[null,null,null,null,null,null,null,"","",""]
[null,null,null,null,null,null,null,"","",""]
[null,null,null,null,null,null,null,"","",""]
[null,null,null,null,null,null,null,"","",""]
[null,null,null,null,null,null,null,"","",""]
[null,null,null,null,null,null,null,"","",""]
[null,null,null,null,null,null,null,"","",""]
[null,null,null,null,null,null,null,"","",""]
[null,null,null,null,null,null,null,"","",""]
[null,null,null,null,null,null,null,"","",""]
[null,null,null,null,null,null,null,"","",""]
[null,null,null,null,null,null,null,"","",""]
[null,null,null,null,null,null,null,"","",""]
[null,null,null,null,null,null,null,"","",""]
[null,null,null,null,null,null,null,"","",""]
[null,null,null,null,null,null,null,"","",""]
[null,null,null,null,null,null,null,"","",""]
[null,null,null,null,null,null,null,"","",""]
[null,null,null,null,null,null,null,"","",""]
[null,null,null,null,null,null,null,"","",""]
[null,null,null,null,null,null,null,"","",""]
[null,null,null,null,null,null,null,"","",""]
[null,null,null,null,null,null,null,"","",""]
[null,null,null,null,null,null,null,"","",""]
[null,null,null,null,null,null,null,"","",""]
[null,null,null,null,null,null,null,"","",""]
[null,null,null,null,null,null,null,"","",""]
[null,null,null,null,null,null,null,"","",""]
[null,null,null,null,null,null,null,"","",""]
[null,null,null,null,null,null,null,"","",""]
[null,null,null,null,null,null,null,"","",""]
[null,null,null,null,null,null,null,"","",""]
[null,null,null,null,null,null,null,"","",""]
[null,null,null,null,null,null,null,"","",""]
[null,null,null,null,null,null,null,"","",""]
[null,null,null,null,null,null,null,"","",""]
[null,null,null,null,null,null,null,"","",""]
[null,null,null,null,null,null,null,"","",""]
[null,null,null,null,null,null,null,"","",""]
[null,null,null,null,null,null,null,"","",""]
[null,null,null,null,null,null,null,"","",""]
[null,null,null,null,null,null,null,"","",""]
[null,null,null,null,null,null,null,"","",""]
[null,null,null,null,null,null,null,{"$f":"IF(ISBLANK(A1919),\"\",VLOOKUP(A1919,BLDG_SITE_LU,2,FALSE))","v":""},"",""]
[null,null,null,null,null,null,null,"","",""]
[null,null,null,null,null,null,null,"","",""]
[null,null,null,null,null,null,null,"","",""]
[null,null,null,null,null,null,null,"","",""]
[null,null,null,null,null,null,null,"","",""]
[null,null,null,null,null,null,null,"","",""]
[null,null,null,null,null,null,null,"","",""]
[null,null,null,null,null,null,null,"","",""]
[null,null,null,null,null,null,null,"","",""]
[null,null,null,null,null,null,null,"",{"$f":"IF(ISBLANK(B1929),\"\",VLOOKUP(B1929,POSITION_LU,2,FALSE))","v":""},{"$f":"IF(ISBLANK(D1929),\"\",VLOOKUP(D1929,UNIT_LU,2,FALSE))","v":""}]
[null,null,null,null,null,null,null,"","",""]
[null,null,null,null,null,null,null,"","",""]
[null,null,null,null,null,null,null,"","",""]
[null,null,null,null,null,null,null,"","",""]
[null,null,null,null,null,null,null,"","",""]
[null,null,null,null,null,null,null,"","",""]
[null,null,null,null,null,null,null,"","",""]
[null,null,null,null,null,null,null,"","",""]
[null,null,null,null,null,null,null,"","",""]
[null,null,null,null,null,null,null,"","",""]
[null,null,null,null,null,null,null,"","",""]
[null,null,null,null,null,null,null,"","",""]
[null,null,null,null,null,null,null,"","",""]
[null,null,null,null,null,null,null,"","",""]
[null,null,null,null,null,null,null,"","",""]
[null,null,null,null,null,null,null,"","",""]
[null,null,null,null,null,null,null,"","",""]
[null,null,null,null,null,null,null,"","",""]
[null,null,null,null,null,null,null,"","",""]
[null,null,null,null,null,null,null,"","",""]
[null,null,null,null,null,null,null,"","",""]
[null,null,null,null,null,null,null,"","",""]
[null,null,null,null,null,null,null,"","",""]
[null,null,null,null,null,null,null,"","",""]
[null,null,null,null,null,null,null,"","",""]
[null,null,null,null,null,null,null,"","",""]
[null,null,null,null,null,null,null,"","",""]
[null,null,null,null,null,null,null,"","",""]
[null,null,null,null,null,null,null,"","",""]
[null,null,null,null,null,null,null,"","",""]
[null,null,null,null,null,null,null,"","",""]
[null,null,null,null,null,null,null,"","",""]
[null,null,null,null,null,null,null,"","",""]
[null,null,null,null,null,null,null,"","",""]
[null,null,null,null,null,null,null,"","",""]
[null,null,null,null,null,null,null,"","",""]
[null,null,null,null,null,null,null,"","",""]
[null,null,null,null,null,null,null,"","",""]
[null,null,null,null,null,null,null,"","",""]
[null,null,null,null,null,null,null,"","",""]
[null,null,null,null,null,null,null,"","",""]
[null,null,null,null,null,null,null,"","",""]
[null,null,null,null,null,null,null,"","",""]
[null,null,null,null,null,null,null,"","",""]
[null,null,null,null,null,null,null,"","",""]
[null,null,null,null,null,null,null,"","",""]
[null,null,null,null,null,null,null,"","",""]
[null,null,null,null,null,null,null,"","",""]
[null,null,null,null,null,null,null,"","",""]
[null,null,null,null,null,null,null,"","",""]
[null,null,null,null,null,null,null,"","",""]
[null,null,null,null,null,null,null,"","",""]
[null,null,null,null,null,null,null,"","",""]
[null,null,null,null,null,null,null,{"$f":"IF(ISBLANK(A1983),\"\",VLOOKUP(A1983,BLDG_SITE_LU,2,FALSE))","v":""},"",""]
[null,null,null,null,null,null,null,"","",""]
[null,null,null,null,null,null,null,"","",""]
[null,null,null,null,null,null,null,"","",""]
[null,null,null,null,null,null,null,"","",""]
[null,null,null,null,null,null,null,"","",""]
[null,null,null,null,null,null,null,"","",""]
[null,null,null,null,null,null,null,"","",""]
[null,null,null,null,null,null,null,"","",""]
[null,null,null,null,null,null,null,"","",""]
[null,null,null,null,null,null,null,"",{"$f":"IF(ISBLANK(B1993),\"\",VLOOKUP(B1993,POSITION_LU,2,FALSE))","v":""},{"$f":"IF(ISBLANK(D1993),\"\",VLOOKUP(D1993,UNIT_LU,2,FALSE))","v":""}]
[null,null,null,null,null,null,null,"","",""]
[null,null,null,null,null,null,null,"","",""]
[null,null,null,null,null,null,null,"","",""]
[null,null,null,null,null,null,null,"","",""]
[null,null,null,null,null,null,null,"","",""]
[null,null,null,null,null,null,null,"","",""]
[null,null,null,null,null,null,null,"","",""]
[null,null,null,null,null,null,null,"","",""]
[null,null,null,null,null,null,null,"","",""]
[null,null,null,null,null,null,null,"","",""]
[null,null,null,null,null,null,null,"","",""]
[null,null,null,null,null,null,null,"","",""]
[null,null,null,null,null,null,null,"","",""]
[null,null,null,null,null,null,null,"","",""]
[null,null,null,null,null,null,null,"","",""]
[null,null,null,null,null,null,null,"","",""]
[null,null,null,null,null,null,null,"","",""]
[null,null,null,null,null,null,null,"","",""]
[null,null,null,null,null,null,null,"","",""]
[null,null,null,null,null,null,null,"","",""]
[null,null,null,null,null,null,null,"","",""]
[null,null,null,null,null,null,null,"","",""]
[null,null,null,null,null,null,null,"","",""]
[null,null,null,null,null,null,null,"","",""]
[null,null,null,null,null,null,null,"","",""]
[null,null,null,null,null,null,null,"","",""]
[null,null,null,null,null,null,null,"","",""]
[null,null,null,null,null,null,null,"","",""]
[null,null,null,null,null,null,null,"","",""]
[null,null,null,null,null,null,null,"","",""]
[null,null,null,null,null,null,null,"","",""]
[null,null,null,null,null,null,null,"","",""]
[null,null,null,null,null,null,null,"","",""]
[null,null,null,null,null,null,null,"","",""]
[null,null,null,null,null,null,null,"","",""]
[null,null,null,null,null,null,null,"","",""]
[null,null,null,null,null,null,null,"","",""]
[null,null,null,null,null,null,null,"","",""]
[null,null,null,null,null,null,null,"","",""]
[null,null,null,null,null,null,null,"","",""]
[null,null,null,null,null,null,null,"","",""]
[null,null,null,null,null,null,null,"","",""]
[null,null,null,null,null,null,null,"","",""]
[null,null,null,null,null,null,null,"","",""]
[null,null,null,null,null,null,null,"","",""]
[null,null,null,null,null,null,null,"","",""]
[null,null,null,null,null,null,null,"","",""]
[null,null,null,null,null,null,null,"","",""]
[null,null,null,null,null,null,null,"","",""]
[null,null,null,null,null,null,null,"","",""]
[null,null,null,null,null,null,null,"","",""]
[null,null,null,null,null,null,null,"","",""]
[null,null,null,null,null,null,null,"","",""]
[null,null,null,null,null,null,null,{"$f":"IF(ISBLANK(A2047),\"\",VLOOKUP(A2047,BLDG_SITE_LU,2,FALSE))","v":""},"",""]
[null,null,null,null,null,null,null,"","",""]
[null,null,null,null,null,null,null,"","",""]
[null,null,null,null,null,null,null,"","",""]
[null,null,null,null,null,null,null,"","",""]
[null,null,null,null,null,null,null,"","",""]
[null,null,null,null,null,null,null,"","",""]
[null,null,null,null,null,null,null,"","",""]
[null,null,null,null,null,null,null,"","",""]
[null,null,null,null,null,null,null,"","",""]
[null,null,null,null,null,null,null,"",{"$f":"IF(ISBLANK(B2057),\"\",VLOOKUP(B2057,POSITION_LU,2,FALSE))","v":""},{"$f":"IF(ISBLANK(D2057),\"\",VLOOKUP(D2057,UNIT_LU,2,FALSE))","v":""}]
[null,null,null,null,null,null,null,"","",""]
[null,null,null,null,null,null,null,"","",""]
[null,null,null,null,null,null,null,"","",""]
[null,null,null,null,null,null,null,"","",""]
[null,null,null,null,null,null,null,"","",""]
[null,null,null,null,null,null,null,"","",""]
[null,null,null,null,null,null,null,"","",""]
[null,null,null,null,null,null,null,"","",""]
[null,null,null,null,null,null,null,"","",""]
[null,null,null,null,null,null,null,"","",""]
[null,null,null,null,null,null,null,"","",""]
[null,null,null,null,null,null,null,"","",""]
[null,null,null,null,null,null,null,"","",""]
[null,null,null,null,null,null,null,"","",""]
[null,null,null,null,null,null,null,"","",""]
[null,null,null,null,null,null,null,"","",""]
[null,null,null,null,null,null,null,"","",""]
[null,null,null,null,null,null,null,"","",""]
[null,null,null,null,null,null,null,"","",""]
[null,null,null,null,null,null,null,"","",""]
[null,null,null,null,null,null,null,"","",""]
[null,null,null,null,null,null,null,"","",""]
[null,null,null,null,null,null,null,"","",""]
[null,null,null,null,null,null,null,"","",""]
[null,null,null,null,null,null,null,"","",""]
[null,null,null,null,null,null,null,"","",""]
[null,null,null,null,null,null,null,"","",""]
[null,null,null,null,null,null,null,"","",""]
[null,null,null,null,null,null,null,"","",""]
[null,null,null,null,null,null,null,"","",""]
[null,null,null,null,null,null,null,"","",""]
[null,null,null,null,null,null,null,"","",""]
[null,null,null,null,null,null,null,"","",""]
[null,null,null,null,null,null,null,"","",""]
[null,null,null,null,null,null,null,"","",""]
[null,null,null,null,null,null,null,"","",""]
[null,null,null,null,null,null,null,"","",""]
[null,null,null,null,null,null,null,"","",""]
[null,null,null,null,null,null,null,"","",""]
[null,null,null,null,null,null,null,"","",""]
[null,null,null,null,null,null,null,"","",""]
[null,null,null,null,null,null,null,"","",""]
[null,null,null,null,null,null,null,"","",""]
[null,null,null,null,null,null,null,"","",""]
[null,null,null,null,null,null,null,"","",""]
[null,null,null,null,null,null,null,"","",""]
[null,null,null,null,null,null,null,"","",""]
[null,null,null,null,null,null,null,"","",""]
[null,null,null,null,null,null,null,"","",""]
[null,null,null,null,null,null,null,"","",""]
[null,null,null,null,null,null,null,"","",""]
[null,null,null,null,null,null,null,"","",""]
[null,null,null,null,null,null,null,"","",""]
[null,null,null,null,null,null,null,{"$f":"IF(ISBLANK(A2111),\"\",VLOOKUP(A2111,BLDG_SITE_LU,2,FALSE))","v":""},"",""]
[null,null,null,null,null,null,null,"","",""]
[null,null,null,null,null,null,null,"","",""]
[null,null,null,null,null,null,null,"","",""]
[null,null,null,null,null,null,null,"","",""]
[null,null,null,null,null,null,null,"","",""]
[null,null,null,null,null,null,null,"","",""]
[null,null,null,null,null,null,null,"","",""]
[null,null,null,null,null,null,null,"","",""]
[null,null,null,null,null,null,null,"","",""]
[null,null,null,null,null,null,null,"",{"$f":"IF(ISBLANK(B2121),\"\",VLOOKUP(B2121,POSITION_LU,2,FALSE))","v":""},{"$f":"IF(ISBLANK(D2121),\"\",VLOOKUP(D2121,UNIT_LU,2,FALSE))","v":""}]
[null,null,null,null,null,null,null,"","",""]
[null,null,null,null,null,null,null,"","",""]
[null,null,null,null,null,null,null,"","",""]
[null,null,null,null,null,null,null,"","",""]
[null,null,null,null,null,null,null,"","",""]
[null,null,null,null,null,null,null,"","",""]
[null,null,null,null,null,null,null,"","",""]
[null,null,null,null,null,null,null,"","",""]
[null,null,null,null,null,null,null,"","",""]
[null,null,null,null,null,null,null,"","",""]
[null,null,null,null,null,null,null,"","",""]
[null,null,null,null,null,null,null,"","",""]
[null,null,null,null,null,null,null,"","",""]
[null,null,null,null,null,null,null,"","",""]
[null,null,null,null,null,null,null,"","",""]
[null,null,null,null,null,null,null,"","",""]
[null,null,null,null,null,null,null,"","",""]
[null,null,null,null,null,null,null,"","",""]
[null,null,null,null,null,null,null,"","",""]
[null,null,null,null,null,null,null,"","",""]
[null,null,null,null,null,null,null,"","",""]
[null,null,null,null,null,null,null,"","",""]
[null,null,null,null,null,null,null,"","",""]
[null,null,null,null,null,null,null,"","",""]
[null,null,null,null,null,null,null,"","",""]
[null,null,null,null,null,null,null,"","",""]
[null,null,null,null,null,null,null,"","",""]
[null,null,null,null,null,null,null,"","",""]
[null,null,null,null,null,null,null,"","",""]
[null,null,null,null,null,null,null,"","",""]
[null,null,null,null,null,null,null,"","",""]
[null,null,null,null,null,null,null,"","",""]
[null,null,null,null,null,null,null,"","",""]
[null,null,null,null,null,null,null,"","",""]
[null,null,null,null,null,null,null,"","",""]
[null,null,null,null,null,null,null,"","",""]
[null,null,null,null,null,null,null,"","",""]
[null,null,null,null,null,null,null,"","",""]
[null,null,null,null,null,null,null,"","",""]
[null,null,null,null,null,null,null,"","",""]
[null,null,null,null,null,null,null,"","",""]
[null,null,null,null,null,null,null,"","",""]
[null,null,null,null,null,null,null,"","",""]
[null,null,null,null,null,null,null,"","",""]
[null,null,null,null,null,null,null,"","",""]
[null,null,null,null,null,null,null,"","",""]
[null,null,null,null,null,null,null,"","",""]
[null,null,null,null,null,null,null,"","",""]
[null,null,null,null,null,null,null,"","",""]
[null,null,null,null,null,null,null,"","",""]
[null,null,null,null,null,null,null,"","",""]
[null,null,null,null,null,null,null,"","",""]
[null,null,null,null,null,null,null,"","",""]
[null,null,null,null,null,null,null,{"$f":"IF(ISBLANK(A2175),\"\",VLOOKUP(A2175,BLDG_SITE_LU,2,FALSE))","v":""},"",""]
[null,null,null,null,null,null,null,"","",""]
[null,null,null,null,null,null,null,"","",""]
[null,null,null,null,null,null,null,"","",""]
[null,null,null,null,null,null,null,"","",""]
[null,null,null,null,null,null,null,"","",""]
[null,null,null,null,null,null,null,"","",""]
[null,null,null,null,null,null,null,"","",""]
[null,null,null,null,null,null,null,"","",""]
[null,null,null,null,null,null,null,"","",""]
[null,null,null,null,null,null,null,"",{"$f":"IF(ISBLANK(B2185),\"\",VLOOKUP(B2185,POSITION_LU,2,FALSE))","v":""},{"$f":"IF(ISBLANK(D2185),\"\",VLOOKUP(D2185,UNIT_LU,2,FALSE))","v":""}]
[null,null,null,null,null,null,null,"","",""]
[null,null,null,null,null,null,null,"","",""]
[null,null,null,null,null,null,null,"","",""]
[null,null,null,null,null,null,null,"","",""]
[null,null,null,null,null,null,null,"","",""]
[null,null,null,null,null,null,null,"","",""]
[null,null,null,null,null,null,null,"","",""]
[null,null,null,null,null,null,null,"","",""]
[null,null,null,null,null,null,null,"","",""]
[null,null,null,null,null,null,null,"","",""]
[null,null,null,null,null,null,null,"","",""]
[null,null,null,null,null,null,null,"","",""]
[null,null,null,null,null,null,null,"","",""]
[null,null,null,null,null,null,null,"","",""]
[null,null,null,null,null,null,null,"","",""]
[null,null,null,null,null,null,null,"","",""]
[null,null,null,null,null,null,null,"","",""]
[null,null,null,null,null,null,null,"","",""]
[null,null,null,null,null,null,null,"","",""]
[null,null,null,null,null,null,null,"","",""]
[null,null,null,null,null,null,null,"","",""]
[null,null,null,null,null,null,null,"","",""]
[null,null,null,null,null,null,null,"","",""]
[null,null,null,null,null,null,null,"","",""]
[null,null,null,null,null,null,null,"","",""]
[null,null,null,null,null,null,null,"","",""]
[null,null,null,null,null,null,null,"","",""]
[null,null,null,null,null,null,null,"","",""]
[null,null,null,null,null,null,null,"","",""]
[null,null,null,null,null,null,null,"","",""]
[null,null,null,null,null,null,null,"","",""]
[null,null,null,null,null,null,null,"","",""]
[null,null,null,null,null,null,null,"","",""]
[null,null,null,null,null,null,null,"","",""]
[null,null,null,null,null,null,null,"","",""]
[null,null,null,null,null,null,null,"","",""]
[null,null,null,null,null,null,null,"","",""]
[null,null,null,null,null,null,null,"","",""]
[null,null,null,null,null,null,null,"","",""]
[null,null,null,null,null,null,null,"","",""]
[null,null,null,null,null,null,null,"","",""]
[null,null,null,null,null,null,null,"","",""]
[null,null,null,null,null,null,null,"","",""]
[null,null,null,null,null,null,null,"","",""]
[null,null,null,null,null,null,null,"","",""]
[null,null,null,null,null,null,null,"","",""]
[null,null,null,null,null,null,null,"","",""]
[null,null,null,null,null,null,null,"","",""]
[null,null,null,null,null,null,null,"","",""]
[null,null,null,null,null,null,null,"","",""]
[null,null,null,null,null,null,null,"","",""]
[null,null,null,null,null,null,null,"","",""]
[null,null,null,null,null,null,null,"","",""]
[null,null,null,null,null,null,null,{"$f":"IF(ISBLANK(A2239),\"\",VLOOKUP(A2239,BLDG_SITE_LU,2,FALSE))","v":""},"",""]
[null,null,null,null,null,null,null,"","",""]
[null,null,null,null,null,null,null,"","",""]
[null,null,null,null,null,null,null,"","",""]
[null,null,null,null,null,null,null,"","",""]
[null,null,null,null,null,null,null,"","",""]
[null,null,null,null,null,null,null,"","",""]
[null,null,null,null,null,null,null,"","",""]
[null,null,null,null,null,null,null,"","",""]
[null,null,null,null,null,null,null,"","",""]
[null,null,null,null,null,null,null,"",{"$f":"IF(ISBLANK(B2249),\"\",VLOOKUP(B2249,POSITION_LU,2,FALSE))","v":""},{"$f":"IF(ISBLANK(D2249),\"\",VLOOKUP(D2249,UNIT_LU,2,FALSE))","v":""}]
[null,null,null,null,null,null,null,"","",""]
[null,null,null,null,null,null,null,"","",""]
[null,null,null,null,null,null,null,"","",""]
[null,null,null,null,null,null,null,"","",""]
[null,null,null,null,null,null,null,"","",""]
[null,null,null,null,null,null,null,"","",""]
[null,null,null,null,null,null,null,"","",""]
[null,null,null,null,null,null,null,"","",""]
[null,null,null,null,null,null,null,"","",""]
[null,null,null,null,null,null,null,"","",""]
[null,null,null,null,null,null,null,"","",""]
[null,null,null,null,null,null,null,"","",""]
[null,null,null,null,null,null,null,"","",""]
[null,null,null,null,null,null,null,"","",""]
[null,null,null,null,null,null,null,"","",""]
[null,null,null,null,null,null,null,"","",""]
[null,null,null,null,null,null,null,"","",""]
[null,null,null,null,null,null,null,"","",""]
[null,null,null,null,null,null,null,"","",""]
[null,null,null,null,null,null,null,"","",""]
[null,null,null,null,null,null,null,"","",""]
[null,null,null,null,null,null,null,"","",""]
[null,null,null,null,null,null,null,"","",""]
[null,null,null,null,null,null,null,"","",""]
[null,null,null,null,null,null,null,"","",""]
[null,null,null,null,null,null,null,"","",""]
[null,null,null,null,null,null,null,"","",""]
[null,null,null,null,null,null,null,"","",""]
[null,null,null,null,null,null,null,"","",""]
[null,null,null,null,null,null,null,"","",""]
[null,null,null,null,null,null,null,"","",""]
[null,null,null,null,null,null,null,"","",""]
[null,null,null,null,null,null,null,"","",""]
[null,null,null,null,null,null,null,"","",""]
[null,null,null,null,null,null,null,"","",""]
[null,null,null,null,null,null,null,"","",""]
[null,null,null,null,null,null,null,"","",""]
[null,null,null,null,null,null,null,"","",""]
[null,null,null,null,null,null,null,"","",""]
[null,null,null,null,null,null,null,"","",""]
[null,null,null,null,null,null,null,"","",""]
[null,null,null,null,null,null,null,"","",""]
[null,null,null,null,null,null,null,"","",""]
[null,null,null,null,null,null,null,"","",""]
[null,null,null,null,null,null,null,"","",""]
[null,null,null,null,null,null,null,"","",""]
[null,null,null,null,null,null,null,"","",""]
[null,null,null,null,null,null,null,"","",""]
[null,null,null,null,null,null,null,"","",""]
[null,null,null,null,null,null,null,"","",""]
[null,null,null,null,null,null,null,"","",""]
[null,null,null,null,null,null,null,"","",""]
[null,null,null,null,null,null,null,"","",""]
[null,null,null,null,null,null,null,{"$f":"IF(ISBLANK(A2303),\"\",VLOOKUP(A2303,BLDG_SITE_LU,2,FALSE))","v":""},"",""]
[null,null,null,null,null,null,null,"","",""]
[null,null,null,null,null,null,null,"","",""]
[null,null,null,null,null,null,null,"","",""]
[null,null,null,null,null,null,null,"","",""]
[null,null,null,null,null,null,null,"","",""]
[null,null,null,null,null,null,null,"","",""]
[null,null,null,null,null,null,null,"","",""]
[null,null,null,null,null,null,null,"","",""]
[null,null,null,null,null,null,null,"","",""]
[null,null,null,null,null,null,null,"",{"$f":"IF(ISBLANK(B2313),\"\",VLOOKUP(B2313,POSITION_LU,2,FALSE))","v":""},{"$f":"IF(ISBLANK(D2313),\"\",VLOOKUP(D2313,UNIT_LU,2,FALSE))","v":""}]
[null,null,null,null,null,null,null,"","",""]
[null,null,null,null,null,null,null,"","",""]
[null,null,null,null,null,null,null,"","",""]
[null,null,null,null,null,null,null,"","",""]
[null,null,null,null,null,null,null,"","",""]
[null,null,null,null,null,null,null,"","",""]
[null,null,null,null,null,null,null,"","",""]
[null,null,null,null,null,null,null,"","",""]
[null,null,null,null,null,null,null,"","",""]
[null,null,null,null,null,null,null,"","",""]
[null,null,null,null,null,null,null,"","",""]
[null,null,null,null,null,null,null,"","",""]
[null,null,null,null,null,null,null,"","",""]
[null,null,null,null,null,null,null,"","",""]
[null,null,null,null,null,null,null,"","",""]
[null,null,null,null,null,null,null,"","",""]
[null,null,null,null,null,null,null,"","",""]
[null,null,null,null,null,null,null,"","",""]
[null,null,null,null,null,null,null,"","",""]
[null,null,null,null,null,null,null,"","",""]
[null,null,null,null,null,null,null,"","",""]
[null,null,null,null,null,null,null,"","",""]
[null,null,null,null,null,null,null,"","",""]
[null,null,null,null,null,null,null,"","",""]
[null,null,null,null,null,null,null,"","",""]
[null,null,null,null,null,null,null,"","",""]
[null,null,null,null,null,null,null,"","",""]
[null,null,null,null,null,null,null,"","",""]
[null,null,null,null,null,null,null,"","",""]
[null,null,null,null,null,null,null,"","",""]
[null,null,null,null,null,null,null,"","",""]
[null,null,null,null,null,null,null,"","",""]
[null,null,null,null,null,null,null,"","",""]
[null,null,null,null,null,null,null,"","",""]
[null,null,null,null,null,null,null,"","",""]
[null,null,null,null,null,null,null,"","",""]
[null,null,null,null,null,null,null,"","",""]
[null,null,null,null,null,null,null,"","",""]
[null,null,null,null,null,null,null,"","",""]
[null,null,null,null,null,null,null,"","",""]
[null,null,null,null,null,null,null,"","",""]
[null,null,null,null,null,null,null,"","",""]
[null,null,null,null,null,null,null,"","",""]
[null,null,null,null,null,null,null,"","",""]
[null,null,null,null,null,null,null,"","",""]
[null,null,null,null,null,null,null,"","",""]
[null,null,null,null,null,null,null,"","",""]
[null,null,null,null,null,null,null,"","",""]
[null,null,null,null,null,null,null,"","",""]
[null,null,null,null,null,null,null,"","",""]
[null,null,null,null,null,null,null,"","",""]
[null,null,null,null,null,null,null,"","",""]
[null,null,null,null,null,null,null,"","",""]
[null,null,null,null,null,null,null,{"$f":"IF(ISBLANK(A2367),\"\",VLOOKUP(A2367,BLDG_SITE_LU,2,FALSE))","v":""},"",""]
[null,null,null,null,null,null,null,"","",""]
[null,null,null,null,null,null,null,"","",""]
[null,null,null,null,null,null,null,"","",""]
[null,null,null,null,null,null,null,"","",""]
[null,null,null,null,null,null,null,"","",""]
[null,null,null,null,null,null,null,"","",""]
[null,null,null,null,null,null,null,"","",""]
[null,null,null,null,null,null,null,"","",""]
[null,null,null,null,null,null,null,"","",""]
[null,null,null,null,null,null,null,"",{"$f":"IF(ISBLANK(B2377),\"\",VLOOKUP(B2377,POSITION_LU,2,FALSE))","v":""},{"$f":"IF(ISBLANK(D2377),\"\",VLOOKUP(D2377,UNIT_LU,2,FALSE))","v":""}]
[null,null,null,null,null,null,null,"","",""]
[null,null,null,null,null,null,null,"","",""]
[null,null,null,null,null,null,null,"","",""]
[null,null,null,null,null,null,null,"","",""]
[null,null,null,null,null,null,null,"","",""]
[null,null,null,null,null,null,null,"","",""]
[null,null,null,null,null,null,null,"","",""]
[null,null,null,null,null,null,null,"","",""]
[null,null,null,null,null,null,null,"","",""]
[null,null,null,null,null,null,null,"","",""]
[null,null,null,null,null,null,null,"","",""]
[null,null,null,null,null,null,null,"","",""]
[null,null,null,null,null,null,null,"","",""]
[null,null,null,null,null,null,null,"","",""]
[null,null,null,null,null,null,null,"","",""]
[null,null,null,null,null,null,null,"","",""]
[null,null,null,null,null,null,null,"","",""]
[null,null,null,null,null,null,null,"","",""]
[null,null,null,null,null,null,null,"","",""]
[null,null,null,null,null,null,null,"","",""]
[null,null,null,null,null,null,null,"","",""]
[null,null,null,null,null,null,null,"","",""]
[null,null,null,null,null,null,null,"","",""]
[null,null,null,null,null,null,null,"","",""]
[null,null,null,null,null,null,null,"","",""]
[null,null,null,null,null,null,null,"","",""]
[null,null,null,null,null,null,null,"","",""]
[null,null,null,null,null,null,null,"","",""]
[null,null,null,null,null,null,null,"","",""]
[null,null,null,null,null,null,null,"","",""]
[null,null,null,null,null,null,null,"","",""]
[null,null,null,null,null,null,null,"","",""]
[null,null,null,null,null,null,null,"","",""]
[null,null,null,null,null,null,null,"","",""]
[null,null,null,null,null,null,null,"","",""]
[null,null,null,null,null,null,null,"","",""]
[null,null,null,null,null,null,null,"","",""]
[null,null,null,null,null,null,null,"","",""]
[null,null,null,null,null,null,null,"","",""]
[null,null,null,null,null,null,null,"","",""]
[null,null,null,null,null,null,null,"","",""]
[null,null,null,null,null,null,null,"","",""]
[null,null,null,null,null,null,null,"","",""]
[null,null,null,null,null,null,null,"","",""]
[null,null,null,null,null,null,null,"","",""]
[null,null,null,null,null,null,null,"","",""]
[null,null,null,null,null,null,null,"","",""]
[null,null,null,null,null,null,null,"","",""]
[null,null,null,null,null,null,null,"","",""]
[null,null,null,null,null,null,null,"","",""]
[null,null,null,null,null,null,null,"","",""]
[null,null,null,null,null,null,null,"","",""]
[null,null,null,null,null,null,null,"","",""]
[null,null,null,null,null,null,null,{"$f":"IF(ISBLANK(A2431),\"\",VLOOKUP(A2431,BLDG_SITE_LU,2,FALSE))","v":""},"",""]
[null,null,null,null,null,null,null,"","",""]
[null,null,null,null,null,null,null,"","",""]
[null,null,null,null,null,null,null,"","",""]
[null,null,null,null,null,null,null,"","",""]
[null,null,null,null,null,null,null,"","",""]
[null,null,null,null,null,null,null,"","",""]
[null,null,null,null,null,null,null,"","",""]
[null,null,null,null,null,null,null,"","",""]
[null,null,null,null,null,null,null,"","",""]
[null,null,null,null,null,null,null,"",{"$f":"IF(ISBLANK(B2441),\"\",VLOOKUP(B2441,POSITION_LU,2,FALSE))","v":""},{"$f":"IF(ISBLANK(D2441),\"\",VLOOKUP(D2441,UNIT_LU,2,FALSE))","v":""}]
[null,null,null,null,null,null,null,"","",""]
[null,null,null,null,null,null,null,"","",""]
[null,null,null,null,null,null,null,"","",""]
[null,null,null,null,null,null,null,"","",""]
[null,null,null,null,null,null,null,"","",""]
[null,null,null,null,null,null,null,"","",""]
[null,null,null,null,null,null,null,"","",""]
[null,null,null,null,null,null,null,"","",""]
[null,null,null,null,null,null,null,"","",""]
[null,null,null,null,null,null,null,"","",""]
[null,null,null,null,null,null,null,"","",""]
[null,null,null,null,null,null,null,"","",""]
[null,null,null,null,null,null,null,"","",""]
[null,null,null,null,null,null,null,"","",""]
[null,null,null,null,null,null,null,"","",""]
[null,null,null,null,null,null,null,"","",""]
[null,null,null,null,null,null,null,"","",""]
[null,null,null,null,null,null,null,"","",""]
[null,null,null,null,null,null,null,"","",""]
[null,null,null,null,null,null,null,"","",""]
[null,null,null,null,null,null,null,"","",""]
[null,null,null,null,null,null,null,"","",""]
[null,null,null,null,null,null,null,"","",""]
[null,null,null,null,null,null,null,"","",""]
[null,null,null,null,null,null,null,"","",""]
[null,null,null,null,null,null,null,"","",""]
[null,null,null,null,null,null,null,"","",""]
[null,null,null,null,null,null,null,"","",""]
[null,null,null,null,null,null,null,"","",""]
[null,null,null,null,null,null,null,"","",""]
[null,null,null,null,null,null,null,"","",""]
[null,null,null,null,null,null,null,"","",""]
[null,null,null,null,null,null,null,"","",""]
[null,null,null,null,null,null,null,"","",""]
[null,null,null,null,null,null,null,"","",""]
[null,null,null,null,null,null,null,"","",""]
[null,null,null,null,null,null,null,"","",""]
[null,null,null,null,null,null,null,"","",""]
[null,null,null,null,null,null,null,"","",""]
[null,null,null,null,null,null,null,"","",""]
[null,null,null,null,null,null,null,"","",""]
[null,null,null,null,null,null,null,"","",""]
[null,null,null,null,null,null,null,"","",""]
[null,null,null,null,null,null,null,"","",""]
[null,null,null,null,null,null,null,"","",""]
[null,null,null,null,null,null,null,"","",""]
[null,null,null,null,null,null,null,"","",""]
[null,null,null,null,null,null,null,"","",""]
[null,null,null,null,null,null,null,"","",""]
[null,null,null,null,null,null,null,"","",""]
[null,null,null,null,null,null,null,"","",""]
[null,null,null,null,null,null,null,"","",""]
[null,null,null,null,null,null,null,"","",""]
[null,null,null,null,null,null,null,{"$f":"IF(ISBLANK(A2495),\"\",VLOOKUP(A2495,BLDG_SITE_LU,2,FALSE))","v":""},"",""]
[null,null,null,null,null,null,null,"","",""]
[null,null,null,null,null,null,null,"","",""]
[null,null,null,null,null,null,null,"","",""]
[null,null,null,null,null,null,null,"","",""]
[null,null,null,null,null,null,null,"","",""]
[null,null,null,null,null,null,null,"","",""]
[null,null,null,null,null,null,null,"","",""]
[null,null,null,null,null,null,null,"","",""]
[null,null,null,null,null,null,null,"","",""]
[null,null,null,null,null,null,null,"",{"$f":"IF(ISBLANK(B2505),\"\",VLOOKUP(B2505,POSITION_LU,2,FALSE))","v":""},{"$f":"IF(ISBLANK(D2505),\"\",VLOOKUP(D2505,UNIT_LU,2,FALSE))","v":""}]
[null,null,null,null,null,null,null,"","",""]
[null,null,null,null,null,null,null,"","",""]
[null,null,null,null,null,null,null,"","",""]
[null,null,null,null,null,null,null,"","",""]
[null,null,null,null,null,null,null,"","",""]
[null,null,null,null,null,null,null,"","",""]
[null,null,null,null,null,null,null,"","",""]
[null,null,null,null,null,null,null,"","",""]
[null,null,null,null,null,null,null,"","",""]
[null,null,null,null,null,null,null,"","",""]
[null,null,null,null,null,null,null,"","",""]
[null,null,null,null,null,null,null,"","",""]
[null,null,null,null,null,null,null,"","",""]
[null,null,null,null,null,null,null,"","",""]
[null,null,null,null,null,null,null,"","",""]
[null,null,null,null,null,null,null,"","",""]
[null,null,null,null,null,null,null,"","",""]
[null,null,null,null,null,null,null,"","",""]
[null,null,null,null,null,null,null,"","",""]
[null,null,null,null,null,null,null,"","",""]
[null,null,null,null,null,null,null,"","",""]
[null,null,null,null,null,null,null,"","",""]
[null,null,null,null,null,null,null,"","",""]
[null,null,null,null,null,null,null,"","",""]
[null,null,null,null,null,null,null,"","",""]
[null,null,null,null,null,null,null,"","",""]
[null,null,null,null,null,null,null,"","",""]
[null,null,null,null,null,null,null,"","",""]
[null,null,null,null,null,null,null,"","",""]
[null,null,null,null,null,null,null,"","",""]
[null,null,null,null,null,null,null,"","",""]
[null,null,null,null,null,null,null,"","",""]
[null,null,null,null,null,null,null,"","",""]
[null,null,null,null,null,null,null,"","",""]
[null,null,null,null,null,null,null,"","",""]
[null,null,null,null,null,null,null,"","",""]
[null,null,null,null,null,null,null,"","",""]
[null,null,null,null,null,null,null,"","",""]
[null,null,null,null,null,null,null,"","",""]
[null,null,null,null,null,null,null,"","",""]
[null,null,null,null,null,null,null,"","",""]
[null,null,null,null,null,null,null,"","",""]
[null,null,null,null,null,null,null,"","",""]
[null,null,null,null,null,null,null,"","",""]
[null,null,null,null,null,null,null,"","",""]
[null,null,null,null,null,null,null,"","",""]
[null,null,null,null,null,null,null,"","",""]
[null,null,null,null,null,null,null,"","",""]
[null,null,null,null,null,null,null,"","",""]
[null,null,null,null,null,null,null,"","",""]
[null,null,null,null,null,null,null,"","",""]
[null,null,null,null,null,null,null,"","",""]
[null,null,null,null,null,null,null,"","",""]
[null,null,null,null,null,null,null,{"$f":"IF(ISBLANK(A2559),\"\",VLOOKUP(A2559,BLDG_SITE_LU,2,FALSE))","v":""},"",""]
[null,null,null,null,null,null,null,"","",""]
[null,null,null,null,null,null,null,"","",""]
[null,null,null,null,null,null,null,"","",""]
[null,null,null,null,null,null,null,"","",""]
[null,null,null,null,null,null,null,"","",""]
[null,null,null,null,null,null,null,"","",""]
[null,null,null,null,null,null,null,"","",""]
[null,null,null,null,null,null,null,"","",""]
[null,null,null,null,null,null,null,"","",""]
[null,null,null,null,null,null,null,"",{"$f":"IF(ISBLANK(B2569),\"\",VLOOKUP(B2569,POSITION_LU,2,FALSE))","v":""},{"$f":"IF(ISBLANK(D2569),\"\",VLOOKUP(D2569,UNIT_LU,2,FALSE))","v":""}]
[null,null,null,null,null,null,null,"","",""]
[null,null,null,null,null,null,null,"","",""]
[null,null,null,null,null,null,null,"","",""]
[null,null,null,null,null,null,null,"","",""]
[null,null,null,null,null,null,null,"","",""]
[null,null,null,null,null,null,null,"","",""]
[null,null,null,null,null,null,null,"","",""]
[null,null,null,null,null,null,null,"","",""]
[null,null,null,null,null,null,null,"","",""]
[null,null,null,null,null,null,null,"","",""]
[null,null,null,null,null,null,null,"","",""]
[null,null,null,null,null,null,null,"","",""]
[null,null,null,null,null,null,null,"","",""]
[null,null,null,null,null,null,null,"","",""]
[null,null,null,null,null,null,null,"","",""]
[null,null,null,null,null,null,null,"","",""]
[null,null,null,null,null,null,null,"","",""]
[null,null,null,null,null,null,null,"","",""]
[null,null,null,null,null,null,null,"","",""]
[null,null,null,null,null,null,null,"","",""]
[null,null,null,null,null,null,null,"","",""]
[null,null,null,null,null,null,null,"","",""]
[null,null,null,null,null,null,null,"","",""]
[null,null,null,null,null,null,null,"","",""]
[null,null,null,null,null,null,null,"","",""]
[null,null,null,null,null,null,null,"","",""]
[null,null,null,null,null,null,null,"","",""]
[null,null,null,null,null,null,null,"","",""]
[null,null,null,null,null,null,null,"","",""]
[null,null,null,null,null,null,null,"","",""]
[null,null,null,null,null,null,null,"","",""]
[null,null,null,null,null,null,null,"","",""]
[null,null,null,null,null,null,null,"","",""]
[null,null,null,null,null,null,null,"","",""]
[null,null,null,null,null,null,null,"","",""]
[null,null,null,null,null,null,null,"","",""]
[null,null,null,null,null,null,null,"","",""]
[null,null,null,null,null,null,null,"","",""]
[null,null,null,null,null,null,null,"","",""]
[null,null,null,null,null,null,null,"","",""]
[null,null,null,null,null,null,null,"","",""]
[null,null,null,null,null,null,null,"","",""]
[null,null,null,null,null,null,null,"","",""]
[null,null,null,null,null,null,null,"","",""]
[null,null,null,null,null,null,null,"","",""]
[null,null,null,null,null,null,null,"","",""]
[null,null,null,null,null,null,null,"","",""]
[null,null,null,null,null,null,null,"","",""]
[null,null,null,null,null,null,null,"","",""]
[null,null,null,null,null,null,null,"","",""]
[null,null,null,null,null,null,null,"","",""]
[null,null,null,null,null,null,null,"","",""]
[null,null,null,null,null,null,null,"","",""]
[null,null,null,null,null,null,null,{"$f":"IF(ISBLANK(A2623),\"\",VLOOKUP(A2623,BLDG_SITE_LU,2,FALSE))","v":""},"",""]
[null,null,null,null,null,null,null,"","",""]
[null,null,null,null,null,null,null,"","",""]
[null,null,null,null,null,null,null,"","",""]
[null,null,null,null,null,null,null,"","",""]
[null,null,null,null,null,null,null,"","",""]
[null,null,null,null,null,null,null,"","",""]
[null,null,null,null,null,null,null,"","",""]
[null,null,null,null,null,null,null,"","",""]
[null,null,null,null,null,null,null,"","",""]
[null,null,null,null,null,null,null,"",{"$f":"IF(ISBLANK(B2633),\"\",VLOOKUP(B2633,POSITION_LU,2,FALSE))","v":""},{"$f":"IF(ISBLANK(D2633),\"\",VLOOKUP(D2633,UNIT_LU,2,FALSE))","v":""}]
[null,null,null,null,null,null,null,"","",""]
[null,null,null,null,null,null,null,"","",""]
[null,null,null,null,null,null,null,"","",""]
[null,null,null,null,null,null,null,"","",""]
[null,null,null,null,null,null,null,"","",""]
[null,null,null,null,null,null,null,"","",""]
[null,null,null,null,null,null,null,"","",""]
[null,null,null,null,null,null,null,"","",""]
[null,null,null,null,null,null,null,"","",""]
[null,null,null,null,null,null,null,"","",""]
[null,null,null,null,null,null,null,"","",""]
[null,null,null,null,null,null,null,"","",""]
[null,null,null,null,null,null,null,"","",""]
[null,null,null,null,null,null,null,"","",""]
[null,null,null,null,null,null,null,"","",""]
[null,null,null,null,null,null,null,"","",""]
[null,null,null,null,null,null,null,"","",""]
[null,null,null,null,null,null,null,"","",""]
[null,null,null,null,null,null,null,"","",""]
[null,null,null,null,null,null,null,"","",""]
[null,null,null,null,null,null,null,"","",""]
[null,null,null,null,null,null,null,"","",""]
[null,null,null,null,null,null,null,"","",""]
[null,null,null,null,null,null,null,"","",""]
[null,null,null,null,null,null,null,"","",""]
[null,null,null,null,null,null,null,"","",""]
[null,null,null,null,null,null,null,"","",""]
[null,null,null,null,null,null,null,"","",""]
[null,null,null,null,null,null,null,"","",""]
[null,null,null,null,null,null,null,"","",""]
[null,null,null,null,null,null,null,"","",""]
[null,null,null,null,null,null,null,"","",""]
[null,null,null,null,null,null,null,"","",""]
[null,null,null,null,null,null,null,"","",""]
[null,null,null,null,null,null,null,"","",""]
[null,null,null,null,null,null,null,"","",""]
[null,null,null,null,null,null,null,"","",""]
[null,null,null,null,null,null,null,"","",""]
[null,null,null,null,null,null,null,"","",""]
[null,null,null,null,null,null,null,"","",""]
[null,null,null,null,null,null,null,"","",""]
[null,null,null,null,null,null,null,"","",""]
[null,null,null,null,null,null,null,"","",""]
[null,null,null,null,null,null,null,"","",""]
[null,null,null,null,null,null,null,"","",""]
[null,null,null,null,null,null,null,"","",""]
[null,null,null,null,null,null,null,"","",""]
[null,null,null,null,null,null,null,"","",""]
[null,null,null,null,null,null,null,"","",""]
[null,null,null,null,null,null,null,"","",""]
[null,null,null,null,null,null,null,"","",""]
[null,null,null,null,null,null,null,"","",""]
[null,null,null,null,null,null,null,"","",""]
[null,null,null,null,null,null,null,{"$f":"IF(ISBLANK(A2687),\"\",VLOOKUP(A2687,BLDG_SITE_LU,2,FALSE))","v":""},"",""]
[null,null,null,null,null,null,null,"","",""]
[null,null,null,null,null,null,null,"","",""]
[null,null,null,null,null,null,null,"","",""]
[null,null,null,null,null,null,null,"","",""]
[null,null,null,null,null,null,null,"","",""]
[null,null,null,null,null,null,null,"","",""]
[null,null,null,null,null,null,null,"","",""]
[null,null,null,null,null,null,null,"","",""]
[null,null,null,null,null,null,null,"","",""]
[null,null,null,null,null,null,null,"",{"$f":"IF(ISBLANK(B2697),\"\",VLOOKUP(B2697,POSITION_LU,2,FALSE))","v":""},{"$f":"IF(ISBLANK(D2697),\"\",VLOOKUP(D2697,UNIT_LU,2,FALSE))","v":""}]
[null,null,null,null,null,null,null,"","",""]
[null,null,null,null,null,null,null,"","",""]
[null,null,null,null,null,null,null,"","",""]
[null,null,null,null,null,null,null,"","",""]
[null,null,null,null,null,null,null,"","",""]
[null,null,null,null,null,null,null,"","",""]
[null,null,null,null,null,null,null,"","",""]
[null,null,null,null,null,null,null,"","",""]
[null,null,null,null,null,null,null,"","",""]
[null,null,null,null,null,null,null,"","",""]
[null,null,null,null,null,null,null,"","",""]
[null,null,null,null,null,null,null,"","",""]
[null,null,null,null,null,null,null,"","",""]
[null,null,null,null,null,null,null,"","",""]
[null,null,null,null,null,null,null,"","",""]
[null,null,null,null,null,null,null,"","",""]
[null,null,null,null,null,null,null,"","",""]
[null,null,null,null,null,null,null,"","",""]
[null,null,null,null,null,null,null,"","",""]
[null,null,null,null,null,null,null,"","",""]
[null,null,null,null,null,null,null,"","",""]
[null,null,null,null,null,null,null,"","",""]
[null,null,null,null,null,null,null,"","",""]
[null,null,null,null,null,null,null,"","",""]
[null,null,null,null,null,null,null,"","",""]
[null,null,null,null,null,null,null,"","",""]
[null,null,null,null,null,null,null,"","",""]
[null,null,null,null,null,null,null,"","",""]
[null,null,null,null,null,null,null,"","",""]
[null,null,null,null,null,null,null,"","",""]
[null,null,null,null,null,null,null,"","",""]
[null,null,null,null,null,null,null,"","",""]
[null,null,null,null,null,null,null,"","",""]
[null,null,null,null,null,null,null,"","",""]
[null,null,null,null,null,null,null,"","",""]
[null,null,null,null,null,null,null,"","",""]
[null,null,null,null,null,null,null,"","",""]
[null,null,null,null,null,null,null,"","",""]
[null,null,null,null,null,null,null,"","",""]
[null,null,null,null,null,null,null,"","",""]
[null,null,null,null,null,null,null,"","",""]
[null,null,null,null,null,null,null,"","",""]
[null,null,null,null,null,null,null,"","",""]
[null,null,null,null,null,null,null,"","",""]
[null,null,null,null,null,null,null,"","",""]
[null,null,null,null,null,null,null,"","",""]
[null,null,null,null,null,null,null,"","",""]
[null,null,null,null,null,null,null,"","",""]
[null,null,null,null,null,null,null,"","",""]
[null,null,null,null,null,null,null,"","",""]
[null,null,null,null,null,null,null,"","",""]
[null,null,null,null,null,null,null,"","",""]
[null,null,null,null,null,null,null,"","",""]
[null,null,null,null,null,null,null,{"$f":"IF(ISBLANK(A2751),\"\",VLOOKUP(A2751,BLDG_SITE_LU,2,FALSE))","v":""},"",""]
[null,null,null,null,null,null,null,"","",""]
[null,null,null,null,null,null,null,"","",""]
[null,null,null,null,null,null,null,"","",""]
[null,null,null,null,null,null,null,"","",""]
[null,null,null,null,null,null,null,"","",""]
[null,null,null,null,null,null,null,"","",""]
[null,null,null,null,null,null,null,"","",""]
[null,null,null,null,null,null,null,"","",""]
[null,null,null,null,null,null,null,"","",""]
[null,null,null,null,null,null,null,"",{"$f":"IF(ISBLANK(B2761),\"\",VLOOKUP(B2761,POSITION_LU,2,FALSE))","v":""},{"$f":"IF(ISBLANK(D2761),\"\",VLOOKUP(D2761,UNIT_LU,2,FALSE))","v":""}]
[null,null,null,null,null,null,null,"","",""]
[null,null,null,null,null,null,null,"","",""]
[null,null,null,null,null,null,null,"","",""]
[null,null,null,null,null,null,null,"","",""]
[null,null,null,null,null,null,null,"","",""]
[null,null,null,null,null,null,null,"","",""]
[null,null,null,null,null,null,null,"","",""]
[null,null,null,null,null,null,null,"","",""]
[null,null,null,null,null,null,null,"","",""]
[null,null,null,null,null,null,null,"","",""]
[null,null,null,null,null,null,null,"","",""]
[null,null,null,null,null,null,null,"","",""]
[null,null,null,null,null,null,null,"","",""]
[null,null,null,null,null,null,null,"","",""]
[null,null,null,null,null,null,null,"","",""]
[null,null,null,null,null,null,null,"","",""]
[null,null,null,null,null,null,null,"","",""]
[null,null,null,null,null,null,null,"","",""]
[null,null,null,null,null,null,null,"","",""]
[null,null,null,null,null,null,null,"","",""]
[null,null,null,null,null,null,null,"","",""]
[null,null,null,null,null,null,null,"","",""]
[null,null,null,null,null,null,null,"","",""]
[null,null,null,null,null,null,null,"","",""]
[null,null,null,null,null,null,null,"","",""]
[null,null,null,null,null,null,null,"","",""]
[null,null,null,null,null,null,null,"","",""]
[null,null,null,null,null,null,null,"","",""]
[null,null,null,null,null,null,null,"","",""]
[null,null,null,null,null,null,null,"","",""]
[null,null,null,null,null,null,null,"","",""]
[null,null,null,null,null,null,null,"","",""]
[null,null,null,null,null,null,null,"","",""]
[null,null,null,null,null,null,null,"","",""]
[null,null,null,null,null,null,null,"","",""]
[null,null,null,null,null,null,null,"","",""]
[null,null,null,null,null,null,null,"","",""]
[null,null,null,null,null,null,null,"","",""]
[null,null,null,null,null,null,null,"","",""]
[null,null,null,null,null,null,null,"","",""]
[null,null,null,null,null,null,null,"","",""]
[null,null,null,null,null,null,null,"","",""]
[null,null,null,null,null,null,null,"","",""]
[null,null,null,null,null,null,null,"","",""]
[null,null,null,null,null,null,null,"","",""]
[null,null,null,null,null,null,null,"","",""]
[null,null,null,null,null,null,null,"","",""]
[null,null,null,null,null,null,null,"","",""]
[null,null,null,null,null,null,null,"","",""]
[null,null,null,null,null,null,null,"","",""]
[null,null,null,null,null,null,null,"","",""]
[null,null,null,null,null,null,null,"","",""]
[null,null,null,null,null,null,null,"","",""]
[null,null,null,null,null,null,null,{"$f":"IF(ISBLANK(A2815),\"\",VLOOKUP(A2815,BLDG_SITE_LU,2,FALSE))","v":""},"",""]
[null,null,null,null,null,null,null,"","",""]
[null,null,null,null,null,null,null,"","",""]
[null,null,null,null,null,null,null,"","",""]
[null,null,null,null,null,null,null,"","",""]
[null,null,null,null,null,null,null,"","",""]
[null,null,null,null,null,null,null,"","",""]
[null,null,null,null,null,null,null,"","",""]
[null,null,null,null,null,null,null,"","",""]
[null,null,null,null,null,null,null,"","",""]
[null,null,null,null,null,null,null,"",{"$f":"IF(ISBLANK(B2825),\"\",VLOOKUP(B2825,POSITION_LU,2,FALSE))","v":""},{"$f":"IF(ISBLANK(D2825),\"\",VLOOKUP(D2825,UNIT_LU,2,FALSE))","v":""}]
[null,null,null,null,null,null,null,"","",""]
[null,null,null,null,null,null,null,"","",""]
[null,null,null,null,null,null,null,"","",""]
[null,null,null,null,null,null,null,"","",""]
[null,null,null,null,null,null,null,"","",""]
[null,null,null,null,null,null,null,"","",""]
[null,null,null,null,null,null,null,"","",""]
[null,null,null,null,null,null,null,"","",""]
[null,null,null,null,null,null,null,"","",""]
[null,null,null,null,null,null,null,"","",""]
[null,null,null,null,null,null,null,"","",""]
[null,null,null,null,null,null,null,"","",""]
[null,null,null,null,null,null,null,"","",""]
[null,null,null,null,null,null,null,"","",""]
[null,null,null,null,null,null,null,"","",""]
[null,null,null,null,null,null,null,"","",""]
[null,null,null,null,null,null,null,"","",""]
[null,null,null,null,null,null,null,"","",""]
[null,null,null,null,null,null,null,"","",""]
[null,null,null,null,null,null,null,"","",""]
[null,null,null,null,null,null,null,"","",""]
[null,null,null,null,null,null,null,"","",""]
[null,null,null,null,null,null,null,"","",""]
[null,null,null,null,null,null,null,"","",""]
[null,null,null,null,null,null,null,"","",""]
[null,null,null,null,null,null,null,"","",""]
[null,null,null,null,null,null,null,"","",""]
[null,null,null,null,null,null,null,"","",""]
[null,null,null,null,null,null,null,"","",""]
[null,null,null,null,null,null,null,"","",""]
[null,null,null,null,null,null,null,"","",""]
[null,null,null,null,null,null,null,"","",""]
[null,null,null,null,null,null,null,"","",""]
[null,null,null,null,null,null,null,"","",""]
[null,null,null,null,null,null,null,"","",""]
[null,null,null,null,null,null,null,"","",""]
[null,null,null,null,null,null,null,"","",""]
[null,null,null,null,null,null,null,"","",""]
[null,null,null,null,null,null,null,"","",""]
[null,null,null,null,null,null,null,"","",""]
[null,null,null,null,null,null,null,"","",""]
[null,null,null,null,null,null,null,"","",""]
[null,null,null,null,null,null,null,"","",""]
[null,null,null,null,null,null,null,"","",""]
[null,null,null,null,null,null,null,"","",""]
[null,null,null,null,null,null,null,"","",""]
[null,null,null,null,null,null,null,"","",""]
[null,null,null,null,null,null,null,"","",""]
[null,null,null,null,null,null,null,"","",""]
[null,null,null,null,null,null,null,"","",""]
[null,null,null,null,null,null,null,"","",""]
[null,null,null,null,null,null,null,"","",""]
[null,null,null,null,null,null,null,"","",""]
[null,null,null,null,null,null,null,{"$f":"IF(ISBLANK(A2879),\"\",VLOOKUP(A2879,BLDG_SITE_LU,2,FALSE))","v":""},"",""]
[null,null,null,null,null,null,null,"","",""]
[null,null,null,null,null,null,null,"","",""]
[null,null,null,null,null,null,null,"","",""]
[null,null,null,null,null,null,null,"","",""]
[null,null,null,null,null,null,null,"","",""]
[null,null,null,null,null,null,null,"","",""]
[null,null,null,null,null,null,null,"","",""]
[null,null,null,null,null,null,null,"","",""]
[null,null,null,null,null,null,null,"","",""]
[null,null,null,null,null,null,null,"",{"$f":"IF(ISBLANK(B2889),\"\",VLOOKUP(B2889,POSITION_LU,2,FALSE))","v":""},{"$f":"IF(ISBLANK(D2889),\"\",VLOOKUP(D2889,UNIT_LU,2,FALSE))","v":""}]
[null,null,null,null,null,null,null,"","",""]
[null,null,null,null,null,null,null,"","",""]
[null,null,null,null,null,null,null,"","",""]
[null,null,null,null,null,null,null,"","",""]
[null,null,null,null,null,null,null,"","",""]
[null,null,null,null,null,null,null,"","",""]
[null,null,null,null,null,null,null,"","",""]
[null,null,null,null,null,null,null,"","",""]
[null,null,null,null,null,null,null,"","",""]
[null,null,null,null,null,null,null,"","",""]
[null,null,null,null,null,null,null,"","",""]
[null,null,null,null,null,null,null,"","",""]
[null,null,null,null,null,null,null,"","",""]
[null,null,null,null,null,null,null,"","",""]
[null,null,null,null,null,null,null,"","",""]
[null,null,null,null,null,null,null,"","",""]
[null,null,null,null,null,null,null,"","",""]
[null,null,null,null,null,null,null,"","",""]
[null,null,null,null,null,null,null,"","",""]
[null,null,null,null,null,null,null,"","",""]
[null,null,null,null,null,null,null,"","",""]
[null,null,null,null,null,null,null,"","",""]
[null,null,null,null,null,null,null,"","",""]
[null,null,null,null,null,null,null,"","",""]
[null,null,null,null,null,null,null,"","",""]
[null,null,null,null,null,null,null,"","",""]
[null,null,null,null,null,null,null,"","",""]
[null,null,null,null,null,null,null,"","",""]
[null,null,null,null,null,null,null,"","",""]
[null,null,null,null,null,null,null,"","",""]
[null,null,null,null,null,null,null,"","",""]
[null,null,null,null,null,null,null,"","",""]
[null,null,null,null,null,null,null,"","",""]
[null,null,null,null,null,null,null,"","",""]
[null,null,null,null,null,null,null,"","",""]
[null,null,null,null,null,null,null,"","",""]
[null,null,null,null,null,null,null,"","",""]
[null,null,null,null,null,null,null,"","",""]
[null,null,null,null,null,null,null,"","",""]
[null,null,null,null,null,null,null,"","",""]
[null,null,null,null,null,null,null,"","",""]
[null,null,null,null,null,null,null,"","",""]
[null,null,null,null,null,null,null,"","",""]
[null,null,null,null,null,null,null,"","",""]
[null,null,null,null,null,null,null,"","",""]
[null,null,null,null,null,null,null,"","",""]
[null,null,null,null,null,null,null,"","",""]
[null,null,null,null,null,null,null,"","",""]
[null,null,null,null,null,null,null,"","",""]
[null,null,null,null,null,null,null,"","",""]
[null,null,null,null,null,null,null,"","",""]
[null,null,null,null,null,null,null,"","",""]
[null,null,null,null,null,null,null,"","",""]
[null,null,null,null,null,null,null,{"$f":"IF(ISBLANK(A2943),\"\",VLOOKUP(A2943,BLDG_SITE_LU,2,FALSE))","v":""},"",""]
[null,null,null,null,null,null,null,"","",""]
[null,null,null,null,null,null,null,"","",""]
[null,null,null,null,null,null,null,"","",""]
[null,null,null,null,null,null,null,"","",""]
[null,null,null,null,null,null,null,"","",""]
[null,null,null,null,null,null,null,"","",""]
[null,null,null,null,null,null,null,"","",""]
[null,null,null,null,null,null,null,"","",""]
[null,null,null,null,null,null,null,"","",""]
[null,null,null,null,null,null,null,"",{"$f":"IF(ISBLANK(B2953),\"\",VLOOKUP(B2953,POSITION_LU,2,FALSE))","v":""},{"$f":"IF(ISBLANK(D2953),\"\",VLOOKUP(D2953,UNIT_LU,2,FALSE))","v":""}]
[null,null,null,null,null,null,null,"","",""]
[null,null,null,null,null,null,null,"","",""]
[null,null,null,null,null,null,null,"","",""]
[null,null,null,null,null,null,null,"","",""]
[null,null,null,null,null,null,null,"","",""]
[null,null,null,null,null,null,null,"","",""]
[null,null,null,null,null,null,null,"","",""]
[null,null,null,null,null,null,null,"","",""]
[null,null,null,null,null,null,null,"","",""]
[null,null,null,null,null,null,null,"","",""]
[null,null,null,null,null,null,null,"","",""]
[null,null,null,null,null,null,null,"","",""]
[null,null,null,null,null,null,null,"","",""]
[null,null,null,null,null,null,null,"","",""]
[null,null,null,null,null,null,null,"","",""]
[null,null,null,null,null,null,null,"","",""]
[null,null,null,null,null,null,null,"","",""]
[null,null,null,null,null,null,null,"","",""]
[null,null,null,null,null,null,null,"","",""]
[null,null,null,null,null,null,null,"","",""]
[null,null,null,null,null,null,null,"","",""]
[null,null,null,null,null,null,null,"","",""]
[null,null,null,null,null,null,null,"","",""]
[null,null,null,null,null,null,null,"","",""]
[null,null,null,null,null,null,null,"","",""]
[null,null,null,null,null,null,null,"","",""]
[null,null,null,null,null,null,null,"","",""]
[null,null,null,null,null,null,null,"","",""]
[null,null,null,null,null,null,null,"","",""]
[null,null,null,null,null,null,null,"","",""]
[null,null,null,null,null,null,null,"","",""]
[null,null,null,null,null,null,null,"","",""]
[null,null,null,null,null,null,null,"","",""]
[null,null,null,null,null,null,null,"","",""]
[null,null,null,null,null,null,null,"","",""]
[null,null,null,null,null,null,null,"","",""]
[null,null,null,null,null,null,null,"","",""]
[null,null,null,null,null,null,null,"","",""]
[null,null,null,null,null,null,null,"","",""]
[null,null,null,null,null,null,null,"","",""]
[null,null,null,null,null,null,null,"","",""]
[null,null,null,null,null,null,null,"","",""]
[null,null,null,null,null,null,null,"","",""]
[null,null,null,null,null,null,null,"","",""]
[null,null,null,null,null,null,null,"","",""]
[null,null,null,null,null,null,null,"","",""]
[null,null,null,null,null,null,null,"","",""]
[null,null,null,null,null,null,null,"","",""]
[null,null,null,null,null,null,null,"","",""]
[null,null,null,null,null,null,null,"","",""]
[null,null,null,null,null,null,null,"","",""]
[null,null,null,null,null,null,null,"","",""]
[null,null,null,null,null,null,null,"","",""]
[null,null,null,null,null,null,null,{"$f":"IF(ISBLANK(A3007),\"\",VLOOKUP(A3007,BLDG_SITE_LU,2,FALSE))","v":""},"",""]
[null,null,null,null,null,null,null,"","",""]
[null,null,null,null,null,null,null,"","",""]
[null,null,null,null,null,null,null,"","",""]
[null,null,null,null,null,null,null,"","",""]
[null,null,null,null,null,null,null,"","",""]
[null,null,null,null,null,null,null,"","",""]
[null,null,null,null,null,null,null,"","",""]
[null,null,null,null,null,null,null,"","",""]
[null,null,null,null,null,null,null,"","",""]
[null,null,null,null,null,null,null,"",{"$f":"IF(ISBLANK(B3017),\"\",VLOOKUP(B3017,POSITION_LU,2,FALSE))","v":""},{"$f":"IF(ISBLANK(D3017),\"\",VLOOKUP(D3017,UNIT_LU,2,FALSE))","v":""}]
[null,null,null,null,null,null,null,"","",""]
[null,null,null,null,null,null,null,"","",""]
[null,null,null,null,null,null,null,"","",""]
[null,null,null,null,null,null,null,"","",""]
[null,null,null,null,null,null,null,"","",""]
[null,null,null,null,null,null,null,"","",""]
[null,null,null,null,null,null,null,"","",""]
[null,null,null,null,null,null,null,"","",""]
[null,null,null,null,null,null,null,"","",""]
[null,null,null,null,null,null,null,"","",""]
[null,null,null,null,null,null,null,"","",""]
[null,null,null,null,null,null,null,"","",""]
[null,null,null,null,null,null,null,"","",""]
[null,null,null,null,null,null,null,"","",""]
[null,null,null,null,null,null,null,"","",""]
[null,null,null,null,null,null,null,"","",""]
[null,null,null,null,null,null,null,"","",""]
[null,null,null,null,null,null,null,"","",""]
[null,null,null,null,null,null,null,"","",""]
[null,null,null,null,null,null,null,"","",""]
[null,null,null,null,null,null,null,"","",""]
[null,null,null,null,null,null,null,"","",""]
[null,null,null,null,null,null,null,"","",""]
[null,null,null,null,null,null,null,"","",""]
[null,null,null,null,null,null,null,"","",""]
[null,null,null,null,null,null,null,"","",""]
[null,null,null,null,null,null,null,"","",""]
[null,null,null,null,null,null,null,"","",""]
[null,null,null,null,null,null,null,"","",""]
[null,null,null,null,null,null,null,"","",""]
[null,null,null,null,null,null,null,"","",""]
[null,null,null,null,null,null,null,"","",""]
[null,null,null,null,null,null,null,"","",""]
[null,null,null,null,null,null,null,"","",""]
[null,null,null,null,null,null,null,"","",""]
[null,null,null,null,null,null,null,"","",""]
[null,null,null,null,null,null,null,"","",""]
[null,null,null,null,null,null,null,"","",""]
[null,null,null,null,null,null,null,"","",""]
[null,null,null,null,null,null,null,"","",""]
[null,null,null,null,null,null,null,"","",""]
[null,null,null,null,null,null,null,"","",""]
[null,null,null,null,null,null,null,"","",""]
[null,null,null,null,null,null,null,"","",""]
[null,null,null,null,null,null,null,"","",""]
[null,null,null,null,null,null,null,"","",""]
[null,null,null,null,null,null,null,"","",""]
[null,null,null,null,null,null,null,"","",""]
[null,null,null,null,null,null,null,"","",""]
[null,null,null,null,null,null,null,"","",""]
[null,null,null,null,null,null,null,"","",""]
[null,null,null,null,null,null,null,"","",""]
[null,null,null,null,null,null,null,"","",""]
[null,null,null,null,null,null,null,{"$f":"IF(ISBLANK(A3071),\"\",VLOOKUP(A3071,BLDG_SITE_LU,2,FALSE))","v":""},"",""]
[null,null,null,null,null,null,null,"","",""]
[null,null,null,null,null,null,null,"","",""]
[null,null,null,null,null,null,null,"","",""]
[null,null,null,null,null,null,null,"","",""]
[null,null,null,null,null,null,null,"","",""]
[null,null,null,null,null,null,null,"","",""]
[null,null,null,null,null,null,null,"","",""]
[null,null,null,null,null,null,null,"","",""]
[null,null,null,null,null,null,null,"","",""]
[null,null,null,null,null,null,null,"",{"$f":"IF(ISBLANK(B3081),\"\",VLOOKUP(B3081,POSITION_LU,2,FALSE))","v":""},{"$f":"IF(ISBLANK(D3081),\"\",VLOOKUP(D3081,UNIT_LU,2,FALSE))","v":""}]
[null,null,null,null,null,null,null,"","",""]
[null,null,null,null,null,null,null,"","",""]
[null,null,null,null,null,null,null,"","",""]
[null,null,null,null,null,null,null,"","",""]
[null,null,null,null,null,null,null,"","",""]
[null,null,null,null,null,null,null,"","",""]
[null,null,null,null,null,null,null,"","",""]
[null,null,null,null,null,null,null,"","",""]
[null,null,null,null,null,null,null,"","",""]
[null,null,null,null,null,null,null,"","",""]
[null,null,null,null,null,null,null,"","",""]
[null,null,null,null,null,null,null,"","",""]
[null,null,null,null,null,null,null,"","",""]
[null,null,null,null,null,null,null,"","",""]
[null,null,null,null,null,null,null,"","",""]
[null,null,null,null,null,null,null,"","",""]
[null,null,null,null,null,null,null,"","",""]
[null,null,null,null,null,null,null,"","",""]
[null,null,null,null,null,null,null,"","",""]
[null,null,null,null,null,null,null,"","",""]
[null,null,null,null,null,null,null,"","",""]
[null,null,null,null,null,null,null,"","",""]
[null,null,null,null,null,null,null,"","",""]
[null,null,null,null,null,null,null,"","",""]
[null,null,null,null,null,null,null,"","",""]
[null,null,null,null,null,null,null,"","",""]
[null,null,null,null,null,null,null,"","",""]
[null,null,null,null,null,null,null,"","",""]
[null,null,null,null,null,null,null,"","",""]
[null,null,null,null,null,null,null,"","",""]
[null,null,null,null,null,null,null,"","",""]
[null,null,null,null,null,null,null,"","",""]
[null,null,null,null,null,null,null,"","",""]
[null,null,null,null,null,null,null,"","",""]
[null,null,null,null,null,null,null,"","",""]
[null,null,null,null,null,null,null,"","",""]
[null,null,null,null,null,null,null,"","",""]
[null,null,null,null,null,null,null,"","",""]
[null,null,null,null,null,null,null,"","",""]
[null,null,null,null,null,null,null,"","",""]
[null,null,null,null,null,null,null,"","",""]
[null,null,null,null,null,null,null,"","",""]
[null,null,null,null,null,null,null,"","",""]
[null,null,null,null,null,null,null,"","",""]
[null,null,null,null,null,null,null,"","",""]
[null,null,null,null,null,null,null,"","",""]
[null,null,null,null,null,null,null,"","",""]
[null,null,null,null,null,null,null,"","",""]
[null,null,null,null,null,null,null,"","",""]
[null,null,null,null,null,null,null,"","",""]
[null,null,null,null,null,null,null,"","",""]
[null,null,null,null,null,null,null,"","",""]
[null,null,null,null,null,null,null,"","",""]
[null,null,null,null,null,null,null,"","",""]
[null,null,null,null,null,null,null,"","",""]

{"sheet":"FLEET","index":4,"n_rows":3004,"n_cols":10,"rows_kept":3004,"cut":false,"hidden":false,"merged":[]}
["SITE_NAME","POSITION","QUANTITY","UNIT_NAME","DATE","TRANSACTION_REF","SITE_ID","POSITION_ID","UNIT_ID","TERM"]
[null,null,null,null,null,null,{"$f":"IF(ISBLANK(A2),\"\",VLOOKUP(A2,FLEET_SITE_LU,2,FALSE))","v":""},{"$f":"IF(ISBLANK(B2),\"\",VLOOKUP(B2,POSITION_ID_FLEET,2,FALSE))","v":""},{"$f":"IF(ISBLANK(D2),\"\",VLOOKUP(D2,UNIT_LU,2,FALSE))","v":""},{"$f":"IF(ISBLANK(E2),\"\",VALUE(TEXT(E2,\"YYYYMM\")))","v":""}]
[null,null,null,null,null,null,"","","",""]
[null,null,null,null,null,null,"","","",""]
[null,null,null,null,null,null,"","","",""]
[null,null,null,null,null,null,"","","",""]
[null,null,null,null,null,null,"","","",""]
[null,null,null,null,null,null,"","","",""]
[null,null,null,null,null,null,"","","",""]
[null,null,null,null,null,null,"","","",""]
[null,null,null,null,null,null,"","","",""]
[null,null,null,null,null,null,"","","",""]
[null,null,null,null,null,null,"","","",""]
[null,null,null,null,null,null,"","","",""]
[null,null,null,null,null,null,"","","",""]
[null,null,null,null,null,null,"","","",""]
[null,null,null,null,null,null,"","","",""]
[null,null,null,null,null,null,"","","",""]
[null,null,null,null,null,null,"","","",""]
[null,null,null,null,null,null,"","","",""]
[null,null,null,null,null,null,"","","",""]
[null,null,null,null,null,null,"","","",""]
[null,null,null,null,null,null,"","","",""]
[null,null,null,null,null,null,"","","",""]
[null,null,null,null,null,null,"","","",""]
[null,null,null,null,null,null,"","","",""]
[null,null,null,null,null,null,"","","",""]
[null,null,null,null,null,null,"","","",""]
[null,null,null,null,null,null,"","","",""]
[null,null,null,null,null,null,"","","",""]
[null,null,null,null,null,null,"","","",""]
[null,null,null,null,null,null,"","","",""]
[null,null,null,null,null,null,"","","",""]
[null,null,null,null,null,null,"","","",""]
[null,null,null,null,null,null,"","","",""]
[null,null,null,null,null,null,"","","",""]
[null,null,null,null,null,null,"","","",""]
[null,null,null,null,null,null,"","","",""]
[null,null,null,null,null,null,"","","",""]
[null,null,null,null,null,null,"","","",""]
[null,null,null,null,null,null,"","","",""]
[null,null,null,null,null,null,"","","",""]
[null,null,null,null,null,null,"","","",""]
[null,null,null,null,null,null,"","","",""]
[null,null,null,null,null,null,"","","",""]
[null,null,null,null,null,null,"","","",""]
[null,null,null,null,null,null,"","","",""]
[null,null,null,null,null,null,"","","",""]
[null,null,null,null,null,null,"","","",""]
[null,null,null,null,null,null,"","","",""]
[null,null,null,null,null,null,"","","",""]
[null,null,null,null,null,null,"","","",""]
[null,null,null,null,null,null,"","","",""]
[null,null,null,null,null,null,"","","",""]
[null,null,null,null,null,null,"","","",""]
[null,null,null,null,null,null,"","","",""]
[null,null,null,null,null,null,"","","",""]
[null,null,null,null,null,null,"","","",""]
[null,null,null,null,null,null,"","","",""]
[null,null,null,null,null,null,"","","",""]
[null,null,null,null,null,null,"","","",""]
[null,null,null,null,null,null,"","","",""]
[null,null,null,null,null,null,"","","",""]
[null,null,null,null,null,null,"","","",""]
[null,null,null,null,null,null,"","","",""]
[null,null,null,null,null,null,{"$f":"IF(ISBLANK(A66),\"\",VLOOKUP(A66,FLEET_SITE_LU,2,FALSE))","v":""},{"$f":"IF(ISBLANK(B66),\"\",VLOOKUP(B66,POSITION_ID_FLEET,2,FALSE))","v":""},{"$f":"IF(ISBLANK(D66),\"\",VLOOKUP(D66,UNIT_LU,2,FALSE))","v":""},{"$f":"IF(ISBLANK(E66),\"\",VALUE(TEXT(E66,\"YYYYMM\")))","v":""}]
[null,null,null,null,null,null,"","","",""]
[null,null,null,null,null,null,"","","",""]
[null,null,null,null,null,null,"","","",""]
[null,null,null,null,null,null,"","","",""]
[null,null,null,null,null,null,"","","",""]
[null,null,null,null,null,null,"","","",""]
[null,null,null,null,null,null,"","","",""]
[null,null,null,null,null,null,"","","",""]
[null,null,null,null,null,null,"","","",""]
[null,null,null,null,null,null,"","","",""]
[null,null,null,null,null,null,"","","",""]
[null,null,null,null,null,null,"","","",""]
[null,null,null,null,null,null,"","","",""]
[null,null,null,null,null,null,"","","",""]
[null,null,null,null,null,null,"","","",""]
[null,null,null,null,null,null,"","","",""]
[null,null,null,null,null,null,"","","",""]
[null,null,null,null,null,null,"","","",""]
[null,null,null,null,null,null,"","","",""]
[null,null,null,null,null,null,"","","",""]
[null,null,null,null,null,null,"","","",""]
[null,null,null,null,null,null,"","","",""]
[null,null,null,null,null,null,"","","",""]
[null,null,null,null,null,null,"","","",""]
[null,null,null,null,null,null,"","","",""]
[null,null,null,null,null,null,"","","",""]
[null,null,null,null,null,null,"","","",""]
[null,null,null,null,null,null,"","","",""]
[null,null,null,null,null,null,"","","",""]
[null,null,null,null,null,null,"","","",""]
[null,null,null,null,null,null,"","","",""]
[null,null,null,null,null,null,"","","",""]
[null,null,null,null,null,null,"","","",""]
[null,null,null,null,null,null,"","","",""]
[null,null,null,null,null,null,"","","",""]
[null,null,null,null,null,null,"","","",""]
[null,null,null,null,null,null,"","","",""]
[null,null,null,null,null,null,"","","",""]
[null,null,null,null,null,null,"","","",""]
[null,null,null,null,null,null,"","","",""]
[null,null,null,null,null,null,"","","",""]
[null,null,null,null,null,null,"","","",""]
[null,null,null,null,null,null,"","","",""]
[null,null,null,null,null,null,"","","",""]
[null,null,null,null,null,null,"","","",""]
[null,null,null,null,null,null,"","","",""]
[null,null,null,null,null,null,"","","",""]
[null,null,null,null,null,null,"","","",""]
[null,null,null,null,null,null,"","","",""]
[null,null,null,null,null,null,"","","",""]
[null,null,null,null,null,null,"","","",""]
[null,null,null,null,null,null,"","","",""]
[null,null,null,null,null,null,"","","",""]
[null,null,null,null,null,null,"","","",""]
[null,null,null,null,null,null,"","","",""]
[null,null,null,null,null,null,"","","",""]
[null,null,null,null,null,null,"","","",""]
[null,null,null,null,null,null,"","","",""]
[null,null,null,null,null,null,"","","",""]
[null,null,null,null,null,null,"","","",""]
[null,null,null,null,null,null,"","","",""]
[null,null,null,null,null,null,"","","",""]
[null,null,null,null,null,null,"","","",""]
[null,null,null,null,null,null,{"$f":"IF(ISBLANK(A130),\"\",VLOOKUP(A130,FLEET_SITE_LU,2,FALSE))","v":""},{"$f":"IF(ISBLANK(B130),\"\",VLOOKUP(B130,POSITION_ID_FLEET,2,FALSE))","v":""},{"$f":"IF(ISBLANK(D130),\"\",VLOOKUP(D130,UNIT_LU,2,FALSE))","v":""},{"$f":"IF(ISBLANK(E130),\"\",VALUE(TEXT(E130,\"YYYYMM\")))","v":""}]
[null,null,null,null,null,null,"","","",""]
[null,null,null,null,null,null,"","","",""]
[null,null,null,null,null,null,"","","",""]
[null,null,null,null,null,null,"","","",""]
[null,null,null,null,null,null,"","","",""]
[null,null,null,null,null,null,"","","",""]
[null,null,null,null,null,null,"","","",""]
[null,null,null,null,null,null,"","","",""]
[null,null,null,null,null,null,"","","",""]
[null,null,null,null,null,null,"","","",""]
[null,null,null,null,null,null,"","","",""]
[null,null,null,null,null,null,"","","",""]
[null,null,null,null,null,null,"","","",""]
[null,null,null,null,null,null,"","","",""]
[null,null,null,null,null,null,"","","",""]
[null,null,null,null,null,null,"","","",""]
[null,null,null,null,null,null,"","","",""]
[null,null,null,null,null,null,"","","",""]
[null,null,null,null,null,null,"","","",""]
[null,null,null,null,null,null,"","","",""]
[null,null,null,null,null,null,"","","",""]
[null,null,null,null,null,null,"","","",""]
[null,null,null,null,null,null,"","","",""]
[null,null,null,null,null,null,"","","",""]
[null,null,null,null,null,null,"","","",""]
[null,null,null,null,null,null,"","","",""]
[null,null,null,null,null,null,"","","",""]
[null,null,null,null,null,null,"","","",""]
[null,null,null,null,null,null,"","","",""]
[null,null,null,null,null,null,"","","",""]
[null,null,null,null,null,null,"","","",""]
[null,null,null,null,null,null,"","","",""]
[null,null,null,null,null,null,"","","",""]
[null,null,null,null,null,null,"","","",""]
[null,null,null,null,null,null,"","","",""]
[null,null,null,null,null,null,"","","",""]
[null,null,null,null,null,null,"","","",""]
[null,null,null,null,null,null,"","","",""]
[null,null,null,null,null,null,"","","",""]
[null,null,null,null,null,null,"","","",""]
[null,null,null,null,null,null,"","","",""]
[null,null,null,null,null,null,"","","",""]
[null,null,null,null,null,null,"","","",""]
[null,null,null,null,null,null,"","","",""]
[null,null,null,null,null,null,"","","",""]
[null,null,null,null,null,null,"","","",""]
[null,null,null,null,null,null,"","","",""]
[null,null,null,null,null,null,"","","",""]
[null,null,null,null,null,null,"","","",""]
[null,null,null,null,null,null,"","","",""]
[null,null,null,null,null,null,"","","",""]
[null,null,null,null,null,null,"","","",""]
[null,null,null,null,null,null,"","","",""]
[null,null,null,null,null,null,"","","",""]
[null,null,null,null,null,null,"","","",""]
[null,null,null,null,null,null,"","","",""]
[null,null,null,null,null,null,"","","",""]
[null,null,null,null,null,null,"","","",""]
[null,null,null,null,null,null,"","","",""]
[null,null,null,null,null,null,"","","",""]
[null,null,null,null,null,null,"","","",""]
[null,null,null,null,null,null,"","","",""]
[null,null,null,null,null,null,"","","",""]
[null,null,null,null,null,null,{"$f":"IF(ISBLANK(A194),\"\",VLOOKUP(A194,FLEET_SITE_LU,2,FALSE))","v":""},{"$f":"IF(ISBLANK(B194),\"\",VLOOKUP(B194,POSITION_ID_FLEET,2,FALSE))","v":""},{"$f":"IF(ISBLANK(D194),\"\",VLOOKUP(D194,UNIT_LU,2,FALSE))","v":""},{"$f":"IF(ISBLANK(E194),\"\",VALUE(TEXT(E194,\"YYYYMM\")))","v":""}]
[null,null,null,null,null,null,"","","",""]
[null,null,null,null,null,null,"","","",""]
[null,null,null,null,null,null,"","","",""]
[null,null,null,null,null,null,"","","",""]
[null,null,null,null,null,null,"","","",""]
[null,null,null,null,null,null,"","","",""]
[null,null,null,null,null,null,"","","",""]
[null,null,null,null,null,null,"","","",""]
[null,null,null,null,null,null,"","","",""]
[null,null,null,null,null,null,"","","",""]
[null,null,null,null,null,null,"","","",""]
[null,null,null,null,null,null,"","","",""]
[null,null,null,null,null,null,"","","",""]
[null,null,null,null,null,null,"","","",""]
[null,null,null,null,null,null,"","","",""]
[null,null,null,null,null,null,"","","",""]
[null,null,null,null,null,null,"","","",""]
[null,null,null,null,null,null,"","","",""]
[null,null,null,null,null,null,"","","",""]
[null,null,null,null,null,null,"","","",""]
[null,null,null,null,null,null,"","","",""]
[null,null,null,null,null,null,"","","",""]
[null,null,null,null,null,null,"","","",""]
[null,null,null,null,null,null,"","","",""]
[null,null,null,null,null,null,"","","",""]
[null,null,null,null,null,null,"","","",""]
[null,null,null,null,null,null,"","","",""]
[null,null,null,null,null,null,"","","",""]
[null,null,null,null,null,null,"","","",""]
[null,null,null,null,null,null,"","","",""]
[null,null,null,null,null,null,"","","",""]
[null,null,null,null,null,null,"","","",""]
[null,null,null,null,null,null,"","","",""]
[null,null,null,null,null,null,"","","",""]
[null,null,null,null,null,null,"","","",""]
[null,null,null,null,null,null,"","","",""]
[null,null,null,null,null,null,"","","",""]
[null,null,null,null,null,null,"","","",""]
[null,null,null,null,null,null,"","","",""]
[null,null,null,null,null,null,"","","",""]
[null,null,null,null,null,null,"","","",""]
[null,null,null,null,null,null,"","","",""]
[null,null,null,null,null,null,"","","",""]
[null,null,null,null,null,null,"","","",""]
[null,null,null,null,null,null,"","","",""]
[null,null,null,null,null,null,"","","",""]
[null,null,null,null,null,null,"","","",""]
[null,null,null,null,null,null,"","","",""]
[null,null,null,null,null,null,"","","",""]
[null,null,null,null,null,null,"","","",""]
[null,null,null,null,null,null,"","","",""]
[null,null,null,null,null,null,"","","",""]
[null,null,null,null,null,null,"","","",""]
[null,null,null,null,null,null,"","","",""]
[null,null,null,null,null,null,"","","",""]
[null,null,null,null,null,null,"","","",""]
[null,null,null,null,null,null,"","","",""]
[null,null,null,null,null,null,"","","",""]
[null,null,null,null,null,null,"","","",""]
[null,null,null,null,null,null,"","","",""]
[null,null,null,null,null,null,"","","",""]
[null,null,null,null,null,null,"","","",""]
[null,null,null,null,null,null,"","","",""]
[null,null,null,null,null,null,{"$f":"IF(ISBLANK(A258),\"\",VLOOKUP(A258,FLEET_SITE_LU,2,FALSE))","v":""},{"$f":"IF(ISBLANK(B258),\"\",VLOOKUP(B258,POSITION_ID_FLEET,2,FALSE))","v":""},{"$f":"IF(ISBLANK(D258),\"\",VLOOKUP(D258,UNIT_LU,2,FALSE))","v":""},{"$f":"IF(ISBLANK(E258),\"\",VALUE(TEXT(E258,\"YYYYMM\")))","v":""}]
[null,null,null,null,null,null,"","","",""]
[null,null,null,null,null,null,"","","",""]
[null,null,null,null,null,null,"","","",""]
[null,null,null,null,null,null,"","","",""]
[null,null,null,null,null,null,"","","",""]
[null,null,null,null,null,null,"","","",""]
[null,null,null,null,null,null,"","","",""]
[null,null,null,null,null,null,"","","",""]
[null,null,null,null,null,null,"","","",""]
[null,null,null,null,null,null,"","","",""]
[null,null,null,null,null,null,"","","",""]
[null,null,null,null,null,null,"","","",""]
[null,null,null,null,null,null,"","","",""]
[null,null,null,null,null,null,"","","",""]
[null,null,null,null,null,null,"","","",""]
[null,null,null,null,null,null,"","","",""]
[null,null,null,null,null,null,"","","",""]
[null,null,null,null,null,null,"","","",""]
[null,null,null,null,null,null,"","","",""]
[null,null,null,null,null,null,"","","",""]
[null,null,null,null,null,null,"","","",""]
[null,null,null,null,null,null,"","","",""]
[null,null,null,null,null,null,"","","",""]
[null,null,null,null,null,null,"","","",""]
[null,null,null,null,null,null,"","","",""]
[null,null,null,null,null,null,"","","",""]
[null,null,null,null,null,null,"","","",""]
[null,null,null,null,null,null,"","","",""]
[null,null,null,null,null,null,"","","",""]
[null,null,null,null,null,null,"","","",""]
[null,null,null,null,null,null,"","","",""]
[null,null,null,null,null,null,"","","",""]
[null,null,null,null,null,null,"","","",""]
[null,null,null,null,null,null,"","","",""]
[null,null,null,null,null,null,"","","",""]
[null,null,null,null,null,null,"","","",""]
[null,null,null,null,null,null,"","","",""]
[null,null,null,null,null,null,"","","",""]
[null,null,null,null,null,null,"","","",""]
[null,null,null,null,null,null,"","","",""]
[null,null,null,null,null,null,"","","",""]
[null,null,null,null,null,null,"","","",""]
[null,null,null,null,null,null,"","","",""]
[null,null,null,null,null,null,"","","",""]
[null,null,null,null,null,null,"","","",""]
[null,null,null,null,null,null,"","","",""]
[null,null,null,null,null,null,"","","",""]
[null,null,null,null,null,null,"","","",""]
[null,null,null,null,null,null,"","","",""]
[null,null,null,null,null,null,"","","",""]
[null,null,null,null,null,null,"","","",""]
[null,null,null,null,null,null,"","","",""]
[null,null,null,null,null,null,"","","",""]
[null,null,null,null,null,null,"","","",""]
[null,null,null,null,null,null,"","","",""]
[null,null,null,null,null,null,"","","",""]
[null,null,null,null,null,null,"","","",""]
[null,null,null,null,null,null,"","","",""]
[null,null,null,null,null,null,"","","",""]
[null,null,null,null,null,null,"","","",""]
[null,null,null,null,null,null,"","","",""]
[null,null,null,null,null,null,"","","",""]
[null,null,null,null,null,null,"","","",""]
[null,null,null,null,null,null,{"$f":"IF(ISBLANK(A322),\"\",VLOOKUP(A322,FLEET_SITE_LU,2,FALSE))","v":""},{"$f":"IF(ISBLANK(B322),\"\",VLOOKUP(B322,POSITION_ID_FLEET,2,FALSE))","v":""},{"$f":"IF(ISBLANK(D322),\"\",VLOOKUP(D322,UNIT_LU,2,FALSE))","v":""},{"$f":"IF(ISBLANK(E322),\"\",VALUE(TEXT(E322,\"YYYYMM\")))","v":""}]
[null,null,null,null,null,null,"","","",""]
[null,null,null,null,null,null,"","","",""]
[null,null,null,null,null,null,"","","",""]
[null,null,null,null,null,null,"","","",""]
[null,null,null,null,null,null,"","","",""]
[null,null,null,null,null,null,"","","",""]
[null,null,null,null,null,null,"","","",""]
[null,null,null,null,null,null,"","","",""]
[null,null,null,null,null,null,"","","",""]
[null,null,null,null,null,null,"","","",""]
[null,null,null,null,null,null,"","","",""]
[null,null,null,null,null,null,"","","",""]
[null,null,null,null,null,null,"","","",""]
[null,null,null,null,null,null,"","","",""]
[null,null,null,null,null,null,"","","",""]
[null,null,null,null,null,null,"","","",""]
[null,null,null,null,null,null,"","","",""]
[null,null,null,null,null,null,"","","",""]
[null,null,null,null,null,null,"","","",""]
[null,null,null,null,null,null,"","","",""]
[null,null,null,null,null,null,"","","",""]
[null,null,null,null,null,null,"","","",""]
[null,null,null,null,null,null,"","","",""]
[null,null,null,null,null,null,"","","",""]
[null,null,null,null,null,null,"","","",""]
[null,null,null,null,null,null,"","","",""]
[null,null,null,null,null,null,"","","",""]
[null,null,null,null,null,null,"","","",""]
[null,null,null,null,null,null,"","","",""]
[null,null,null,null,null,null,"","","",""]
[null,null,null,null,null,null,"","","",""]
[null,null,null,null,null,null,"","","",""]
[null,null,null,null,null,null,"","","",""]
[null,null,null,null,null,null,"","","",""]
[null,null,null,null,null,null,"","","",""]
[null,null,null,null,null,null,"","","",""]
[null,null,null,null,null,null,"","","",""]
[null,null,null,null,null,null,"","","",""]
[null,null,null,null,null,null,"","","",""]
[null,null,null,null,null,null,"","","",""]
[null,null,null,null,null,null,"","","",""]
[null,null,null,null,null,null,"","","",""]
[null,null,null,null,null,null,"","","",""]
[null,null,null,null,null,null,"","","",""]
[null,null,null,null,null,null,"","","",""]
[null,null,null,null,null,null,"","","",""]
[null,null,null,null,null,null,"","","",""]
[null,null,null,null,null,null,"","","",""]
[null,null,null,null,null,null,"","","",""]
[null,null,null,null,null,null,"","","",""]
[null,null,null,null,null,null,"","","",""]
[null,null,null,null,null,null,"","","",""]
[null,null,null,null,null,null,"","","",""]
[null,null,null,null,null,null,"","","",""]
[null,null,null,null,null,null,"","","",""]
[null,null,null,null,null,null,"","","",""]
[null,null,null,null,null,null,"","","",""]
[null,null,null,null,null,null,"","","",""]
[null,null,null,null,null,null,"","","",""]
[null,null,null,null,null,null,"","","",""]
[null,null,null,null,null,null,"","","",""]
[null,null,null,null,null,null,"","","",""]
[null,null,null,null,null,null,"","","",""]
[null,null,null,null,null,null,{"$f":"IF(ISBLANK(A386),\"\",VLOOKUP(A386,FLEET_SITE_LU,2,FALSE))","v":""},{"$f":"IF(ISBLANK(B386),\"\",VLOOKUP(B386,POSITION_ID_FLEET,2,FALSE))","v":""},{"$f":"IF(ISBLANK(D386),\"\",VLOOKUP(D386,UNIT_LU,2,FALSE))","v":""},{"$f":"IF(ISBLANK(E386),\"\",VALUE(TEXT(E386,\"YYYYMM\")))","v":""}]
[null,null,null,null,null,null,"","","",""]
[null,null,null,null,null,null,"","","",""]
[null,null,null,null,null,null,"","","",""]
[null,null,null,null,null,null,"","","",""]
[null,null,null,null,null,null,"","","",""]
[null,null,null,null,null,null,"","","",""]
[null,null,null,null,null,null,"","","",""]
[null,null,null,null,null,null,"","","",""]
[null,null,null,null,null,null,"","","",""]
[null,null,null,null,null,null,"","","",""]
[null,null,null,null,null,null,"","","",""]
[null,null,null,null,null,null,"","","",""]
[null,null,null,null,null,null,"","","",""]
[null,null,null,null,null,null,"","","",""]
[null,null,null,null,null,null,"","","",""]
[null,null,null,null,null,null,"","","",""]
[null,null,null,null,null,null,"","","",""]
[null,null,null,null,null,null,"","","",""]
[null,null,null,null,null,null,"","","",""]
[null,null,null,null,null,null,"","","",""]
[null,null,null,null,null,null,"","","",""]
[null,null,null,null,null,null,"","","",""]
[null,null,null,null,null,null,"","","",""]
[null,null,null,null,null,null,"","","",""]
[null,null,null,null,null,null,"","","",""]
[null,null,null,null,null,null,"","","",""]
[null,null,null,null,null,null,"","","",""]
[null,null,null,null,null,null,"","","",""]
[null,null,null,null,null,null,"","","",""]
[null,null,null,null,null,null,"","","",""]
[null,null,null,null,null,null,"","","",""]
[null,null,null,null,null,null,"","","",""]
[null,null,null,null,null,null,"","","",""]
[null,null,null,null,null,null,"","","",""]
[null,null,null,null,null,null,"","","",""]
[null,null,null,null,null,null,"","","",""]
[null,null,null,null,null,null,"","","",""]
[null,null,null,null,null,null,"","","",""]
[null,null,null,null,null,null,"","","",""]
[null,null,null,null,null,null,"","","",""]
[null,null,null,null,null,null,"","","",""]
[null,null,null,null,null,null,"","","",""]
[null,null,null,null,null,null,"","","",""]
[null,null,null,null,null,null,"","","",""]
[null,null,null,null,null,null,"","","",""]
[null,null,null,null,null,null,"","","",""]
[null,null,null,null,null,null,"","","",""]
[null,null,null,null,null,null,"","","",""]
[null,null,null,null,null,null,"","","",""]
[null,null,null,null,null,null,"","","",""]
[null,null,null,null,null,null,"","","",""]
[null,null,null,null,null,null,"","","",""]
[null,null,null,null,null,null,"","","",""]
[null,null,null,null,null,null,"","","",""]
[null,null,null,null,null,null,"","","",""]
[null,null,null,null,null,null,"","","",""]
[null,null,null,null,null,null,"","","",""]
[null,null,null,null,null,null,"","","",""]
[null,null,null,null,null,null,"","","",""]
[null,null,null,null,null,null,"","","",""]
[null,null,null,null,null,null,"","","",""]
[null,null,null,null,null,null,"","","",""]
[null,null,null,null,null,null,"","","",""]
[null,null,null,null,null,null,{"$f":"IF(ISBLANK(A450),\"\",VLOOKUP(A450,FLEET_SITE_LU,2,FALSE))","v":""},{"$f":"IF(ISBLANK(B450),\"\",VLOOKUP(B450,POSITION_ID_FLEET,2,FALSE))","v":""},{"$f":"IF(ISBLANK(D450),\"\",VLOOKUP(D450,UNIT_LU,2,FALSE))","v":""},{"$f":"IF(ISBLANK(E450),\"\",VALUE(TEXT(E450,\"YYYYMM\")))","v":""}]
[null,null,null,null,null,null,"","","",""]
[null,null,null,null,null,null,"","","",""]
[null,null,null,null,null,null,"","","",""]
[null,null,null,null,null,null,"","","",""]
[null,null,null,null,null,null,"","","",""]
[null,null,null,null,null,null,"","","",""]
[null,null,null,null,null,null,"","","",""]
[null,null,null,null,null,null,"","","",""]
[null,null,null,null,null,null,"","","",""]
[null,null,null,null,null,null,"","","",""]
[null,null,null,null,null,null,"","","",""]
[null,null,null,null,null,null,"","","",""]
[null,null,null,null,null,null,"","","",""]
[null,null,null,null,null,null,"","","",""]
[null,null,null,null,null,null,"","","",""]
[null,null,null,null,null,null,"","","",""]
[null,null,null,null,null,null,"","","",""]
[null,null,null,null,null,null,"","","",""]
[null,null,null,null,null,null,"","","",""]
[null,null,null,null,null,null,"","","",""]
[null,null,null,null,null,null,"","","",""]
[null,null,null,null,null,null,"","","",""]
[null,null,null,null,null,null,"","","",""]
[null,null,null,null,null,null,"","","",""]
[null,null,null,null,null,null,"","","",""]
[null,null,null,null,null,null,"","","",""]
[null,null,null,null,null,null,"","","",""]
[null,null,null,null,null,null,"","","",""]
[null,null,null,null,null,null,"","","",""]
[null,null,null,null,null,null,"","","",""]
[null,null,null,null,null,null,"","","",""]
[null,null,null,null,null,null,"","","",""]
[null,null,null,null,null,null,"","","",""]
[null,null,null,null,null,null,"","","",""]
[null,null,null,null,null,null,"","","",""]
[null,null,null,null,null,null,"","","",""]
[null,null,null,null,null,null,"","","",""]
[null,null,null,null,null,null,"","","",""]
[null,null,null,null,null,null,"","","",""]
[null,null,null,null,null,null,"","","",""]
[null,null,null,null,null,null,"","","",""]
[null,null,null,null,null,null,"","","",""]
[null,null,null,null,null,null,"","","",""]
[null,null,null,null,null,null,"","","",""]
[null,null,null,null,null,null,"","","",""]
[null,null,null,null,null,null,"","","",""]
[null,null,null,null,null,null,"","","",""]
[null,null,null,null,null,null,"","","",""]
[null,null,null,null,null,null,"","","",""]
[null,null,null,null,null,null,"","","",""]
[null,null,null,null,null,null,"","","",""]
[null,null,null,null,null,null,"","","",""]
[null,null,null,null,null,null,"","","",""]
[null,null,null,null,null,null,"","","",""]
[null,null,null,null,null,null,"","","",""]
[null,null,null,null,null,null,"","","",""]
[null,null,null,null,null,null,"","","",""]
[null,null,null,null,null,null,"","","",""]
[null,null,null,null,null,null,"","","",""]
[null,null,null,null,null,null,"","","",""]
[null,null,null,null,null,null,"","","",""]
[null,null,null,null,null,null,"","","",""]
[null,null,null,null,null,null,"","","",""]
[null,null,null,null,null,null,{"$f":"IF(ISBLANK(A514),\"\",VLOOKUP(A514,FLEET_SITE_LU,2,FALSE))","v":""},{"$f":"IF(ISBLANK(B514),\"\",VLOOKUP(B514,POSITION_ID_FLEET,2,FALSE))","v":""},{"$f":"IF(ISBLANK(D514),\"\",VLOOKUP(D514,UNIT_LU,2,FALSE))","v":""},{"$f":"IF(ISBLANK(E514),\"\",VALUE(TEXT(E514,\"YYYYMM\")))","v":""}]
[null,null,null,null,null,null,"","","",""]
[null,null,null,null,null,null,"","","",""]
[null,null,null,null,null,null,"","","",""]
[null,null,null,null,null,null,"","","",""]
[null,null,null,null,null,null,"","","",""]
[null,null,null,null,null,null,"","","",""]
[null,null,null,null,null,null,"","","",""]
[null,null,null,null,null,null,"","","",""]
[null,null,null,null,null,null,"","","",""]
[null,null,null,null,null,null,"","","",""]
[null,null,null,null,null,null,"","","",""]
[null,null,null,null,null,null,"","","",""]
[null,null,null,null,null,null,"","","",""]
[null,null,null,null,null,null,"","","",""]
[null,null,null,null,null,null,"","","",""]
[null,null,null,null,null,null,"","","",""]
[null,null,null,null,null,null,"","","",""]
[null,null,null,null,null,null,"","","",""]
[null,null,null,null,null,null,"","","",""]
[null,null,null,null,null,null,"","","",""]
[null,null,null,null,null,null,"","","",""]
[null,null,null,null,null,null,"","","",""]
[null,null,null,null,null,null,"","","",""]
[null,null,null,null,null,null,"","","",""]
[null,null,null,null,null,null,"","","",""]
[null,null,null,null,null,null,"","","",""]
[null,null,null,null,null,null,"","","",""]
[null,null,null,null,null,null,"","","",""]
[null,null,null,null,null,null,"","","",""]
[null,null,null,null,null,null,"","","",""]
[null,null,null,null,null,null,"","","",""]
[null,null,null,null,null,null,"","","",""]
[null,null,null,null,null,null,"","","",""]
[null,null,null,null,null,null,"","","",""]
[null,null,null,null,null,null,"","","",""]
[null,null,null,null,null,null,"","","",""]
[null,null,null,null,null,null,"","","",""]
[null,null,null,null,null,null,"","","",""]
[null,null,null,null,null,null,"","","",""]
[null,null,null,null,null,null,"","","",""]
[null,null,null,null,null,null,"","","",""]
[null,null,null,null,null,null,"","","",""]
[null,null,null,null,null,null,"","","",""]
[null,null,null,null,null,null,"","","",""]
[null,null,null,null,null,null,"","","",""]
[null,null,null,null,null,null,"","","",""]
[null,null,null,null,null,null,"","","",""]
[null,null,null,null,null,null,"","","",""]
[null,null,null,null,null,null,"","","",""]
[null,null,null,null,null,null,"","","",""]
[null,null,null,null,null,null,"","","",""]
[null,null,null,null,null,null,"","","",""]
[null,null,null,null,null,null,"","","",""]
[null,null,null,null,null,null,"","","",""]
[null,null,null,null,null,null,"","","",""]
[null,null,null,null,null,null,"","","",""]
[null,null,null,null,null,null,"","","",""]
[null,null,null,null,null,null,"","","",""]
[null,null,null,null,null,null,"","","",""]
[null,null,null,null,null,null,"","","",""]
[null,null,null,null,null,null,"","","",""]
[null,null,null,null,null,null,"","","",""]
[null,null,null,null,null,null,"","","",""]
[null,null,null,null,null,null,{"$f":"IF(ISBLANK(A578),\"\",VLOOKUP(A578,FLEET_SITE_LU,2,FALSE))","v":""},{"$f":"IF(ISBLANK(B578),\"\",VLOOKUP(B578,POSITION_ID_FLEET,2,FALSE))","v":""},{"$f":"IF(ISBLANK(D578),\"\",VLOOKUP(D578,UNIT_LU,2,FALSE))","v":""},{"$f":"IF(ISBLANK(E578),\"\",VALUE(TEXT(E578,\"YYYYMM\")))","v":""}]
[null,null,null,null,null,null,"","","",""]
[null,null,null,null,null,null,"","","",""]
[null,null,null,null,null,null,"","","",""]
[null,null,null,null,null,null,"","","",""]
[null,null,null,null,null,null,"","","",""]
[null,null,null,null,null,null,"","","",""]
[null,null,null,null,null,null,"","","",""]
[null,null,null,null,null,null,"","","",""]
[null,null,null,null,null,null,"","","",""]
[null,null,null,null,null,null,"","","",""]
[null,null,null,null,null,null,"","","",""]
[null,null,null,null,null,null,"","","",""]
[null,null,null,null,null,null,"","","",""]
[null,null,null,null,null,null,"","","",""]
[null,null,null,null,null,null,"","","",""]
[null,null,null,null,null,null,"","","",""]
[null,null,null,null,null,null,"","","",""]
[null,null,null,null,null,null,"","","",""]
[null,null,null,null,null,null,"","","",""]
[null,null,null,null,null,null,"","","",""]
[null,null,null,null,null,null,"","","",""]
[null,null,null,null,null,null,"","","",""]
[null,null,null,null,null,null,"","","",""]
[null,null,null,null,null,null,"","","",""]
[null,null,null,null,null,null,"","","",""]
[null,null,null,null,null,null,"","","",""]
[null,null,null,null,null,null,"","","",""]
[null,null,null,null,null,null,"","","",""]
[null,null,null,null,null,null,"","","",""]
[null,null,null,null,null,null,"","","",""]
[null,null,null,null,null,null,"","","",""]
[null,null,null,null,null,null,"","","",""]
[null,null,null,null,null,null,"","","",""]
[null,null,null,null,null,null,"","","",""]
[null,null,null,null,null,null,"","","",""]
[null,null,null,null,null,null,"","","",""]
[null,null,null,null,null,null,"","","",""]
[null,null,null,null,null,null,"","","",""]
[null,null,null,null,null,null,"","","",""]
[null,null,null,null,null,null,"","","",""]
[null,null,null,null,null,null,"","","",""]
[null,null,null,null,null,null,"","","",""]
[null,null,null,null,null,null,"","","",""]
[null,null,null,null,null,null,"","","",""]
[null,null,null,null,null,null,"","","",""]
[null,null,null,null,null,null,"","","",""]
[null,null,null,null,null,null,"","","",""]
[null,null,null,null,null,null,"","","",""]
[null,null,null,null,null,null,"","","",""]
[null,null,null,null,null,null,"","","",""]
[null,null,null,null,null,null,"","","",""]
[null,null,null,null,null,null,"","","",""]
[null,null,null,null,null,null,"","","",""]
[null,null,null,null,null,null,"","","",""]
[null,null,null,null,null,null,"","","",""]
[null,null,null,null,null,null,"","","",""]
[null,null,null,null,null,null,"","","",""]
[null,null,null,null,null,null,"","","",""]
[null,null,null,null,null,null,"","","",""]
[null,null,null,null,null,null,"","","",""]
[null,null,null,null,null,null,"","","",""]
[null,null,null,null,null,null,"","","",""]
[null,null,null,null,null,null,"","","",""]
[null,null,null,null,null,null,{"$f":"IF(ISBLANK(A642),\"\",VLOOKUP(A642,FLEET_SITE_LU,2,FALSE))","v":""},{"$f":"IF(ISBLANK(B642),\"\",VLOOKUP(B642,POSITION_ID_FLEET,2,FALSE))","v":""},{"$f":"IF(ISBLANK(D642),\"\",VLOOKUP(D642,UNIT_LU,2,FALSE))","v":""},{"$f":"IF(ISBLANK(E642),\"\",VALUE(TEXT(E642,\"YYYYMM\")))","v":""}]
[null,null,null,null,null,null,"","","",""]
[null,null,null,null,null,null,"","","",""]
[null,null,null,null,null,null,"","","",""]
[null,null,null,null,null,null,"","","",""]
[null,null,null,null,null,null,"","","",""]
[null,null,null,null,null,null,"","","",""]
[null,null,null,null,null,null,"","","",""]
[null,null,null,null,null,null,"","","",""]
[null,null,null,null,null,null,"","","",""]
[null,null,null,null,null,null,"","","",""]
[null,null,null,null,null,null,"","","",""]
[null,null,null,null,null,null,"","","",""]
[null,null,null,null,null,null,"","","",""]
[null,null,null,null,null,null,"","","",""]
[null,null,null,null,null,null,"","","",""]
[null,null,null,null,null,null,"","","",""]
[null,null,null,null,null,null,"","","",""]
[null,null,null,null,null,null,"","","",""]
[null,null,null,null,null,null,"","","",""]
[null,null,null,null,null,null,"","","",""]
[null,null,null,null,null,null,"","","",""]
[null,null,null,null,null,null,"","","",""]
[null,null,null,null,null,null,"","","",""]
[null,null,null,null,null,null,"","","",""]
[null,null,null,null,null,null,"","","",""]
[null,null,null,null,null,null,"","","",""]
[null,null,null,null,null,null,"","","",""]
[null,null,null,null,null,null,"","","",""]
[null,null,null,null,null,null,"","","",""]
[null,null,null,null,null,null,"","","",""]
[null,null,null,null,null,null,"","","",""]
[null,null,null,null,null,null,"","","",""]
[null,null,null,null,null,null,"","","",""]
[null,null,null,null,null,null,"","","",""]
[null,null,null,null,null,null,"","","",""]
[null,null,null,null,null,null,"","","",""]
[null,null,null,null,null,null,"","","",""]
[null,null,null,null,null,null,"","","",""]
[null,null,null,null,null,null,"","","",""]
[null,null,null,null,null,null,"","","",""]
[null,null,null,null,null,null,"","","",""]
[null,null,null,null,null,null,"","","",""]
[null,null,null,null,null,null,"","","",""]
[null,null,null,null,null,null,"","","",""]
[null,null,null,null,null,null,"","","",""]
[null,null,null,null,null,null,"","","",""]
[null,null,null,null,null,null,"","","",""]
[null,null,null,null,null,null,"","","",""]
[null,null,null,null,null,null,"","","",""]
[null,null,null,null,null,null,"","","",""]
[null,null,null,null,null,null,"","","",""]
[null,null,null,null,null,null,"","","",""]
[null,null,null,null,null,null,"","","",""]
[null,null,null,null,null,null,"","","",""]
[null,null,null,null,null,null,"","","",""]
[null,null,null,null,null,null,"","","",""]
[null,null,null,null,null,null,"","","",""]
[null,null,null,null,null,null,"","","",""]
[null,null,null,null,null,null,"","","",""]
[null,null,null,null,null,null,"","","",""]
[null,null,null,null,null,null,"","","",""]
[null,null,null,null,null,null,"","","",""]
[null,null,null,null,null,null,"","","",""]
[null,null,null,null,null,null,{"$f":"IF(ISBLANK(A706),\"\",VLOOKUP(A706,FLEET_SITE_LU,2,FALSE))","v":""},{"$f":"IF(ISBLANK(B706),\"\",VLOOKUP(B706,POSITION_ID_FLEET,2,FALSE))","v":""},{"$f":"IF(ISBLANK(D706),\"\",VLOOKUP(D706,UNIT_LU,2,FALSE))","v":""},{"$f":"IF(ISBLANK(E706),\"\",VALUE(TEXT(E706,\"YYYYMM\")))","v":""}]
[null,null,null,null,null,null,"","","",""]
[null,null,null,null,null,null,"","","",""]
[null,null,null,null,null,null,"","","",""]
[null,null,null,null,null,null,"","","",""]
[null,null,null,null,null,null,"","","",""]
[null,null,null,null,null,null,"","","",""]
[null,null,null,null,null,null,"","","",""]
[null,null,null,null,null,null,"","","",""]
[null,null,null,null,null,null,"","","",""]
[null,null,null,null,null,null,"","","",""]
[null,null,null,null,null,null,"","","",""]
[null,null,null,null,null,null,"","","",""]
[null,null,null,null,null,null,"","","",""]
[null,null,null,null,null,null,"","","",""]
[null,null,null,null,null,null,"","","",""]
[null,null,null,null,null,null,"","","",""]
[null,null,null,null,null,null,"","","",""]
[null,null,null,null,null,null,"","","",""]
[null,null,null,null,null,null,"","","",""]
[null,null,null,null,null,null,"","","",""]
[null,null,null,null,null,null,"","","",""]
[null,null,null,null,null,null,"","","",""]
[null,null,null,null,null,null,"","","",""]
[null,null,null,null,null,null,"","","",""]
[null,null,null,null,null,null,"","","",""]
[null,null,null,null,null,null,"","","",""]
[null,null,null,null,null,null,"","","",""]
[null,null,null,null,null,null,"","","",""]
[null,null,null,null,null,null,"","","",""]
[null,null,null,null,null,null,"","","",""]
[null,null,null,null,null,null,"","","",""]
[null,null,null,null,null,null,"","","",""]
[null,null,null,null,null,null,"","","",""]
[null,null,null,null,null,null,"","","",""]
[null,null,null,null,null,null,"","","",""]
[null,null,null,null,null,null,"","","",""]
[null,null,null,null,null,null,"","","",""]
[null,null,null,null,null,null,"","","",""]
[null,null,null,null,null,null,"","","",""]
[null,null,null,null,null,null,"","","",""]
[null,null,null,null,null,null,"","","",""]
[null,null,null,null,null,null,"","","",""]
[null,null,null,null,null,null,"","","",""]
[null,null,null,null,null,null,"","","",""]
[null,null,null,null,null,null,"","","",""]
[null,null,null,null,null,null,"","","",""]
[null,null,null,null,null,null,"","","",""]
[null,null,null,null,null,null,"","","",""]
[null,null,null,null,null,null,"","","",""]
[null,null,null,null,null,null,"","","",""]
[null,null,null,null,null,null,"","","",""]
[null,null,null,null,null,null,"","","",""]
[null,null,null,null,null,null,"","","",""]
[null,null,null,null,null,null,"","","",""]
[null,null,null,null,null,null,"","","",""]
[null,null,null,null,null,null,"","","",""]
[null,null,null,null,null,null,"","","",""]
[null,null,null,null,null,null,"","","",""]
[null,null,null,null,null,null,"","","",""]
[null,null,null,null,null,null,"","","",""]
[null,null,null,null,null,null,"","","",""]
[null,null,null,null,null,null,"","","",""]
[null,null,null,null,null,null,"","","",""]
[null,null,null,null,null,null,{"$f":"IF(ISBLANK(A770),\"\",VLOOKUP(A770,FLEET_SITE_LU,2,FALSE))","v":""},{"$f":"IF(ISBLANK(B770),\"\",VLOOKUP(B770,POSITION_ID_FLEET,2,FALSE))","v":""},{"$f":"IF(ISBLANK(D770),\"\",VLOOKUP(D770,UNIT_LU,2,FALSE))","v":""},{"$f":"IF(ISBLANK(E770),\"\",VALUE(TEXT(E770,\"YYYYMM\")))","v":""}]
[null,null,null,null,null,null,"","","",""]
[null,null,null,null,null,null,"","","",""]
[null,null,null,null,null,null,"","","",""]
[null,null,null,null,null,null,"","","",""]
[null,null,null,null,null,null,"","","",""]
[null,null,null,null,null,null,"","","",""]
[null,null,null,null,null,null,"","","",""]
[null,null,null,null,null,null,"","","",""]
[null,null,null,null,null,null,"","","",""]
[null,null,null,null,null,null,"","","",""]
[null,null,null,null,null,null,"","","",""]
[null,null,null,null,null,null,"","","",""]
[null,null,null,null,null,null,"","","",""]
[null,null,null,null,null,null,"","","",""]
[null,null,null,null,null,null,"","","",""]
[null,null,null,null,null,null,"","","",""]
[null,null,null,null,null,null,"","","",""]
[null,null,null,null,null,null,"","","",""]
[null,null,null,null,null,null,"","","",""]
[null,null,null,null,null,null,"","","",""]
[null,null,null,null,null,null,"","","",""]
[null,null,null,null,null,null,"","","",""]
[null,null,null,null,null,null,"","","",""]
[null,null,null,null,null,null,"","","",""]
[null,null,null,null,null,null,"","","",""]
[null,null,null,null,null,null,"","","",""]
[null,null,null,null,null,null,"","","",""]
[null,null,null,null,null,null,"","","",""]
[null,null,null,null,null,null,"","","",""]
[null,null,null,null,null,null,"","","",""]
[null,null,null,null,null,null,"","","",""]
[null,null,null,null,null,null,"","","",""]
[null,null,null,null,null,null,"","","",""]
[null,null,null,null,null,null,"","","",""]
[null,null,null,null,null,null,"","","",""]
[null,null,null,null,null,null,"","","",""]
[null,null,null,null,null,null,"","","",""]
[null,null,null,null,null,null,"","","",""]
[null,null,null,null,null,null,"","","",""]
[null,null,null,null,null,null,"","","",""]
[null,null,null,null,null,null,"","","",""]
[null,null,null,null,null,null,"","","",""]
[null,null,null,null,null,null,"","","",""]
[null,null,null,null,null,null,"","","",""]
[null,null,null,null,null,null,"","","",""]
[null,null,null,null,null,null,"","","",""]
[null,null,null,null,null,null,"","","",""]
[null,null,null,null,null,null,"","","",""]
[null,null,null,null,null,null,"","","",""]
[null,null,null,null,null,null,"","","",""]
[null,null,null,null,null,null,"","","",""]
[null,null,null,null,null,null,"","","",""]
[null,null,null,null,null,null,"","","",""]
[null,null,null,null,null,null,"","","",""]
[null,null,null,null,null,null,"","","",""]
[null,null,null,null,null,null,"","","",""]
[null,null,null,null,null,null,"","","",""]
[null,null,null,null,null,null,"","","",""]
[null,null,null,null,null,null,"","","",""]
[null,null,null,null,null,null,"","","",""]
[null,null,null,null,null,null,"","","",""]
[null,null,null,null,null,null,"","","",""]
[null,null,null,null,null,null,"","","",""]
[null,null,null,null,null,null,{"$f":"IF(ISBLANK(A834),\"\",VLOOKUP(A834,FLEET_SITE_LU,2,FALSE))","v":""},{"$f":"IF(ISBLANK(B834),\"\",VLOOKUP(B834,POSITION_ID_FLEET,2,FALSE))","v":""},{"$f":"IF(ISBLANK(D834),\"\",VLOOKUP(D834,UNIT_LU,2,FALSE))","v":""},{"$f":"IF(ISBLANK(E834),\"\",VALUE(TEXT(E834,\"YYYYMM\")))","v":""}]
[null,null,null,null,null,null,"","","",""]
[null,null,null,null,null,null,"","","",""]
[null,null,null,null,null,null,"","","",""]
[null,null,null,null,null,null,"","","",""]
[null,null,null,null,null,null,"","","",""]
[null,null,null,null,null,null,"","","",""]
[null,null,null,null,null,null,"","","",""]
[null,null,null,null,null,null,"","","",""]
[null,null,null,null,null,null,"","","",""]
[null,null,null,null,null,null,"","","",""]
[null,null,null,null,null,null,"","","",""]
[null,null,null,null,null,null,"","","",""]
[null,null,null,null,null,null,"","","",""]
[null,null,null,null,null,null,"","","",""]
[null,null,null,null,null,null,"","","",""]
[null,null,null,null,null,null,"","","",""]
[null,null,null,null,null,null,"","","",""]
[null,null,null,null,null,null,"","","",""]
[null,null,null,null,null,null,"","","",""]
[null,null,null,null,null,null,"","","",""]
[null,null,null,null,null,null,"","","",""]
[null,null,null,null,null,null,"","","",""]
[null,null,null,null,null,null,"","","",""]
[null,null,null,null,null,null,"","","",""]
[null,null,null,null,null,null,"","","",""]
[null,null,null,null,null,null,"","","",""]
[null,null,null,null,null,null,"","","",""]
[null,null,null,null,null,null,"","","",""]
[null,null,null,null,null,null,"","","",""]
[null,null,null,null,null,null,"","","",""]
[null,null,null,null,null,null,"","","",""]
[null,null,null,null,null,null,"","","",""]
[null,null,null,null,null,null,"","","",""]
[null,null,null,null,null,null,"","","",""]
[null,null,null,null,null,null,"","","",""]
[null,null,null,null,null,null,"","","",""]
[null,null,null,null,null,null,"","","",""]
[null,null,null,null,null,null,"","","",""]
[null,null,null,null,null,null,"","","",""]
[null,null,null,null,null,null,"","","",""]
[null,null,null,null,null,null,"","","",""]
[null,null,null,null,null,null,"","","",""]
[null,null,null,null,null,null,"","","",""]
[null,null,null,null,null,null,"","","",""]
[null,null,null,null,null,null,"","","",""]
[null,null,null,null,null,null,"","","",""]
[null,null,null,null,null,null,"","","",""]
[null,null,null,null,null,null,"","","",""]
[null,null,null,null,null,null,"","","",""]
[null,null,null,null,null,null,"","","",""]
[null,null,null,null,null,null,"","","",""]
[null,null,null,null,null,null,"","","",""]
[null,null,null,null,null,null,"","","",""]
[null,null,null,null,null,null,"","","",""]
[null,null,null,null,null,null,"","","",""]
[null,null,null,null,null,null,"","","",""]
[null,null,null,null,null,null,"","","",""]
[null,null,null,null,null,null,"","","",""]
[null,null,null,null,null,null,"","","",""]
[null,null,null,null,null,null,"","","",""]
[null,null,null,null,null,null,"","","",""]
[null,null,null,null,null,null,"","","",""]
[null,null,null,null,null,null,"","","",""]
[null,null,null,null,null,null,{"$f":"IF(ISBLANK(A898),\"\",VLOOKUP(A898,FLEET_SITE_LU,2,FALSE))","v":""},{"$f":"IF(ISBLANK(B898),\"\",VLOOKUP(B898,POSITION_ID_FLEET,2,FALSE))","v":""},{"$f":"IF(ISBLANK(D898),\"\",VLOOKUP(D898,UNIT_LU,2,FALSE))","v":""},{"$f":"IF(ISBLANK(E898),\"\",VALUE(TEXT(E898,\"YYYYMM\")))","v":""}]
[null,null,null,null,null,null,"","","",""]
[null,null,null,null,null,null,"","","",""]
[null,null,null,null,null,null,"","","",""]
[null,null,null,null,null,null,"","","",""]
[null,null,null,null,null,null,"","","",""]
[null,null,null,null,null,null,"","","",""]
[null,null,null,null,null,null,"","","",""]
[null,null,null,null,null,null,"","","",""]
[null,null,null,null,null,null,"","","",""]
[null,null,null,null,null,null,"","","",""]
[null,null,null,null,null,null,"","","",""]
[null,null,null,null,null,null,"","","",""]
[null,null,null,null,null,null,"","","",""]
[null,null,null,null,null,null,"","","",""]
[null,null,null,null,null,null,"","","",""]
[null,null,null,null,null,null,"","","",""]
[null,null,null,null,null,null,"","","",""]
[null,null,null,null,null,null,"","","",""]
[null,null,null,null,null,null,"","","",""]
[null,null,null,null,null,null,"","","",""]
[null,null,null,null,null,null,"","","",""]
[null,null,null,null,null,null,"","","",""]
[null,null,null,null,null,null,"","","",""]
[null,null,null,null,null,null,"","","",""]
[null,null,null,null,null,null,"","","",""]
[null,null,null,null,null,null,"","","",""]
[null,null,null,null,null,null,"","","",""]
[null,null,null,null,null,null,"","","",""]
[null,null,null,null,null,null,"","","",""]
[null,null,null,null,null,null,"","","",""]
[null,null,null,null,null,null,"","","",""]
[null,null,null,null,null,null,"","","",""]
[null,null,null,null,null,null,"","","",""]
[null,null,null,null,null,null,"","","",""]
[null,null,null,null,null,null,"","","",""]
[null,null,null,null,null,null,"","","",""]
[null,null,null,null,null,null,"","","",""]
[null,null,null,null,null,null,"","","",""]
[null,null,null,null,null,null,"","","",""]
[null,null,null,null,null,null,"","","",""]
[null,null,null,null,null,null,"","","",""]
[null,null,null,null,null,null,"","","",""]
[null,null,null,null,null,null,"","","",""]
[null,null,null,null,null,null,"","","",""]
[null,null,null,null,null,null,"","","",""]
[null,null,null,null,null,null,"","","",""]
[null,null,null,null,null,null,"","","",""]
[null,null,null,null,null,null,"","","",""]
[null,null,null,null,null,null,"","","",""]
[null,null,null,null,null,null,"","","",""]
[null,null,null,null,null,null,"","","",""]
[null,null,null,null,null,null,"","","",""]
[null,null,null,null,null,null,"","","",""]
[null,null,null,null,null,null,"","","",""]
[null,null,null,null,null,null,"","","",""]
[null,null,null,null,null,null,"","","",""]
[null,null,null,null,null,null,"","","",""]
[null,null,null,null,null,null,"","","",""]
[null,null,null,null,null,null,"","","",""]
[null,null,null,null,null,null,"","","",""]
[null,null,null,null,null,null,"","","",""]
[null,null,null,null,null,null,"","","",""]
[null,null,null,null,null,null,"","","",""]
[null,null,null,null,null,null,{"$f":"IF(ISBLANK(A962),\"\",VLOOKUP(A962,FLEET_SITE_LU,2,FALSE))","v":""},{"$f":"IF(ISBLANK(B962),\"\",VLOOKUP(B962,POSITION_ID_FLEET,2,FALSE))","v":""},{"$f":"IF(ISBLANK(D962),\"\",VLOOKUP(D962,UNIT_LU,2,FALSE))","v":""},{"$f":"IF(ISBLANK(E962),\"\",VALUE(TEXT(E962,\"YYYYMM\")))","v":""}]
[null,null,null,null,null,null,"","","",""]
[null,null,null,null,null,null,"","","",""]
[null,null,null,null,null,null,"","","",""]
[null,null,null,null,null,null,"","","",""]
[null,null,null,null,null,null,"","","",""]
[null,null,null,null,null,null,"","","",""]
[null,null,null,null,null,null,"","","",""]
[null,null,null,null,null,null,"","","",""]
[null,null,null,null,null,null,"","","",""]
[null,null,null,null,null,null,"","","",""]
[null,null,null,null,null,null,"","","",""]
[null,null,null,null,null,null,"","","",""]
[null,null,null,null,null,null,"","","",""]
[null,null,null,null,null,null,"","","",""]
[null,null,null,null,null,null,"","","",""]
[null,null,null,null,null,null,"","","",""]
[null,null,null,null,null,null,"","","",""]
[null,null,null,null,null,null,"","","",""]
[null,null,null,null,null,null,"","","",""]
[null,null,null,null,null,null,"","","",""]
[null,null,null,null,null,null,"","","",""]
[null,null,null,null,null,null,"","","",""]
[null,null,null,null,null,null,"","","",""]
[null,null,null,null,null,null,"","","",""]
[null,null,null,null,null,null,"","","",""]
[null,null,null,null,null,null,"","","",""]
[null,null,null,null,null,null,"","","",""]
[null,null,null,null,null,null,"","","",""]
[null,null,null,null,null,null,"","","",""]
[null,null,null,null,null,null,"","","",""]
[null,null,null,null,null,null,"","","",""]
[null,null,null,null,null,null,"","","",""]
[null,null,null,null,null,null,"","","",""]
[null,null,null,null,null,null,"","","",""]
[null,null,null,null,null,null,"","","",""]
[null,null,null,null,null,null,"","","",""]
[null,null,null,null,null,null,"","","",""]
[null,null,null,null,null,null,"","","",""]
[null,null,null,null,null,null,"","","",""]
[null,null,null,null,null,null,"","","",""]
[null,null,null,null,null,null,"","","",""]
[null,null,null,null,null,null,"","","",""]
[null,null,null,null,null,null,"","","",""]
[null,null,null,null,null,null,"","","",""]
[null,null,null,null,null,null,"","","",""]
[null,null,null,null,null,null,"","","",""]
[null,null,null,null,null,null,"","","",""]
[null,null,null,null,null,null,"","","",""]
[null,null,null,null,null,null,"","","",""]
[null,null,null,null,null,null,"","","",""]
[null,null,null,null,null,null,"","","",""]
[null,null,null,null,null,null,"","","",""]
[null,null,null,null,null,null,"","","",""]
[null,null,null,null,null,null,"","","",""]
[null,null,null,null,null,null,"","","",""]
[null,null,null,null,null,null,"","","",""]
[null,null,null,null,null,null,"","","",""]
[null,null,null,null,null,null,"","","",""]
[null,null,null,null,null,null,"","","",""]
[null,null,null,null,null,null,"","","",""]
[null,null,null,null,null,null,"","","",""]
[null,null,null,null,null,null,"","","",""]
[null,null,null,null,null,null,"","","",""]
[null,null,null,null,null,null,{"$f":"IF(ISBLANK(A1026),\"\",VLOOKUP(A1026,FLEET_SITE_LU,2,FALSE))","v":""},{"$f":"IF(ISBLANK(B1026),\"\",VLOOKUP(B1026,POSITION_ID_FLEET,2,FALSE))","v":""},{"$f":"IF(ISBLANK(D1026),\"\",VLOOKUP(D1026,UNIT_LU,2,FALSE))","v":""},{"$f":"IF(ISBLANK(E1026),\"\",VALUE(TEXT(E1026,\"YYYYMM\")))","v":""}]
[null,null,null,null,null,null,"","","",""]
[null,null,null,null,null,null,"","","",""]
[null,null,null,null,null,null,"","","",""]
[null,null,null,null,null,null,"","","",""]
[null,null,null,null,null,null,"","","",""]
[null,null,null,null,null,null,"","","",""]
[null,null,null,null,null,null,"","","",""]
[null,null,null,null,null,null,"","","",""]
[null,null,null,null,null,null,"","","",""]
[null,null,null,null,null,null,"","","",""]
[null,null,null,null,null,null,"","","",""]
[null,null,null,null,null,null,"","","",""]
[null,null,null,null,null,null,"","","",""]
[null,null,null,null,null,null,"","","",""]
[null,null,null,null,null,null,"","","",""]
[null,null,null,null,null,null,"","","",""]
[null,null,null,null,null,null,"","","",""]
[null,null,null,null,null,null,"","","",""]
[null,null,null,null,null,null,"","","",""]
[null,null,null,null,null,null,"","","",""]
[null,null,null,null,null,null,"","","",""]
[null,null,null,null,null,null,"","","",""]
[null,null,null,null,null,null,"","","",""]
[null,null,null,null,null,null,"","","",""]
[null,null,null,null,null,null,"","","",""]
[null,null,null,null,null,null,"","","",""]
[null,null,null,null,null,null,"","","",""]
[null,null,null,null,null,null,"","","",""]
[null,null,null,null,null,null,"","","",""]
[null,null,null,null,null,null,"","","",""]
[null,null,null,null,null,null,"","","",""]
[null,null,null,null,null,null,"","","",""]
[null,null,null,null,null,null,"","","",""]
[null,null,null,null,null,null,"","","",""]
[null,null,null,null,null,null,"","","",""]
[null,null,null,null,null,null,"","","",""]
[null,null,null,null,null,null,"","","",""]
[null,null,null,null,null,null,"","","",""]
[null,null,null,null,null,null,"","","",""]
[null,null,null,null,null,null,"","","",""]
[null,null,null,null,null,null,"","","",""]
[null,null,null,null,null,null,"","","",""]
[null,null,null,null,null,null,"","","",""]
[null,null,null,null,null,null,"","","",""]
[null,null,null,null,null,null,"","","",""]
[null,null,null,null,null,null,"","","",""]
[null,null,null,null,null,null,"","","",""]
[null,null,null,null,null,null,"","","",""]
[null,null,null,null,null,null,"","","",""]
[null,null,null,null,null,null,"","","",""]
[null,null,null,null,null,null,"","","",""]
[null,null,null,null,null,null,"","","",""]
[null,null,null,null,null,null,"","","",""]
[null,null,null,null,null,null,"","","",""]
[null,null,null,null,null,null,"","","",""]
[null,null,null,null,null,null,"","","",""]
[null,null,null,null,null,null,"","","",""]
[null,null,null,null,null,null,"","","",""]
[null,null,null,null,null,null,"","","",""]
[null,null,null,null,null,null,"","","",""]
[null,null,null,null,null,null,"","","",""]
[null,null,null,null,null,null,"","","",""]
[null,null,null,null,null,null,"","","",""]
[null,null,null,null,null,null,{"$f":"IF(ISBLANK(A1090),\"\",VLOOKUP(A1090,FLEET_SITE_LU,2,FALSE))","v":""},{"$f":"IF(ISBLANK(B1090),\"\",VLOOKUP(B1090,POSITION_ID_FLEET,2,FALSE))","v":""},{"$f":"IF(ISBLANK(D1090),\"\",VLOOKUP(D1090,UNIT_LU,2,FALSE))","v":""},{"$f":"IF(ISBLANK(E1090),\"\",VALUE(TEXT(E1090,\"YYYYMM\")))","v":""}]
[null,null,null,null,null,null,"","","",""]
[null,null,null,null,null,null,"","","",""]
[null,null,null,null,null,null,"","","",""]
[null,null,null,null,null,null,"","","",""]
[null,null,null,null,null,null,"","","",""]
[null,null,null,null,null,null,"","","",""]
[null,null,null,null,null,null,"","","",""]
[null,null,null,null,null,null,"","","",""]
[null,null,null,null,null,null,"","","",""]
[null,null,null,null,null,null,"","","",""]
[null,null,null,null,null,null,"","","",""]
[null,null,null,null,null,null,"","","",""]
[null,null,null,null,null,null,"","","",""]
[null,null,null,null,null,null,"","","",""]
[null,null,null,null,null,null,"","","",""]
[null,null,null,null,null,null,"","","",""]
[null,null,null,null,null,null,"","","",""]
[null,null,null,null,null,null,"","","",""]
[null,null,null,null,null,null,"","","",""]
[null,null,null,null,null,null,"","","",""]
[null,null,null,null,null,null,"","","",""]
[null,null,null,null,null,null,"","","",""]
[null,null,null,null,null,null,"","","",""]
[null,null,null,null,null,null,"","","",""]
[null,null,null,null,null,null,"","","",""]
[null,null,null,null,null,null,"","","",""]
[null,null,null,null,null,null,"","","",""]
[null,null,null,null,null,null,"","","",""]
[null,null,null,null,null,null,"","","",""]
[null,null,null,null,null,null,"","","",""]
[null,null,null,null,null,null,"","","",""]
[null,null,null,null,null,null,"","","",""]
[null,null,null,null,null,null,"","","",""]
[null,null,null,null,null,null,"","","",""]
[null,null,null,null,null,null,"","","",""]
[null,null,null,null,null,null,"","","",""]
[null,null,null,null,null,null,"","","",""]
[null,null,null,null,null,null,"","","",""]
[null,null,null,null,null,null,"","","",""]
[null,null,null,null,null,null,"","","",""]
[null,null,null,null,null,null,"","","",""]
[null,null,null,null,null,null,"","","",""]
[null,null,null,null,null,null,"","","",""]
[null,null,null,null,null,null,"","","",""]
[null,null,null,null,null,null,"","","",""]
[null,null,null,null,null,null,"","","",""]
[null,null,null,null,null,null,"","","",""]
[null,null,null,null,null,null,"","","",""]
[null,null,null,null,null,null,"","","",""]
[null,null,null,null,null,null,"","","",""]
[null,null,null,null,null,null,"","","",""]
[null,null,null,null,null,null,"","","",""]
[null,null,null,null,null,null,"","","",""]
[null,null,null,null,null,null,"","","",""]
[null,null,null,null,null,null,"","","",""]
[null,null,null,null,null,null,"","","",""]
[null,null,null,null,null,null,"","","",""]
[null,null,null,null,null,null,"","","",""]
[null,null,null,null,null,null,"","","",""]
[null,null,null,null,null,null,"","","",""]
[null,null,null,null,null,null,"","","",""]
[null,null,null,null,null,null,"","","",""]
[null,null,null,null,null,null,"","","",""]
[null,null,null,null,null,null,{"$f":"IF(ISBLANK(A1154),\"\",VLOOKUP(A1154,FLEET_SITE_LU,2,FALSE))","v":""},{"$f":"IF(ISBLANK(B1154),\"\",VLOOKUP(B1154,POSITION_ID_FLEET,2,FALSE))","v":""},{"$f":"IF(ISBLANK(D1154),\"\",VLOOKUP(D1154,UNIT_LU,2,FALSE))","v":""},{"$f":"IF(ISBLANK(E1154),\"\",VALUE(TEXT(E1154,\"YYYYMM\")))","v":""}]
[null,null,null,null,null,null,"","","",""]
[null,null,null,null,null,null,"","","",""]
[null,null,null,null,null,null,"","","",""]
[null,null,null,null,null,null,"","","",""]
[null,null,null,null,null,null,"","","",""]
[null,null,null,null,null,null,"","","",""]
[null,null,null,null,null,null,"","","",""]
[null,null,null,null,null,null,"","","",""]
[null,null,null,null,null,null,"","","",""]
[null,null,null,null,null,null,"","","",""]
[null,null,null,null,null,null,"","","",""]
[null,null,null,null,null,null,"","","",""]
[null,null,null,null,null,null,"","","",""]
[null,null,null,null,null,null,"","","",""]
[null,null,null,null,null,null,"","","",""]
[null,null,null,null,null,null,"","","",""]
[null,null,null,null,null,null,"","","",""]
[null,null,null,null,null,null,"","","",""]
[null,null,null,null,null,null,"","","",""]
[null,null,null,null,null,null,"","","",""]
[null,null,null,null,null,null,"","","",""]
[null,null,null,null,null,null,"","","",""]
[null,null,null,null,null,null,"","","",""]
[null,null,null,null,null,null,"","","",""]
[null,null,null,null,null,null,"","","",""]
[null,null,null,null,null,null,"","","",""]
[null,null,null,null,null,null,"","","",""]
[null,null,null,null,null,null,"","","",""]
[null,null,null,null,null,null,"","","",""]
[null,null,null,null,null,null,"","","",""]
[null,null,null,null,null,null,"","","",""]
[null,null,null,null,null,null,"","","",""]
[null,null,null,null,null,null,"","","",""]
[null,null,null,null,null,null,"","","",""]
[null,null,null,null,null,null,"","","",""]
[null,null,null,null,null,null,"","","",""]
[null,null,null,null,null,null,"","","",""]
[null,null,null,null,null,null,"","","",""]
[null,null,null,null,null,null,"","","",""]
[null,null,null,null,null,null,"","","",""]
[null,null,null,null,null,null,"","","",""]
[null,null,null,null,null,null,"","","",""]
[null,null,null,null,null,null,"","","",""]
[null,null,null,null,null,null,"","","",""]
[null,null,null,null,null,null,"","","",""]
[null,null,null,null,null,null,"","","",""]
[null,null,null,null,null,null,"","","",""]
[null,null,null,null,null,null,"","","",""]
[null,null,null,null,null,null,"","","",""]
[null,null,null,null,null,null,"","","",""]
[null,null,null,null,null,null,"","","",""]
[null,null,null,null,null,null,"","","",""]
[null,null,null,null,null,null,"","","",""]
[null,null,null,null,null,null,"","","",""]
[null,null,null,null,null,null,"","","",""]
[null,null,null,null,null,null,"","","",""]
[null,null,null,null,null,null,"","","",""]
[null,null,null,null,null,null,"","","",""]
[null,null,null,null,null,null,"","","",""]
[null,null,null,null,null,null,"","","",""]
[null,null,null,null,null,null,"","","",""]
[null,null,null,null,null,null,"","","",""]
[null,null,null,null,null,null,"","","",""]
[null,null,null,null,null,null,{"$f":"IF(ISBLANK(A1218),\"\",VLOOKUP(A1218,FLEET_SITE_LU,2,FALSE))","v":""},{"$f":"IF(ISBLANK(B1218),\"\",VLOOKUP(B1218,POSITION_ID_FLEET,2,FALSE))","v":""},{"$f":"IF(ISBLANK(D1218),\"\",VLOOKUP(D1218,UNIT_LU,2,FALSE))","v":""},{"$f":"IF(ISBLANK(E1218),\"\",VALUE(TEXT(E1218,\"YYYYMM\")))","v":""}]
[null,null,null,null,null,null,"","","",""]
[null,null,null,null,null,null,"","","",""]
[null,null,null,null,null,null,"","","",""]
[null,null,null,null,null,null,"","","",""]
[null,null,null,null,null,null,"","","",""]
[null,null,null,null,null,null,"","","",""]
[null,null,null,null,null,null,"","","",""]
[null,null,null,null,null,null,"","","",""]
[null,null,null,null,null,null,"","","",""]
[null,null,null,null,null,null,"","","",""]
[null,null,null,null,null,null,"","","",""]
[null,null,null,null,null,null,"","","",""]
[null,null,null,null,null,null,"","","",""]
[null,null,null,null,null,null,"","","",""]
[null,null,null,null,null,null,"","","",""]
[null,null,null,null,null,null,"","","",""]
[null,null,null,null,null,null,"","","",""]
[null,null,null,null,null,null,"","","",""]
[null,null,null,null,null,null,"","","",""]
[null,null,null,null,null,null,"","","",""]
[null,null,null,null,null,null,"","","",""]
[null,null,null,null,null,null,"","","",""]
[null,null,null,null,null,null,"","","",""]
[null,null,null,null,null,null,"","","",""]
[null,null,null,null,null,null,"","","",""]
[null,null,null,null,null,null,"","","",""]
[null,null,null,null,null,null,"","","",""]
[null,null,null,null,null,null,"","","",""]
[null,null,null,null,null,null,"","","",""]
[null,null,null,null,null,null,"","","",""]
[null,null,null,null,null,null,"","","",""]
[null,null,null,null,null,null,"","","",""]
[null,null,null,null,null,null,"","","",""]
[null,null,null,null,null,null,"","","",""]
[null,null,null,null,null,null,"","","",""]
[null,null,null,null,null,null,"","","",""]
[null,null,null,null,null,null,"","","",""]
[null,null,null,null,null,null,"","","",""]
[null,null,null,null,null,null,"","","",""]
[null,null,null,null,null,null,"","","",""]
[null,null,null,null,null,null,"","","",""]
[null,null,null,null,null,null,"","","",""]
[null,null,null,null,null,null,"","","",""]
[null,null,null,null,null,null,"","","",""]
[null,null,null,null,null,null,"","","",""]
[null,null,null,null,null,null,"","","",""]
[null,null,null,null,null,null,"","","",""]
[null,null,null,null,null,null,"","","",""]
[null,null,null,null,null,null,"","","",""]
[null,null,null,null,null,null,"","","",""]
[null,null,null,null,null,null,"","","",""]
[null,null,null,null,null,null,"","","",""]
[null,null,null,null,null,null,"","","",""]
[null,null,null,null,null,null,"","","",""]
[null,null,null,null,null,null,"","","",""]
[null,null,null,null,null,null,"","","",""]
[null,null,null,null,null,null,"","","",""]
[null,null,null,null,null,null,"","","",""]
[null,null,null,null,null,null,"","","",""]
[null,null,null,null,null,null,"","","",""]
[null,null,null,null,null,null,"","","",""]
[null,null,null,null,null,null,"","","",""]
[null,null,null,null,null,null,"","","",""]
[null,null,null,null,null,null,{"$f":"IF(ISBLANK(A1282),\"\",VLOOKUP(A1282,FLEET_SITE_LU,2,FALSE))","v":""},{"$f":"IF(ISBLANK(B1282),\"\",VLOOKUP(B1282,POSITION_ID_FLEET,2,FALSE))","v":""},{"$f":"IF(ISBLANK(D1282),\"\",VLOOKUP(D1282,UNIT_LU,2,FALSE))","v":""},{"$f":"IF(ISBLANK(E1282),\"\",VALUE(TEXT(E1282,\"YYYYMM\")))","v":""}]
[null,null,null,null,null,null,"","","",""]
[null,null,null,null,null,null,"","","",""]
[null,null,null,null,null,null,"","","",""]
[null,null,null,null,null,null,"","","",""]
[null,null,null,null,null,null,"","","",""]
[null,null,null,null,null,null,"","","",""]
[null,null,null,null,null,null,"","","",""]
[null,null,null,null,null,null,"","","",""]
[null,null,null,null,null,null,"","","",""]
[null,null,null,null,null,null,"","","",""]
[null,null,null,null,null,null,"","","",""]
[null,null,null,null,null,null,"","","",""]
[null,null,null,null,null,null,"","","",""]
[null,null,null,null,null,null,"","","",""]
[null,null,null,null,null,null,"","","",""]
[null,null,null,null,null,null,"","","",""]
[null,null,null,null,null,null,"","","",""]
[null,null,null,null,null,null,"","","",""]
[null,null,null,null,null,null,"","","",""]
[null,null,null,null,null,null,"","","",""]
[null,null,null,null,null,null,"","","",""]
[null,null,null,null,null,null,"","","",""]
[null,null,null,null,null,null,"","","",""]
[null,null,null,null,null,null,"","","",""]
[null,null,null,null,null,null,"","","",""]
[null,null,null,null,null,null,"","","",""]
[null,null,null,null,null,null,"","","",""]
[null,null,null,null,null,null,"","","",""]
[null,null,null,null,null,null,"","","",""]
[null,null,null,null,null,null,"","","",""]
[null,null,null,null,null,null,"","","",""]
[null,null,null,null,null,null,"","","",""]
[null,null,null,null,null,null,"","","",""]
[null,null,null,null,null,null,"","","",""]
[null,null,null,null,null,null,"","","",""]
[null,null,null,null,null,null,"","","",""]
[null,null,null,null,null,null,"","","",""]
[null,null,null,null,null,null,"","","",""]
[null,null,null,null,null,null,"","","",""]
[null,null,null,null,null,null,"","","",""]
[null,null,null,null,null,null,"","","",""]
[null,null,null,null,null,null,"","","",""]
[null,null,null,null,null,null,"","","",""]
[null,null,null,null,null,null,"","","",""]
[null,null,null,null,null,null,"","","",""]
[null,null,null,null,null,null,"","","",""]
[null,null,null,null,null,null,"","","",""]
[null,null,null,null,null,null,"","","",""]
[null,null,null,null,null,null,"","","",""]
[null,null,null,null,null,null,"","","",""]
[null,null,null,null,null,null,"","","",""]
[null,null,null,null,null,null,"","","",""]
[null,null,null,null,null,null,"","","",""]
[null,null,null,null,null,null,"","","",""]
[null,null,null,null,null,null,"","","",""]
[null,null,null,null,null,null,"","","",""]
[null,null,null,null,null,null,"","","",""]
[null,null,null,null,null,null,"","","",""]
[null,null,null,null,null,null,"","","",""]
[null,null,null,null,null,null,"","","",""]
[null,null,null,null,null,null,"","","",""]
[null,null,null,null,null,null,"","","",""]
[null,null,null,null,null,null,"","","",""]
[null,null,null,null,null,null,{"$f":"IF(ISBLANK(A1346),\"\",VLOOKUP(A1346,FLEET_SITE_LU,2,FALSE))","v":""},{"$f":"IF(ISBLANK(B1346),\"\",VLOOKUP(B1346,POSITION_ID_FLEET,2,FALSE))","v":""},{"$f":"IF(ISBLANK(D1346),\"\",VLOOKUP(D1346,UNIT_LU,2,FALSE))","v":""},{"$f":"IF(ISBLANK(E1346),\"\",VALUE(TEXT(E1346,\"YYYYMM\")))","v":""}]
[null,null,null,null,null,null,"","","",""]
[null,null,null,null,null,null,"","","",""]
[null,null,null,null,null,null,"","","",""]
[null,null,null,null,null,null,"","","",""]
[null,null,null,null,null,null,"","","",""]
[null,null,null,null,null,null,"","","",""]
[null,null,null,null,null,null,"","","",""]
[null,null,null,null,null,null,"","","",""]
[null,null,null,null,null,null,"","","",""]
[null,null,null,null,null,null,"","","",""]
[null,null,null,null,null,null,"","","",""]
[null,null,null,null,null,null,"","","",""]
[null,null,null,null,null,null,"","","",""]
[null,null,null,null,null,null,"","","",""]
[null,null,null,null,null,null,"","","",""]
[null,null,null,null,null,null,"","","",""]
[null,null,null,null,null,null,"","","",""]
[null,null,null,null,null,null,"","","",""]
[null,null,null,null,null,null,"","","",""]
[null,null,null,null,null,null,"","","",""]
[null,null,null,null,null,null,"","","",""]
[null,null,null,null,null,null,"","","",""]
[null,null,null,null,null,null,"","","",""]
[null,null,null,null,null,null,"","","",""]
[null,null,null,null,null,null,"","","",""]
[null,null,null,null,null,null,"","","",""]
[null,null,null,null,null,null,"","","",""]
[null,null,null,null,null,null,"","","",""]
[null,null,null,null,null,null,"","","",""]
[null,null,null,null,null,null,"","","",""]
[null,null,null,null,null,null,"","","",""]
[null,null,null,null,null,null,"","","",""]
[null,null,null,null,null,null,"","","",""]
[null,null,null,null,null,null,"","","",""]
[null,null,null,null,null,null,"","","",""]
[null,null,null,null,null,null,"","","",""]
[null,null,null,null,null,null,"","","",""]
[null,null,null,null,null,null,"","","",""]
[null,null,null,null,null,null,"","","",""]
[null,null,null,null,null,null,"","","",""]
[null,null,null,null,null,null,"","","",""]
[null,null,null,null,null,null,"","","",""]
[null,null,null,null,null,null,"","","",""]
[null,null,null,null,null,null,"","","",""]
[null,null,null,null,null,null,"","","",""]
[null,null,null,null,null,null,"","","",""]
[null,null,null,null,null,null,"","","",""]
[null,null,null,null,null,null,"","","",""]
[null,null,null,null,null,null,"","","",""]
[null,null,null,null,null,null,"","","",""]
[null,null,null,null,null,null,"","","",""]
[null,null,null,null,null,null,"","","",""]
[null,null,null,null,null,null,"","","",""]
[null,null,null,null,null,null,"","","",""]
[null,null,null,null,null,null,"","","",""]
[null,null,null,null,null,null,"","","",""]
[null,null,null,null,null,null,"","","",""]
[null,null,null,null,null,null,"","","",""]
[null,null,null,null,null,null,"","","",""]
[null,null,null,null,null,null,"","","",""]
[null,null,null,null,null,null,"","","",""]
[null,null,null,null,null,null,"","","",""]
[null,null,null,null,null,null,"","","",""]
[null,null,null,null,null,null,{"$f":"IF(ISBLANK(A1410),\"\",VLOOKUP(A1410,FLEET_SITE_LU,2,FALSE))","v":""},{"$f":"IF(ISBLANK(B1410),\"\",VLOOKUP(B1410,POSITION_ID_FLEET,2,FALSE))","v":""},{"$f":"IF(ISBLANK(D1410),\"\",VLOOKUP(D1410,UNIT_LU,2,FALSE))","v":""},{"$f":"IF(ISBLANK(E1410),\"\",VALUE(TEXT(E1410,\"YYYYMM\")))","v":""}]
[null,null,null,null,null,null,"","","",""]
[null,null,null,null,null,null,"","","",""]
[null,null,null,null,null,null,"","","",""]
[null,null,null,null,null,null,"","","",""]
[null,null,null,null,null,null,"","","",""]
[null,null,null,null,null,null,"","","",""]
[null,null,null,null,null,null,"","","",""]
[null,null,null,null,null,null,"","","",""]
[null,null,null,null,null,null,"","","",""]
[null,null,null,null,null,null,"","","",""]
[null,null,null,null,null,null,"","","",""]
[null,null,null,null,null,null,"","","",""]
[null,null,null,null,null,null,"","","",""]
[null,null,null,null,null,null,"","","",""]
[null,null,null,null,null,null,"","","",""]
[null,null,null,null,null,null,"","","",""]
[null,null,null,null,null,null,"","","",""]
[null,null,null,null,null,null,"","","",""]
[null,null,null,null,null,null,"","","",""]
[null,null,null,null,null,null,"","","",""]
[null,null,null,null,null,null,"","","",""]
[null,null,null,null,null,null,"","","",""]
[null,null,null,null,null,null,"","","",""]
[null,null,null,null,null,null,"","","",""]
[null,null,null,null,null,null,"","","",""]
[null,null,null,null,null,null,"","","",""]
[null,null,null,null,null,null,"","","",""]
[null,null,null,null,null,null,"","","",""]
[null,null,null,null,null,null,"","","",""]
[null,null,null,null,null,null,"","","",""]
[null,null,null,null,null,null,"","","",""]
[null,null,null,null,null,null,"","","",""]
[null,null,null,null,null,null,"","","",""]
[null,null,null,null,null,null,"","","",""]
[null,null,null,null,null,null,"","","",""]
[null,null,null,null,null,null,"","","",""]
[null,null,null,null,null,null,"","","",""]
[null,null,null,null,null,null,"","","",""]
[null,null,null,null,null,null,"","","",""]
[null,null,null,null,null,null,"","","",""]
[null,null,null,null,null,null,"","","",""]
[null,null,null,null,null,null,"","","",""]
[null,null,null,null,null,null,"","","",""]
[null,null,null,null,null,null,"","","",""]
[null,null,null,null,null,null,"","","",""]
[null,null,null,null,null,null,"","","",""]
[null,null,null,null,null,null,"","","",""]
[null,null,null,null,null,null,"","","",""]
[null,null,null,null,null,null,"","","",""]
[null,null,null,null,null,null,"","","",""]
[null,null,null,null,null,null,"","","",""]
[null,null,null,null,null,null,"","","",""]
[null,null,null,null,null,null,"","","",""]
[null,null,null,null,null,null,"","","",""]
[null,null,null,null,null,null,"","","",""]
[null,null,null,null,null,null,"","","",""]
[null,null,null,null,null,null,"","","",""]
[null,null,null,null,null,null,"","","",""]
[null,null,null,null,null,null,"","","",""]
[null,null,null,null,null,null,"","","",""]
[null,null,null,null,null,null,"","","",""]
[null,null,null,null,null,null,"","","",""]
[null,null,null,null,null,null,"","","",""]
[null,null,null,null,null,null,{"$f":"IF(ISBLANK(A1474),\"\",VLOOKUP(A1474,FLEET_SITE_LU,2,FALSE))","v":""},{"$f":"IF(ISBLANK(B1474),\"\",VLOOKUP(B1474,POSITION_ID_FLEET,2,FALSE))","v":""},{"$f":"IF(ISBLANK(D1474),\"\",VLOOKUP(D1474,UNIT_LU,2,FALSE))","v":""},{"$f":"IF(ISBLANK(E1474),\"\",VALUE(TEXT(E1474,\"YYYYMM\")))","v":""}]
[null,null,null,null,null,null,"","","",""]
[null,null,null,null,null,null,"","","",""]
[null,null,null,null,null,null,"","","",""]
[null,null,null,null,null,null,"","","",""]
[null,null,null,null,null,null,"","","",""]
[null,null,null,null,null,null,"","","",""]
[null,null,null,null,null,null,"","","",""]
[null,null,null,null,null,null,"","","",""]
[null,null,null,null,null,null,"","","",""]
[null,null,null,null,null,null,"","","",""]
[null,null,null,null,null,null,"","","",""]
[null,null,null,null,null,null,"","","",""]
[null,null,null,null,null,null,"","","",""]
[null,null,null,null,null,null,"","","",""]
[null,null,null,null,null,null,"","","",""]
[null,null,null,null,null,null,"","","",""]
[null,null,null,null,null,null,"","","",""]
[null,null,null,null,null,null,"","","",""]
[null,null,null,null,null,null,"","","",""]
[null,null,null,null,null,null,"","","",""]
[null,null,null,null,null,null,"","","",""]
[null,null,null,null,null,null,"","","",""]
[null,null,null,null,null,null,"","","",""]
[null,null,null,null,null,null,"","","",""]
[null,null,null,null,null,null,"","","",""]
[null,null,null,null,null,null,"","","",""]
[null,null,null,null,null,null,"","","",""]
[null,null,null,null,null,null,"","","",""]
[null,null,null,null,null,null,"","","",""]
[null,null,null,null,null,null,"","","",""]
[null,null,null,null,null,null,"","","",""]
[null,null,null,null,null,null,"","","",""]
[null,null,null,null,null,null,"","","",""]
[null,null,null,null,null,null,"","","",""]
[null,null,null,null,null,null,"","","",""]
[null,null,null,null,null,null,"","","",""]
[null,null,null,null,null,null,"","","",""]
[null,null,null,null,null,null,"","","",""]
[null,null,null,null,null,null,"","","",""]
[null,null,null,null,null,null,"","","",""]
[null,null,null,null,null,null,"","","",""]
[null,null,null,null,null,null,"","","",""]
[null,null,null,null,null,null,"","","",""]
[null,null,null,null,null,null,"","","",""]
[null,null,null,null,null,null,"","","",""]
[null,null,null,null,null,null,"","","",""]
[null,null,null,null,null,null,"","","",""]
[null,null,null,null,null,null,"","","",""]
[null,null,null,null,null,null,"","","",""]
[null,null,null,null,null,null,"","","",""]
[null,null,null,null,null,null,"","","",""]
[null,null,null,null,null,null,"","","",""]
[null,null,null,null,null,null,"","","",""]
[null,null,null,null,null,null,"","","",""]
[null,null,null,null,null,null,"","","",""]
[null,null,null,null,null,null,"","","",""]
[null,null,null,null,null,null,"","","",""]
[null,null,null,null,null,null,"","","",""]
[null,null,null,null,null,null,"","","",""]
[null,null,null,null,null,null,"","","",""]
[null,null,null,null,null,null,"","","",""]
[null,null,null,null,null,null,"","","",""]
[null,null,null,null,null,null,"","","",""]
[null,null,null,null,null,null,{"$f":"IF(ISBLANK(A1538),\"\",VLOOKUP(A1538,FLEET_SITE_LU,2,FALSE))","v":""},{"$f":"IF(ISBLANK(B1538),\"\",VLOOKUP(B1538,POSITION_ID_FLEET,2,FALSE))","v":""},{"$f":"IF(ISBLANK(D1538),\"\",VLOOKUP(D1538,UNIT_LU,2,FALSE))","v":""},{"$f":"IF(ISBLANK(E1538),\"\",VALUE(TEXT(E1538,\"YYYYMM\")))","v":""}]
[null,null,null,null,null,null,"","","",""]
[null,null,null,null,null,null,"","","",""]
[null,null,null,null,null,null,"","","",""]
[null,null,null,null,null,null,"","","",""]
[null,null,null,null,null,null,"","","",""]
[null,null,null,null,null,null,"","","",""]
[null,null,null,null,null,null,"","","",""]
[null,null,null,null,null,null,"","","",""]
[null,null,null,null,null,null,"","","",""]
[null,null,null,null,null,null,"","","",""]
[null,null,null,null,null,null,"","","",""]
[null,null,null,null,null,null,"","","",""]
[null,null,null,null,null,null,"","","",""]
[null,null,null,null,null,null,"","","",""]
[null,null,null,null,null,null,"","","",""]
[null,null,null,null,null,null,"","","",""]
[null,null,null,null,null,null,"","","",""]
[null,null,null,null,null,null,"","","",""]
[null,null,null,null,null,null,"","","",""]
[null,null,null,null,null,null,"","","",""]
[null,null,null,null,null,null,"","","",""]
[null,null,null,null,null,null,"","","",""]
[null,null,null,null,null,null,"","","",""]
[null,null,null,null,null,null,"","","",""]
[null,null,null,null,null,null,"","","",""]
[null,null,null,null,null,null,"","","",""]
[null,null,null,null,null,null,"","","",""]
[null,null,null,null,null,null,"","","",""]
[null,null,null,null,null,null,"","","",""]
[null,null,null,null,null,null,"","","",""]
[null,null,null,null,null,null,"","","",""]
[null,null,null,null,null,null,"","","",""]
[null,null,null,null,null,null,"","","",""]
[null,null,null,null,null,null,"","","",""]
[null,null,null,null,null,null,"","","",""]
[null,null,null,null,null,null,"","","",""]
[null,null,null,null,null,null,"","","",""]
[null,null,null,null,null,null,"","","",""]
[null,null,null,null,null,null,"","","",""]
[null,null,null,null,null,null,"","","",""]
[null,null,null,null,null,null,"","","",""]
[null,null,null,null,null,null,"","","",""]
[null,null,null,null,null,null,"","","",""]
[null,null,null,null,null,null,"","","",""]
[null,null,null,null,null,null,"","","",""]
[null,null,null,null,null,null,"","","",""]
[null,null,null,null,null,null,"","","",""]
[null,null,null,null,null,null,"","","",""]
[null,null,null,null,null,null,"","","",""]
[null,null,null,null,null,null,"","","",""]
[null,null,null,null,null,null,"","","",""]
[null,null,null,null,null,null,"","","",""]
[null,null,null,null,null,null,"","","",""]
[null,null,null,null,null,null,"","","",""]
[null,null,null,null,null,null,"","","",""]
[null,null,null,null,null,null,"","","",""]
[null,null,null,null,null,null,"","","",""]
[null,null,null,null,null,null,"","","",""]
[null,null,null,null,null,null,"","","",""]
[null,null,null,null,null,null,"","","",""]
[null,null,null,null,null,null,"","","",""]
[null,null,null,null,null,null,"","","",""]
[null,null,null,null,null,null,"","","",""]
[null,null,null,null,null,null,{"$f":"IF(ISBLANK(A1602),\"\",VLOOKUP(A1602,FLEET_SITE_LU,2,FALSE))","v":""},{"$f":"IF(ISBLANK(B1602),\"\",VLOOKUP(B1602,POSITION_ID_FLEET,2,FALSE))","v":""},{"$f":"IF(ISBLANK(D1602),\"\",VLOOKUP(D1602,UNIT_LU,2,FALSE))","v":""},{"$f":"IF(ISBLANK(E1602),\"\",VALUE(TEXT(E1602,\"YYYYMM\")))","v":""}]
[null,null,null,null,null,null,"","","",""]
[null,null,null,null,null,null,"","","",""]
[null,null,null,null,null,null,"","","",""]
[null,null,null,null,null,null,"","","",""]
[null,null,null,null,null,null,"","","",""]
[null,null,null,null,null,null,"","","",""]
[null,null,null,null,null,null,"","","",""]
[null,null,null,null,null,null,"","","",""]
[null,null,null,null,null,null,"","","",""]
[null,null,null,null,null,null,"","","",""]
[null,null,null,null,null,null,"","","",""]
[null,null,null,null,null,null,"","","",""]
[null,null,null,null,null,null,"","","",""]
[null,null,null,null,null,null,"","","",""]
[null,null,null,null,null,null,"","","",""]
[null,null,null,null,null,null,"","","",""]
[null,null,null,null,null,null,"","","",""]
[null,null,null,null,null,null,"","","",""]
[null,null,null,null,null,null,"","","",""]
[null,null,null,null,null,null,"","","",""]
[null,null,null,null,null,null,"","","",""]
[null,null,null,null,null,null,"","","",""]
[null,null,null,null,null,null,"","","",""]
[null,null,null,null,null,null,"","","",""]
[null,null,null,null,null,null,"","","",""]
[null,null,null,null,null,null,"","","",""]
[null,null,null,null,null,null,"","","",""]
[null,null,null,null,null,null,"","","",""]
[null,null,null,null,null,null,"","","",""]
[null,null,null,null,null,null,"","","",""]
[null,null,null,null,null,null,"","","",""]
[null,null,null,null,null,null,"","","",""]
[null,null,null,null,null,null,"","","",""]
[null,null,null,null,null,null,"","","",""]
[null,null,null,null,null,null,"","","",""]
[null,null,null,null,null,null,"","","",""]
[null,null,null,null,null,null,"","","",""]
[null,null,null,null,null,null,"","","",""]
[null,null,null,null,null,null,"","","",""]
[null,null,null,null,null,null,"","","",""]
[null,null,null,null,null,null,"","","",""]
[null,null,null,null,null,null,"","","",""]
[null,null,null,null,null,null,"","","",""]
[null,null,null,null,null,null,"","","",""]
[null,null,null,null,null,null,"","","",""]
[null,null,null,null,null,null,"","","",""]
[null,null,null,null,null,null,"","","",""]
[null,null,null,null,null,null,"","","",""]
[null,null,null,null,null,null,"","","",""]
[null,null,null,null,null,null,"","","",""]
[null,null,null,null,null,null,"","","",""]
[null,null,null,null,null,null,"","","",""]
[null,null,null,null,null,null,"","","",""]
[null,null,null,null,null,null,"","","",""]
[null,null,null,null,null,null,"","","",""]
[null,null,null,null,null,null,"","","",""]
[null,null,null,null,null,null,"","","",""]
[null,null,null,null,null,null,"","","",""]
[null,null,null,null,null,null,"","","",""]
[null,null,null,null,null,null,"","","",""]
[null,null,null,null,null,null,"","","",""]
[null,null,null,null,null,null,"","","",""]
[null,null,null,null,null,null,"","","",""]
[null,null,null,null,null,null,{"$f":"IF(ISBLANK(A1666),\"\",VLOOKUP(A1666,FLEET_SITE_LU,2,FALSE))","v":""},{"$f":"IF(ISBLANK(B1666),\"\",VLOOKUP(B1666,POSITION_ID_FLEET,2,FALSE))","v":""},{"$f":"IF(ISBLANK(D1666),\"\",VLOOKUP(D1666,UNIT_LU,2,FALSE))","v":""},{"$f":"IF(ISBLANK(E1666),\"\",VALUE(TEXT(E1666,\"YYYYMM\")))","v":""}]
[null,null,null,null,null,null,"","","",""]
[null,null,null,null,null,null,"","","",""]
[null,null,null,null,null,null,"","","",""]
[null,null,null,null,null,null,"","","",""]
[null,null,null,null,null,null,"","","",""]
[null,null,null,null,null,null,"","","",""]
[null,null,null,null,null,null,"","","",""]
[null,null,null,null,null,null,"","","",""]
[null,null,null,null,null,null,"","","",""]
[null,null,null,null,null,null,"","","",""]
[null,null,null,null,null,null,"","","",""]
[null,null,null,null,null,null,"","","",""]
[null,null,null,null,null,null,"","","",""]
[null,null,null,null,null,null,"","","",""]
[null,null,null,null,null,null,"","","",""]
[null,null,null,null,null,null,"","","",""]
[null,null,null,null,null,null,"","","",""]
[null,null,null,null,null,null,"","","",""]
[null,null,null,null,null,null,"","","",""]
[null,null,null,null,null,null,"","","",""]
[null,null,null,null,null,null,"","","",""]
[null,null,null,null,null,null,"","","",""]
[null,null,null,null,null,null,"","","",""]
[null,null,null,null,null,null,"","","",""]
[null,null,null,null,null,null,"","","",""]
[null,null,null,null,null,null,"","","",""]
[null,null,null,null,null,null,"","","",""]
[null,null,null,null,null,null,"","","",""]
[null,null,null,null,null,null,"","","",""]
[null,null,null,null,null,null,"","","",""]
[null,null,null,null,null,null,"","","",""]
[null,null,null,null,null,null,"","","",""]
[null,null,null,null,null,null,"","","",""]
[null,null,null,null,null,null,"","","",""]
[null,null,null,null,null,null,"","","",""]
[null,null,null,null,null,null,"","","",""]
[null,null,null,null,null,null,"","","",""]
[null,null,null,null,null,null,"","","",""]
[null,null,null,null,null,null,"","","",""]
[null,null,null,null,null,null,"","","",""]
[null,null,null,null,null,null,"","","",""]
[null,null,null,null,null,null,"","","",""]
[null,null,null,null,null,null,"","","",""]
[null,null,null,null,null,null,"","","",""]
[null,null,null,null,null,null,"","","",""]
[null,null,null,null,null,null,"","","",""]
[null,null,null,null,null,null,"","","",""]
[null,null,null,null,null,null,"","","",""]
[null,null,null,null,null,null,"","","",""]
[null,null,null,null,null,null,"","","",""]
[null,null,null,null,null,null,"","","",""]
[null,null,null,null,null,null,"","","",""]
[null,null,null,null,null,null,"","","",""]
[null,null,null,null,null,null,"","","",""]
[null,null,null,null,null,null,"","","",""]
[null,null,null,null,null,null,"","","",""]
[null,null,null,null,null,null,"","","",""]
[null,null,null,null,null,null,"","","",""]
[null,null,null,null,null,null,"","","",""]
[null,null,null,null,null,null,"","","",""]
[null,null,null,null,null,null,"","","",""]
[null,null,null,null,null,null,"","","",""]
[null,null,null,null,null,null,"","","",""]
[null,null,null,null,null,null,{"$f":"IF(ISBLANK(A1730),\"\",VLOOKUP(A1730,FLEET_SITE_LU,2,FALSE))","v":""},{"$f":"IF(ISBLANK(B1730),\"\",VLOOKUP(B1730,POSITION_ID_FLEET,2,FALSE))","v":""},{"$f":"IF(ISBLANK(D1730),\"\",VLOOKUP(D1730,UNIT_LU,2,FALSE))","v":""},{"$f":"IF(ISBLANK(E1730),\"\",VALUE(TEXT(E1730,\"YYYYMM\")))","v":""}]
[null,null,null,null,null,null,"","","",""]
[null,null,null,null,null,null,"","","",""]
[null,null,null,null,null,null,"","","",""]
[null,null,null,null,null,null,"","","",""]
[null,null,null,null,null,null,"","","",""]
[null,null,null,null,null,null,"","","",""]
[null,null,null,null,null,null,"","","",""]
[null,null,null,null,null,null,"","","",""]
[null,null,null,null,null,null,"","","",""]
[null,null,null,null,null,null,"","","",""]
[null,null,null,null,null,null,"","","",""]
[null,null,null,null,null,null,"","","",""]
[null,null,null,null,null,null,"","","",""]
[null,null,null,null,null,null,"","","",""]
[null,null,null,null,null,null,"","","",""]
[null,null,null,null,null,null,"","","",""]
[null,null,null,null,null,null,"","","",""]
[null,null,null,null,null,null,"","","",""]
[null,null,null,null,null,null,"","","",""]
[null,null,null,null,null,null,"","","",""]
[null,null,null,null,null,null,"","","",""]
[null,null,null,null,null,null,"","","",""]
[null,null,null,null,null,null,"","","",""]
[null,null,null,null,null,null,"","","",""]
[null,null,null,null,null,null,"","","",""]
[null,null,null,null,null,null,"","","",""]
[null,null,null,null,null,null,"","","",""]
[null,null,null,null,null,null,"","","",""]
[null,null,null,null,null,null,"","","",""]
[null,null,null,null,null,null,"","","",""]
[null,null,null,null,null,null,"","","",""]
[null,null,null,null,null,null,"","","",""]
[null,null,null,null,null,null,"","","",""]
[null,null,null,null,null,null,"","","",""]
[null,null,null,null,null,null,"","","",""]
[null,null,null,null,null,null,"","","",""]
[null,null,null,null,null,null,"","","",""]
[null,null,null,null,null,null,"","","",""]
[null,null,null,null,null,null,"","","",""]
[null,null,null,null,null,null,"","","",""]
[null,null,null,null,null,null,"","","",""]
[null,null,null,null,null,null,"","","",""]
[null,null,null,null,null,null,"","","",""]
[null,null,null,null,null,null,"","","",""]
[null,null,null,null,null,null,"","","",""]
[null,null,null,null,null,null,"","","",""]
[null,null,null,null,null,null,"","","",""]
[null,null,null,null,null,null,"","","",""]
[null,null,null,null,null,null,"","","",""]
[null,null,null,null,null,null,"","","",""]
[null,null,null,null,null,null,"","","",""]
[null,null,null,null,null,null,"","","",""]
[null,null,null,null,null,null,"","","",""]
[null,null,null,null,null,null,"","","",""]
[null,null,null,null,null,null,"","","",""]
[null,null,null,null,null,null,"","","",""]
[null,null,null,null,null,null,"","","",""]
[null,null,null,null,null,null,"","","",""]
[null,null,null,null,null,null,"","","",""]
[null,null,null,null,null,null,"","","",""]
[null,null,null,null,null,null,"","","",""]
[null,null,null,null,null,null,"","","",""]
[null,null,null,null,null,null,"","","",""]
[null,null,null,null,null,null,{"$f":"IF(ISBLANK(A1794),\"\",VLOOKUP(A1794,FLEET_SITE_LU,2,FALSE))","v":""},{"$f":"IF(ISBLANK(B1794),\"\",VLOOKUP(B1794,POSITION_ID_FLEET,2,FALSE))","v":""},{"$f":"IF(ISBLANK(D1794),\"\",VLOOKUP(D1794,UNIT_LU,2,FALSE))","v":""},{"$f":"IF(ISBLANK(E1794),\"\",VALUE(TEXT(E1794,\"YYYYMM\")))","v":""}]
[null,null,null,null,null,null,"","","",""]
[null,null,null,null,null,null,"","","",""]
[null,null,null,null,null,null,"","","",""]
[null,null,null,null,null,null,"","","",""]
[null,null,null,null,null,null,"","","",""]
[null,null,null,null,null,null,"","","",""]
[null,null,null,null,null,null,"","","",""]
[null,null,null,null,null,null,"","","",""]
[null,null,null,null,null,null,"","","",""]
[null,null,null,null,null,null,"","","",""]
[null,null,null,null,null,null,"","","",""]
[null,null,null,null,null,null,"","","",""]
[null,null,null,null,null,null,"","","",""]
[null,null,null,null,null,null,"","","",""]
[null,null,null,null,null,null,"","","",""]
[null,null,null,null,null,null,"","","",""]
[null,null,null,null,null,null,"","","",""]
[null,null,null,null,null,null,"","","",""]
[null,null,null,null,null,null,"","","",""]
[null,null,null,null,null,null,"","","",""]
[null,null,null,null,null,null,"","","",""]
[null,null,null,null,null,null,"","","",""]
[null,null,null,null,null,null,"","","",""]
[null,null,null,null,null,null,"","","",""]
[null,null,null,null,null,null,"","","",""]
[null,null,null,null,null,null,"","","",""]
[null,null,null,null,null,null,"","","",""]
[null,null,null,null,null,null,"","","",""]
[null,null,null,null,null,null,"","","",""]
[null,null,null,null,null,null,"","","",""]
[null,null,null,null,null,null,"","","",""]
[null,null,null,null,null,null,"","","",""]
[null,null,null,null,null,null,"","","",""]
[null,null,null,null,null,null,"","","",""]
[null,null,null,null,null,null,"","","",""]
[null,null,null,null,null,null,"","","",""]
[null,null,null,null,null,null,"","","",""]
[null,null,null,null,null,null,"","","",""]
[null,null,null,null,null,null,"","","",""]
[null,null,null,null,null,null,"","","",""]
[null,null,null,null,null,null,"","","",""]
[null,null,null,null,null,null,"","","",""]
[null,null,null,null,null,null,"","","",""]
[null,null,null,null,null,null,"","","",""]
[null,null,null,null,null,null,"","","",""]
[null,null,null,null,null,null,"","","",""]
[null,null,null,null,null,null,"","","",""]
[null,null,null,null,null,null,"","","",""]
[null,null,null,null,null,null,"","","",""]
[null,null,null,null,null,null,"","","",""]
[null,null,null,null,null,null,"","","",""]
[null,null,null,null,null,null,"","","",""]
[null,null,null,null,null,null,"","","",""]
[null,null,null,null,null,null,"","","",""]
[null,null,null,null,null,null,"","","",""]
[null,null,null,null,null,null,"","","",""]
[null,null,null,null,null,null,"","","",""]
[null,null,null,null,null,null,"","","",""]
[null,null,null,null,null,null,"","","",""]
[null,null,null,null,null,null,"","","",""]
[null,null,null,null,null,null,"","","",""]
[null,null,null,null,null,null,"","","",""]
[null,null,null,null,null,null,"","","",""]
[null,null,null,null,null,null,{"$f":"IF(ISBLANK(A1858),\"\",VLOOKUP(A1858,FLEET_SITE_LU,2,FALSE))","v":""},{"$f":"IF(ISBLANK(B1858),\"\",VLOOKUP(B1858,POSITION_ID_FLEET,2,FALSE))","v":""},{"$f":"IF(ISBLANK(D1858),\"\",VLOOKUP(D1858,UNIT_LU,2,FALSE))","v":""},{"$f":"IF(ISBLANK(E1858),\"\",VALUE(TEXT(E1858,\"YYYYMM\")))","v":""}]
[null,null,null,null,null,null,"","","",""]
[null,null,null,null,null,null,"","","",""]
[null,null,null,null,null,null,"","","",""]
[null,null,null,null,null,null,"","","",""]
[null,null,null,null,null,null,"","","",""]
[null,null,null,null,null,null,"","","",""]
[null,null,null,null,null,null,"","","",""]
[null,null,null,null,null,null,"","","",""]
[null,null,null,null,null,null,"","","",""]
[null,null,null,null,null,null,"","","",""]
[null,null,null,null,null,null,"","","",""]
[null,null,null,null,null,null,"","","",""]
[null,null,null,null,null,null,"","","",""]
[null,null,null,null,null,null,"","","",""]
[null,null,null,null,null,null,"","","",""]
[null,null,null,null,null,null,"","","",""]
[null,null,null,null,null,null,"","","",""]
[null,null,null,null,null,null,"","","",""]
[null,null,null,null,null,null,"","","",""]
[null,null,null,null,null,null,"","","",""]
[null,null,null,null,null,null,"","","",""]
[null,null,null,null,null,null,"","","",""]
[null,null,null,null,null,null,"","","",""]
[null,null,null,null,null,null,"","","",""]
[null,null,null,null,null,null,"","","",""]
[null,null,null,null,null,null,"","","",""]
[null,null,null,null,null,null,"","","",""]
[null,null,null,null,null,null,"","","",""]
[null,null,null,null,null,null,"","","",""]
[null,null,null,null,null,null,"","","",""]
[null,null,null,null,null,null,"","","",""]
[null,null,null,null,null,null,"","","",""]
[null,null,null,null,null,null,"","","",""]
[null,null,null,null,null,null,"","","",""]
[null,null,null,null,null,null,"","","",""]
[null,null,null,null,null,null,"","","",""]
[null,null,null,null,null,null,"","","",""]
[null,null,null,null,null,null,"","","",""]
[null,null,null,null,null,null,"","","",""]
[null,null,null,null,null,null,"","","",""]
[null,null,null,null,null,null,"","","",""]
[null,null,null,null,null,null,"","","",""]
[null,null,null,null,null,null,"","","",""]
[null,null,null,null,null,null,"","","",""]
[null,null,null,null,null,null,"","","",""]
[null,null,null,null,null,null,"","","",""]
[null,null,null,null,null,null,"","","",""]
[null,null,null,null,null,null,"","","",""]
[null,null,null,null,null,null,"","","",""]
[null,null,null,null,null,null,"","","",""]
[null,null,null,null,null,null,"","","",""]
[null,null,null,null,null,null,"","","",""]
[null,null,null,null,null,null,"","","",""]
[null,null,null,null,null,null,"","","",""]
[null,null,null,null,null,null,"","","",""]
[null,null,null,null,null,null,"","","",""]
[null,null,null,null,null,null,"","","",""]
[null,null,null,null,null,null,"","","",""]
[null,null,null,null,null,null,"","","",""]
[null,null,null,null,null,null,"","","",""]
[null,null,null,null,null,null,"","","",""]
[null,null,null,null,null,null,"","","",""]
[null,null,null,null,null,null,"","","",""]
[null,null,null,null,null,null,{"$f":"IF(ISBLANK(A1922),\"\",VLOOKUP(A1922,FLEET_SITE_LU,2,FALSE))","v":""},{"$f":"IF(ISBLANK(B1922),\"\",VLOOKUP(B1922,POSITION_ID_FLEET,2,FALSE))","v":""},{"$f":"IF(ISBLANK(D1922),\"\",VLOOKUP(D1922,UNIT_LU,2,FALSE))","v":""},{"$f":"IF(ISBLANK(E1922),\"\",VALUE(TEXT(E1922,\"YYYYMM\")))","v":""}]
[null,null,null,null,null,null,"","","",""]
[null,null,null,null,null,null,"","","",""]
[null,null,null,null,null,null,"","","",""]
[null,null,null,null,null,null,"","","",""]
[null,null,null,null,null,null,"","","",""]
[null,null,null,null,null,null,"","","",""]
[null,null,null,null,null,null,"","","",""]
[null,null,null,null,null,null,"","","",""]
[null,null,null,null,null,null,"","","",""]
[null,null,null,null,null,null,"","","",""]
[null,null,null,null,null,null,"","","",""]
[null,null,null,null,null,null,"","","",""]
[null,null,null,null,null,null,"","","",""]
[null,null,null,null,null,null,"","","",""]
[null,null,null,null,null,null,"","","",""]
[null,null,null,null,null,null,"","","",""]
[null,null,null,null,null,null,"","","",""]
[null,null,null,null,null,null,"","","",""]
[null,null,null,null,null,null,"","","",""]
[null,null,null,null,null,null,"","","",""]
[null,null,null,null,null,null,"","","",""]
[null,null,null,null,null,null,"","","",""]
[null,null,null,null,null,null,"","","",""]
[null,null,null,null,null,null,"","","",""]
[null,null,null,null,null,null,"","","",""]
[null,null,null,null,null,null,"","","",""]
[null,null,null,null,null,null,"","","",""]
[null,null,null,null,null,null,"","","",""]
[null,null,null,null,null,null,"","","",""]
[null,null,null,null,null,null,"","","",""]
[null,null,null,null,null,null,"","","",""]
[null,null,null,null,null,null,"","","",""]
[null,null,null,null,null,null,"","","",""]
[null,null,null,null,null,null,"","","",""]
[null,null,null,null,null,null,"","","",""]
[null,null,null,null,null,null,"","","",""]
[null,null,null,null,null,null,"","","",""]
[null,null,null,null,null,null,"","","",""]
[null,null,null,null,null,null,"","","",""]
[null,null,null,null,null,null,"","","",""]
[null,null,null,null,null,null,"","","",""]
[null,null,null,null,null,null,"","","",""]
[null,null,null,null,null,null,"","","",""]
[null,null,null,null,null,null,"","","",""]
[null,null,null,null,null,null,"","","",""]
[null,null,null,null,null,null,"","","",""]
[null,null,null,null,null,null,"","","",""]
[null,null,null,null,null,null,"","","",""]
[null,null,null,null,null,null,"","","",""]
[null,null,null,null,null,null,"","","",""]
[null,null,null,null,null,null,"","","",""]
[null,null,null,null,null,null,"","","",""]
[null,null,null,null,null,null,"","","",""]
[null,null,null,null,null,null,"","","",""]
[null,null,null,null,null,null,"","","",""]
[null,null,null,null,null,null,"","","",""]
[null,null,null,null,null,null,"","","",""]
[null,null,null,null,null,null,"","","",""]
[null,null,null,null,null,null,"","","",""]
[null,null,null,null,null,null,"","","",""]
[null,null,null,null,null,null,"","","",""]
[null,null,null,null,null,null,"","","",""]
[null,null,null,null,null,null,"","","",""]
[null,null,null,null,null,null,{"$f":"IF(ISBLANK(A1986),\"\",VLOOKUP(A1986,FLEET_SITE_LU,2,FALSE))","v":""},{"$f":"IF(ISBLANK(B1986),\"\",VLOOKUP(B1986,POSITION_ID_FLEET,2,FALSE))","v":""},{"$f":"IF(ISBLANK(D1986),\"\",VLOOKUP(D1986,UNIT_LU,2,FALSE))","v":""},{"$f":"IF(ISBLANK(E1986),\"\",VALUE(TEXT(E1986,\"YYYYMM\")))","v":""}]
[null,null,null,null,null,null,"","","",""]
[null,null,null,null,null,null,"","","",""]
[null,null,null,null,null,null,"","","",""]
[null,null,null,null,null,null,"","","",""]
[null,null,null,null,null,null,"","","",""]
[null,null,null,null,null,null,"","","",""]
[null,null,null,null,null,null,"","","",""]
[null,null,null,null,null,null,"","","",""]
[null,null,null,null,null,null,"","","",""]
[null,null,null,null,null,null,"","","",""]
[null,null,null,null,null,null,"","","",""]
[null,null,null,null,null,null,"","","",""]
[null,null,null,null,null,null,"","","",""]
[null,null,null,null,null,null,"","","",""]
[null,null,null,null,null,null,"","","",""]
[null,null,null,null,null,null,"","","",""]
[null,null,null,null,null,null,"","","",""]
[null,null,null,null,null,null,"","","",""]
[null,null,null,null,null,null,"","","",""]
[null,null,null,null,null,null,"","","",""]
[null,null,null,null,null,null,"","","",""]
[null,null,null,null,null,null,"","","",""]
[null,null,null,null,null,null,"","","",""]
[null,null,null,null,null,null,"","","",""]
[null,null,null,null,null,null,"","","",""]
[null,null,null,null,null,null,"","","",""]
[null,null,null,null,null,null,"","","",""]
[null,null,null,null,null,null,"","","",""]
[null,null,null,null,null,null,"","","",""]
[null,null,null,null,null,null,"","","",""]
[null,null,null,null,null,null,"","","",""]
[null,null,null,null,null,null,"","","",""]
[null,null,null,null,null,null,"","","",""]
[null,null,null,null,null,null,"","","",""]
[null,null,null,null,null,null,"","","",""]
[null,null,null,null,null,null,"","","",""]
[null,null,null,null,null,null,"","","",""]
[null,null,null,null,null,null,"","","",""]
[null,null,null,null,null,null,"","","",""]
[null,null,null,null,null,null,"","","",""]
[null,null,null,null,null,null,"","","",""]
[null,null,null,null,null,null,"","","",""]
[null,null,null,null,null,null,"","","",""]
[null,null,null,null,null,null,"","","",""]
[null,null,null,null,null,null,"","","",""]
[null,null,null,null,null,null,"","","",""]
[null,null,null,null,null,null,"","","",""]
[null,null,null,null,null,null,"","","",""]
[null,null,null,null,null,null,"","","",""]
[null,null,null,null,null,null,"","","",""]
[null,null,null,null,null,null,"","","",""]
[null,null,null,null,null,null,"","","",""]
[null,null,null,null,null,null,"","","",""]
[null,null,null,null,null,null,"","","",""]
[null,null,null,null,null,null,"","","",""]
[null,null,null,null,null,null,"","","",""]
[null,null,null,null,null,null,"","","",""]
[null,null,null,null,null,null,"","","",""]
[null,null,null,null,null,null,"","","",""]
[null,null,null,null,null,null,"","","",""]
[null,null,null,null,null,null,"","","",""]
[null,null,null,null,null,null,"","","",""]
[null,null,null,null,null,null,"","","",""]
[null,null,null,null,null,null,{"$f":"IF(ISBLANK(A2050),\"\",VLOOKUP(A2050,FLEET_SITE_LU,2,FALSE))","v":""},{"$f":"IF(ISBLANK(B2050),\"\",VLOOKUP(B2050,POSITION_ID_FLEET,2,FALSE))","v":""},{"$f":"IF(ISBLANK(D2050),\"\",VLOOKUP(D2050,UNIT_LU,2,FALSE))","v":""},{"$f":"IF(ISBLANK(E2050),\"\",VALUE(TEXT(E2050,\"YYYYMM\")))","v":""}]
[null,null,null,null,null,null,"","","",""]
[null,null,null,null,null,null,"","","",""]
[null,null,null,null,null,null,"","","",""]
[null,null,null,null,null,null,"","","",""]
[null,null,null,null,null,null,"","","",""]
[null,null,null,null,null,null,"","","",""]
[null,null,null,null,null,null,"","","",""]
[null,null,null,null,null,null,"","","",""]
[null,null,null,null,null,null,"","","",""]
[null,null,null,null,null,null,"","","",""]
[null,null,null,null,null,null,"","","",""]
[null,null,null,null,null,null,"","","",""]
[null,null,null,null,null,null,"","","",""]
[null,null,null,null,null,null,"","","",""]
[null,null,null,null,null,null,"","","",""]
[null,null,null,null,null,null,"","","",""]
[null,null,null,null,null,null,"","","",""]
[null,null,null,null,null,null,"","","",""]
[null,null,null,null,null,null,"","","",""]
[null,null,null,null,null,null,"","","",""]
[null,null,null,null,null,null,"","","",""]
[null,null,null,null,null,null,"","","",""]
[null,null,null,null,null,null,"","","",""]
[null,null,null,null,null,null,"","","",""]
[null,null,null,null,null,null,"","","",""]
[null,null,null,null,null,null,"","","",""]
[null,null,null,null,null,null,"","","",""]
[null,null,null,null,null,null,"","","",""]
[null,null,null,null,null,null,"","","",""]
[null,null,null,null,null,null,"","","",""]
[null,null,null,null,null,null,"","","",""]
[null,null,null,null,null,null,"","","",""]
[null,null,null,null,null,null,"","","",""]
[null,null,null,null,null,null,"","","",""]
[null,null,null,null,null,null,"","","",""]
[null,null,null,null,null,null,"","","",""]
[null,null,null,null,null,null,"","","",""]
[null,null,null,null,null,null,"","","",""]
[null,null,null,null,null,null,"","","",""]
[null,null,null,null,null,null,"","","",""]
[null,null,null,null,null,null,"","","",""]
[null,null,null,null,null,null,"","","",""]
[null,null,null,null,null,null,"","","",""]
[null,null,null,null,null,null,"","","",""]
[null,null,null,null,null,null,"","","",""]
[null,null,null,null,null,null,"","","",""]
[null,null,null,null,null,null,"","","",""]
[null,null,null,null,null,null,"","","",""]
[null,null,null,null,null,null,"","","",""]
[null,null,null,null,null,null,"","","",""]
[null,null,null,null,null,null,"","","",""]
[null,null,null,null,null,null,"","","",""]
[null,null,null,null,null,null,"","","",""]
[null,null,null,null,null,null,"","","",""]
[null,null,null,null,null,null,"","","",""]
[null,null,null,null,null,null,"","","",""]
[null,null,null,null,null,null,"","","",""]
[null,null,null,null,null,null,"","","",""]
[null,null,null,null,null,null,"","","",""]
[null,null,null,null,null,null,"","","",""]
[null,null,null,null,null,null,"","","",""]
[null,null,null,null,null,null,"","","",""]
[null,null,null,null,null,null,"","","",""]
[null,null,null,null,null,null,{"$f":"IF(ISBLANK(A2114),\"\",VLOOKUP(A2114,FLEET_SITE_LU,2,FALSE))","v":""},{"$f":"IF(ISBLANK(B2114),\"\",VLOOKUP(B2114,POSITION_ID_FLEET,2,FALSE))","v":""},{"$f":"IF(ISBLANK(D2114),\"\",VLOOKUP(D2114,UNIT_LU,2,FALSE))","v":""},{"$f":"IF(ISBLANK(E2114),\"\",VALUE(TEXT(E2114,\"YYYYMM\")))","v":""}]
[null,null,null,null,null,null,"","","",""]
[null,null,null,null,null,null,"","","",""]
[null,null,null,null,null,null,"","","",""]
[null,null,null,null,null,null,"","","",""]
[null,null,null,null,null,null,"","","",""]
[null,null,null,null,null,null,"","","",""]
[null,null,null,null,null,null,"","","",""]
[null,null,null,null,null,null,"","","",""]
[null,null,null,null,null,null,"","","",""]
[null,null,null,null,null,null,"","","",""]
[null,null,null,null,null,null,"","","",""]
[null,null,null,null,null,null,"","","",""]
[null,null,null,null,null,null,"","","",""]
[null,null,null,null,null,null,"","","",""]
[null,null,null,null,null,null,"","","",""]
[null,null,null,null,null,null,"","","",""]
[null,null,null,null,null,null,"","","",""]
[null,null,null,null,null,null,"","","",""]
[null,null,null,null,null,null,"","","",""]
[null,null,null,null,null,null,"","","",""]
[null,null,null,null,null,null,"","","",""]
[null,null,null,null,null,null,"","","",""]
[null,null,null,null,null,null,"","","",""]
[null,null,null,null,null,null,"","","",""]
[null,null,null,null,null,null,"","","",""]
[null,null,null,null,null,null,"","","",""]
[null,null,null,null,null,null,"","","",""]
[null,null,null,null,null,null,"","","",""]
[null,null,null,null,null,null,"","","",""]
[null,null,null,null,null,null,"","","",""]
[null,null,null,null,null,null,"","","",""]
[null,null,null,null,null,null,"","","",""]
[null,null,null,null,null,null,"","","",""]
[null,null,null,null,null,null,"","","",""]
[null,null,null,null,null,null,"","","",""]
[null,null,null,null,null,null,"","","",""]
[null,null,null,null,null,null,"","","",""]
[null,null,null,null,null,null,"","","",""]
[null,null,null,null,null,null,"","","",""]
[null,null,null,null,null,null,"","","",""]
[null,null,null,null,null,null,"","","",""]
[null,null,null,null,null,null,"","","",""]
[null,null,null,null,null,null,"","","",""]
[null,null,null,null,null,null,"","","",""]
[null,null,null,null,null,null,"","","",""]
[null,null,null,null,null,null,"","","",""]
[null,null,null,null,null,null,"","","",""]
[null,null,null,null,null,null,"","","",""]
[null,null,null,null,null,null,"","","",""]
[null,null,null,null,null,null,"","","",""]
[null,null,null,null,null,null,"","","",""]
[null,null,null,null,null,null,"","","",""]
[null,null,null,null,null,null,"","","",""]
[null,null,null,null,null,null,"","","",""]
[null,null,null,null,null,null,"","","",""]
[null,null,null,null,null,null,"","","",""]
[null,null,null,null,null,null,"","","",""]
[null,null,null,null,null,null,"","","",""]
[null,null,null,null,null,null,"","","",""]
[null,null,null,null,null,null,"","","",""]
[null,null,null,null,null,null,"","","",""]
[null,null,null,null,null,null,"","","",""]
[null,null,null,null,null,null,"","","",""]
[null,null,null,null,null,null,{"$f":"IF(ISBLANK(A2178),\"\",VLOOKUP(A2178,FLEET_SITE_LU,2,FALSE))","v":""},{"$f":"IF(ISBLANK(B2178),\"\",VLOOKUP(B2178,POSITION_ID_FLEET,2,FALSE))","v":""},{"$f":"IF(ISBLANK(D2178),\"\",VLOOKUP(D2178,UNIT_LU,2,FALSE))","v":""},{"$f":"IF(ISBLANK(E2178),\"\",VALUE(TEXT(E2178,\"YYYYMM\")))","v":""}]
[null,null,null,null,null,null,"","","",""]
[null,null,null,null,null,null,"","","",""]
[null,null,null,null,null,null,"","","",""]
[null,null,null,null,null,null,"","","",""]
[null,null,null,null,null,null,"","","",""]
[null,null,null,null,null,null,"","","",""]
[null,null,null,null,null,null,"","","",""]
[null,null,null,null,null,null,"","","",""]
[null,null,null,null,null,null,"","","",""]
[null,null,null,null,null,null,"","","",""]
[null,null,null,null,null,null,"","","",""]
[null,null,null,null,null,null,"","","",""]
[null,null,null,null,null,null,"","","",""]
[null,null,null,null,null,null,"","","",""]
[null,null,null,null,null,null,"","","",""]
[null,null,null,null,null,null,"","","",""]
[null,null,null,null,null,null,"","","",""]
[null,null,null,null,null,null,"","","",""]
[null,null,null,null,null,null,"","","",""]
[null,null,null,null,null,null,"","","",""]
[null,null,null,null,null,null,"","","",""]
[null,null,null,null,null,null,"","","",""]
[null,null,null,null,null,null,"","","",""]
[null,null,null,null,null,null,"","","",""]
[null,null,null,null,null,null,"","","",""]
[null,null,null,null,null,null,"","","",""]
[null,null,null,null,null,null,"","","",""]
[null,null,null,null,null,null,"","","",""]
[null,null,null,null,null,null,"","","",""]
[null,null,null,null,null,null,"","","",""]
[null,null,null,null,null,null,"","","",""]
[null,null,null,null,null,null,"","","",""]
[null,null,null,null,null,null,"","","",""]
[null,null,null,null,null,null,"","","",""]
[null,null,null,null,null,null,"","","",""]
[null,null,null,null,null,null,"","","",""]
[null,null,null,null,null,null,"","","",""]
[null,null,null,null,null,null,"","","",""]
[null,null,null,null,null,null,"","","",""]
[null,null,null,null,null,null,"","","",""]
[null,null,null,null,null,null,"","","",""]
[null,null,null,null,null,null,"","","",""]
[null,null,null,null,null,null,"","","",""]
[null,null,null,null,null,null,"","","",""]
[null,null,null,null,null,null,"","","",""]
[null,null,null,null,null,null,"","","",""]
[null,null,null,null,null,null,"","","",""]
[null,null,null,null,null,null,"","","",""]
[null,null,null,null,null,null,"","","",""]
[null,null,null,null,null,null,"","","",""]
[null,null,null,null,null,null,"","","",""]
[null,null,null,null,null,null,"","","",""]
[null,null,null,null,null,null,"","","",""]
[null,null,null,null,null,null,"","","",""]
[null,null,null,null,null,null,"","","",""]
[null,null,null,null,null,null,"","","",""]
[null,null,null,null,null,null,"","","",""]
[null,null,null,null,null,null,"","","",""]
[null,null,null,null,null,null,"","","",""]
[null,null,null,null,null,null,"","","",""]
[null,null,null,null,null,null,"","","",""]
[null,null,null,null,null,null,"","","",""]
[null,null,null,null,null,null,"","","",""]
[null,null,null,null,null,null,{"$f":"IF(ISBLANK(A2242),\"\",VLOOKUP(A2242,FLEET_SITE_LU,2,FALSE))","v":""},{"$f":"IF(ISBLANK(B2242),\"\",VLOOKUP(B2242,POSITION_ID_FLEET,2,FALSE))","v":""},{"$f":"IF(ISBLANK(D2242),\"\",VLOOKUP(D2242,UNIT_LU,2,FALSE))","v":""},{"$f":"IF(ISBLANK(E2242),\"\",VALUE(TEXT(E2242,\"YYYYMM\")))","v":""}]
[null,null,null,null,null,null,"","","",""]
[null,null,null,null,null,null,"","","",""]
[null,null,null,null,null,null,"","","",""]
[null,null,null,null,null,null,"","","",""]
[null,null,null,null,null,null,"","","",""]
[null,null,null,null,null,null,"","","",""]
[null,null,null,null,null,null,"","","",""]
[null,null,null,null,null,null,"","","",""]
[null,null,null,null,null,null,"","","",""]
[null,null,null,null,null,null,"","","",""]
[null,null,null,null,null,null,"","","",""]
[null,null,null,null,null,null,"","","",""]
[null,null,null,null,null,null,"","","",""]
[null,null,null,null,null,null,"","","",""]
[null,null,null,null,null,null,"","","",""]
[null,null,null,null,null,null,"","","",""]
[null,null,null,null,null,null,"","","",""]
[null,null,null,null,null,null,"","","",""]
[null,null,null,null,null,null,"","","",""]
[null,null,null,null,null,null,"","","",""]
[null,null,null,null,null,null,"","","",""]
[null,null,null,null,null,null,"","","",""]
[null,null,null,null,null,null,"","","",""]
[null,null,null,null,null,null,"","","",""]
[null,null,null,null,null,null,"","","",""]
[null,null,null,null,null,null,"","","",""]
[null,null,null,null,null,null,"","","",""]
[null,null,null,null,null,null,"","","",""]
[null,null,null,null,null,null,"","","",""]
[null,null,null,null,null,null,"","","",""]
[null,null,null,null,null,null,"","","",""]
[null,null,null,null,null,null,"","","",""]
[null,null,null,null,null,null,"","","",""]
[null,null,null,null,null,null,"","","",""]
[null,null,null,null,null,null,"","","",""]
[null,null,null,null,null,null,"","","",""]
[null,null,null,null,null,null,"","","",""]
[null,null,null,null,null,null,"","","",""]
[null,null,null,null,null,null,"","","",""]
[null,null,null,null,null,null,"","","",""]
[null,null,null,null,null,null,"","","",""]
[null,null,null,null,null,null,"","","",""]
[null,null,null,null,null,null,"","","",""]
[null,null,null,null,null,null,"","","",""]
[null,null,null,null,null,null,"","","",""]
[null,null,null,null,null,null,"","","",""]
[null,null,null,null,null,null,"","","",""]
[null,null,null,null,null,null,"","","",""]
[null,null,null,null,null,null,"","","",""]
[null,null,null,null,null,null,"","","",""]
[null,null,null,null,null,null,"","","",""]
[null,null,null,null,null,null,"","","",""]
[null,null,null,null,null,null,"","","",""]
[null,null,null,null,null,null,"","","",""]
[null,null,null,null,null,null,"","","",""]
[null,null,null,null,null,null,"","","",""]
[null,null,null,null,null,null,"","","",""]
[null,null,null,null,null,null,"","","",""]
[null,null,null,null,null,null,"","","",""]
[null,null,null,null,null,null,"","","",""]
[null,null,null,null,null,null,"","","",""]
[null,null,null,null,null,null,"","","",""]
[null,null,null,null,null,null,"","","",""]
[null,null,null,null,null,null,{"$f":"IF(ISBLANK(A2306),\"\",VLOOKUP(A2306,FLEET_SITE_LU,2,FALSE))","v":""},{"$f":"IF(ISBLANK(B2306),\"\",VLOOKUP(B2306,POSITION_ID_FLEET,2,FALSE))","v":""},{"$f":"IF(ISBLANK(D2306),\"\",VLOOKUP(D2306,UNIT_LU,2,FALSE))","v":""},{"$f":"IF(ISBLANK(E2306),\"\",VALUE(TEXT(E2306,\"YYYYMM\")))","v":""}]
[null,null,null,null,null,null,"","","",""]
[null,null,null,null,null,null,"","","",""]
[null,null,null,null,null,null,"","","",""]
[null,null,null,null,null,null,"","","",""]
[null,null,null,null,null,null,"","","",""]
[null,null,null,null,null,null,"","","",""]
[null,null,null,null,null,null,"","","",""]
[null,null,null,null,null,null,"","","",""]
[null,null,null,null,null,null,"","","",""]
[null,null,null,null,null,null,"","","",""]
[null,null,null,null,null,null,"","","",""]
[null,null,null,null,null,null,"","","",""]
[null,null,null,null,null,null,"","","",""]
[null,null,null,null,null,null,"","","",""]
[null,null,null,null,null,null,"","","",""]
[null,null,null,null,null,null,"","","",""]
[null,null,null,null,null,null,"","","",""]
[null,null,null,null,null,null,"","","",""]
[null,null,null,null,null,null,"","","",""]
[null,null,null,null,null,null,"","","",""]
[null,null,null,null,null,null,"","","",""]
[null,null,null,null,null,null,"","","",""]
[null,null,null,null,null,null,"","","",""]
[null,null,null,null,null,null,"","","",""]
[null,null,null,null,null,null,"","","",""]
[null,null,null,null,null,null,"","","",""]
[null,null,null,null,null,null,"","","",""]
[null,null,null,null,null,null,"","","",""]
[null,null,null,null,null,null,"","","",""]
[null,null,null,null,null,null,"","","",""]
[null,null,null,null,null,null,"","","",""]
[null,null,null,null,null,null,"","","",""]
[null,null,null,null,null,null,"","","",""]
[null,null,null,null,null,null,"","","",""]
[null,null,null,null,null,null,"","","",""]
[null,null,null,null,null,null,"","","",""]
[null,null,null,null,null,null,"","","",""]
[null,null,null,null,null,null,"","","",""]
[null,null,null,null,null,null,"","","",""]
[null,null,null,null,null,null,"","","",""]
[null,null,null,null,null,null,"","","",""]
[null,null,null,null,null,null,"","","",""]
[null,null,null,null,null,null,"","","",""]
[null,null,null,null,null,null,"","","",""]
[null,null,null,null,null,null,"","","",""]
[null,null,null,null,null,null,"","","",""]
[null,null,null,null,null,null,"","","",""]
[null,null,null,null,null,null,"","","",""]
[null,null,null,null,null,null,"","","",""]
[null,null,null,null,null,null,"","","",""]
[null,null,null,null,null,null,"","","",""]
[null,null,null,null,null,null,"","","",""]
[null,null,null,null,null,null,"","","",""]
[null,null,null,null,null,null,"","","",""]
[null,null,null,null,null,null,"","","",""]
[null,null,null,null,null,null,"","","",""]
[null,null,null,null,null,null,"","","",""]
[null,null,null,null,null,null,"","","",""]
[null,null,null,null,null,null,"","","",""]
[null,null,null,null,null,null,"","","",""]
[null,null,null,null,null,null,"","","",""]
[null,null,null,null,null,null,"","","",""]
[null,null,null,null,null,null,"","","",""]
[null,null,null,null,null,null,{"$f":"IF(ISBLANK(A2370),\"\",VLOOKUP(A2370,FLEET_SITE_LU,2,FALSE))","v":""},{"$f":"IF(ISBLANK(B2370),\"\",VLOOKUP(B2370,POSITION_ID_FLEET,2,FALSE))","v":""},{"$f":"IF(ISBLANK(D2370),\"\",VLOOKUP(D2370,UNIT_LU,2,FALSE))","v":""},{"$f":"IF(ISBLANK(E2370),\"\",VALUE(TEXT(E2370,\"YYYYMM\")))","v":""}]
[null,null,null,null,null,null,"","","",""]
[null,null,null,null,null,null,"","","",""]
[null,null,null,null,null,null,"","","",""]
[null,null,null,null,null,null,"","","",""]
[null,null,null,null,null,null,"","","",""]
[null,null,null,null,null,null,"","","",""]
[null,null,null,null,null,null,"","","",""]
[null,null,null,null,null,null,"","","",""]
[null,null,null,null,null,null,"","","",""]
[null,null,null,null,null,null,"","","",""]
[null,null,null,null,null,null,"","","",""]
[null,null,null,null,null,null,"","","",""]
[null,null,null,null,null,null,"","","",""]
[null,null,null,null,null,null,"","","",""]
[null,null,null,null,null,null,"","","",""]
[null,null,null,null,null,null,"","","",""]
[null,null,null,null,null,null,"","","",""]
[null,null,null,null,null,null,"","","",""]
[null,null,null,null,null,null,"","","",""]
[null,null,null,null,null,null,"","","",""]
[null,null,null,null,null,null,"","","",""]
[null,null,null,null,null,null,"","","",""]
[null,null,null,null,null,null,"","","",""]
[null,null,null,null,null,null,"","","",""]
[null,null,null,null,null,null,"","","",""]
[null,null,null,null,null,null,"","","",""]
[null,null,null,null,null,null,"","","",""]
[null,null,null,null,null,null,"","","",""]
[null,null,null,null,null,null,"","","",""]
[null,null,null,null,null,null,"","","",""]
[null,null,null,null,null,null,"","","",""]
[null,null,null,null,null,null,"","","",""]
[null,null,null,null,null,null,"","","",""]
[null,null,null,null,null,null,"","","",""]
[null,null,null,null,null,null,"","","",""]
[null,null,null,null,null,null,"","","",""]
[null,null,null,null,null,null,"","","",""]
[null,null,null,null,null,null,"","","",""]
[null,null,null,null,null,null,"","","",""]
[null,null,null,null,null,null,"","","",""]
[null,null,null,null,null,null,"","","",""]
[null,null,null,null,null,null,"","","",""]
[null,null,null,null,null,null,"","","",""]
[null,null,null,null,null,null,"","","",""]
[null,null,null,null,null,null,"","","",""]
[null,null,null,null,null,null,"","","",""]
[null,null,null,null,null,null,"","","",""]
[null,null,null,null,null,null,"","","",""]
[null,null,null,null,null,null,"","","",""]
[null,null,null,null,null,null,"","","",""]
[null,null,null,null,null,null,"","","",""]
[null,null,null,null,null,null,"","","",""]
[null,null,null,null,null,null,"","","",""]
[null,null,null,null,null,null,"","","",""]
[null,null,null,null,null,null,"","","",""]
[null,null,null,null,null,null,"","","",""]
[null,null,null,null,null,null,"","","",""]
[null,null,null,null,null,null,"","","",""]
[null,null,null,null,null,null,"","","",""]
[null,null,null,null,null,null,"","","",""]
[null,null,null,null,null,null,"","","",""]
[null,null,null,null,null,null,"","","",""]
[null,null,null,null,null,null,"","","",""]
[null,null,null,null,null,null,{"$f":"IF(ISBLANK(A2434),\"\",VLOOKUP(A2434,FLEET_SITE_LU,2,FALSE))","v":""},{"$f":"IF(ISBLANK(B2434),\"\",VLOOKUP(B2434,POSITION_ID_FLEET,2,FALSE))","v":""},{"$f":"IF(ISBLANK(D2434),\"\",VLOOKUP(D2434,UNIT_LU,2,FALSE))","v":""},{"$f":"IF(ISBLANK(E2434),\"\",VALUE(TEXT(E2434,\"YYYYMM\")))","v":""}]
[null,null,null,null,null,null,"","","",""]
[null,null,null,null,null,null,"","","",""]
[null,null,null,null,null,null,"","","",""]
[null,null,null,null,null,null,"","","",""]
[null,null,null,null,null,null,"","","",""]
[null,null,null,null,null,null,"","","",""]
[null,null,null,null,null,null,"","","",""]
[null,null,null,null,null,null,"","","",""]
[null,null,null,null,null,null,"","","",""]
[null,null,null,null,null,null,"","","",""]
[null,null,null,null,null,null,"","","",""]
[null,null,null,null,null,null,"","","",""]
[null,null,null,null,null,null,"","","",""]
[null,null,null,null,null,null,"","","",""]
[null,null,null,null,null,null,"","","",""]
[null,null,null,null,null,null,"","","",""]
[null,null,null,null,null,null,"","","",""]
[null,null,null,null,null,null,"","","",""]
[null,null,null,null,null,null,"","","",""]
[null,null,null,null,null,null,"","","",""]
[null,null,null,null,null,null,"","","",""]
[null,null,null,null,null,null,"","","",""]
[null,null,null,null,null,null,"","","",""]
[null,null,null,null,null,null,"","","",""]
[null,null,null,null,null,null,"","","",""]
[null,null,null,null,null,null,"","","",""]
[null,null,null,null,null,null,"","","",""]
[null,null,null,null,null,null,"","","",""]
[null,null,null,null,null,null,"","","",""]
[null,null,null,null,null,null,"","","",""]
[null,null,null,null,null,null,"","","",""]
[null,null,null,null,null,null,"","","",""]
[null,null,null,null,null,null,"","","",""]
[null,null,null,null,null,null,"","","",""]
[null,null,null,null,null,null,"","","",""]
[null,null,null,null,null,null,"","","",""]
[null,null,null,null,null,null,"","","",""]
[null,null,null,null,null,null,"","","",""]
[null,null,null,null,null,null,"","","",""]
[null,null,null,null,null,null,"","","",""]
[null,null,null,null,null,null,"","","",""]
[null,null,null,null,null,null,"","","",""]
[null,null,null,null,null,null,"","","",""]
[null,null,null,null,null,null,"","","",""]
[null,null,null,null,null,null,"","","",""]
[null,null,null,null,null,null,"","","",""]
[null,null,null,null,null,null,"","","",""]
[null,null,null,null,null,null,"","","",""]
[null,null,null,null,null,null,"","","",""]
[null,null,null,null,null,null,"","","",""]
[null,null,null,null,null,null,"","","",""]
[null,null,null,null,null,null,"","","",""]
[null,null,null,null,null,null,"","","",""]
[null,null,null,null,null,null,"","","",""]
[null,null,null,null,null,null,"","","",""]
[null,null,null,null,null,null,"","","",""]
[null,null,null,null,null,null,"","","",""]
[null,null,null,null,null,null,"","","",""]
[null,null,null,null,null,null,"","","",""]
[null,null,null,null,null,null,"","","",""]
[null,null,null,null,null,null,"","","",""]
[null,null,null,null,null,null,"","","",""]
[null,null,null,null,null,null,"","","",""]
[null,null,null,null,null,null,{"$f":"IF(ISBLANK(A2498),\"\",VLOOKUP(A2498,FLEET_SITE_LU,2,FALSE))","v":""},{"$f":"IF(ISBLANK(B2498),\"\",VLOOKUP(B2498,POSITION_ID_FLEET,2,FALSE))","v":""},{"$f":"IF(ISBLANK(D2498),\"\",VLOOKUP(D2498,UNIT_LU,2,FALSE))","v":""},{"$f":"IF(ISBLANK(E2498),\"\",VALUE(TEXT(E2498,\"YYYYMM\")))","v":""}]
[null,null,null,null,null,null,"","","",""]
[null,null,null,null,null,null,"","","",""]
[null,null,null,null,null,null,"","","",""]
[null,null,null,null,null,null,"","","",""]
[null,null,null,null,null,null,"","","",""]
[null,null,null,null,null,null,"","","",""]
[null,null,null,null,null,null,"","","",""]
[null,null,null,null,null,null,"","","",""]
[null,null,null,null,null,null,"","","",""]
[null,null,null,null,null,null,"","","",""]
[null,null,null,null,null,null,"","","",""]
[null,null,null,null,null,null,"","","",""]
[null,null,null,null,null,null,"","","",""]
[null,null,null,null,null,null,"","","",""]
[null,null,null,null,null,null,"","","",""]
[null,null,null,null,null,null,"","","",""]
[null,null,null,null,null,null,"","","",""]
[null,null,null,null,null,null,"","","",""]
[null,null,null,null,null,null,"","","",""]
[null,null,null,null,null,null,"","","",""]
[null,null,null,null,null,null,"","","",""]
[null,null,null,null,null,null,"","","",""]
[null,null,null,null,null,null,"","","",""]
[null,null,null,null,null,null,"","","",""]
[null,null,null,null,null,null,"","","",""]
[null,null,null,null,null,null,"","","",""]
[null,null,null,null,null,null,"","","",""]
[null,null,null,null,null,null,"","","",""]
[null,null,null,null,null,null,"","","",""]
[null,null,null,null,null,null,"","","",""]
[null,null,null,null,null,null,"","","",""]
[null,null,null,null,null,null,"","","",""]
[null,null,null,null,null,null,"","","",""]
[null,null,null,null,null,null,"","","",""]
[null,null,null,null,null,null,"","","",""]
[null,null,null,null,null,null,"","","",""]
[null,null,null,null,null,null,"","","",""]
[null,null,null,null,null,null,"","","",""]
[null,null,null,null,null,null,"","","",""]
[null,null,null,null,null,null,"","","",""]
[null,null,null,null,null,null,"","","",""]
[null,null,null,null,null,null,"","","",""]
[null,null,null,null,null,null,"","","",""]
[null,null,null,null,null,null,"","","",""]
[null,null,null,null,null,null,"","","",""]
[null,null,null,null,null,null,"","","",""]
[null,null,null,null,null,null,"","","",""]
[null,null,null,null,null,null,"","","",""]
[null,null,null,null,null,null,"","","",""]
[null,null,null,null,null,null,"","","",""]
[null,null,null,null,null,null,"","","",""]
[null,null,null,null,null,null,"","","",""]
[null,null,null,null,null,null,"","","",""]
[null,null,null,null,null,null,"","","",""]
[null,null,null,null,null,null,"","","",""]
[null,null,null,null,null,null,"","","",""]
[null,null,null,null,null,null,"","","",""]
[null,null,null,null,null,null,"","","",""]
[null,null,null,null,null,null,"","","",""]
[null,null,null,null,null,null,"","","",""]
[null,null,null,null,null,null,"","","",""]
[null,null,null,null,null,null,"","","",""]
[null,null,null,null,null,null,"","","",""]
[null,null,null,null,null,null,{"$f":"IF(ISBLANK(A2562),\"\",VLOOKUP(A2562,FLEET_SITE_LU,2,FALSE))","v":""},{"$f":"IF(ISBLANK(B2562),\"\",VLOOKUP(B2562,POSITION_ID_FLEET,2,FALSE))","v":""},{"$f":"IF(ISBLANK(D2562),\"\",VLOOKUP(D2562,UNIT_LU,2,FALSE))","v":""},{"$f":"IF(ISBLANK(E2562),\"\",VALUE(TEXT(E2562,\"YYYYMM\")))","v":""}]
[null,null,null,null,null,null,"","","",""]
[null,null,null,null,null,null,"","","",""]
[null,null,null,null,null,null,"","","",""]
[null,null,null,null,null,null,"","","",""]
[null,null,null,null,null,null,"","","",""]
[null,null,null,null,null,null,"","","",""]
[null,null,null,null,null,null,"","","",""]
[null,null,null,null,null,null,"","","",""]
[null,null,null,null,null,null,"","","",""]
[null,null,null,null,null,null,"","","",""]
[null,null,null,null,null,null,"","","",""]
[null,null,null,null,null,null,"","","",""]
[null,null,null,null,null,null,"","","",""]
[null,null,null,null,null,null,"","","",""]
[null,null,null,null,null,null,"","","",""]
[null,null,null,null,null,null,"","","",""]
[null,null,null,null,null,null,"","","",""]
[null,null,null,null,null,null,"","","",""]
[null,null,null,null,null,null,"","","",""]
[null,null,null,null,null,null,"","","",""]
[null,null,null,null,null,null,"","","",""]
[null,null,null,null,null,null,"","","",""]
[null,null,null,null,null,null,"","","",""]
[null,null,null,null,null,null,"","","",""]
[null,null,null,null,null,null,"","","",""]
[null,null,null,null,null,null,"","","",""]
[null,null,null,null,null,null,"","","",""]
[null,null,null,null,null,null,"","","",""]
[null,null,null,null,null,null,"","","",""]
[null,null,null,null,null,null,"","","",""]
[null,null,null,null,null,null,"","","",""]
[null,null,null,null,null,null,"","","",""]
[null,null,null,null,null,null,"","","",""]
[null,null,null,null,null,null,"","","",""]
[null,null,null,null,null,null,"","","",""]
[null,null,null,null,null,null,"","","",""]
[null,null,null,null,null,null,"","","",""]
[null,null,null,null,null,null,"","","",""]
[null,null,null,null,null,null,"","","",""]
[null,null,null,null,null,null,"","","",""]
[null,null,null,null,null,null,"","","",""]
[null,null,null,null,null,null,"","","",""]
[null,null,null,null,null,null,"","","",""]
[null,null,null,null,null,null,"","","",""]
[null,null,null,null,null,null,"","","",""]
[null,null,null,null,null,null,"","","",""]
[null,null,null,null,null,null,"","","",""]
[null,null,null,null,null,null,"","","",""]
[null,null,null,null,null,null,"","","",""]
[null,null,null,null,null,null,"","","",""]
[null,null,null,null,null,null,"","","",""]
[null,null,null,null,null,null,"","","",""]
[null,null,null,null,null,null,"","","",""]
[null,null,null,null,null,null,"","","",""]
[null,null,null,null,null,null,"","","",""]
[null,null,null,null,null,null,"","","",""]
[null,null,null,null,null,null,"","","",""]
[null,null,null,null,null,null,"","","",""]
[null,null,null,null,null,null,"","","",""]
[null,null,null,null,null,null,"","","",""]
[null,null,null,null,null,null,"","","",""]
[null,null,null,null,null,null,"","","",""]
[null,null,null,null,null,null,"","","",""]
[null,null,null,null,null,null,{"$f":"IF(ISBLANK(A2626),\"\",VLOOKUP(A2626,FLEET_SITE_LU,2,FALSE))","v":""},{"$f":"IF(ISBLANK(B2626),\"\",VLOOKUP(B2626,POSITION_ID_FLEET,2,FALSE))","v":""},{"$f":"IF(ISBLANK(D2626),\"\",VLOOKUP(D2626,UNIT_LU,2,FALSE))","v":""},{"$f":"IF(ISBLANK(E2626),\"\",VALUE(TEXT(E2626,\"YYYYMM\")))","v":""}]
[null,null,null,null,null,null,"","","",""]
[null,null,null,null,null,null,"","","",""]
[null,null,null,null,null,null,"","","",""]
[null,null,null,null,null,null,"","","",""]
[null,null,null,null,null,null,"","","",""]
[null,null,null,null,null,null,"","","",""]
[null,null,null,null,null,null,"","","",""]
[null,null,null,null,null,null,"","","",""]
[null,null,null,null,null,null,"","","",""]
[null,null,null,null,null,null,"","","",""]
[null,null,null,null,null,null,"","","",""]
[null,null,null,null,null,null,"","","",""]
[null,null,null,null,null,null,"","","",""]
[null,null,null,null,null,null,"","","",""]
[null,null,null,null,null,null,"","","",""]
[null,null,null,null,null,null,"","","",""]
[null,null,null,null,null,null,"","","",""]
[null,null,null,null,null,null,"","","",""]
[null,null,null,null,null,null,"","","",""]
[null,null,null,null,null,null,"","","",""]
[null,null,null,null,null,null,"","","",""]
[null,null,null,null,null,null,"","","",""]
[null,null,null,null,null,null,"","","",""]
[null,null,null,null,null,null,"","","",""]
[null,null,null,null,null,null,"","","",""]
[null,null,null,null,null,null,"","","",""]
[null,null,null,null,null,null,"","","",""]
[null,null,null,null,null,null,"","","",""]
[null,null,null,null,null,null,"","","",""]
[null,null,null,null,null,null,"","","",""]
[null,null,null,null,null,null,"","","",""]
[null,null,null,null,null,null,"","","",""]
[null,null,null,null,null,null,"","","",""]
[null,null,null,null,null,null,"","","",""]
[null,null,null,null,null,null,"","","",""]
[null,null,null,null,null,null,"","","",""]
[null,null,null,null,null,null,"","","",""]
[null,null,null,null,null,null,"","","",""]
[null,null,null,null,null,null,"","","",""]
[null,null,null,null,null,null,"","","",""]
[null,null,null,null,null,null,"","","",""]
[null,null,null,null,null,null,"","","",""]
[null,null,null,null,null,null,"","","",""]
[null,null,null,null,null,null,"","","",""]
[null,null,null,null,null,null,"","","",""]
[null,null,null,null,null,null,"","","",""]
[null,null,null,null,null,null,"","","",""]
[null,null,null,null,null,null,"","","",""]
[null,null,null,null,null,null,"","","",""]
[null,null,null,null,null,null,"","","",""]
[null,null,null,null,null,null,"","","",""]
[null,null,null,null,null,null,"","","",""]
[null,null,null,null,null,null,"","","",""]
[null,null,null,null,null,null,"","","",""]
[null,null,null,null,null,null,"","","",""]
[null,null,null,null,null,null,"","","",""]
[null,null,null,null,null,null,"","","",""]
[null,null,null,null,null,null,"","","",""]
[null,null,null,null,null,null,"","","",""]
[null,null,null,null,null,null,"","","",""]
[null,null,null,null,null,null,"","","",""]
[null,null,null,null,null,null,"","","",""]
[null,null,null,null,null,null,"","","",""]
[null,null,null,null,null,null,{"$f":"IF(ISBLANK(A2690),\"\",VLOOKUP(A2690,FLEET_SITE_LU,2,FALSE))","v":""},{"$f":"IF(ISBLANK(B2690),\"\",VLOOKUP(B2690,POSITION_ID_FLEET,2,FALSE))","v":""},{"$f":"IF(ISBLANK(D2690),\"\",VLOOKUP(D2690,UNIT_LU,2,FALSE))","v":""},{"$f":"IF(ISBLANK(E2690),\"\",VALUE(TEXT(E2690,\"YYYYMM\")))","v":""}]
[null,null,null,null,null,null,"","","",""]
[null,null,null,null,null,null,"","","",""]
[null,null,null,null,null,null,"","","",""]
[null,null,null,null,null,null,"","","",""]
[null,null,null,null,null,null,"","","",""]
[null,null,null,null,null,null,"","","",""]
[null,null,null,null,null,null,"","","",""]
[null,null,null,null,null,null,"","","",""]
[null,null,null,null,null,null,"","","",""]
[null,null,null,null,null,null,"","","",""]
[null,null,null,null,null,null,"","","",""]
[null,null,null,null,null,null,"","","",""]
[null,null,null,null,null,null,"","","",""]
[null,null,null,null,null,null,"","","",""]
[null,null,null,null,null,null,"","","",""]
[null,null,null,null,null,null,"","","",""]
[null,null,null,null,null,null,"","","",""]
[null,null,null,null,null,null,"","","",""]
[null,null,null,null,null,null,"","","",""]
[null,null,null,null,null,null,"","","",""]
[null,null,null,null,null,null,"","","",""]
[null,null,null,null,null,null,"","","",""]
[null,null,null,null,null,null,"","","",""]
[null,null,null,null,null,null,"","","",""]
[null,null,null,null,null,null,"","","",""]
[null,null,null,null,null,null,"","","",""]
[null,null,null,null,null,null,"","","",""]
[null,null,null,null,null,null,"","","",""]
[null,null,null,null,null,null,"","","",""]
[null,null,null,null,null,null,"","","",""]
[null,null,null,null,null,null,"","","",""]
[null,null,null,null,null,null,"","","",""]
[null,null,null,null,null,null,"","","",""]
[null,null,null,null,null,null,"","","",""]
[null,null,null,null,null,null,"","","",""]
[null,null,null,null,null,null,"","","",""]
[null,null,null,null,null,null,"","","",""]
[null,null,null,null,null,null,"","","",""]
[null,null,null,null,null,null,"","","",""]
[null,null,null,null,null,null,"","","",""]
[null,null,null,null,null,null,"","","",""]
[null,null,null,null,null,null,"","","",""]
[null,null,null,null,null,null,"","","",""]
[null,null,null,null,null,null,"","","",""]
[null,null,null,null,null,null,"","","",""]
[null,null,null,null,null,null,"","","",""]
[null,null,null,null,null,null,"","","",""]
[null,null,null,null,null,null,"","","",""]
[null,null,null,null,null,null,"","","",""]
[null,null,null,null,null,null,"","","",""]
[null,null,null,null,null,null,"","","",""]
[null,null,null,null,null,null,"","","",""]
[null,null,null,null,null,null,"","","",""]
[null,null,null,null,null,null,"","","",""]
[null,null,null,null,null,null,"","","",""]
[null,null,null,null,null,null,"","","",""]
[null,null,null,null,null,null,"","","",""]
[null,null,null,null,null,null,"","","",""]
[null,null,null,null,null,null,"","","",""]
[null,null,null,null,null,null,"","","",""]
[null,null,null,null,null,null,"","","",""]
[null,null,null,null,null,null,"","","",""]
[null,null,null,null,null,null,"","","",""]
[null,null,null,null,null,null,{"$f":"IF(ISBLANK(A2754),\"\",VLOOKUP(A2754,FLEET_SITE_LU,2,FALSE))","v":""},{"$f":"IF(ISBLANK(B2754),\"\",VLOOKUP(B2754,POSITION_ID_FLEET,2,FALSE))","v":""},{"$f":"IF(ISBLANK(D2754),\"\",VLOOKUP(D2754,UNIT_LU,2,FALSE))","v":""},{"$f":"IF(ISBLANK(E2754),\"\",VALUE(TEXT(E2754,\"YYYYMM\")))","v":""}]
[null,null,null,null,null,null,"","","",""]
[null,null,null,null,null,null,"","","",""]
[null,null,null,null,null,null,"","","",""]
[null,null,null,null,null,null,"","","",""]
[null,null,null,null,null,null,"","","",""]
[null,null,null,null,null,null,"","","",""]
[null,null,null,null,null,null,"","","",""]
[null,null,null,null,null,null,"","","",""]
[null,null,null,null,null,null,"","","",""]
[null,null,null,null,null,null,"","","",""]
[null,null,null,null,null,null,"","","",""]
[null,null,null,null,null,null,"","","",""]
[null,null,null,null,null,null,"","","",""]
[null,null,null,null,null,null,"","","",""]
[null,null,null,null,null,null,"","","",""]
[null,null,null,null,null,null,"","","",""]
[null,null,null,null,null,null,"","","",""]
[null,null,null,null,null,null,"","","",""]
[null,null,null,null,null,null,"","","",""]
[null,null,null,null,null,null,"","","",""]
[null,null,null,null,null,null,"","","",""]
[null,null,null,null,null,null,"","","",""]
[null,null,null,null,null,null,"","","",""]
[null,null,null,null,null,null,"","","",""]
[null,null,null,null,null,null,"","","",""]
[null,null,null,null,null,null,"","","",""]
[null,null,null,null,null,null,"","","",""]
[null,null,null,null,null,null,"","","",""]
[null,null,null,null,null,null,"","","",""]
[null,null,null,null,null,null,"","","",""]
[null,null,null,null,null,null,"","","",""]
[null,null,null,null,null,null,"","","",""]
[null,null,null,null,null,null,"","","",""]
[null,null,null,null,null,null,"","","",""]
[null,null,null,null,null,null,"","","",""]
[null,null,null,null,null,null,"","","",""]
[null,null,null,null,null,null,"","","",""]
[null,null,null,null,null,null,"","","",""]
[null,null,null,null,null,null,"","","",""]
[null,null,null,null,null,null,"","","",""]
[null,null,null,null,null,null,"","","",""]
[null,null,null,null,null,null,"","","",""]
[null,null,null,null,null,null,"","","",""]
[null,null,null,null,null,null,"","","",""]
[null,null,null,null,null,null,"","","",""]
[null,null,null,null,null,null,"","","",""]
[null,null,null,null,null,null,"","","",""]
[null,null,null,null,null,null,"","","",""]
[null,null,null,null,null,null,"","","",""]
[null,null,null,null,null,null,"","","",""]
[null,null,null,null,null,null,"","","",""]
[null,null,null,null,null,null,"","","",""]
[null,null,null,null,null,null,"","","",""]
[null,null,null,null,null,null,"","","",""]
[null,null,null,null,null,null,"","","",""]
[null,null,null,null,null,null,"","","",""]
[null,null,null,null,null,null,"","","",""]
[null,null,null,null,null,null,"","","",""]
[null,null,null,null,null,null,"","","",""]
[null,null,null,null,null,null,"","","",""]
[null,null,null,null,null,null,"","","",""]
[null,null,null,null,null,null,"","","",""]
[null,null,null,null,null,null,"","","",""]
[null,null,null,null,null,null,{"$f":"IF(ISBLANK(A2818),\"\",VLOOKUP(A2818,FLEET_SITE_LU,2,FALSE))","v":""},{"$f":"IF(ISBLANK(B2818),\"\",VLOOKUP(B2818,POSITION_ID_FLEET,2,FALSE))","v":""},{"$f":"IF(ISBLANK(D2818),\"\",VLOOKUP(D2818,UNIT_LU,2,FALSE))","v":""},{"$f":"IF(ISBLANK(E2818),\"\",VALUE(TEXT(E2818,\"YYYYMM\")))","v":""}]
[null,null,null,null,null,null,"","","",""]
[null,null,null,null,null,null,"","","",""]
[null,null,null,null,null,null,"","","",""]
[null,null,null,null,null,null,"","","",""]
[null,null,null,null,null,null,"","","",""]
[null,null,null,null,null,null,"","","",""]
[null,null,null,null,null,null,"","","",""]
[null,null,null,null,null,null,"","","",""]
[null,null,null,null,null,null,"","","",""]
[null,null,null,null,null,null,"","","",""]
[null,null,null,null,null,null,"","","",""]
[null,null,null,null,null,null,"","","",""]
[null,null,null,null,null,null,"","","",""]
[null,null,null,null,null,null,"","","",""]
[null,null,null,null,null,null,"","","",""]
[null,null,null,null,null,null,"","","",""]
[null,null,null,null,null,null,"","","",""]
[null,null,null,null,null,null,"","","",""]
[null,null,null,null,null,null,"","","",""]
[null,null,null,null,null,null,"","","",""]
[null,null,null,null,null,null,"","","",""]
[null,null,null,null,null,null,"","","",""]
[null,null,null,null,null,null,"","","",""]
[null,null,null,null,null,null,"","","",""]
[null,null,null,null,null,null,"","","",""]
[null,null,null,null,null,null,"","","",""]
[null,null,null,null,null,null,"","","",""]
[null,null,null,null,null,null,"","","",""]
[null,null,null,null,null,null,"","","",""]
[null,null,null,null,null,null,"","","",""]
[null,null,null,null,null,null,"","","",""]
[null,null,null,null,null,null,"","","",""]
[null,null,null,null,null,null,"","","",""]
[null,null,null,null,null,null,"","","",""]
[null,null,null,null,null,null,"","","",""]
[null,null,null,null,null,null,"","","",""]
[null,null,null,null,null,null,"","","",""]
[null,null,null,null,null,null,"","","",""]
[null,null,null,null,null,null,"","","",""]
[null,null,null,null,null,null,"","","",""]
[null,null,null,null,null,null,"","","",""]
[null,null,null,null,null,null,"","","",""]
[null,null,null,null,null,null,"","","",""]
[null,null,null,null,null,null,"","","",""]
[null,null,null,null,null,null,"","","",""]
[null,null,null,null,null,null,"","","",""]
[null,null,null,null,null,null,"","","",""]
[null,null,null,null,null,null,"","","",""]
[null,null,null,null,null,null,"","","",""]
[null,null,null,null,null,null,"","","",""]
[null,null,null,null,null,null,"","","",""]
[null,null,null,null,null,null,"","","",""]
[null,null,null,null,null,null,"","","",""]
[null,null,null,null,null,null,"","","",""]
[null,null,null,null,null,null,"","","",""]
[null,null,null,null,null,null,"","","",""]
[null,null,null,null,null,null,"","","",""]
[null,null,null,null,null,null,"","","",""]
[null,null,null,null,null,null,"","","",""]
[null,null,null,null,null,null,"","","",""]
[null,null,null,null,null,null,"","","",""]
[null,null,null,null,null,null,"","","",""]
[null,null,null,null,null,null,"","","",""]
[null,null,null,null,null,null,{"$f":"IF(ISBLANK(A2882),\"\",VLOOKUP(A2882,FLEET_SITE_LU,2,FALSE))","v":""},{"$f":"IF(ISBLANK(B2882),\"\",VLOOKUP(B2882,POSITION_ID_FLEET,2,FALSE))","v":""},{"$f":"IF(ISBLANK(D2882),\"\",VLOOKUP(D2882,UNIT_LU,2,FALSE))","v":""},{"$f":"IF(ISBLANK(E2882),\"\",VALUE(TEXT(E2882,\"YYYYMM\")))","v":""}]
[null,null,null,null,null,null,"","","",""]
[null,null,null,null,null,null,"","","",""]
[null,null,null,null,null,null,"","","",""]
[null,null,null,null,null,null,"","","",""]
[null,null,null,null,null,null,"","","",""]
[null,null,null,null,null,null,"","","",""]
[null,null,null,null,null,null,"","","",""]
[null,null,null,null,null,null,"","","",""]
[null,null,null,null,null,null,"","","",""]
[null,null,null,null,null,null,"","","",""]
[null,null,null,null,null,null,"","","",""]
[null,null,null,null,null,null,"","","",""]
[null,null,null,null,null,null,"","","",""]
[null,null,null,null,null,null,"","","",""]
[null,null,null,null,null,null,"","","",""]
[null,null,null,null,null,null,"","","",""]
[null,null,null,null,null,null,"","","",""]
[null,null,null,null,null,null,"","","",""]
[null,null,null,null,null,null,"","","",""]
[null,null,null,null,null,null,"","","",""]
[null,null,null,null,null,null,"","","",""]
[null,null,null,null,null,null,"","","",""]
[null,null,null,null,null,null,"","","",""]
[null,null,null,null,null,null,"","","",""]
[null,null,null,null,null,null,"","","",""]
[null,null,null,null,null,null,"","","",""]
[null,null,null,null,null,null,"","","",""]
[null,null,null,null,null,null,"","","",""]
[null,null,null,null,null,null,"","","",""]
[null,null,null,null,null,null,"","","",""]
[null,null,null,null,null,null,"","","",""]
[null,null,null,null,null,null,"","","",""]
[null,null,null,null,null,null,"","","",""]
[null,null,null,null,null,null,"","","",""]
[null,null,null,null,null,null,"","","",""]
[null,null,null,null,null,null,"","","",""]
[null,null,null,null,null,null,"","","",""]
[null,null,null,null,null,null,"","","",""]
[null,null,null,null,null,null,"","","",""]
[null,null,null,null,null,null,"","","",""]
[null,null,null,null,null,null,"","","",""]
[null,null,null,null,null,null,"","","",""]
[null,null,null,null,null,null,"","","",""]
[null,null,null,null,null,null,"","","",""]
[null,null,null,null,null,null,"","","",""]
[null,null,null,null,null,null,"","","",""]
[null,null,null,null,null,null,"","","",""]
[null,null,null,null,null,null,"","","",""]
[null,null,null,null,null,null,"","","",""]
[null,null,null,null,null,null,"","","",""]
[null,null,null,null,null,null,"","","",""]
[null,null,null,null,null,null,"","","",""]
[null,null,null,null,null,null,"","","",""]
[null,null,null,null,null,null,"","","",""]
[null,null,null,null,null,null,"","","",""]
[null,null,null,null,null,null,"","","",""]
[null,null,null,null,null,null,"","","",""]
[null,null,null,null,null,null,"","","",""]
[null,null,null,null,null,null,"","","",""]
[null,null,null,null,null,null,"","","",""]
[null,null,null,null,null,null,"","","",""]
[null,null,null,null,null,null,"","","",""]
[null,null,null,null,null,null,"","","",""]
[null,null,null,null,null,null,{"$f":"IF(ISBLANK(A2946),\"\",VLOOKUP(A2946,FLEET_SITE_LU,2,FALSE))","v":""},{"$f":"IF(ISBLANK(B2946),\"\",VLOOKUP(B2946,POSITION_ID_FLEET,2,FALSE))","v":""},{"$f":"IF(ISBLANK(D2946),\"\",VLOOKUP(D2946,UNIT_LU,2,FALSE))","v":""},{"$f":"IF(ISBLANK(E2946),\"\",VALUE(TEXT(E2946,\"YYYYMM\")))","v":""}]
[null,null,null,null,null,null,"","","",""]
[null,null,null,null,null,null,"","","",""]
[null,null,null,null,null,null,"","","",""]
[null,null,null,null,null,null,"","","",""]
[null,null,null,null,null,null,"","","",""]
[null,null,null,null,null,null,"","","",""]
[null,null,null,null,null,null,"","","",""]
[null,null,null,null,null,null,"","","",""]
[null,null,null,null,null,null,"","","",""]
[null,null,null,null,null,null,"","","",""]
[null,null,null,null,null,null,"","","",""]
[null,null,null,null,null,null,"","","",""]
[null,null,null,null,null,null,"","","",""]
[null,null,null,null,null,null,"","","",""]
[null,null,null,null,null,null,"","","",""]
[null,null,null,null,null,null,"","","",""]
[null,null,null,null,null,null,"","","",""]
[null,null,null,null,null,null,"","","",""]
[null,null,null,null,null,null,"","","",""]
[null,null,null,null,null,null,"","","",""]
[null,null,null,null,null,null,"","","",""]
[null,null,null,null,null,null,"","","",""]
[null,null,null,null,null,null,"","","",""]
[null,null,null,null,null,null,"","","",""]
[null,null,null,null,null,null,"","","",""]
[null,null,null,null,null,null,"","","",""]
[null,null,null,null,null,null,"","","",""]
[null,null,null,null,null,null,"","","",""]
[null,null,null,null,null,null,"","","",""]
[null,null,null,null,null,null,"","","",""]
[null,null,null,null,null,null,"","","",""]
[null,null,null,null,null,null,"","","",""]
[null,null,null,null,null,null,"","","",""]
[null,null,null,null,null,null,"","","",""]
[null,null,null,null,null,null,"","","",""]
[null,null,null,null,null,null,"","","",""]
[null,null,null,null,null,null,"","","",""]
[null,null,null,null,null,null,"","","",""]
[null,null,null,null,null,null,"","","",""]
[null,null,null,null,null,null,"","","",""]
[null,null,null,null,null,null,"","","",""]
[null,null,null,null,null,null,"","","",""]
[null,null,null,null,null,null,"","","",""]
[null,null,null,null,null,null,"","","",""]
[null,null,null,null,null,null,"","","",""]
[null,null,null,null,null,null,"","","",""]
[null,null,null,null,null,null,"","","",""]
[null,null,null,null,null,null,"","","",""]
[null,null,null,null,null,null,"","","",""]
[null,null,null,null,null,null,"","","",""]
[null,null,null,null,null,null,"","","",""]
[null,null,null,null,null,null,"","","",""]
[null,null,null,null,null,null,"","","",""]
[null,null,null,null,null,null,"","","",""]
[null,null,null,null,null,null,"","","",""]
[null,null,null,null,null,null,null,""]
[null,null,null,null,null,null,null,""]
[null,null,null,null,null,null,null,""]

{"sheet":"SUPPLIES","index":5,"n_rows":3001,"n_cols":10,"rows_kept":3001,"cut":false,"hidden":false,"merged":[]}
["SITE_NAME","POSITION","QUANTITY","UNIT_NAME","DATE","TRANSACTION_REF","SITE_ID","POSITION_ID","UNIT_ID","TERM"]
[null,"HFC R-507",null,null,null,null,{"$f":"IF(ISBLANK(A2),\"\",VLOOKUP(A2,SUPPLIES_SITE_LU,2,FALSE))","v":""},{"$f":"IF(ISBLANK(B2),\"\",VLOOKUP(B2,POSITION_ID_SUPP,2,FALSE))","v":2300},{"$f":"IF(ISBLANK(D2),\"\",VLOOKUP(D2,UNIT_LU,2,FALSE))","v":""},{"$f":"IF(ISBLANK(E2),\"\",VALUE(TEXT(E2,\"YYYYMM\")))","v":""}]
[null,null,null,null,null,null,"","","",""]
[null,null,null,null,null,null,"","","",""]
[null,null,null,null,null,null,"","","",""]
[null,null,null,null,null,null,"","","",""]
[null,null,null,null,null,null,"","","",""]
[null,null,null,null,null,null,"","","",""]
[null,null,null,null,null,null,"","","",""]
[null,null,null,null,null,null,"","","",""]
[null,null,null,null,null,null,"","","",""]
[null,null,null,null,null,null,"","","",""]
[null,null,null,null,null,null,"","","",""]
[null,null,null,null,null,null,"","","",""]
[null,null,null,null,null,null,"","","",""]
[null,null,null,null,null,null,"","","",""]
[null,null,null,null,null,null,"","","",""]
[null,null,null,null,null,null,"","","",""]
[null,null,null,null,null,null,"","","",""]
[null,null,null,null,null,null,"","","",""]
[null,null,null,null,null,null,"","","",""]
[null,null,null,null,null,null,"","","",""]
[null,null,null,null,null,null,"","","",""]
[null,null,null,null,null,null,"","","",""]
[null,null,null,null,null,null,"","","",""]
[null,null,null,null,null,null,"","","",""]
[null,null,null,null,null,null,"","","",""]
[null,null,null,null,null,null,"","","",""]
[null,null,null,null,null,null,"","","",""]
[null,null,null,null,null,null,"","","",""]
[null,null,null,null,null,null,"","","",""]
[null,null,null,null,null,null,"","","",""]
[null,null,null,null,null,null,"","","",""]
[null,null,null,null,null,null,"","","",""]
[null,null,null,null,null,null,"","","",""]
[null,null,null,null,null,null,"","","",""]
[null,null,null,null,null,null,"","","",""]
[null,null,null,null,null,null,"","","",""]
[null,null,null,null,null,null,"","","",""]
[null,null,null,null,null,null,"","","",""]
[null,null,null,null,null,null,"","","",""]
[null,null,null,null,null,null,"","","",""]
[null,null,null,null,null,null,"","","",""]
[null,null,null,null,null,null,"","","",""]
[null,null,null,null,null,null,"","","",""]
[null,null,null,null,null,null,"","","",""]
[null,null,null,null,null,null,"","","",""]
[null,null,null,null,null,null,"","","",""]
[null,null,null,null,null,null,"","","",""]
[null,null,null,null,null,null,"","","",""]
[null,null,null,null,null,null,"","","",""]
[null,null,null,null,null,null,"","","",""]
[null,null,null,null,null,null,"","","",""]
[null,null,null,null,null,null,"","","",""]
[null,null,null,null,null,null,"","","",""]
[null,null,null,null,null,null,"","","",""]
[null,null,null,null,null,null,"","","",""]
[null,null,null,null,null,null,"","","",""]
[null,null,null,null,null,null,"","","",""]
[null,null,null,null,null,null,"","","",""]
[null,null,null,null,null,null,"","","",""]
[null,null,null,null,null,null,"","","",""]
[null,null,null,null,null,null,"","","",""]
[null,null,null,null,null,null,"","","",""]
[null,null,null,null,null,null,"","","",""]
[null,null,null,null,null,null,{"$f":"IF(ISBLANK(A66),\"\",VLOOKUP(A66,SUPPLIES_SITE_LU,2,FALSE))","v":""},{"$f":"IF(ISBLANK(B66),\"\",VLOOKUP(B66,POSITION_ID_SUPP,2,FALSE))","v":""},{"$f":"IF(ISBLANK(D66),\"\",VLOOKUP(D66,UNIT_LU,2,FALSE))","v":""},{"$f":"IF(ISBLANK(E66),\"\",VALUE(TEXT(E66,\"YYYYMM\")))","v":""}]
[null,null,null,null,null,null,"","","",""]
[null,null,null,null,null,null,"","","",""]
[null,null,null,null,null,null,"","","",""]
[null,null,null,null,null,null,"","","",""]
[null,null,null,null,null,null,"","","",""]
[null,null,null,null,null,null,"","","",""]
[null,null,null,null,null,null,"","","",""]
[null,null,null,null,null,null,"","","",""]
[null,null,null,null,null,null,"","","",""]
[null,null,null,null,null,null,"","","",""]
[null,null,null,null,null,null,"","","",""]
[null,null,null,null,null,null,"","","",""]
[null,null,null,null,null,null,"","","",""]
[null,null,null,null,null,null,"","","",""]
[null,null,null,null,null,null,"","","",""]
[null,null,null,null,null,null,"","","",""]
[null,null,null,null,null,null,"","","",""]
[null,null,null,null,null,null,"","","",""]
[null,null,null,null,null,null,"","","",""]
[null,null,null,null,null,null,"","","",""]
[null,null,null,null,null,null,"","","",""]
[null,null,null,null,null,null,"","","",""]
[null,null,null,null,null,null,"","","",""]
[null,null,null,null,null,null,"","","",""]
[null,null,null,null,null,null,"","","",""]
[null,null,null,null,null,null,"","","",""]
[null,null,null,null,null,null,"","","",""]
[null,null,null,null,null,null,"","","",""]
[null,null,null,null,null,null,"","","",""]
[null,null,null,null,null,null,"","","",""]
[null,null,null,null,null,null,"","","",""]
[null,null,null,null,null,null,"","","",""]
[null,null,null,null,null,null,"","","",""]
[null,null,null,null,null,null,"","","",""]
[null,null,null,null,null,null,"","","",""]
[null,null,null,null,null,null,"","","",""]
[null,null,null,null,null,null,"","","",""]
[null,null,null,null,null,null,"","","",""]
[null,null,null,null,null,null,"","","",""]
[null,null,null,null,null,null,"","","",""]
[null,null,null,null,null,null,"","","",""]
[null,null,null,null,null,null,"","","",""]
[null,null,null,null,null,null,"","","",""]
[null,null,null,null,null,null,"","","",""]
[null,null,null,null,null,null,"","","",""]
[null,null,null,null,null,null,"","","",""]
[null,null,null,null,null,null,"","","",""]
[null,null,null,null,null,null,"","","",""]
[null,null,null,null,null,null,"","","",""]
[null,null,null,null,null,null,"","","",""]
[null,null,null,null,null,null,"","","",""]
[null,null,null,null,null,null,"","","",""]
[null,null,null,null,null,null,"","","",""]
[null,null,null,null,null,null,"","","",""]
[null,null,null,null,null,null,"","","",""]
[null,null,null,null,null,null,"","","",""]
[null,null,null,null,null,null,"","","",""]
[null,null,null,null,null,null,"","","",""]
[null,null,null,null,null,null,"","","",""]
[null,null,null,null,null,null,"","","",""]
[null,null,null,null,null,null,"","","",""]
[null,null,null,null,null,null,"","","",""]
[null,null,null,null,null,null,"","","",""]
[null,null,null,null,null,null,{"$f":"IF(ISBLANK(A130),\"\",VLOOKUP(A130,SUPPLIES_SITE_LU,2,FALSE))","v":""},{"$f":"IF(ISBLANK(B130),\"\",VLOOKUP(B130,POSITION_ID_SUPP,2,FALSE))","v":""},{"$f":"IF(ISBLANK(D130),\"\",VLOOKUP(D130,UNIT_LU,2,FALSE))","v":""},{"$f":"IF(ISBLANK(E130),\"\",VALUE(TEXT(E130,\"YYYYMM\")))","v":""}]
[null,null,null,null,null,null,"","","",""]
[null,null,null,null,null,null,"","","",""]
[null,null,null,null,null,null,"","","",""]
[null,null,null,null,null,null,"","","",""]
[null,null,null,null,null,null,"","","",""]
[null,null,null,null,null,null,"","","",""]
[null,null,null,null,null,null,"","","",""]
[null,null,null,null,null,null,"","","",""]
[null,null,null,null,null,null,"","","",""]
[null,null,null,null,null,null,"","","",""]
[null,null,null,null,null,null,"","","",""]
[null,null,null,null,null,null,"","","",""]
[null,null,null,null,null,null,"","","",""]
[null,null,null,null,null,null,"","","",""]
[null,null,null,null,null,null,"","","",""]
[null,null,null,null,null,null,"","","",""]
[null,null,null,null,null,null,"","","",""]
[null,null,null,null,null,null,"","","",""]
[null,null,null,null,null,null,"","","",""]
[null,null,null,null,null,null,"","","",""]
[null,null,null,null,null,null,"","","",""]
[null,null,null,null,null,null,"","","",""]
[null,null,null,null,null,null,"","","",""]
[null,null,null,null,null,null,"","","",""]
[null,null,null,null,null,null,"","","",""]
[null,null,null,null,null,null,"","","",""]
[null,null,null,null,null,null,"","","",""]
[null,null,null,null,null,null,"","","",""]
[null,null,null,null,null,null,"","","",""]
[null,null,null,null,null,null,"","","",""]
[null,null,null,null,null,null,"","","",""]
[null,null,null,null,null,null,"","","",""]
[null,null,null,null,null,null,"","","",""]
[null,null,null,null,null,null,"","","",""]
[null,null,null,null,null,null,"","","",""]
[null,null,null,null,null,null,"","","",""]
[null,null,null,null,null,null,"","","",""]
[null,null,null,null,null,null,"","","",""]
[null,null,null,null,null,null,"","","",""]
[null,null,null,null,null,null,"","","",""]
[null,null,null,null,null,null,"","","",""]
[null,null,null,null,null,null,"","","",""]
[null,null,null,null,null,null,"","","",""]
[null,null,null,null,null,null,"","","",""]
[null,null,null,null,null,null,"","","",""]
[null,null,null,null,null,null,"","","",""]
[null,null,null,null,null,null,"","","",""]
[null,null,null,null,null,null,"","","",""]
[null,null,null,null,null,null,"","","",""]
[null,null,null,null,null,null,"","","",""]
[null,null,null,null,null,null,"","","",""]
[null,null,null,null,null,null,"","","",""]
[null,null,null,null,null,null,"","","",""]
[null,null,null,null,null,null,"","","",""]
[null,null,null,null,null,null,"","","",""]
[null,null,null,null,null,null,"","","",""]
[null,null,null,null,null,null,"","","",""]
[null,null,null,null,null,null,"","","",""]
[null,null,null,null,null,null,"","","",""]
[null,null,null,null,null,null,"","","",""]
[null,null,null,null,null,null,"","","",""]
[null,null,null,null,null,null,"","","",""]
[null,null,null,null,null,null,"","","",""]
[null,null,null,null,null,null,{"$f":"IF(ISBLANK(A194),\"\",VLOOKUP(A194,SUPPLIES_SITE_LU,2,FALSE))","v":""},{"$f":"IF(ISBLANK(B194),\"\",VLOOKUP(B194,POSITION_ID_SUPP,2,FALSE))","v":""},{"$f":"IF(ISBLANK(D194),\"\",VLOOKUP(D194,UNIT_LU,2,FALSE))","v":""},{"$f":"IF(ISBLANK(E194),\"\",VALUE(TEXT(E194,\"YYYYMM\")))","v":""}]
[null,null,null,null,null,null,"","","",""]
[null,null,null,null,null,null,"","","",""]
[null,null,null,null,null,null,"","","",""]
[null,null,null,null,null,null,"","","",""]
[null,null,null,null,null,null,"","","",""]
[null,null,null,null,null,null,"","","",""]
[null,null,null,null,null,null,"","","",""]
[null,null,null,null,null,null,"","","",""]
[null,null,null,null,null,null,"","","",""]
[null,null,null,null,null,null,"","","",""]
[null,null,null,null,null,null,"","","",""]
[null,null,null,null,null,null,"","","",""]
[null,null,null,null,null,null,"","","",""]
[null,null,null,null,null,null,"","","",""]
[null,null,null,null,null,null,"","","",""]
[null,null,null,null,null,null,"","","",""]
[null,null,null,null,null,null,"","","",""]
[null,null,null,null,null,null,"","","",""]
[null,null,null,null,null,null,"","","",""]
[null,null,null,null,null,null,"","","",""]
[null,null,null,null,null,null,"","","",""]
[null,null,null,null,null,null,"","","",""]
[null,null,null,null,null,null,"","","",""]
[null,null,null,null,null,null,"","","",""]
[null,null,null,null,null,null,"","","",""]
[null,null,null,null,null,null,"","","",""]
[null,null,null,null,null,null,"","","",""]
[null,null,null,null,null,null,"","","",""]
[null,null,null,null,null,null,"","","",""]
[null,null,null,null,null,null,"","","",""]
[null,null,null,null,null,null,"","","",""]
[null,null,null,null,null,null,"","","",""]
[null,null,null,null,null,null,"","","",""]
[null,null,null,null,null,null,"","","",""]
[null,null,null,null,null,null,"","","",""]
[null,null,null,null,null,null,"","","",""]
[null,null,null,null,null,null,"","","",""]
[null,null,null,null,null,null,"","","",""]
[null,null,null,null,null,null,"","","",""]
[null,null,null,null,null,null,"","","",""]
[null,null,null,null,null,null,"","","",""]
[null,null,null,null,null,null,"","","",""]
[null,null,null,null,null,null,"","","",""]
[null,null,null,null,null,null,"","","",""]
[null,null,null,null,null,null,"","","",""]
[null,null,null,null,null,null,"","","",""]
[null,null,null,null,null,null,"","","",""]
[null,null,null,null,null,null,"","","",""]
[null,null,null,null,null,null,"","","",""]
[null,null,null,null,null,null,"","","",""]
[null,null,null,null,null,null,"","","",""]
[null,null,null,null,null,null,"","","",""]
[null,null,null,null,null,null,"","","",""]
[null,null,null,null,null,null,"","","",""]
[null,null,null,null,null,null,"","","",""]
[null,null,null,null,null,null,"","","",""]
[null,null,null,null,null,null,"","","",""]
[null,null,null,null,null,null,"","","",""]
[null,null,null,null,null,null,"","","",""]
[null,null,null,null,null,null,"","","",""]
[null,null,null,null,null,null,"","","",""]
[null,null,null,null,null,null,"","","",""]
[null,null,null,null,null,null,"","","",""]
[null,null,null,null,null,null,{"$f":"IF(ISBLANK(A258),\"\",VLOOKUP(A258,SUPPLIES_SITE_LU,2,FALSE))","v":""},{"$f":"IF(ISBLANK(B258),\"\",VLOOKUP(B258,POSITION_ID_SUPP,2,FALSE))","v":""},{"$f":"IF(ISBLANK(D258),\"\",VLOOKUP(D258,UNIT_LU,2,FALSE))","v":""},{"$f":"IF(ISBLANK(E258),\"\",VALUE(TEXT(E258,\"YYYYMM\")))","v":""}]
[null,null,null,null,null,null,"","","",""]
[null,null,null,null,null,null,"","","",""]
[null,null,null,null,null,null,"","","",""]
[null,null,null,null,null,null,"","","",""]
[null,null,null,null,null,null,"","","",""]
[null,null,null,null,null,null,"","","",""]
[null,null,null,null,null,null,"","","",""]
[null,null,null,null,null,null,"","","",""]
[null,null,null,null,null,null,"","","",""]
[null,null,null,null,null,null,"","","",""]
[null,null,null,null,null,null,"","","",""]
[null,null,null,null,null,null,"","","",""]
[null,null,null,null,null,null,"","","",""]
[null,null,null,null,null,null,"","","",""]
[null,null,null,null,null,null,"","","",""]
[null,null,null,null,null,null,"","","",""]
[null,null,null,null,null,null,"","","",""]
[null,null,null,null,null,null,"","","",""]
[null,null,null,null,null,null,"","","",""]
[null,null,null,null,null,null,"","","",""]
[null,null,null,null,null,null,"","","",""]
[null,null,null,null,null,null,"","","",""]
[null,null,null,null,null,null,"","","",""]
[null,null,null,null,null,null,"","","",""]
[null,null,null,null,null,null,"","","",""]
[null,null,null,null,null,null,"","","",""]
[null,null,null,null,null,null,"","","",""]
[null,null,null,null,null,null,"","","",""]
[null,null,null,null,null,null,"","","",""]
[null,null,null,null,null,null,"","","",""]
[null,null,null,null,null,null,"","","",""]
[null,null,null,null,null,null,"","","",""]
[null,null,null,null,null,null,"","","",""]
[null,null,null,null,null,null,"","","",""]
[null,null,null,null,null,null,"","","",""]
[null,null,null,null,null,null,"","","",""]
[null,null,null,null,null,null,"","","",""]
[null,null,null,null,null,null,"","","",""]
[null,null,null,null,null,null,"","","",""]
[null,null,null,null,null,null,"","","",""]
[null,null,null,null,null,null,"","","",""]
[null,null,null,null,null,null,"","","",""]
[null,null,null,null,null,null,"","","",""]
[null,null,null,null,null,null,"","","",""]
[null,null,null,null,null,null,"","","",""]
[null,null,null,null,null,null,"","","",""]
[null,null,null,null,null,null,"","","",""]
[null,null,null,null,null,null,"","","",""]
[null,null,null,null,null,null,"","","",""]
[null,null,null,null,null,null,"","","",""]
[null,null,null,null,null,null,"","","",""]
[null,null,null,null,null,null,"","","",""]
[null,null,null,null,null,null,"","","",""]
[null,null,null,null,null,null,"","","",""]
[null,null,null,null,null,null,"","","",""]
[null,null,null,null,null,null,"","","",""]
[null,null,null,null,null,null,"","","",""]
[null,null,null,null,null,null,"","","",""]
[null,null,null,null,null,null,"","","",""]
[null,null,null,null,null,null,"","","",""]
[null,null,null,null,null,null,"","","",""]
[null,null,null,null,null,null,"","","",""]
[null,null,null,null,null,null,"","","",""]
[null,null,null,null,null,null,{"$f":"IF(ISBLANK(A322),\"\",VLOOKUP(A322,SUPPLIES_SITE_LU,2,FALSE))","v":""},{"$f":"IF(ISBLANK(B322),\"\",VLOOKUP(B322,POSITION_ID_SUPP,2,FALSE))","v":""},{"$f":"IF(ISBLANK(D322),\"\",VLOOKUP(D322,UNIT_LU,2,FALSE))","v":""},{"$f":"IF(ISBLANK(E322),\"\",VALUE(TEXT(E322,\"YYYYMM\")))","v":""}]
[null,null,null,null,null,null,"","","",""]
[null,null,null,null,null,null,"","","",""]
[null,null,null,null,null,null,"","","",""]
[null,null,null,null,null,null,"","","",""]
[null,null,null,null,null,null,"","","",""]
[null,null,null,null,null,null,"","","",""]
[null,null,null,null,null,null,"","","",""]
[null,null,null,null,null,null,"","","",""]
[null,null,null,null,null,null,"","","",""]
[null,null,null,null,null,null,"","","",""]
[null,null,null,null,null,null,"","","",""]
[null,null,null,null,null,null,"","","",""]
[null,null,null,null,null,null,"","","",""]
[null,null,null,null,null,null,"","","",""]
[null,null,null,null,null,null,"","","",""]
[null,null,null,null,null,null,"","","",""]
[null,null,null,null,null,null,"","","",""]
[null,null,null,null,null,null,"","","",""]
[null,null,null,null,null,null,"","","",""]
[null,null,null,null,null,null,"","","",""]
[null,null,null,null,null,null,"","","",""]
[null,null,null,null,null,null,"","","",""]
[null,null,null,null,null,null,"","","",""]
[null,null,null,null,null,null,"","","",""]
[null,null,null,null,null,null,"","","",""]
[null,null,null,null,null,null,"","","",""]
[null,null,null,null,null,null,"","","",""]
[null,null,null,null,null,null,"","","",""]
[null,null,null,null,null,null,"","","",""]
[null,null,null,null,null,null,"","","",""]
[null,null,null,null,null,null,"","","",""]
[null,null,null,null,null,null,"","","",""]
[null,null,null,null,null,null,"","","",""]
[null,null,null,null,null,null,"","","",""]
[null,null,null,null,null,null,"","","",""]
[null,null,null,null,null,null,"","","",""]
[null,null,null,null,null,null,"","","",""]
[null,null,null,null,null,null,"","","",""]
[null,null,null,null,null,null,"","","",""]
[null,null,null,null,null,null,"","","",""]
[null,null,null,null,null,null,"","","",""]
[null,null,null,null,null,null,"","","",""]
[null,null,null,null,null,null,"","","",""]
[null,null,null,null,null,null,"","","",""]
[null,null,null,null,null,null,"","","",""]
[null,null,null,null,null,null,"","","",""]
[null,null,null,null,null,null,"","","",""]
[null,null,null,null,null,null,"","","",""]
[null,null,null,null,null,null,"","","",""]
[null,null,null,null,null,null,"","","",""]
[null,null,null,null,null,null,"","","",""]
[null,null,null,null,null,null,"","","",""]
[null,null,null,null,null,null,"","","",""]
[null,null,null,null,null,null,"","","",""]
[null,null,null,null,null,null,"","","",""]
[null,null,null,null,null,null,"","","",""]
[null,null,null,null,null,null,"","","",""]
[null,null,null,null,null,null,"","","",""]
[null,null,null,null,null,null,"","","",""]
[null,null,null,null,null,null,"","","",""]
[null,null,null,null,null,null,"","","",""]
[null,null,null,null,null,null,"","","",""]
[null,null,null,null,null,null,"","","",""]
[null,null,null,null,null,null,{"$f":"IF(ISBLANK(A386),\"\",VLOOKUP(A386,SUPPLIES_SITE_LU,2,FALSE))","v":""},{"$f":"IF(ISBLANK(B386),\"\",VLOOKUP(B386,POSITION_ID_SUPP,2,FALSE))","v":""},{"$f":"IF(ISBLANK(D386),\"\",VLOOKUP(D386,UNIT_LU,2,FALSE))","v":""},{"$f":"IF(ISBLANK(E386),\"\",VALUE(TEXT(E386,\"YYYYMM\")))","v":""}]
[null,null,null,null,null,null,"","","",""]
[null,null,null,null,null,null,"","","",""]
[null,null,null,null,null,null,"","","",""]
[null,null,null,null,null,null,"","","",""]
[null,null,null,null,null,null,"","","",""]
[null,null,null,null,null,null,"","","",""]
[null,null,null,null,null,null,"","","",""]
[null,null,null,null,null,null,"","","",""]
[null,null,null,null,null,null,"","","",""]
[null,null,null,null,null,null,"","","",""]
[null,null,null,null,null,null,"","","",""]
[null,null,null,null,null,null,"","","",""]
[null,null,null,null,null,null,"","","",""]
[null,null,null,null,null,null,"","","",""]
[null,null,null,null,null,null,"","","",""]
[null,null,null,null,null,null,"","","",""]
[null,null,null,null,null,null,"","","",""]
[null,null,null,null,null,null,"","","",""]
[null,null,null,null,null,null,"","","",""]
[null,null,null,null,null,null,"","","",""]
[null,null,null,null,null,null,"","","",""]
[null,null,null,null,null,null,"","","",""]
[null,null,null,null,null,null,"","","",""]
[null,null,null,null,null,null,"","","",""]
[null,null,null,null,null,null,"","","",""]
[null,null,null,null,null,null,"","","",""]
[null,null,null,null,null,null,"","","",""]
[null,null,null,null,null,null,"","","",""]
[null,null,null,null,null,null,"","","",""]
[null,null,null,null,null,null,"","","",""]
[null,null,null,null,null,null,"","","",""]
[null,null,null,null,null,null,"","","",""]
[null,null,null,null,null,null,"","","",""]
[null,null,null,null,null,null,"","","",""]
[null,null,null,null,null,null,"","","",""]
[null,null,null,null,null,null,"","","",""]
[null,null,null,null,null,null,"","","",""]
[null,null,null,null,null,null,"","","",""]
[null,null,null,null,null,null,"","","",""]
[null,null,null,null,null,null,"","","",""]
[null,null,null,null,null,null,"","","",""]
[null,null,null,null,null,null,"","","",""]
[null,null,null,null,null,null,"","","",""]
[null,null,null,null,null,null,"","","",""]
[null,null,null,null,null,null,"","","",""]
[null,null,null,null,null,null,"","","",""]
[null,null,null,null,null,null,"","","",""]
[null,null,null,null,null,null,"","","",""]
[null,null,null,null,null,null,"","","",""]
[null,null,null,null,null,null,"","","",""]
[null,null,null,null,null,null,"","","",""]
[null,null,null,null,null,null,"","","",""]
[null,null,null,null,null,null,"","","",""]
[null,null,null,null,null,null,"","","",""]
[null,null,null,null,null,null,"","","",""]
[null,null,null,null,null,null,"","","",""]
[null,null,null,null,null,null,"","","",""]
[null,null,null,null,null,null,"","","",""]
[null,null,null,null,null,null,"","","",""]
[null,null,null,null,null,null,"","","",""]
[null,null,null,null,null,null,"","","",""]
[null,null,null,null,null,null,"","","",""]
[null,null,null,null,null,null,"","","",""]
[null,null,null,null,null,null,{"$f":"IF(ISBLANK(A450),\"\",VLOOKUP(A450,SUPPLIES_SITE_LU,2,FALSE))","v":""},{"$f":"IF(ISBLANK(B450),\"\",VLOOKUP(B450,POSITION_ID_SUPP,2,FALSE))","v":""},{"$f":"IF(ISBLANK(D450),\"\",VLOOKUP(D450,UNIT_LU,2,FALSE))","v":""},{"$f":"IF(ISBLANK(E450),\"\",VALUE(TEXT(E450,\"YYYYMM\")))","v":""}]
[null,null,null,null,null,null,"","","",""]
[null,null,null,null,null,null,"","","",""]
[null,null,null,null,null,null,"","","",""]
[null,null,null,null,null,null,"","","",""]
[null,null,null,null,null,null,"","","",""]
[null,null,null,null,null,null,"","","",""]
[null,null,null,null,null,null,"","","",""]
[null,null,null,null,null,null,"","","",""]
[null,null,null,null,null,null,"","","",""]
[null,null,null,null,null,null,"","","",""]
[null,null,null,null,null,null,"","","",""]
[null,null,null,null,null,null,"","","",""]
[null,null,null,null,null,null,"","","",""]
[null,null,null,null,null,null,"","","",""]
[null,null,null,null,null,null,"","","",""]
[null,null,null,null,null,null,"","","",""]
[null,null,null,null,null,null,"","","",""]
[null,null,null,null,null,null,"","","",""]
[null,null,null,null,null,null,"","","",""]
[null,null,null,null,null,null,"","","",""]
[null,null,null,null,null,null,"","","",""]
[null,null,null,null,null,null,"","","",""]
[null,null,null,null,null,null,"","","",""]
[null,null,null,null,null,null,"","","",""]
[null,null,null,null,null,null,"","","",""]
[null,null,null,null,null,null,"","","",""]
[null,null,null,null,null,null,"","","",""]
[null,null,null,null,null,null,"","","",""]
[null,null,null,null,null,null,"","","",""]
[null,null,null,null,null,null,"","","",""]
[null,null,null,null,null,null,"","","",""]
[null,null,null,null,null,null,"","","",""]
[null,null,null,null,null,null,"","","",""]
[null,null,null,null,null,null,"","","",""]
[null,null,null,null,null,null,"","","",""]
[null,null,null,null,null,null,"","","",""]
[null,null,null,null,null,null,"","","",""]
[null,null,null,null,null,null,"","","",""]
[null,null,null,null,null,null,"","","",""]
[null,null,null,null,null,null,"","","",""]
[null,null,null,null,null,null,"","","",""]
[null,null,null,null,null,null,"","","",""]
[null,null,null,null,null,null,"","","",""]
[null,null,null,null,null,null,"","","",""]
[null,null,null,null,null,null,"","","",""]
[null,null,null,null,null,null,"","","",""]
[null,null,null,null,null,null,"","","",""]
[null,null,null,null,null,null,"","","",""]
[null,null,null,null,null,null,"","","",""]
[null,null,null,null,null,null,"","","",""]
[null,null,null,null,null,null,"","","",""]
[null,null,null,null,null,null,"","","",""]
[null,null,null,null,null,null,"","","",""]
[null,null,null,null,null,null,"","","",""]
[null,null,null,null,null,null,"","","",""]
[null,null,null,null,null,null,"","","",""]
[null,null,null,null,null,null,"","","",""]
[null,null,null,null,null,null,"","","",""]
[null,null,null,null,null,null,"","","",""]
[null,null,null,null,null,null,"","","",""]
[null,null,null,null,null,null,"","","",""]
[null,null,null,null,null,null,"","","",""]
[null,null,null,null,null,null,"","","",""]
[null,null,null,null,null,null,{"$f":"IF(ISBLANK(A514),\"\",VLOOKUP(A514,SUPPLIES_SITE_LU,2,FALSE))","v":""},{"$f":"IF(ISBLANK(B514),\"\",VLOOKUP(B514,POSITION_ID_SUPP,2,FALSE))","v":""},{"$f":"IF(ISBLANK(D514),\"\",VLOOKUP(D514,UNIT_LU,2,FALSE))","v":""},{"$f":"IF(ISBLANK(E514),\"\",VALUE(TEXT(E514,\"YYYYMM\")))","v":""}]
[null,null,null,null,null,null,"","","",""]
[null,null,null,null,null,null,"","","",""]
[null,null,null,null,null,null,"","","",""]
[null,null,null,null,null,null,"","","",""]
[null,null,null,null,null,null,"","","",""]
[null,null,null,null,null,null,"","","",""]
[null,null,null,null,null,null,"","","",""]
[null,null,null,null,null,null,"","","",""]
[null,null,null,null,null,null,"","","",""]
[null,null,null,null,null,null,"","","",""]
[null,null,null,null,null,null,"","","",""]
[null,null,null,null,null,null,"","","",""]
[null,null,null,null,null,null,"","","",""]
[null,null,null,null,null,null,"","","",""]
[null,null,null,null,null,null,"","","",""]
[null,null,null,null,null,null,"","","",""]
[null,null,null,null,null,null,"","","",""]
[null,null,null,null,null,null,"","","",""]
[null,null,null,null,null,null,"","","",""]
[null,null,null,null,null,null,"","","",""]
[null,null,null,null,null,null,"","","",""]
[null,null,null,null,null,null,"","","",""]
[null,null,null,null,null,null,"","","",""]
[null,null,null,null,null,null,"","","",""]
[null,null,null,null,null,null,"","","",""]
[null,null,null,null,null,null,"","","",""]
[null,null,null,null,null,null,"","","",""]
[null,null,null,null,null,null,"","","",""]
[null,null,null,null,null,null,"","","",""]
[null,null,null,null,null,null,"","","",""]
[null,null,null,null,null,null,"","","",""]
[null,null,null,null,null,null,"","","",""]
[null,null,null,null,null,null,"","","",""]
[null,null,null,null,null,null,"","","",""]
[null,null,null,null,null,null,"","","",""]
[null,null,null,null,null,null,"","","",""]
[null,null,null,null,null,null,"","","",""]
[null,null,null,null,null,null,"","","",""]
[null,null,null,null,null,null,"","","",""]
[null,null,null,null,null,null,"","","",""]
[null,null,null,null,null,null,"","","",""]
[null,null,null,null,null,null,"","","",""]
[null,null,null,null,null,null,"","","",""]
[null,null,null,null,null,null,"","","",""]
[null,null,null,null,null,null,"","","",""]
[null,null,null,null,null,null,"","","",""]
[null,null,null,null,null,null,"","","",""]
[null,null,null,null,null,null,"","","",""]
[null,null,null,null,null,null,"","","",""]
[null,null,null,null,null,null,"","","",""]
[null,null,null,null,null,null,"","","",""]
[null,null,null,null,null,null,"","","",""]
[null,null,null,null,null,null,"","","",""]
[null,null,null,null,null,null,"","","",""]
[null,null,null,null,null,null,"","","",""]
[null,null,null,null,null,null,"","","",""]
[null,null,null,null,null,null,"","","",""]
[null,null,null,null,null,null,"","","",""]
[null,null,null,null,null,null,"","","",""]
[null,null,null,null,null,null,"","","",""]
[null,null,null,null,null,null,"","","",""]
[null,null,null,null,null,null,"","","",""]
[null,null,null,null,null,null,"","","",""]
[null,null,null,null,null,null,{"$f":"IF(ISBLANK(A578),\"\",VLOOKUP(A578,SUPPLIES_SITE_LU,2,FALSE))","v":""},{"$f":"IF(ISBLANK(B578),\"\",VLOOKUP(B578,POSITION_ID_SUPP,2,FALSE))","v":""},{"$f":"IF(ISBLANK(D578),\"\",VLOOKUP(D578,UNIT_LU,2,FALSE))","v":""},{"$f":"IF(ISBLANK(E578),\"\",VALUE(TEXT(E578,\"YYYYMM\")))","v":""}]
[null,null,null,null,null,null,"","","",""]
[null,null,null,null,null,null,"","","",""]
[null,null,null,null,null,null,"","","",""]
[null,null,null,null,null,null,"","","",""]
[null,null,null,null,null,null,"","","",""]
[null,null,null,null,null,null,"","","",""]
[null,null,null,null,null,null,"","","",""]
[null,null,null,null,null,null,"","","",""]
[null,null,null,null,null,null,"","","",""]
[null,null,null,null,null,null,"","","",""]
[null,null,null,null,null,null,"","","",""]
[null,null,null,null,null,null,"","","",""]
[null,null,null,null,null,null,"","","",""]
[null,null,null,null,null,null,"","","",""]
[null,null,null,null,null,null,"","","",""]
[null,null,null,null,null,null,"","","",""]
[null,null,null,null,null,null,"","","",""]
[null,null,null,null,null,null,"","","",""]
[null,null,null,null,null,null,"","","",""]
[null,null,null,null,null,null,"","","",""]
[null,null,null,null,null,null,"","","",""]
[null,null,null,null,null,null,"","","",""]
[null,null,null,null,null,null,"","","",""]
[null,null,null,null,null,null,"","","",""]
[null,null,null,null,null,null,"","","",""]
[null,null,null,null,null,null,"","","",""]
[null,null,null,null,null,null,"","","",""]
[null,null,null,null,null,null,"","","",""]
[null,null,null,null,null,null,"","","",""]
[null,null,null,null,null,null,"","","",""]
[null,null,null,null,null,null,"","","",""]
[null,null,null,null,null,null,"","","",""]
[null,null,null,null,null,null,"","","",""]
[null,null,null,null,null,null,"","","",""]
[null,null,null,null,null,null,"","","",""]
[null,null,null,null,null,null,"","","",""]
[null,null,null,null,null,null,"","","",""]
[null,null,null,null,null,null,"","","",""]
[null,null,null,null,null,null,"","","",""]
[null,null,null,null,null,null,"","","",""]
[null,null,null,null,null,null,"","","",""]
[null,null,null,null,null,null,"","","",""]
[null,null,null,null,null,null,"","","",""]
[null,null,null,null,null,null,"","","",""]
[null,null,null,null,null,null,"","","",""]
[null,null,null,null,null,null,"","","",""]
[null,null,null,null,null,null,"","","",""]
[null,null,null,null,null,null,"","","",""]
[null,null,null,null,null,null,"","","",""]
[null,null,null,null,null,null,"","","",""]
[null,null,null,null,null,null,"","","",""]
[null,null,null,null,null,null,"","","",""]
[null,null,null,null,null,null,"","","",""]
[null,null,null,null,null,null,"","","",""]
[null,null,null,null,null,null,"","","",""]
[null,null,null,null,null,null,"","","",""]
[null,null,null,null,null,null,"","","",""]
[null,null,null,null,null,null,"","","",""]
[null,null,null,null,null,null,"","","",""]
[null,null,null,null,null,null,"","","",""]
[null,null,null,null,null,null,"","","",""]
[null,null,null,null,null,null,"","","",""]
[null,null,null,null,null,null,"","","",""]
[null,null,null,null,null,null,{"$f":"IF(ISBLANK(A642),\"\",VLOOKUP(A642,SUPPLIES_SITE_LU,2,FALSE))","v":""},{"$f":"IF(ISBLANK(B642),\"\",VLOOKUP(B642,POSITION_ID_SUPP,2,FALSE))","v":""},{"$f":"IF(ISBLANK(D642),\"\",VLOOKUP(D642,UNIT_LU,2,FALSE))","v":""},{"$f":"IF(ISBLANK(E642),\"\",VALUE(TEXT(E642,\"YYYYMM\")))","v":""}]
[null,null,null,null,null,null,"","","",""]
[null,null,null,null,null,null,"","","",""]
[null,null,null,null,null,null,"","","",""]
[null,null,null,null,null,null,"","","",""]
[null,null,null,null,null,null,"","","",""]
[null,null,null,null,null,null,"","","",""]
[null,null,null,null,null,null,"","","",""]
[null,null,null,null,null,null,"","","",""]
[null,null,null,null,null,null,"","","",""]
[null,null,null,null,null,null,"","","",""]
[null,null,null,null,null,null,"","","",""]
[null,null,null,null,null,null,"","","",""]
[null,null,null,null,null,null,"","","",""]
[null,null,null,null,null,null,"","","",""]
[null,null,null,null,null,null,"","","",""]
[null,null,null,null,null,null,"","","",""]
[null,null,null,null,null,null,"","","",""]
[null,null,null,null,null,null,"","","",""]
[null,null,null,null,null,null,"","","",""]
[null,null,null,null,null,null,"","","",""]
[null,null,null,null,null,null,"","","",""]
[null,null,null,null,null,null,"","","",""]
[null,null,null,null,null,null,"","","",""]
[null,null,null,null,null,null,"","","",""]
[null,null,null,null,null,null,"","","",""]
[null,null,null,null,null,null,"","","",""]
[null,null,null,null,null,null,"","","",""]
[null,null,null,null,null,null,"","","",""]
[null,null,null,null,null,null,"","","",""]
[null,null,null,null,null,null,"","","",""]
[null,null,null,null,null,null,"","","",""]
[null,null,null,null,null,null,"","","",""]
[null,null,null,null,null,null,"","","",""]
[null,null,null,null,null,null,"","","",""]
[null,null,null,null,null,null,"","","",""]
[null,null,null,null,null,null,"","","",""]
[null,null,null,null,null,null,"","","",""]
[null,null,null,null,null,null,"","","",""]
[null,null,null,null,null,null,"","","",""]
[null,null,null,null,null,null,"","","",""]
[null,null,null,null,null,null,"","","",""]
[null,null,null,null,null,null,"","","",""]
[null,null,null,null,null,null,"","","",""]
[null,null,null,null,null,null,"","","",""]
[null,null,null,null,null,null,"","","",""]
[null,null,null,null,null,null,"","","",""]
[null,null,null,null,null,null,"","","",""]
[null,null,null,null,null,null,"","","",""]
[null,null,null,null,null,null,"","","",""]
[null,null,null,null,null,null,"","","",""]
[null,null,null,null,null,null,"","","",""]
[null,null,null,null,null,null,"","","",""]
[null,null,null,null,null,null,"","","",""]
[null,null,null,null,null,null,"","","",""]
[null,null,null,null,null,null,"","","",""]
[null,null,null,null,null,null,"","","",""]
[null,null,null,null,null,null,"","","",""]
[null,null,null,null,null,null,"","","",""]
[null,null,null,null,null,null,"","","",""]
[null,null,null,null,null,null,"","","",""]
[null,null,null,null,null,null,"","","",""]
[null,null,null,null,null,null,"","","",""]
[null,null,null,null,null,null,"","","",""]
[null,null,null,null,null,null,{"$f":"IF(ISBLANK(A706),\"\",VLOOKUP(A706,SUPPLIES_SITE_LU,2,FALSE))","v":""},{"$f":"IF(ISBLANK(B706),\"\",VLOOKUP(B706,POSITION_ID_SUPP,2,FALSE))","v":""},{"$f":"IF(ISBLANK(D706),\"\",VLOOKUP(D706,UNIT_LU,2,FALSE))","v":""},{"$f":"IF(ISBLANK(E706),\"\",VALUE(TEXT(E706,\"YYYYMM\")))","v":""}]
[null,null,null,null,null,null,"","","",""]
[null,null,null,null,null,null,"","","",""]
[null,null,null,null,null,null,"","","",""]
[null,null,null,null,null,null,"","","",""]
[null,null,null,null,null,null,"","","",""]
[null,null,null,null,null,null,"","","",""]
[null,null,null,null,null,null,"","","",""]
[null,null,null,null,null,null,"","","",""]
[null,null,null,null,null,null,"","","",""]
[null,null,null,null,null,null,"","","",""]
[null,null,null,null,null,null,"","","",""]
[null,null,null,null,null,null,"","","",""]
[null,null,null,null,null,null,"","","",""]
[null,null,null,null,null,null,"","","",""]
[null,null,null,null,null,null,"","","",""]
[null,null,null,null,null,null,"","","",""]
[null,null,null,null,null,null,"","","",""]
[null,null,null,null,null,null,"","","",""]
[null,null,null,null,null,null,"","","",""]
[null,null,null,null,null,null,"","","",""]
[null,null,null,null,null,null,"","","",""]
[null,null,null,null,null,null,"","","",""]
[null,null,null,null,null,null,"","","",""]
[null,null,null,null,null,null,"","","",""]
[null,null,null,null,null,null,"","","",""]
[null,null,null,null,null,null,"","","",""]
[null,null,null,null,null,null,"","","",""]
[null,null,null,null,null,null,"","","",""]
[null,null,null,null,null,null,"","","",""]
[null,null,null,null,null,null,"","","",""]
[null,null,null,null,null,null,"","","",""]
[null,null,null,null,null,null,"","","",""]
[null,null,null,null,null,null,"","","",""]
[null,null,null,null,null,null,"","","",""]
[null,null,null,null,null,null,"","","",""]
[null,null,null,null,null,null,"","","",""]
[null,null,null,null,null,null,"","","",""]
[null,null,null,null,null,null,"","","",""]
[null,null,null,null,null,null,"","","",""]
[null,null,null,null,null,null,"","","",""]
[null,null,null,null,null,null,"","","",""]
[null,null,null,null,null,null,"","","",""]
[null,null,null,null,null,null,"","","",""]
[null,null,null,null,null,null,"","","",""]
[null,null,null,null,null,null,"","","",""]
[null,null,null,null,null,null,"","","",""]
[null,null,null,null,null,null,"","","",""]
[null,null,null,null,null,null,"","","",""]
[null,null,null,null,null,null,"","","",""]
[null,null,null,null,null,null,"","","",""]
[null,null,null,null,null,null,"","","",""]
[null,null,null,null,null,null,"","","",""]
[null,null,null,null,null,null,"","","",""]
[null,null,null,null,null,null,"","","",""]
[null,null,null,null,null,null,"","","",""]
[null,null,null,null,null,null,"","","",""]
[null,null,null,null,null,null,"","","",""]
[null,null,null,null,null,null,"","","",""]
[null,null,null,null,null,null,"","","",""]
[null,null,null,null,null,null,"","","",""]
[null,null,null,null,null,null,"","","",""]
[null,null,null,null,null,null,"","","",""]
[null,null,null,null,null,null,"","","",""]
[null,null,null,null,null,null,{"$f":"IF(ISBLANK(A770),\"\",VLOOKUP(A770,SUPPLIES_SITE_LU,2,FALSE))","v":""},{"$f":"IF(ISBLANK(B770),\"\",VLOOKUP(B770,POSITION_ID_SUPP,2,FALSE))","v":""},{"$f":"IF(ISBLANK(D770),\"\",VLOOKUP(D770,UNIT_LU,2,FALSE))","v":""},{"$f":"IF(ISBLANK(E770),\"\",VALUE(TEXT(E770,\"YYYYMM\")))","v":""}]
[null,null,null,null,null,null,"","","",""]
[null,null,null,null,null,null,"","","",""]
[null,null,null,null,null,null,"","","",""]
[null,null,null,null,null,null,"","","",""]
[null,null,null,null,null,null,"","","",""]
[null,null,null,null,null,null,"","","",""]
[null,null,null,null,null,null,"","","",""]
[null,null,null,null,null,null,"","","",""]
[null,null,null,null,null,null,"","","",""]
[null,null,null,null,null,null,"","","",""]
[null,null,null,null,null,null,"","","",""]
[null,null,null,null,null,null,"","","",""]
[null,null,null,null,null,null,"","","",""]
[null,null,null,null,null,null,"","","",""]
[null,null,null,null,null,null,"","","",""]
[null,null,null,null,null,null,"","","",""]
[null,null,null,null,null,null,"","","",""]
[null,null,null,null,null,null,"","","",""]
[null,null,null,null,null,null,"","","",""]
[null,null,null,null,null,null,"","","",""]
[null,null,null,null,null,null,"","","",""]
[null,null,null,null,null,null,"","","",""]
[null,null,null,null,null,null,"","","",""]
[null,null,null,null,null,null,"","","",""]
[null,null,null,null,null,null,"","","",""]
[null,null,null,null,null,null,"","","",""]
[null,null,null,null,null,null,"","","",""]
[null,null,null,null,null,null,"","","",""]
[null,null,null,null,null,null,"","","",""]
[null,null,null,null,null,null,"","","",""]
[null,null,null,null,null,null,"","","",""]
[null,null,null,null,null,null,"","","",""]
[null,null,null,null,null,null,"","","",""]
[null,null,null,null,null,null,"","","",""]
[null,null,null,null,null,null,"","","",""]
[null,null,null,null,null,null,"","","",""]
[null,null,null,null,null,null,"","","",""]
[null,null,null,null,null,null,"","","",""]
[null,null,null,null,null,null,"","","",""]
[null,null,null,null,null,null,"","","",""]
[null,null,null,null,null,null,"","","",""]
[null,null,null,null,null,null,"","","",""]
[null,null,null,null,null,null,"","","",""]
[null,null,null,null,null,null,"","","",""]
[null,null,null,null,null,null,"","","",""]
[null,null,null,null,null,null,"","","",""]
[null,null,null,null,null,null,"","","",""]
[null,null,null,null,null,null,"","","",""]
[null,null,null,null,null,null,"","","",""]
[null,null,null,null,null,null,"","","",""]
[null,null,null,null,null,null,"","","",""]
[null,null,null,null,null,null,"","","",""]
[null,null,null,null,null,null,"","","",""]
[null,null,null,null,null,null,"","","",""]
[null,null,null,null,null,null,"","","",""]
[null,null,null,null,null,null,"","","",""]
[null,null,null,null,null,null,"","","",""]
[null,null,null,null,null,null,"","","",""]
[null,null,null,null,null,null,"","","",""]
[null,null,null,null,null,null,"","","",""]
[null,null,null,null,null,null,"","","",""]
[null,null,null,null,null,null,"","","",""]
[null,null,null,null,null,null,"","","",""]
[null,null,null,null,null,null,{"$f":"IF(ISBLANK(A834),\"\",VLOOKUP(A834,SUPPLIES_SITE_LU,2,FALSE))","v":""},{"$f":"IF(ISBLANK(B834),\"\",VLOOKUP(B834,POSITION_ID_SUPP,2,FALSE))","v":""},{"$f":"IF(ISBLANK(D834),\"\",VLOOKUP(D834,UNIT_LU,2,FALSE))","v":""},{"$f":"IF(ISBLANK(E834),\"\",VALUE(TEXT(E834,\"YYYYMM\")))","v":""}]
[null,null,null,null,null,null,"","","",""]
[null,null,null,null,null,null,"","","",""]
[null,null,null,null,null,null,"","","",""]
[null,null,null,null,null,null,"","","",""]
[null,null,null,null,null,null,"","","",""]
[null,null,null,null,null,null,"","","",""]
[null,null,null,null,null,null,"","","",""]
[null,null,null,null,null,null,"","","",""]
[null,null,null,null,null,null,"","","",""]
[null,null,null,null,null,null,"","","",""]
[null,null,null,null,null,null,"","","",""]
[null,null,null,null,null,null,"","","",""]
[null,null,null,null,null,null,"","","",""]
[null,null,null,null,null,null,"","","",""]
[null,null,null,null,null,null,"","","",""]
[null,null,null,null,null,null,"","","",""]
[null,null,null,null,null,null,"","","",""]
[null,null,null,null,null,null,"","","",""]
[null,null,null,null,null,null,"","","",""]
[null,null,null,null,null,null,"","","",""]
[null,null,null,null,null,null,"","","",""]
[null,null,null,null,null,null,"","","",""]
[null,null,null,null,null,null,"","","",""]
[null,null,null,null,null,null,"","","",""]
[null,null,null,null,null,null,"","","",""]
[null,null,null,null,null,null,"","","",""]
[null,null,null,null,null,null,"","","",""]
[null,null,null,null,null,null,"","","",""]
[null,null,null,null,null,null,"","","",""]
[null,null,null,null,null,null,"","","",""]
[null,null,null,null,null,null,"","","",""]
[null,null,null,null,null,null,"","","",""]
[null,null,null,null,null,null,"","","",""]
[null,null,null,null,null,null,"","","",""]
[null,null,null,null,null,null,"","","",""]
[null,null,null,null,null,null,"","","",""]
[null,null,null,null,null,null,"","","",""]
[null,null,null,null,null,null,"","","",""]
[null,null,null,null,null,null,"","","",""]
[null,null,null,null,null,null,"","","",""]
[null,null,null,null,null,null,"","","",""]
[null,null,null,null,null,null,"","","",""]
[null,null,null,null,null,null,"","","",""]
[null,null,null,null,null,null,"","","",""]
[null,null,null,null,null,null,"","","",""]
[null,null,null,null,null,null,"","","",""]
[null,null,null,null,null,null,"","","",""]
[null,null,null,null,null,null,"","","",""]
[null,null,null,null,null,null,"","","",""]
[null,null,null,null,null,null,"","","",""]
[null,null,null,null,null,null,"","","",""]
[null,null,null,null,null,null,"","","",""]
[null,null,null,null,null,null,"","","",""]
[null,null,null,null,null,null,"","","",""]
[null,null,null,null,null,null,"","","",""]
[null,null,null,null,null,null,"","","",""]
[null,null,null,null,null,null,"","","",""]
[null,null,null,null,null,null,"","","",""]
[null,null,null,null,null,null,"","","",""]
[null,null,null,null,null,null,"","","",""]
[null,null,null,null,null,null,"","","",""]
[null,null,null,null,null,null,"","","",""]
[null,null,null,null,null,null,"","","",""]
[null,null,null,null,null,null,{"$f":"IF(ISBLANK(A898),\"\",VLOOKUP(A898,SUPPLIES_SITE_LU,2,FALSE))","v":""},{"$f":"IF(ISBLANK(B898),\"\",VLOOKUP(B898,POSITION_ID_SUPP,2,FALSE))","v":""},{"$f":"IF(ISBLANK(D898),\"\",VLOOKUP(D898,UNIT_LU,2,FALSE))","v":""},{"$f":"IF(ISBLANK(E898),\"\",VALUE(TEXT(E898,\"YYYYMM\")))","v":""}]
[null,null,null,null,null,null,"","","",""]
[null,null,null,null,null,null,"","","",""]
[null,null,null,null,null,null,"","","",""]
[null,null,null,null,null,null,"","","",""]
[null,null,null,null,null,null,"","","",""]
[null,null,null,null,null,null,"","","",""]
[null,null,null,null,null,null,"","","",""]
[null,null,null,null,null,null,"","","",""]
[null,null,null,null,null,null,"","","",""]
[null,null,null,null,null,null,"","","",""]
[null,null,null,null,null,null,"","","",""]
[null,null,null,null,null,null,"","","",""]
[null,null,null,null,null,null,"","","",""]
[null,null,null,null,null,null,"","","",""]
[null,null,null,null,null,null,"","","",""]
[null,null,null,null,null,null,"","","",""]
[null,null,null,null,null,null,"","","",""]
[null,null,null,null,null,null,"","","",""]
[null,null,null,null,null,null,"","","",""]
[null,null,null,null,null,null,"","","",""]
[null,null,null,null,null,null,"","","",""]
[null,null,null,null,null,null,"","","",""]
[null,null,null,null,null,null,"","","",""]
[null,null,null,null,null,null,"","","",""]
[null,null,null,null,null,null,"","","",""]
[null,null,null,null,null,null,"","","",""]
[null,null,null,null,null,null,"","","",""]
[null,null,null,null,null,null,"","","",""]
[null,null,null,null,null,null,"","","",""]
[null,null,null,null,null,null,"","","",""]
[null,null,null,null,null,null,"","","",""]
[null,null,null,null,null,null,"","","",""]
[null,null,null,null,null,null,"","","",""]
[null,null,null,null,null,null,"","","",""]
[null,null,null,null,null,null,"","","",""]
[null,null,null,null,null,null,"","","",""]
[null,null,null,null,null,null,"","","",""]
[null,null,null,null,null,null,"","","",""]
[null,null,null,null,null,null,"","","",""]
[null,null,null,null,null,null,"","","",""]
[null,null,null,null,null,null,"","","",""]
[null,null,null,null,null,null,"","","",""]
[null,null,null,null,null,null,"","","",""]
[null,null,null,null,null,null,"","","",""]
[null,null,null,null,null,null,"","","",""]
[null,null,null,null,null,null,"","","",""]
[null,null,null,null,null,null,"","","",""]
[null,null,null,null,null,null,"","","",""]
[null,null,null,null,null,null,"","","",""]
[null,null,null,null,null,null,"","","",""]
[null,null,null,null,null,null,"","","",""]
[null,null,null,null,null,null,"","","",""]
[null,null,null,null,null,null,"","","",""]
[null,null,null,null,null,null,"","","",""]
[null,null,null,null,null,null,"","","",""]
[null,null,null,null,null,null,"","","",""]
[null,null,null,null,null,null,"","","",""]
[null,null,null,null,null,null,"","","",""]
[null,null,null,null,null,null,"","","",""]
[null,null,null,null,null,null,"","","",""]
[null,null,null,null,null,null,"","","",""]
[null,null,null,null,null,null,"","","",""]
[null,null,null,null,null,null,"","","",""]
[null,null,null,null,null,null,{"$f":"IF(ISBLANK(A962),\"\",VLOOKUP(A962,SUPPLIES_SITE_LU,2,FALSE))","v":""},{"$f":"IF(ISBLANK(B962),\"\",VLOOKUP(B962,POSITION_ID_SUPP,2,FALSE))","v":""},{"$f":"IF(ISBLANK(D962),\"\",VLOOKUP(D962,UNIT_LU,2,FALSE))","v":""},{"$f":"IF(ISBLANK(E962),\"\",VALUE(TEXT(E962,\"YYYYMM\")))","v":""}]
[null,null,null,null,null,null,"","","",""]
[null,null,null,null,null,null,"","","",""]
[null,null,null,null,null,null,"","","",""]
[null,null,null,null,null,null,"","","",""]
[null,null,null,null,null,null,"","","",""]
[null,null,null,null,null,null,"","","",""]
[null,null,null,null,null,null,"","","",""]
[null,null,null,null,null,null,"","","",""]
[null,null,null,null,null,null,"","","",""]
[null,null,null,null,null,null,"","","",""]
[null,null,null,null,null,null,"","","",""]
[null,null,null,null,null,null,"","","",""]
[null,null,null,null,null,null,"","","",""]
[null,null,null,null,null,null,"","","",""]
[null,null,null,null,null,null,"","","",""]
[null,null,null,null,null,null,"","","",""]
[null,null,null,null,null,null,"","","",""]
[null,null,null,null,null,null,"","","",""]
[null,null,null,null,null,null,"","","",""]
[null,null,null,null,null,null,"","","",""]
[null,null,null,null,null,null,"","","",""]
[null,null,null,null,null,null,"","","",""]
[null,null,null,null,null,null,"","","",""]
[null,null,null,null,null,null,"","","",""]
[null,null,null,null,null,null,"","","",""]
[null,null,null,null,null,null,"","","",""]
[null,null,null,null,null,null,"","","",""]
[null,null,null,null,null,null,"","","",""]
[null,null,null,null,null,null,"","","",""]
[null,null,null,null,null,null,"","","",""]
[null,null,null,null,null,null,"","","",""]
[null,null,null,null,null,null,"","","",""]
[null,null,null,null,null,null,"","","",""]
[null,null,null,null,null,null,"","","",""]
[null,null,null,null,null,null,"","","",""]
[null,null,null,null,null,null,"","","",""]
[null,null,null,null,null,null,"","","",""]
[null,null,null,null,null,null,"","","",""]
[null,null,null,null,null,null,"","","",""]
[null,null,null,null,null,null,"","","",""]
[null,null,null,null,null,null,"","","",""]
[null,null,null,null,null,null,"","","",""]
[null,null,null,null,null,null,"","","",""]
[null,null,null,null,null,null,"","","",""]
[null,null,null,null,null,null,"","","",""]
[null,null,null,null,null,null,"","","",""]
[null,null,null,null,null,null,"","","",""]
[null,null,null,null,null,null,"","","",""]
[null,null,null,null,null,null,"","","",""]
[null,null,null,null,null,null,"","","",""]
[null,null,null,null,null,null,"","","",""]
[null,null,null,null,null,null,"","","",""]
[null,null,null,null,null,null,"","","",""]
[null,null,null,null,null,null,"","","",""]
[null,null,null,null,null,null,"","","",""]
[null,null,null,null,null,null,"","","",""]
[null,null,null,null,null,null,"","","",""]
[null,null,null,null,null,null,"","","",""]
[null,null,null,null,null,null,"","","",""]
[null,null,null,null,null,null,"","","",""]
[null,null,null,null,null,null,"","","",""]
[null,null,null,null,null,null,"","","",""]
[null,null,null,null,null,null,"","","",""]
[null,null,null,null,null,null,{"$f":"IF(ISBLANK(A1026),\"\",VLOOKUP(A1026,SUPPLIES_SITE_LU,2,FALSE))","v":""},{"$f":"IF(ISBLANK(B1026),\"\",VLOOKUP(B1026,POSITION_ID_SUPP,2,FALSE))","v":""},{"$f":"IF(ISBLANK(D1026),\"\",VLOOKUP(D1026,UNIT_LU,2,FALSE))","v":""},{"$f":"IF(ISBLANK(E1026),\"\",VALUE(TEXT(E1026,\"YYYYMM\")))","v":""}]
[null,null,null,null,null,null,"","","",""]
[null,null,null,null,null,null,"","","",""]
[null,null,null,null,null,null,"","","",""]
[null,null,null,null,null,null,"","","",""]
[null,null,null,null,null,null,"","","",""]
[null,null,null,null,null,null,"","","",""]
[null,null,null,null,null,null,"","","",""]
[null,null,null,null,null,null,"","","",""]
[null,null,null,null,null,null,"","","",""]
[null,null,null,null,null,null,"","","",""]
[null,null,null,null,null,null,"","","",""]
[null,null,null,null,null,null,"","","",""]
[null,null,null,null,null,null,"","","",""]
[null,null,null,null,null,null,"","","",""]
[null,null,null,null,null,null,"","","",""]
[null,null,null,null,null,null,"","","",""]
[null,null,null,null,null,null,"","","",""]
[null,null,null,null,null,null,"","","",""]
[null,null,null,null,null,null,"","","",""]
[null,null,null,null,null,null,"","","",""]
[null,null,null,null,null,null,"","","",""]
[null,null,null,null,null,null,"","","",""]
[null,null,null,null,null,null,"","","",""]
[null,null,null,null,null,null,"","","",""]
[null,null,null,null,null,null,"","","",""]
[null,null,null,null,null,null,"","","",""]
[null,null,null,null,null,null,"","","",""]
[null,null,null,null,null,null,"","","",""]
[null,null,null,null,null,null,"","","",""]
[null,null,null,null,null,null,"","","",""]
[null,null,null,null,null,null,"","","",""]
[null,null,null,null,null,null,"","","",""]
[null,null,null,null,null,null,"","","",""]
[null,null,null,null,null,null,"","","",""]
[null,null,null,null,null,null,"","","",""]
[null,null,null,null,null,null,"","","",""]
[null,null,null,null,null,null,"","","",""]
[null,null,null,null,null,null,"","","",""]
[null,null,null,null,null,null,"","","",""]
[null,null,null,null,null,null,"","","",""]
[null,null,null,null,null,null,"","","",""]
[null,null,null,null,null,null,"","","",""]
[null,null,null,null,null,null,"","","",""]
[null,null,null,null,null,null,"","","",""]
[null,null,null,null,null,null,"","","",""]
[null,null,null,null,null,null,"","","",""]
[null,null,null,null,null,null,"","","",""]
[null,null,null,null,null,null,"","","",""]
[null,null,null,null,null,null,"","","",""]
[null,null,null,null,null,null,"","","",""]
[null,null,null,null,null,null,"","","",""]
[null,null,null,null,null,null,"","","",""]
[null,null,null,null,null,null,"","","",""]
[null,null,null,null,null,null,"","","",""]
[null,null,null,null,null,null,"","","",""]
[null,null,null,null,null,null,"","","",""]
[null,null,null,null,null,null,"","","",""]
[null,null,null,null,null,null,"","","",""]
[null,null,null,null,null,null,"","","",""]
[null,null,null,null,null,null,"","","",""]
[null,null,null,null,null,null,"","","",""]
[null,null,null,null,null,null,"","","",""]
[null,null,null,null,null,null,"","","",""]
[null,null,null,null,null,null,{"$f":"IF(ISBLANK(A1090),\"\",VLOOKUP(A1090,SUPPLIES_SITE_LU,2,FALSE))","v":""},{"$f":"IF(ISBLANK(B1090),\"\",VLOOKUP(B1090,POSITION_ID_SUPP,2,FALSE))","v":""},{"$f":"IF(ISBLANK(D1090),\"\",VLOOKUP(D1090,UNIT_LU,2,FALSE))","v":""},{"$f":"IF(ISBLANK(E1090),\"\",VALUE(TEXT(E1090,\"YYYYMM\")))","v":""}]
[null,null,null,null,null,null,"","","",""]
[null,null,null,null,null,null,"","","",""]
[null,null,null,null,null,null,"","","",""]
[null,null,null,null,null,null,"","","",""]
[null,null,null,null,null,null,"","","",""]
[null,null,null,null,null,null,"","","",""]
[null,null,null,null,null,null,"","","",""]
[null,null,null,null,null,null,"","","",""]
[null,null,null,null,null,null,"","","",""]
[null,null,null,null,null,null,"","","",""]
[null,null,null,null,null,null,"","","",""]
[null,null,null,null,null,null,"","","",""]
[null,null,null,null,null,null,"","","",""]
[null,null,null,null,null,null,"","","",""]
[null,null,null,null,null,null,"","","",""]
[null,null,null,null,null,null,"","","",""]
[null,null,null,null,null,null,"","","",""]
[null,null,null,null,null,null,"","","",""]
[null,null,null,null,null,null,"","","",""]
[null,null,null,null,null,null,"","","",""]
[null,null,null,null,null,null,"","","",""]
[null,null,null,null,null,null,"","","",""]
[null,null,null,null,null,null,"","","",""]
[null,null,null,null,null,null,"","","",""]
[null,null,null,null,null,null,"","","",""]
[null,null,null,null,null,null,"","","",""]
[null,null,null,null,null,null,"","","",""]
[null,null,null,null,null,null,"","","",""]
[null,null,null,null,null,null,"","","",""]
[null,null,null,null,null,null,"","","",""]
[null,null,null,null,null,null,"","","",""]
[null,null,null,null,null,null,"","","",""]
[null,null,null,null,null,null,"","","",""]
[null,null,null,null,null,null,"","","",""]
[null,null,null,null,null,null,"","","",""]
[null,null,null,null,null,null,"","","",""]
[null,null,null,null,null,null,"","","",""]
[null,null,null,null,null,null,"","","",""]
[null,null,null,null,null,null,"","","",""]
[null,null,null,null,null,null,"","","",""]
[null,null,null,null,null,null,"","","",""]
[null,null,null,null,null,null,"","","",""]
[null,null,null,null,null,null,"","","",""]
[null,null,null,null,null,null,"","","",""]
[null,null,null,null,null,null,"","","",""]
[null,null,null,null,null,null,"","","",""]
[null,null,null,null,null,null,"","","",""]
[null,null,null,null,null,null,"","","",""]
[null,null,null,null,null,null,"","","",""]
[null,null,null,null,null,null,"","","",""]
[null,null,null,null,null,null,"","","",""]
[null,null,null,null,null,null,"","","",""]
[null,null,null,null,null,null,"","","",""]
[null,null,null,null,null,null,"","","",""]
[null,null,null,null,null,null,"","","",""]
[null,null,null,null,null,null,"","","",""]
[null,null,null,null,null,null,"","","",""]
[null,null,null,null,null,null,"","","",""]
[null,null,null,null,null,null,"","","",""]
[null,null,null,null,null,null,"","","",""]
[null,null,null,null,null,null,"","","",""]
[null,null,null,null,null,null,"","","",""]
[null,null,null,null,null,null,"","","",""]
[null,null,null,null,null,null,{"$f":"IF(ISBLANK(A1154),\"\",VLOOKUP(A1154,SUPPLIES_SITE_LU,2,FALSE))","v":""},{"$f":"IF(ISBLANK(B1154),\"\",VLOOKUP(B1154,POSITION_ID_SUPP,2,FALSE))","v":""},{"$f":"IF(ISBLANK(D1154),\"\",VLOOKUP(D1154,UNIT_LU,2,FALSE))","v":""},{"$f":"IF(ISBLANK(E1154),\"\",VALUE(TEXT(E1154,\"YYYYMM\")))","v":""}]
[null,null,null,null,null,null,"","","",""]
[null,null,null,null,null,null,"","","",""]
[null,null,null,null,null,null,"","","",""]
[null,null,null,null,null,null,"","","",""]
[null,null,null,null,null,null,"","","",""]
[null,null,null,null,null,null,"","","",""]
[null,null,null,null,null,null,"","","",""]
[null,null,null,null,null,null,"","","",""]
[null,null,null,null,null,null,"","","",""]
[null,null,null,null,null,null,"","","",""]
[null,null,null,null,null,null,"","","",""]
[null,null,null,null,null,null,"","","",""]
[null,null,null,null,null,null,"","","",""]
[null,null,null,null,null,null,"","","",""]
[null,null,null,null,null,null,"","","",""]
[null,null,null,null,null,null,"","","",""]
[null,null,null,null,null,null,"","","",""]
[null,null,null,null,null,null,"","","",""]
[null,null,null,null,null,null,"","","",""]
[null,null,null,null,null,null,"","","",""]
[null,null,null,null,null,null,"","","",""]
[null,null,null,null,null,null,"","","",""]
[null,null,null,null,null,null,"","","",""]
[null,null,null,null,null,null,"","","",""]
[null,null,null,null,null,null,"","","",""]
[null,null,null,null,null,null,"","","",""]
[null,null,null,null,null,null,"","","",""]
[null,null,null,null,null,null,"","","",""]
[null,null,null,null,null,null,"","","",""]
[null,null,null,null,null,null,"","","",""]
[null,null,null,null,null,null,"","","",""]
[null,null,null,null,null,null,"","","",""]
[null,null,null,null,null,null,"","","",""]
[null,null,null,null,null,null,"","","",""]
[null,null,null,null,null,null,"","","",""]
[null,null,null,null,null,null,"","","",""]
[null,null,null,null,null,null,"","","",""]
[null,null,null,null,null,null,"","","",""]
[null,null,null,null,null,null,"","","",""]
[null,null,null,null,null,null,"","","",""]
[null,null,null,null,null,null,"","","",""]
[null,null,null,null,null,null,"","","",""]
[null,null,null,null,null,null,"","","",""]
[null,null,null,null,null,null,"","","",""]
[null,null,null,null,null,null,"","","",""]
[null,null,null,null,null,null,"","","",""]
[null,null,null,null,null,null,"","","",""]
[null,null,null,null,null,null,"","","",""]
[null,null,null,null,null,null,"","","",""]
[null,null,null,null,null,null,"","","",""]
[null,null,null,null,null,null,"","","",""]
[null,null,null,null,null,null,"","","",""]
[null,null,null,null,null,null,"","","",""]
[null,null,null,null,null,null,"","","",""]
[null,null,null,null,null,null,"","","",""]
[null,null,null,null,null,null,"","","",""]
[null,null,null,null,null,null,"","","",""]
[null,null,null,null,null,null,"","","",""]
[null,null,null,null,null,null,"","","",""]
[null,null,null,null,null,null,"","","",""]
[null,null,null,null,null,null,"","","",""]
[null,null,null,null,null,null,"","","",""]
[null,null,null,null,null,null,"","","",""]
[null,null,null,null,null,null,{"$f":"IF(ISBLANK(A1218),\"\",VLOOKUP(A1218,SUPPLIES_SITE_LU,2,FALSE))","v":""},{"$f":"IF(ISBLANK(B1218),\"\",VLOOKUP(B1218,POSITION_ID_SUPP,2,FALSE))","v":""},{"$f":"IF(ISBLANK(D1218),\"\",VLOOKUP(D1218,UNIT_LU,2,FALSE))","v":""},{"$f":"IF(ISBLANK(E1218),\"\",VALUE(TEXT(E1218,\"YYYYMM\")))","v":""}]
[null,null,null,null,null,null,"","","",""]
[null,null,null,null,null,null,"","","",""]
[null,null,null,null,null,null,"","","",""]
[null,null,null,null,null,null,"","","",""]
[null,null,null,null,null,null,"","","",""]
[null,null,null,null,null,null,"","","",""]
[null,null,null,null,null,null,"","","",""]
[null,null,null,null,null,null,"","","",""]
[null,null,null,null,null,null,"","","",""]
[null,null,null,null,null,null,"","","",""]
[null,null,null,null,null,null,"","","",""]
[null,null,null,null,null,null,"","","",""]
[null,null,null,null,null,null,"","","",""]
[null,null,null,null,null,null,"","","",""]
[null,null,null,null,null,null,"","","",""]
[null,null,null,null,null,null,"","","",""]
[null,null,null,null,null,null,"","","",""]
[null,null,null,null,null,null,"","","",""]
[null,null,null,null,null,null,"","","",""]
[null,null,null,null,null,null,"","","",""]
[null,null,null,null,null,null,"","","",""]
[null,null,null,null,null,null,"","","",""]
[null,null,null,null,null,null,"","","",""]
[null,null,null,null,null,null,"","","",""]
[null,null,null,null,null,null,"","","",""]
[null,null,null,null,null,null,"","","",""]
[null,null,null,null,null,null,"","","",""]
[null,null,null,null,null,null,"","","",""]
[null,null,null,null,null,null,"","","",""]
[null,null,null,null,null,null,"","","",""]
[null,null,null,null,null,null,"","","",""]
[null,null,null,null,null,null,"","","",""]
[null,null,null,null,null,null,"","","",""]
[null,null,null,null,null,null,"","","",""]
[null,null,null,null,null,null,"","","",""]
[null,null,null,null,null,null,"","","",""]
[null,null,null,null,null,null,"","","",""]
[null,null,null,null,null,null,"","","",""]
[null,null,null,null,null,null,"","","",""]
[null,null,null,null,null,null,"","","",""]
[null,null,null,null,null,null,"","","",""]
[null,null,null,null,null,null,"","","",""]
[null,null,null,null,null,null,"","","",""]
[null,null,null,null,null,null,"","","",""]
[null,null,null,null,null,null,"","","",""]
[null,null,null,null,null,null,"","","",""]
[null,null,null,null,null,null,"","","",""]
[null,null,null,null,null,null,"","","",""]
[null,null,null,null,null,null,"","","",""]
[null,null,null,null,null,null,"","","",""]
[null,null,null,null,null,null,"","","",""]
[null,null,null,null,null,null,"","","",""]
[null,null,null,null,null,null,"","","",""]
[null,null,null,null,null,null,"","","",""]
[null,null,null,null,null,null,"","","",""]
[null,null,null,null,null,null,"","","",""]
[null,null,null,null,null,null,"","","",""]
[null,null,null,null,null,null,"","","",""]
[null,null,null,null,null,null,"","","",""]
[null,null,null,null,null,null,"","","",""]
[null,null,null,null,null,null,"","","",""]
[null,null,null,null,null,null,"","","",""]
[null,null,null,null,null,null,"","","",""]
[null,null,null,null,null,null,{"$f":"IF(ISBLANK(A1282),\"\",VLOOKUP(A1282,SUPPLIES_SITE_LU,2,FALSE))","v":""},{"$f":"IF(ISBLANK(B1282),\"\",VLOOKUP(B1282,POSITION_ID_SUPP,2,FALSE))","v":""},{"$f":"IF(ISBLANK(D1282),\"\",VLOOKUP(D1282,UNIT_LU,2,FALSE))","v":""},{"$f":"IF(ISBLANK(E1282),\"\",VALUE(TEXT(E1282,\"YYYYMM\")))","v":""}]
[null,null,null,null,null,null,"","","",""]
[null,null,null,null,null,null,"","","",""]
[null,null,null,null,null,null,"","","",""]
[null,null,null,null,null,null,"","","",""]
[null,null,null,null,null,null,"","","",""]
[null,null,null,null,null,null,"","","",""]
[null,null,null,null,null,null,"","","",""]
[null,null,null,null,null,null,"","","",""]
[null,null,null,null,null,null,"","","",""]
[null,null,null,null,null,null,"","","",""]
[null,null,null,null,null,null,"","","",""]
[null,null,null,null,null,null,"","","",""]
[null,null,null,null,null,null,"","","",""]
[null,null,null,null,null,null,"","","",""]
[null,null,null,null,null,null,"","","",""]
[null,null,null,null,null,null,"","","",""]
[null,null,null,null,null,null,"","","",""]
[null,null,null,null,null,null,"","","",""]
[null,null,null,null,null,null,"","","",""]
[null,null,null,null,null,null,"","","",""]
[null,null,null,null,null,null,"","","",""]
[null,null,null,null,null,null,"","","",""]
[null,null,null,null,null,null,"","","",""]
[null,null,null,null,null,null,"","","",""]
[null,null,null,null,null,null,"","","",""]
[null,null,null,null,null,null,"","","",""]
[null,null,null,null,null,null,"","","",""]
[null,null,null,null,null,null,"","","",""]
[null,null,null,null,null,null,"","","",""]
[null,null,null,null,null,null,"","","",""]
[null,null,null,null,null,null,"","","",""]
[null,null,null,null,null,null,"","","",""]
[null,null,null,null,null,null,"","","",""]
[null,null,null,null,null,null,"","","",""]
[null,null,null,null,null,null,"","","",""]
[null,null,null,null,null,null,"","","",""]
[null,null,null,null,null,null,"","","",""]
[null,null,null,null,null,null,"","","",""]
[null,null,null,null,null,null,"","","",""]
[null,null,null,null,null,null,"","","",""]
[null,null,null,null,null,null,"","","",""]
[null,null,null,null,null,null,"","","",""]
[null,null,null,null,null,null,"","","",""]
[null,null,null,null,null,null,"","","",""]
[null,null,null,null,null,null,"","","",""]
[null,null,null,null,null,null,"","","",""]
[null,null,null,null,null,null,"","","",""]
[null,null,null,null,null,null,"","","",""]
[null,null,null,null,null,null,"","","",""]
[null,null,null,null,null,null,"","","",""]
[null,null,null,null,null,null,"","","",""]
[null,null,null,null,null,null,"","","",""]
[null,null,null,null,null,null,"","","",""]
[null,null,null,null,null,null,"","","",""]
[null,null,null,null,null,null,"","","",""]
[null,null,null,null,null,null,"","","",""]
[null,null,null,null,null,null,"","","",""]
[null,null,null,null,null,null,"","","",""]
[null,null,null,null,null,null,"","","",""]
[null,null,null,null,null,null,"","","",""]
[null,null,null,null,null,null,"","","",""]
[null,null,null,null,null,null,"","","",""]
[null,null,null,null,null,null,"","","",""]
[null,null,null,null,null,null,{"$f":"IF(ISBLANK(A1346),\"\",VLOOKUP(A1346,SUPPLIES_SITE_LU,2,FALSE))","v":""},{"$f":"IF(ISBLANK(B1346),\"\",VLOOKUP(B1346,POSITION_ID_SUPP,2,FALSE))","v":""},{"$f":"IF(ISBLANK(D1346),\"\",VLOOKUP(D1346,UNIT_LU,2,FALSE))","v":""},{"$f":"IF(ISBLANK(E1346),\"\",VALUE(TEXT(E1346,\"YYYYMM\")))","v":""}]
[null,null,null,null,null,null,"","","",""]
[null,null,null,null,null,null,"","","",""]
[null,null,null,null,null,null,"","","",""]
[null,null,null,null,null,null,"","","",""]
[null,null,null,null,null,null,"","","",""]
[null,null,null,null,null,null,"","","",""]
[null,null,null,null,null,null,"","","",""]
[null,null,null,null,null,null,"","","",""]
[null,null,null,null,null,null,"","","",""]
[null,null,null,null,null,null,"","","",""]
[null,null,null,null,null,null,"","","",""]
[null,null,null,null,null,null,"","","",""]
[null,null,null,null,null,null,"","","",""]
[null,null,null,null,null,null,"","","",""]
[null,null,null,null,null,null,"","","",""]
[null,null,null,null,null,null,"","","",""]
[null,null,null,null,null,null,"","","",""]
[null,null,null,null,null,null,"","","",""]
[null,null,null,null,null,null,"","","",""]
[null,null,null,null,null,null,"","","",""]
[null,null,null,null,null,null,"","","",""]
[null,null,null,null,null,null,"","","",""]
[null,null,null,null,null,null,"","","",""]
[null,null,null,null,null,null,"","","",""]
[null,null,null,null,null,null,"","","",""]
[null,null,null,null,null,null,"","","",""]
[null,null,null,null,null,null,"","","",""]
[null,null,null,null,null,null,"","","",""]
[null,null,null,null,null,null,"","","",""]
[null,null,null,null,null,null,"","","",""]
[null,null,null,null,null,null,"","","",""]
[null,null,null,null,null,null,"","","",""]
[null,null,null,null,null,null,"","","",""]
[null,null,null,null,null,null,"","","",""]
[null,null,null,null,null,null,"","","",""]
[null,null,null,null,null,null,"","","",""]
[null,null,null,null,null,null,"","","",""]
[null,null,null,null,null,null,"","","",""]
[null,null,null,null,null,null,"","","",""]
[null,null,null,null,null,null,"","","",""]
[null,null,null,null,null,null,"","","",""]
[null,null,null,null,null,null,"","","",""]
[null,null,null,null,null,null,"","","",""]
[null,null,null,null,null,null,"","","",""]
[null,null,null,null,null,null,"","","",""]
[null,null,null,null,null,null,"","","",""]
[null,null,null,null,null,null,"","","",""]
[null,null,null,null,null,null,"","","",""]
[null,null,null,null,null,null,"","","",""]
[null,null,null,null,null,null,"","","",""]
[null,null,null,null,null,null,"","","",""]
[null,null,null,null,null,null,"","","",""]
[null,null,null,null,null,null,"","","",""]
[null,null,null,null,null,null,"","","",""]
[null,null,null,null,null,null,"","","",""]
[null,null,null,null,null,null,"","","",""]
[null,null,null,null,null,null,"","","",""]
[null,null,null,null,null,null,"","","",""]
[null,null,null,null,null,null,"","","",""]
[null,null,null,null,null,null,"","","",""]
[null,null,null,null,null,null,"","","",""]
[null,null,null,null,null,null,"","","",""]
[null,null,null,null,null,null,"","","",""]
[null,null,null,null,null,null,{"$f":"IF(ISBLANK(A1410),\"\",VLOOKUP(A1410,SUPPLIES_SITE_LU,2,FALSE))","v":""},{"$f":"IF(ISBLANK(B1410),\"\",VLOOKUP(B1410,POSITION_ID_SUPP,2,FALSE))","v":""},{"$f":"IF(ISBLANK(D1410),\"\",VLOOKUP(D1410,UNIT_LU,2,FALSE))","v":""},{"$f":"IF(ISBLANK(E1410),\"\",VALUE(TEXT(E1410,\"YYYYMM\")))","v":""}]
[null,null,null,null,null,null,"","","",""]
[null,null,null,null,null,null,"","","",""]
[null,null,null,null,null,null,"","","",""]
[null,null,null,null,null,null,"","","",""]
[null,null,null,null,null,null,"","","",""]
[null,null,null,null,null,null,"","","",""]
[null,null,null,null,null,null,"","","",""]
[null,null,null,null,null,null,"","","",""]
[null,null,null,null,null,null,"","","",""]
[null,null,null,null,null,null,"","","",""]
[null,null,null,null,null,null,"","","",""]
[null,null,null,null,null,null,"","","",""]
[null,null,null,null,null,null,"","","",""]
[null,null,null,null,null,null,"","","",""]
[null,null,null,null,null,null,"","","",""]
[null,null,null,null,null,null,"","","",""]
[null,null,null,null,null,null,"","","",""]
[null,null,null,null,null,null,"","","",""]
[null,null,null,null,null,null,"","","",""]
[null,null,null,null,null,null,"","","",""]
[null,null,null,null,null,null,"","","",""]
[null,null,null,null,null,null,"","","",""]
[null,null,null,null,null,null,"","","",""]
[null,null,null,null,null,null,"","","",""]
[null,null,null,null,null,null,"","","",""]
[null,null,null,null,null,null,"","","",""]
[null,null,null,null,null,null,"","","",""]
[null,null,null,null,null,null,"","","",""]
[null,null,null,null,null,null,"","","",""]
[null,null,null,null,null,null,"","","",""]
[null,null,null,null,null,null,"","","",""]
[null,null,null,null,null,null,"","","",""]
[null,null,null,null,null,null,"","","",""]
[null,null,null,null,null,null,"","","",""]
[null,null,null,null,null,null,"","","",""]
[null,null,null,null,null,null,"","","",""]
[null,null,null,null,null,null,"","","",""]
[null,null,null,null,null,null,"","","",""]
[null,null,null,null,null,null,"","","",""]
[null,null,null,null,null,null,"","","",""]
[null,null,null,null,null,null,"","","",""]
[null,null,null,null,null,null,"","","",""]
[null,null,null,null,null,null,"","","",""]
[null,null,null,null,null,null,"","","",""]
[null,null,null,null,null,null,"","","",""]
[null,null,null,null,null,null,"","","",""]
[null,null,null,null,null,null,"","","",""]
[null,null,null,null,null,null,"","","",""]
[null,null,null,null,null,null,"","","",""]
[null,null,null,null,null,null,"","","",""]
[null,null,null,null,null,null,"","","",""]
[null,null,null,null,null,null,"","","",""]
[null,null,null,null,null,null,"","","",""]
[null,null,null,null,null,null,"","","",""]
[null,null,null,null,null,null,"","","",""]
[null,null,null,null,null,null,"","","",""]
[null,null,null,null,null,null,"","","",""]
[null,null,null,null,null,null,"","","",""]
[null,null,null,null,null,null,"","","",""]
[null,null,null,null,null,null,"","","",""]
[null,null,null,null,null,null,"","","",""]
[null,null,null,null,null,null,"","","",""]
[null,null,null,null,null,null,"","","",""]
[null,null,null,null,null,null,{"$f":"IF(ISBLANK(A1474),\"\",VLOOKUP(A1474,SUPPLIES_SITE_LU,2,FALSE))","v":""},{"$f":"IF(ISBLANK(B1474),\"\",VLOOKUP(B1474,POSITION_ID_SUPP,2,FALSE))","v":""},{"$f":"IF(ISBLANK(D1474),\"\",VLOOKUP(D1474,UNIT_LU,2,FALSE))","v":""},{"$f":"IF(ISBLANK(E1474),\"\",VALUE(TEXT(E1474,\"YYYYMM\")))","v":""}]
[null,null,null,null,null,null,"","","",""]
[null,null,null,null,null,null,"","","",""]
[null,null,null,null,null,null,"","","",""]
[null,null,null,null,null,null,"","","",""]
[null,null,null,null,null,null,"","","",""]
[null,null,null,null,null,null,"","","",""]
[null,null,null,null,null,null,"","","",""]
[null,null,null,null,null,null,"","","",""]
[null,null,null,null,null,null,"","","",""]
[null,null,null,null,null,null,"","","",""]
[null,null,null,null,null,null,"","","",""]
[null,null,null,null,null,null,"","","",""]
[null,null,null,null,null,null,"","","",""]
[null,null,null,null,null,null,"","","",""]
[null,null,null,null,null,null,"","","",""]
[null,null,null,null,null,null,"","","",""]
[null,null,null,null,null,null,"","","",""]
[null,null,null,null,null,null,"","","",""]
[null,null,null,null,null,null,"","","",""]
[null,null,null,null,null,null,"","","",""]
[null,null,null,null,null,null,"","","",""]
[null,null,null,null,null,null,"","","",""]
[null,null,null,null,null,null,"","","",""]
[null,null,null,null,null,null,"","","",""]
[null,null,null,null,null,null,"","","",""]
[null,null,null,null,null,null,"","","",""]
[null,null,null,null,null,null,"","","",""]
[null,null,null,null,null,null,"","","",""]
[null,null,null,null,null,null,"","","",""]
[null,null,null,null,null,null,"","","",""]
[null,null,null,null,null,null,"","","",""]
[null,null,null,null,null,null,"","","",""]
[null,null,null,null,null,null,"","","",""]
[null,null,null,null,null,null,"","","",""]
[null,null,null,null,null,null,"","","",""]
[null,null,null,null,null,null,"","","",""]
[null,null,null,null,null,null,"","","",""]
[null,null,null,null,null,null,"","","",""]
[null,null,null,null,null,null,"","","",""]
[null,null,null,null,null,null,"","","",""]
[null,null,null,null,null,null,"","","",""]
[null,null,null,null,null,null,"","","",""]
[null,null,null,null,null,null,"","","",""]
[null,null,null,null,null,null,"","","",""]
[null,null,null,null,null,null,"","","",""]
[null,null,null,null,null,null,"","","",""]
[null,null,null,null,null,null,"","","",""]
[null,null,null,null,null,null,"","","",""]
[null,null,null,null,null,null,"","","",""]
[null,null,null,null,null,null,"","","",""]
[null,null,null,null,null,null,"","","",""]
[null,null,null,null,null,null,"","","",""]
[null,null,null,null,null,null,"","","",""]
[null,null,null,null,null,null,"","","",""]
[null,null,null,null,null,null,"","","",""]
[null,null,null,null,null,null,"","","",""]
[null,null,null,null,null,null,"","","",""]
[null,null,null,null,null,null,"","","",""]
[null,null,null,null,null,null,"","","",""]
[null,null,null,null,null,null,"","","",""]
[null,null,null,null,null,null,"","","",""]
[null,null,null,null,null,null,"","","",""]
[null,null,null,null,null,null,"","","",""]
[null,null,null,null,null,null,{"$f":"IF(ISBLANK(A1538),\"\",VLOOKUP(A1538,SUPPLIES_SITE_LU,2,FALSE))","v":""},{"$f":"IF(ISBLANK(B1538),\"\",VLOOKUP(B1538,POSITION_ID_SUPP,2,FALSE))","v":""},{"$f":"IF(ISBLANK(D1538),\"\",VLOOKUP(D1538,UNIT_LU,2,FALSE))","v":""},{"$f":"IF(ISBLANK(E1538),\"\",VALUE(TEXT(E1538,\"YYYYMM\")))","v":""}]
[null,null,null,null,null,null,"","","",""]
[null,null,null,null,null,null,"","","",""]
[null,null,null,null,null,null,"","","",""]
[null,null,null,null,null,null,"","","",""]
[null,null,null,null,null,null,"","","",""]
[null,null,null,null,null,null,"","","",""]
[null,null,null,null,null,null,"","","",""]
[null,null,null,null,null,null,"","","",""]
[null,null,null,null,null,null,"","","",""]
[null,null,null,null,null,null,"","","",""]
[null,null,null,null,null,null,"","","",""]
[null,null,null,null,null,null,"","","",""]
[null,null,null,null,null,null,"","","",""]
[null,null,null,null,null,null,"","","",""]
[null,null,null,null,null,null,"","","",""]
[null,null,null,null,null,null,"","","",""]
[null,null,null,null,null,null,"","","",""]
[null,null,null,null,null,null,"","","",""]
[null,null,null,null,null,null,"","","",""]
[null,null,null,null,null,null,"","","",""]
[null,null,null,null,null,null,"","","",""]
[null,null,null,null,null,null,"","","",""]
[null,null,null,null,null,null,"","","",""]
[null,null,null,null,null,null,"","","",""]
[null,null,null,null,null,null,"","","",""]
[null,null,null,null,null,null,"","","",""]
[null,null,null,null,null,null,"","","",""]
[null,null,null,null,null,null,"","","",""]
[null,null,null,null,null,null,"","","",""]
[null,null,null,null,null,null,"","","",""]
[null,null,null,null,null,null,"","","",""]
[null,null,null,null,null,null,"","","",""]
[null,null,null,null,null,null,"","","",""]
[null,null,null,null,null,null,"","","",""]
[null,null,null,null,null,null,"","","",""]
[null,null,null,null,null,null,"","","",""]
[null,null,null,null,null,null,"","","",""]
[null,null,null,null,null,null,"","","",""]
[null,null,null,null,null,null,"","","",""]
[null,null,null,null,null,null,"","","",""]
[null,null,null,null,null,null,"","","",""]
[null,null,null,null,null,null,"","","",""]
[null,null,null,null,null,null,"","","",""]
[null,null,null,null,null,null,"","","",""]
[null,null,null,null,null,null,"","","",""]
[null,null,null,null,null,null,"","","",""]
[null,null,null,null,null,null,"","","",""]
[null,null,null,null,null,null,"","","",""]
[null,null,null,null,null,null,"","","",""]
[null,null,null,null,null,null,"","","",""]
[null,null,null,null,null,null,"","","",""]
[null,null,null,null,null,null,"","","",""]
[null,null,null,null,null,null,"","","",""]
[null,null,null,null,null,null,"","","",""]
[null,null,null,null,null,null,"","","",""]
[null,null,null,null,null,null,"","","",""]
[null,null,null,null,null,null,"","","",""]
[null,null,null,null,null,null,"","","",""]
[null,null,null,null,null,null,"","","",""]
[null,null,null,null,null,null,"","","",""]
[null,null,null,null,null,null,"","","",""]
[null,null,null,null,null,null,"","","",""]
[null,null,null,null,null,null,"","","",""]
[null,null,null,null,null,null,{"$f":"IF(ISBLANK(A1602),\"\",VLOOKUP(A1602,SUPPLIES_SITE_LU,2,FALSE))","v":""},{"$f":"IF(ISBLANK(B1602),\"\",VLOOKUP(B1602,POSITION_ID_SUPP,2,FALSE))","v":""},{"$f":"IF(ISBLANK(D1602),\"\",VLOOKUP(D1602,UNIT_LU,2,FALSE))","v":""},{"$f":"IF(ISBLANK(E1602),\"\",VALUE(TEXT(E1602,\"YYYYMM\")))","v":""}]
[null,null,null,null,null,null,"","","",""]
[null,null,null,null,null,null,"","","",""]
[null,null,null,null,null,null,"","","",""]
[null,null,null,null,null,null,"","","",""]
[null,null,null,null,null,null,"","","",""]
[null,null,null,null,null,null,"","","",""]
[null,null,null,null,null,null,"","","",""]
[null,null,null,null,null,null,"","","",""]
[null,null,null,null,null,null,"","","",""]
[null,null,null,null,null,null,"","","",""]
[null,null,null,null,null,null,"","","",""]
[null,null,null,null,null,null,"","","",""]
[null,null,null,null,null,null,"","","",""]
[null,null,null,null,null,null,"","","",""]
[null,null,null,null,null,null,"","","",""]
[null,null,null,null,null,null,"","","",""]
[null,null,null,null,null,null,"","","",""]
[null,null,null,null,null,null,"","","",""]
[null,null,null,null,null,null,"","","",""]
[null,null,null,null,null,null,"","","",""]
[null,null,null,null,null,null,"","","",""]
[null,null,null,null,null,null,"","","",""]
[null,null,null,null,null,null,"","","",""]
[null,null,null,null,null,null,"","","",""]
[null,null,null,null,null,null,"","","",""]
[null,null,null,null,null,null,"","","",""]
[null,null,null,null,null,null,"","","",""]
[null,null,null,null,null,null,"","","",""]
[null,null,null,null,null,null,"","","",""]
[null,null,null,null,null,null,"","","",""]
[null,null,null,null,null,null,"","","",""]
[null,null,null,null,null,null,"","","",""]
[null,null,null,null,null,null,"","","",""]
[null,null,null,null,null,null,"","","",""]
[null,null,null,null,null,null,"","","",""]
[null,null,null,null,null,null,"","","",""]
[null,null,null,null,null,null,"","","",""]
[null,null,null,null,null,null,"","","",""]
[null,null,null,null,null,null,"","","",""]
[null,null,null,null,null,null,"","","",""]
[null,null,null,null,null,null,"","","",""]
[null,null,null,null,null,null,"","","",""]
[null,null,null,null,null,null,"","","",""]
[null,null,null,null,null,null,"","","",""]
[null,null,null,null,null,null,"","","",""]
[null,null,null,null,null,null,"","","",""]
[null,null,null,null,null,null,"","","",""]
[null,null,null,null,null,null,"","","",""]
[null,null,null,null,null,null,"","","",""]
[null,null,null,null,null,null,"","","",""]
[null,null,null,null,null,null,"","","",""]
[null,null,null,null,null,null,"","","",""]
[null,null,null,null,null,null,"","","",""]
[null,null,null,null,null,null,"","","",""]
[null,null,null,null,null,null,"","","",""]
[null,null,null,null,null,null,"","","",""]
[null,null,null,null,null,null,"","","",""]
[null,null,null,null,null,null,"","","",""]
[null,null,null,null,null,null,"","","",""]
[null,null,null,null,null,null,"","","",""]
[null,null,null,null,null,null,"","","",""]
[null,null,null,null,null,null,"","","",""]
[null,null,null,null,null,null,"","","",""]
[null,null,null,null,null,null,{"$f":"IF(ISBLANK(A1666),\"\",VLOOKUP(A1666,SUPPLIES_SITE_LU,2,FALSE))","v":""},{"$f":"IF(ISBLANK(B1666),\"\",VLOOKUP(B1666,POSITION_ID_SUPP,2,FALSE))","v":""},{"$f":"IF(ISBLANK(D1666),\"\",VLOOKUP(D1666,UNIT_LU,2,FALSE))","v":""},{"$f":"IF(ISBLANK(E1666),\"\",VALUE(TEXT(E1666,\"YYYYMM\")))","v":""}]
[null,null,null,null,null,null,"","","",""]
[null,null,null,null,null,null,"","","",""]
[null,null,null,null,null,null,"","","",""]
[null,null,null,null,null,null,"","","",""]
[null,null,null,null,null,null,"","","",""]
[null,null,null,null,null,null,"","","",""]
[null,null,null,null,null,null,"","","",""]
[null,null,null,null,null,null,"","","",""]
[null,null,null,null,null,null,"","","",""]
[null,null,null,null,null,null,"","","",""]
[null,null,null,null,null,null,"","","",""]
[null,null,null,null,null,null,"","","",""]
[null,null,null,null,null,null,"","","",""]
[null,null,null,null,null,null,"","","",""]
[null,null,null,null,null,null,"","","",""]
[null,null,null,null,null,null,"","","",""]
[null,null,null,null,null,null,"","","",""]
[null,null,null,null,null,null,"","","",""]
[null,null,null,null,null,null,"","","",""]
[null,null,null,null,null,null,"","","",""]
[null,null,null,null,null,null,"","","",""]
[null,null,null,null,null,null,"","","",""]
[null,null,null,null,null,null,"","","",""]
[null,null,null,null,null,null,"","","",""]
[null,null,null,null,null,null,"","","",""]
[null,null,null,null,null,null,"","","",""]
[null,null,null,null,null,null,"","","",""]
[null,null,null,null,null,null,"","","",""]
[null,null,null,null,null,null,"","","",""]
[null,null,null,null,null,null,"","","",""]
[null,null,null,null,null,null,"","","",""]
[null,null,null,null,null,null,"","","",""]
[null,null,null,null,null,null,"","","",""]
[null,null,null,null,null,null,"","","",""]
[null,null,null,null,null,null,"","","",""]
[null,null,null,null,null,null,"","","",""]
[null,null,null,null,null,null,"","","",""]
[null,null,null,null,null,null,"","","",""]
[null,null,null,null,null,null,"","","",""]
[null,null,null,null,null,null,"","","",""]
[null,null,null,null,null,null,"","","",""]
[null,null,null,null,null,null,"","","",""]
[null,null,null,null,null,null,"","","",""]
[null,null,null,null,null,null,"","","",""]
[null,null,null,null,null,null,"","","",""]
[null,null,null,null,null,null,"","","",""]
[null,null,null,null,null,null,"","","",""]
[null,null,null,null,null,null,"","","",""]
[null,null,null,null,null,null,"","","",""]
[null,null,null,null,null,null,"","","",""]
[null,null,null,null,null,null,"","","",""]
[null,null,null,null,null,null,"","","",""]
[null,null,null,null,null,null,"","","",""]
[null,null,null,null,null,null,"","","",""]
[null,null,null,null,null,null,"","","",""]
[null,null,null,null,null,null,"","","",""]
[null,null,null,null,null,null,"","","",""]
[null,null,null,null,null,null,"","","",""]
[null,null,null,null,null,null,"","","",""]
[null,null,null,null,null,null,"","","",""]
[null,null,null,null,null,null,"","","",""]
[null,null,null,null,null,null,"","","",""]
[null,null,null,null,null,null,"","","",""]
[null,null,null,null,null,null,{"$f":"IF(ISBLANK(A1730),\"\",VLOOKUP(A1730,SUPPLIES_SITE_LU,2,FALSE))","v":""},{"$f":"IF(ISBLANK(B1730),\"\",VLOOKUP(B1730,POSITION_ID_SUPP,2,FALSE))","v":""},{"$f":"IF(ISBLANK(D1730),\"\",VLOOKUP(D1730,UNIT_LU,2,FALSE))","v":""},{"$f":"IF(ISBLANK(E1730),\"\",VALUE(TEXT(E1730,\"YYYYMM\")))","v":""}]
[null,null,null,null,null,null,"","","",""]
[null,null,null,null,null,null,"","","",""]
[null,null,null,null,null,null,"","","",""]
[null,null,null,null,null,null,"","","",""]
[null,null,null,null,null,null,"","","",""]
[null,null,null,null,null,null,"","","",""]
[null,null,null,null,null,null,"","","",""]
[null,null,null,null,null,null,"","","",""]
[null,null,null,null,null,null,"","","",""]
[null,null,null,null,null,null,"","","",""]
[null,null,null,null,null,null,"","","",""]
[null,null,null,null,null,null,"","","",""]
[null,null,null,null,null,null,"","","",""]
[null,null,null,null,null,null,"","","",""]
[null,null,null,null,null,null,"","","",""]
[null,null,null,null,null,null,"","","",""]
[null,null,null,null,null,null,"","","",""]
[null,null,null,null,null,null,"","","",""]
[null,null,null,null,null,null,"","","",""]
[null,null,null,null,null,null,"","","",""]
[null,null,null,null,null,null,"","","",""]
[null,null,null,null,null,null,"","","",""]
[null,null,null,null,null,null,"","","",""]
[null,null,null,null,null,null,"","","",""]
[null,null,null,null,null,null,"","","",""]
[null,null,null,null,null,null,"","","",""]
[null,null,null,null,null,null,"","","",""]
[null,null,null,null,null,null,"","","",""]
[null,null,null,null,null,null,"","","",""]
[null,null,null,null,null,null,"","","",""]
[null,null,null,null,null,null,"","","",""]
[null,null,null,null,null,null,"","","",""]
[null,null,null,null,null,null,"","","",""]
[null,null,null,null,null,null,"","","",""]
[null,null,null,null,null,null,"","","",""]
[null,null,null,null,null,null,"","","",""]
[null,null,null,null,null,null,"","","",""]
[null,null,null,null,null,null,"","","",""]
[null,null,null,null,null,null,"","","",""]
[null,null,null,null,null,null,"","","",""]
[null,null,null,null,null,null,"","","",""]
[null,null,null,null,null,null,"","","",""]
[null,null,null,null,null,null,"","","",""]
[null,null,null,null,null,null,"","","",""]
[null,null,null,null,null,null,"","","",""]
[null,null,null,null,null,null,"","","",""]
[null,null,null,null,null,null,"","","",""]
[null,null,null,null,null,null,"","","",""]
[null,null,null,null,null,null,"","","",""]
[null,null,null,null,null,null,"","","",""]
[null,null,null,null,null,null,"","","",""]
[null,null,null,null,null,null,"","","",""]
[null,null,null,null,null,null,"","","",""]
[null,null,null,null,null,null,"","","",""]
[null,null,null,null,null,null,"","","",""]
[null,null,null,null,null,null,"","","",""]
[null,null,null,null,null,null,"","","",""]
[null,null,null,null,null,null,"","","",""]
[null,null,null,null,null,null,"","","",""]
[null,null,null,null,null,null,"","","",""]
[null,null,null,null,null,null,"","","",""]
[null,null,null,null,null,null,"","","",""]
[null,null,null,null,null,null,"","","",""]
[null,null,null,null,null,null,{"$f":"IF(ISBLANK(A1794),\"\",VLOOKUP(A1794,SUPPLIES_SITE_LU,2,FALSE))","v":""},{"$f":"IF(ISBLANK(B1794),\"\",VLOOKUP(B1794,POSITION_ID_SUPP,2,FALSE))","v":""},{"$f":"IF(ISBLANK(D1794),\"\",VLOOKUP(D1794,UNIT_LU,2,FALSE))","v":""},{"$f":"IF(ISBLANK(E1794),\"\",VALUE(TEXT(E1794,\"YYYYMM\")))","v":""}]
[null,null,null,null,null,null,"","","",""]
[null,null,null,null,null,null,"","","",""]
[null,null,null,null,null,null,"","","",""]
[null,null,null,null,null,null,"","","",""]
[null,null,null,null,null,null,"","","",""]
[null,null,null,null,null,null,"","","",""]
[null,null,null,null,null,null,"","","",""]
[null,null,null,null,null,null,"","","",""]
[null,null,null,null,null,null,"","","",""]
[null,null,null,null,null,null,"","","",""]
[null,null,null,null,null,null,"","","",""]
[null,null,null,null,null,null,"","","",""]
[null,null,null,null,null,null,"","","",""]
[null,null,null,null,null,null,"","","",""]
[null,null,null,null,null,null,"","","",""]
[null,null,null,null,null,null,"","","",""]
[null,null,null,null,null,null,"","","",""]
[null,null,null,null,null,null,"","","",""]
[null,null,null,null,null,null,"","","",""]
[null,null,null,null,null,null,"","","",""]
[null,null,null,null,null,null,"","","",""]
[null,null,null,null,null,null,"","","",""]
[null,null,null,null,null,null,"","","",""]
[null,null,null,null,null,null,"","","",""]
[null,null,null,null,null,null,"","","",""]
[null,null,null,null,null,null,"","","",""]
[null,null,null,null,null,null,"","","",""]
[null,null,null,null,null,null,"","","",""]
[null,null,null,null,null,null,"","","",""]
[null,null,null,null,null,null,"","","",""]
[null,null,null,null,null,null,"","","",""]
[null,null,null,null,null,null,"","","",""]
[null,null,null,null,null,null,"","","",""]
[null,null,null,null,null,null,"","","",""]
[null,null,null,null,null,null,"","","",""]
[null,null,null,null,null,null,"","","",""]
[null,null,null,null,null,null,"","","",""]
[null,null,null,null,null,null,"","","",""]
[null,null,null,null,null,null,"","","",""]
[null,null,null,null,null,null,"","","",""]
[null,null,null,null,null,null,"","","",""]
[null,null,null,null,null,null,"","","",""]
[null,null,null,null,null,null,"","","",""]
[null,null,null,null,null,null,"","","",""]
[null,null,null,null,null,null,"","","",""]
[null,null,null,null,null,null,"","","",""]
[null,null,null,null,null,null,"","","",""]
[null,null,null,null,null,null,"","","",""]
[null,null,null,null,null,null,"","","",""]
[null,null,null,null,null,null,"","","",""]
[null,null,null,null,null,null,"","","",""]
[null,null,null,null,null,null,"","","",""]
[null,null,null,null,null,null,"","","",""]
[null,null,null,null,null,null,"","","",""]
[null,null,null,null,null,null,"","","",""]
[null,null,null,null,null,null,"","","",""]
[null,null,null,null,null,null,"","","",""]
[null,null,null,null,null,null,"","","",""]
[null,null,null,null,null,null,"","","",""]
[null,null,null,null,null,null,"","","",""]
[null,null,null,null,null,null,"","","",""]
[null,null,null,null,null,null,"","","",""]
[null,null,null,null,null,null,"","","",""]
[null,null,null,null,null,null,{"$f":"IF(ISBLANK(A1858),\"\",VLOOKUP(A1858,SUPPLIES_SITE_LU,2,FALSE))","v":""},{"$f":"IF(ISBLANK(B1858),\"\",VLOOKUP(B1858,POSITION_ID_SUPP,2,FALSE))","v":""},{"$f":"IF(ISBLANK(D1858),\"\",VLOOKUP(D1858,UNIT_LU,2,FALSE))","v":""},{"$f":"IF(ISBLANK(E1858),\"\",VALUE(TEXT(E1858,\"YYYYMM\")))","v":""}]
[null,null,null,null,null,null,"","","",""]
[null,null,null,null,null,null,"","","",""]
[null,null,null,null,null,null,"","","",""]
[null,null,null,null,null,null,"","","",""]
[null,null,null,null,null,null,"","","",""]
[null,null,null,null,null,null,"","","",""]
[null,null,null,null,null,null,"","","",""]
[null,null,null,null,null,null,"","","",""]
[null,null,null,null,null,null,"","","",""]
[null,null,null,null,null,null,"","","",""]
[null,null,null,null,null,null,"","","",""]
[null,null,null,null,null,null,"","","",""]
[null,null,null,null,null,null,"","","",""]
[null,null,null,null,null,null,"","","",""]
[null,null,null,null,null,null,"","","",""]
[null,null,null,null,null,null,"","","",""]
[null,null,null,null,null,null,"","","",""]
[null,null,null,null,null,null,"","","",""]
[null,null,null,null,null,null,"","","",""]
[null,null,null,null,null,null,"","","",""]
[null,null,null,null,null,null,"","","",""]
[null,null,null,null,null,null,"","","",""]
[null,null,null,null,null,null,"","","",""]
[null,null,null,null,null,null,"","","",""]
[null,null,null,null,null,null,"","","",""]
[null,null,null,null,null,null,"","","",""]
[null,null,null,null,null,null,"","","",""]
[null,null,null,null,null,null,"","","",""]
[null,null,null,null,null,null,"","","",""]
[null,null,null,null,null,null,"","","",""]
[null,null,null,null,null,null,"","","",""]
[null,null,null,null,null,null,"","","",""]
[null,null,null,null,null,null,"","","",""]
[null,null,null,null,null,null,"","","",""]
[null,null,null,null,null,null,"","","",""]
[null,null,null,null,null,null,"","","",""]
[null,null,null,null,null,null,"","","",""]
[null,null,null,null,null,null,"","","",""]
[null,null,null,null,null,null,"","","",""]
[null,null,null,null,null,null,"","","",""]
[null,null,null,null,null,null,"","","",""]
[null,null,null,null,null,null,"","","",""]
[null,null,null,null,null,null,"","","",""]
[null,null,null,null,null,null,"","","",""]
[null,null,null,null,null,null,"","","",""]
[null,null,null,null,null,null,"","","",""]
[null,null,null,null,null,null,"","","",""]
[null,null,null,null,null,null,"","","",""]
[null,null,null,null,null,null,"","","",""]
[null,null,null,null,null,null,"","","",""]
[null,null,null,null,null,null,"","","",""]
[null,null,null,null,null,null,"","","",""]
[null,null,null,null,null,null,"","","",""]
[null,null,null,null,null,null,"","","",""]
[null,null,null,null,null,null,"","","",""]
[null,null,null,null,null,null,"","","",""]
[null,null,null,null,null,null,"","","",""]
[null,null,null,null,null,null,"","","",""]
[null,null,null,null,null,null,"","","",""]
[null,null,null,null,null,null,"","","",""]
[null,null,null,null,null,null,"","","",""]
[null,null,null,null,null,null,"","","",""]
[null,null,null,null,null,null,"","","",""]
[null,null,null,null,null,null,{"$f":"IF(ISBLANK(A1922),\"\",VLOOKUP(A1922,SUPPLIES_SITE_LU,2,FALSE))","v":""},{"$f":"IF(ISBLANK(B1922),\"\",VLOOKUP(B1922,POSITION_ID_SUPP,2,FALSE))","v":""},{"$f":"IF(ISBLANK(D1922),\"\",VLOOKUP(D1922,UNIT_LU,2,FALSE))","v":""},{"$f":"IF(ISBLANK(E1922),\"\",VALUE(TEXT(E1922,\"YYYYMM\")))","v":""}]
[null,null,null,null,null,null,"","","",""]
[null,null,null,null,null,null,"","","",""]
[null,null,null,null,null,null,"","","",""]
[null,null,null,null,null,null,"","","",""]
[null,null,null,null,null,null,"","","",""]
[null,null,null,null,null,null,"","","",""]
[null,null,null,null,null,null,"","","",""]
[null,null,null,null,null,null,"","","",""]
[null,null,null,null,null,null,"","","",""]
[null,null,null,null,null,null,"","","",""]
[null,null,null,null,null,null,"","","",""]
[null,null,null,null,null,null,"","","",""]
[null,null,null,null,null,null,"","","",""]
[null,null,null,null,null,null,"","","",""]
[null,null,null,null,null,null,"","","",""]
[null,null,null,null,null,null,"","","",""]
[null,null,null,null,null,null,"","","",""]
[null,null,null,null,null,null,"","","",""]
[null,null,null,null,null,null,"","","",""]
[null,null,null,null,null,null,"","","",""]
[null,null,null,null,null,null,"","","",""]
[null,null,null,null,null,null,"","","",""]
[null,null,null,null,null,null,"","","",""]
[null,null,null,null,null,null,"","","",""]
[null,null,null,null,null,null,"","","",""]
[null,null,null,null,null,null,"","","",""]
[null,null,null,null,null,null,"","","",""]
[null,null,null,null,null,null,"","","",""]
[null,null,null,null,null,null,"","","",""]
[null,null,null,null,null,null,"","","",""]
[null,null,null,null,null,null,"","","",""]
[null,null,null,null,null,null,"","","",""]
[null,null,null,null,null,null,"","","",""]
[null,null,null,null,null,null,"","","",""]
[null,null,null,null,null,null,"","","",""]
[null,null,null,null,null,null,"","","",""]
[null,null,null,null,null,null,"","","",""]
[null,null,null,null,null,null,"","","",""]
[null,null,null,null,null,null,"","","",""]
[null,null,null,null,null,null,"","","",""]
[null,null,null,null,null,null,"","","",""]
[null,null,null,null,null,null,"","","",""]
[null,null,null,null,null,null,"","","",""]
[null,null,null,null,null,null,"","","",""]
[null,null,null,null,null,null,"","","",""]
[null,null,null,null,null,null,"","","",""]
[null,null,null,null,null,null,"","","",""]
[null,null,null,null,null,null,"","","",""]
[null,null,null,null,null,null,"","","",""]
[null,null,null,null,null,null,"","","",""]
[null,null,null,null,null,null,"","","",""]
[null,null,null,null,null,null,"","","",""]
[null,null,null,null,null,null,"","","",""]
[null,null,null,null,null,null,"","","",""]
[null,null,null,null,null,null,"","","",""]
[null,null,null,null,null,null,"","","",""]
[null,null,null,null,null,null,"","","",""]
[null,null,null,null,null,null,"","","",""]
[null,null,null,null,null,null,"","","",""]
[null,null,null,null,null,null,"","","",""]
[null,null,null,null,null,null,"","","",""]
[null,null,null,null,null,null,"","","",""]
[null,null,null,null,null,null,"","","",""]
[null,null,null,null,null,null,{"$f":"IF(ISBLANK(A1986),\"\",VLOOKUP(A1986,SUPPLIES_SITE_LU,2,FALSE))","v":""},{"$f":"IF(ISBLANK(B1986),\"\",VLOOKUP(B1986,POSITION_ID_SUPP,2,FALSE))","v":""},{"$f":"IF(ISBLANK(D1986),\"\",VLOOKUP(D1986,UNIT_LU,2,FALSE))","v":""},{"$f":"IF(ISBLANK(E1986),\"\",VALUE(TEXT(E1986,\"YYYYMM\")))","v":""}]
[null,null,null,null,null,null,"","","",""]
[null,null,null,null,null,null,"","","",""]
[null,null,null,null,null,null,"","","",""]
[null,null,null,null,null,null,"","","",""]
[null,null,null,null,null,null,"","","",""]
[null,null,null,null,null,null,"","","",""]
[null,null,null,null,null,null,"","","",""]
[null,null,null,null,null,null,"","","",""]
[null,null,null,null,null,null,"","","",""]
[null,null,null,null,null,null,"","","",""]
[null,null,null,null,null,null,"","","",""]
[null,null,null,null,null,null,"","","",""]
[null,null,null,null,null,null,"","","",""]
[null,null,null,null,null,null,"","","",""]
[null,null,null,null,null,null,"","","",""]
[null,null,null,null,null,null,"","","",""]
[null,null,null,null,null,null,"","","",""]
[null,null,null,null,null,null,"","","",""]
[null,null,null,null,null,null,"","","",""]
[null,null,null,null,null,null,"","","",""]
[null,null,null,null,null,null,"","","",""]
[null,null,null,null,null,null,"","","",""]
[null,null,null,null,null,null,"","","",""]
[null,null,null,null,null,null,"","","",""]
[null,null,null,null,null,null,"","","",""]
[null,null,null,null,null,null,"","","",""]
[null,null,null,null,null,null,"","","",""]
[null,null,null,null,null,null,"","","",""]
[null,null,null,null,null,null,"","","",""]
[null,null,null,null,null,null,"","","",""]
[null,null,null,null,null,null,"","","",""]
[null,null,null,null,null,null,"","","",""]
[null,null,null,null,null,null,"","","",""]
[null,null,null,null,null,null,"","","",""]
[null,null,null,null,null,null,"","","",""]
[null,null,null,null,null,null,"","","",""]
[null,null,null,null,null,null,"","","",""]
[null,null,null,null,null,null,"","","",""]
[null,null,null,null,null,null,"","","",""]
[null,null,null,null,null,null,"","","",""]
[null,null,null,null,null,null,"","","",""]
[null,null,null,null,null,null,"","","",""]
[null,null,null,null,null,null,"","","",""]
[null,null,null,null,null,null,"","","",""]
[null,null,null,null,null,null,"","","",""]
[null,null,null,null,null,null,"","","",""]
[null,null,null,null,null,null,"","","",""]
[null,null,null,null,null,null,"","","",""]
[null,null,null,null,null,null,"","","",""]
[null,null,null,null,null,null,"","","",""]
[null,null,null,null,null,null,"","","",""]
[null,null,null,null,null,null,"","","",""]
[null,null,null,null,null,null,"","","",""]
[null,null,null,null,null,null,"","","",""]
[null,null,null,null,null,null,"","","",""]
[null,null,null,null,null,null,"","","",""]
[null,null,null,null,null,null,"","","",""]
[null,null,null,null,null,null,"","","",""]
[null,null,null,null,null,null,"","","",""]
[null,null,null,null,null,null,"","","",""]
[null,null,null,null,null,null,"","","",""]
[null,null,null,null,null,null,"","","",""]
[null,null,null,null,null,null,"","","",""]
[null,null,null,null,null,null,{"$f":"IF(ISBLANK(A2050),\"\",VLOOKUP(A2050,SUPPLIES_SITE_LU,2,FALSE))","v":""},{"$f":"IF(ISBLANK(B2050),\"\",VLOOKUP(B2050,POSITION_ID_SUPP,2,FALSE))","v":""},{"$f":"IF(ISBLANK(D2050),\"\",VLOOKUP(D2050,UNIT_LU,2,FALSE))","v":""},{"$f":"IF(ISBLANK(E2050),\"\",VALUE(TEXT(E2050,\"YYYYMM\")))","v":""}]
[null,null,null,null,null,null,"","","",""]
[null,null,null,null,null,null,"","","",""]
[null,null,null,null,null,null,"","","",""]
[null,null,null,null,null,null,"","","",""]
[null,null,null,null,null,null,"","","",""]
[null,null,null,null,null,null,"","","",""]
[null,null,null,null,null,null,"","","",""]
[null,null,null,null,null,null,"","","",""]
[null,null,null,null,null,null,"","","",""]
[null,null,null,null,null,null,"","","",""]
[null,null,null,null,null,null,"","","",""]
[null,null,null,null,null,null,"","","",""]
[null,null,null,null,null,null,"","","",""]
[null,null,null,null,null,null,"","","",""]
[null,null,null,null,null,null,"","","",""]
[null,null,null,null,null,null,"","","",""]
[null,null,null,null,null,null,"","","",""]
[null,null,null,null,null,null,"","","",""]
[null,null,null,null,null,null,"","","",""]
[null,null,null,null,null,null,"","","",""]
[null,null,null,null,null,null,"","","",""]
[null,null,null,null,null,null,"","","",""]
[null,null,null,null,null,null,"","","",""]
[null,null,null,null,null,null,"","","",""]
[null,null,null,null,null,null,"","","",""]
[null,null,null,null,null,null,"","","",""]
[null,null,null,null,null,null,"","","",""]
[null,null,null,null,null,null,"","","",""]
[null,null,null,null,null,null,"","","",""]
[null,null,null,null,null,null,"","","",""]
[null,null,null,null,null,null,"","","",""]
[null,null,null,null,null,null,"","","",""]
[null,null,null,null,null,null,"","","",""]
[null,null,null,null,null,null,"","","",""]
[null,null,null,null,null,null,"","","",""]
[null,null,null,null,null,null,"","","",""]
[null,null,null,null,null,null,"","","",""]
[null,null,null,null,null,null,"","","",""]
[null,null,null,null,null,null,"","","",""]
[null,null,null,null,null,null,"","","",""]
[null,null,null,null,null,null,"","","",""]
[null,null,null,null,null,null,"","","",""]
[null,null,null,null,null,null,"","","",""]
[null,null,null,null,null,null,"","","",""]
[null,null,null,null,null,null,"","","",""]
[null,null,null,null,null,null,"","","",""]
[null,null,null,null,null,null,"","","",""]
[null,null,null,null,null,null,"","","",""]
[null,null,null,null,null,null,"","","",""]
[null,null,null,null,null,null,"","","",""]
[null,null,null,null,null,null,"","","",""]
[null,null,null,null,null,null,"","","",""]
[null,null,null,null,null,null,"","","",""]
[null,null,null,null,null,null,"","","",""]
[null,null,null,null,null,null,"","","",""]
[null,null,null,null,null,null,"","","",""]
[null,null,null,null,null,null,"","","",""]
[null,null,null,null,null,null,"","","",""]
[null,null,null,null,null,null,"","","",""]
[null,null,null,null,null,null,"","","",""]
[null,null,null,null,null,null,"","","",""]
[null,null,null,null,null,null,"","","",""]
[null,null,null,null,null,null,"","","",""]
[null,null,null,null,null,null,{"$f":"IF(ISBLANK(A2114),\"\",VLOOKUP(A2114,SUPPLIES_SITE_LU,2,FALSE))","v":""},{"$f":"IF(ISBLANK(B2114),\"\",VLOOKUP(B2114,POSITION_ID_SUPP,2,FALSE))","v":""},{"$f":"IF(ISBLANK(D2114),\"\",VLOOKUP(D2114,UNIT_LU,2,FALSE))","v":""},{"$f":"IF(ISBLANK(E2114),\"\",VALUE(TEXT(E2114,\"YYYYMM\")))","v":""}]
[null,null,null,null,null,null,"","","",""]
[null,null,null,null,null,null,"","","",""]
[null,null,null,null,null,null,"","","",""]
[null,null,null,null,null,null,"","","",""]
[null,null,null,null,null,null,"","","",""]
[null,null,null,null,null,null,"","","",""]
[null,null,null,null,null,null,"","","",""]
[null,null,null,null,null,null,"","","",""]
[null,null,null,null,null,null,"","","",""]
[null,null,null,null,null,null,"","","",""]
[null,null,null,null,null,null,"","","",""]
[null,null,null,null,null,null,"","","",""]
[null,null,null,null,null,null,"","","",""]
[null,null,null,null,null,null,"","","",""]
[null,null,null,null,null,null,"","","",""]
[null,null,null,null,null,null,"","","",""]
[null,null,null,null,null,null,"","","",""]
[null,null,null,null,null,null,"","","",""]
[null,null,null,null,null,null,"","","",""]
[null,null,null,null,null,null,"","","",""]
[null,null,null,null,null,null,"","","",""]
[null,null,null,null,null,null,"","","",""]
[null,null,null,null,null,null,"","","",""]
[null,null,null,null,null,null,"","","",""]
[null,null,null,null,null,null,"","","",""]
[null,null,null,null,null,null,"","","",""]
[null,null,null,null,null,null,"","","",""]
[null,null,null,null,null,null,"","","",""]
[null,null,null,null,null,null,"","","",""]
[null,null,null,null,null,null,"","","",""]
[null,null,null,null,null,null,"","","",""]
[null,null,null,null,null,null,"","","",""]
[null,null,null,null,null,null,"","","",""]
[null,null,null,null,null,null,"","","",""]
[null,null,null,null,null,null,"","","",""]
[null,null,null,null,null,null,"","","",""]
[null,null,null,null,null,null,"","","",""]
[null,null,null,null,null,null,"","","",""]
[null,null,null,null,null,null,"","","",""]
[null,null,null,null,null,null,"","","",""]
[null,null,null,null,null,null,"","","",""]
[null,null,null,null,null,null,"","","",""]
[null,null,null,null,null,null,"","","",""]
[null,null,null,null,null,null,"","","",""]
[null,null,null,null,null,null,"","","",""]
[null,null,null,null,null,null,"","","",""]
[null,null,null,null,null,null,"","","",""]
[null,null,null,null,null,null,"","","",""]
[null,null,null,null,null,null,"","","",""]
[null,null,null,null,null,null,"","","",""]
[null,null,null,null,null,null,"","","",""]
[null,null,null,null,null,null,"","","",""]
[null,null,null,null,null,null,"","","",""]
[null,null,null,null,null,null,"","","",""]
[null,null,null,null,null,null,"","","",""]
[null,null,null,null,null,null,"","","",""]
[null,null,null,null,null,null,"","","",""]
[null,null,null,null,null,null,"","","",""]
[null,null,null,null,null,null,"","","",""]
[null,null,null,null,null,null,"","","",""]
[null,null,null,null,null,null,"","","",""]
[null,null,null,null,null,null,"","","",""]
[null,null,null,null,null,null,"","","",""]
[null,null,null,null,null,null,{"$f":"IF(ISBLANK(A2178),\"\",VLOOKUP(A2178,SUPPLIES_SITE_LU,2,FALSE))","v":""},{"$f":"IF(ISBLANK(B2178),\"\",VLOOKUP(B2178,POSITION_ID_SUPP,2,FALSE))","v":""},{"$f":"IF(ISBLANK(D2178),\"\",VLOOKUP(D2178,UNIT_LU,2,FALSE))","v":""},{"$f":"IF(ISBLANK(E2178),\"\",VALUE(TEXT(E2178,\"YYYYMM\")))","v":""}]
[null,null,null,null,null,null,"","","",""]
[null,null,null,null,null,null,"","","",""]
[null,null,null,null,null,null,"","","",""]
[null,null,null,null,null,null,"","","",""]
[null,null,null,null,null,null,"","","",""]
[null,null,null,null,null,null,"","","",""]
[null,null,null,null,null,null,"","","",""]
[null,null,null,null,null,null,"","","",""]
[null,null,null,null,null,null,"","","",""]
[null,null,null,null,null,null,"","","",""]
[null,null,null,null,null,null,"","","",""]
[null,null,null,null,null,null,"","","",""]
[null,null,null,null,null,null,"","","",""]
[null,null,null,null,null,null,"","","",""]
[null,null,null,null,null,null,"","","",""]
[null,null,null,null,null,null,"","","",""]
[null,null,null,null,null,null,"","","",""]
[null,null,null,null,null,null,"","","",""]
[null,null,null,null,null,null,"","","",""]
[null,null,null,null,null,null,"","","",""]
[null,null,null,null,null,null,"","","",""]
[null,null,null,null,null,null,"","","",""]
[null,null,null,null,null,null,"","","",""]
[null,null,null,null,null,null,"","","",""]
[null,null,null,null,null,null,"","","",""]
[null,null,null,null,null,null,"","","",""]
[null,null,null,null,null,null,"","","",""]
[null,null,null,null,null,null,"","","",""]
[null,null,null,null,null,null,"","","",""]
[null,null,null,null,null,null,"","","",""]
[null,null,null,null,null,null,"","","",""]
[null,null,null,null,null,null,"","","",""]
[null,null,null,null,null,null,"","","",""]
[null,null,null,null,null,null,"","","",""]
[null,null,null,null,null,null,"","","",""]
[null,null,null,null,null,null,"","","",""]
[null,null,null,null,null,null,"","","",""]
[null,null,null,null,null,null,"","","",""]
[null,null,null,null,null,null,"","","",""]
[null,null,null,null,null,null,"","","",""]
[null,null,null,null,null,null,"","","",""]
[null,null,null,null,null,null,"","","",""]
[null,null,null,null,null,null,"","","",""]
[null,null,null,null,null,null,"","","",""]
[null,null,null,null,null,null,"","","",""]
[null,null,null,null,null,null,"","","",""]
[null,null,null,null,null,null,"","","",""]
[null,null,null,null,null,null,"","","",""]
[null,null,null,null,null,null,"","","",""]
[null,null,null,null,null,null,"","","",""]
[null,null,null,null,null,null,"","","",""]
[null,null,null,null,null,null,"","","",""]
[null,null,null,null,null,null,"","","",""]
[null,null,null,null,null,null,"","","",""]
[null,null,null,null,null,null,"","","",""]
[null,null,null,null,null,null,"","","",""]
[null,null,null,null,null,null,"","","",""]
[null,null,null,null,null,null,"","","",""]
[null,null,null,null,null,null,"","","",""]
[null,null,null,null,null,null,"","","",""]
[null,null,null,null,null,null,"","","",""]
[null,null,null,null,null,null,"","","",""]
[null,null,null,null,null,null,"","","",""]
[null,null,null,null,null,null,{"$f":"IF(ISBLANK(A2242),\"\",VLOOKUP(A2242,SUPPLIES_SITE_LU,2,FALSE))","v":""},{"$f":"IF(ISBLANK(B2242),\"\",VLOOKUP(B2242,POSITION_ID_SUPP,2,FALSE))","v":""},{"$f":"IF(ISBLANK(D2242),\"\",VLOOKUP(D2242,UNIT_LU,2,FALSE))","v":""},{"$f":"IF(ISBLANK(E2242),\"\",VALUE(TEXT(E2242,\"YYYYMM\")))","v":""}]
[null,null,null,null,null,null,"","","",""]
[null,null,null,null,null,null,"","","",""]
[null,null,null,null,null,null,"","","",""]
[null,null,null,null,null,null,"","","",""]
[null,null,null,null,null,null,"","","",""]
[null,null,null,null,null,null,"","","",""]
[null,null,null,null,null,null,"","","",""]
[null,null,null,null,null,null,"","","",""]
[null,null,null,null,null,null,"","","",""]
[null,null,null,null,null,null,"","","",""]
[null,null,null,null,null,null,"","","",""]
[null,null,null,null,null,null,"","","",""]
[null,null,null,null,null,null,"","","",""]
[null,null,null,null,null,null,"","","",""]
[null,null,null,null,null,null,"","","",""]
[null,null,null,null,null,null,"","","",""]
[null,null,null,null,null,null,"","","",""]
[null,null,null,null,null,null,"","","",""]
[null,null,null,null,null,null,"","","",""]
[null,null,null,null,null,null,"","","",""]
[null,null,null,null,null,null,"","","",""]
[null,null,null,null,null,null,"","","",""]
[null,null,null,null,null,null,"","","",""]
[null,null,null,null,null,null,"","","",""]
[null,null,null,null,null,null,"","","",""]
[null,null,null,null,null,null,"","","",""]
[null,null,null,null,null,null,"","","",""]
[null,null,null,null,null,null,"","","",""]
[null,null,null,null,null,null,"","","",""]
[null,null,null,null,null,null,"","","",""]
[null,null,null,null,null,null,"","","",""]
[null,null,null,null,null,null,"","","",""]
[null,null,null,null,null,null,"","","",""]
[null,null,null,null,null,null,"","","",""]
[null,null,null,null,null,null,"","","",""]
[null,null,null,null,null,null,"","","",""]
[null,null,null,null,null,null,"","","",""]
[null,null,null,null,null,null,"","","",""]
[null,null,null,null,null,null,"","","",""]
[null,null,null,null,null,null,"","","",""]
[null,null,null,null,null,null,"","","",""]
[null,null,null,null,null,null,"","","",""]
[null,null,null,null,null,null,"","","",""]
[null,null,null,null,null,null,"","","",""]
[null,null,null,null,null,null,"","","",""]
[null,null,null,null,null,null,"","","",""]
[null,null,null,null,null,null,"","","",""]
[null,null,null,null,null,null,"","","",""]
[null,null,null,null,null,null,"","","",""]
[null,null,null,null,null,null,"","","",""]
[null,null,null,null,null,null,"","","",""]
[null,null,null,null,null,null,"","","",""]
[null,null,null,null,null,null,"","","",""]
[null,null,null,null,null,null,"","","",""]
[null,null,null,null,null,null,"","","",""]
[null,null,null,null,null,null,"","","",""]
[null,null,null,null,null,null,"","","",""]
[null,null,null,null,null,null,"","","",""]
[null,null,null,null,null,null,"","","",""]
[null,null,null,null,null,null,"","","",""]
[null,null,null,null,null,null,"","","",""]
[null,null,null,null,null,null,"","","",""]
[null,null,null,null,null,null,"","","",""]
[null,null,null,null,null,null,{"$f":"IF(ISBLANK(A2306),\"\",VLOOKUP(A2306,SUPPLIES_SITE_LU,2,FALSE))","v":""},{"$f":"IF(ISBLANK(B2306),\"\",VLOOKUP(B2306,POSITION_ID_SUPP,2,FALSE))","v":""},{"$f":"IF(ISBLANK(D2306),\"\",VLOOKUP(D2306,UNIT_LU,2,FALSE))","v":""},{"$f":"IF(ISBLANK(E2306),\"\",VALUE(TEXT(E2306,\"YYYYMM\")))","v":""}]
[null,null,null,null,null,null,"","","",""]
[null,null,null,null,null,null,"","","",""]
[null,null,null,null,null,null,"","","",""]
[null,null,null,null,null,null,"","","",""]
[null,null,null,null,null,null,"","","",""]
[null,null,null,null,null,null,"","","",""]
[null,null,null,null,null,null,"","","",""]
[null,null,null,null,null,null,"","","",""]
[null,null,null,null,null,null,"","","",""]
[null,null,null,null,null,null,"","","",""]
[null,null,null,null,null,null,"","","",""]
[null,null,null,null,null,null,"","","",""]
[null,null,null,null,null,null,"","","",""]
[null,null,null,null,null,null,"","","",""]
[null,null,null,null,null,null,"","","",""]
[null,null,null,null,null,null,"","","",""]
[null,null,null,null,null,null,"","","",""]
[null,null,null,null,null,null,"","","",""]
[null,null,null,null,null,null,"","","",""]
[null,null,null,null,null,null,"","","",""]
[null,null,null,null,null,null,"","","",""]
[null,null,null,null,null,null,"","","",""]
[null,null,null,null,null,null,"","","",""]
[null,null,null,null,null,null,"","","",""]
[null,null,null,null,null,null,"","","",""]
[null,null,null,null,null,null,"","","",""]
[null,null,null,null,null,null,"","","",""]
[null,null,null,null,null,null,"","","",""]
[null,null,null,null,null,null,"","","",""]
[null,null,null,null,null,null,"","","",""]
[null,null,null,null,null,null,"","","",""]
[null,null,null,null,null,null,"","","",""]
[null,null,null,null,null,null,"","","",""]
[null,null,null,null,null,null,"","","",""]
[null,null,null,null,null,null,"","","",""]
[null,null,null,null,null,null,"","","",""]
[null,null,null,null,null,null,"","","",""]
[null,null,null,null,null,null,"","","",""]
[null,null,null,null,null,null,"","","",""]
[null,null,null,null,null,null,"","","",""]
[null,null,null,null,null,null,"","","",""]
[null,null,null,null,null,null,"","","",""]
[null,null,null,null,null,null,"","","",""]
[null,null,null,null,null,null,"","","",""]
[null,null,null,null,null,null,"","","",""]
[null,null,null,null,null,null,"","","",""]
[null,null,null,null,null,null,"","","",""]
[null,null,null,null,null,null,"","","",""]
[null,null,null,null,null,null,"","","",""]
[null,null,null,null,null,null,"","","",""]
[null,null,null,null,null,null,"","","",""]
[null,null,null,null,null,null,"","","",""]
[null,null,null,null,null,null,"","","",""]
[null,null,null,null,null,null,"","","",""]
[null,null,null,null,null,null,"","","",""]
[null,null,null,null,null,null,"","","",""]
[null,null,null,null,null,null,"","","",""]
[null,null,null,null,null,null,"","","",""]
[null,null,null,null,null,null,"","","",""]
[null,null,null,null,null,null,"","","",""]
[null,null,null,null,null,null,"","","",""]
[null,null,null,null,null,null,"","","",""]
[null,null,null,null,null,null,"","","",""]
[null,null,null,null,null,null,{"$f":"IF(ISBLANK(A2370),\"\",VLOOKUP(A2370,SUPPLIES_SITE_LU,2,FALSE))","v":""},{"$f":"IF(ISBLANK(B2370),\"\",VLOOKUP(B2370,POSITION_ID_SUPP,2,FALSE))","v":""},{"$f":"IF(ISBLANK(D2370),\"\",VLOOKUP(D2370,UNIT_LU,2,FALSE))","v":""},{"$f":"IF(ISBLANK(E2370),\"\",VALUE(TEXT(E2370,\"YYYYMM\")))","v":""}]
[null,null,null,null,null,null,"","","",""]
[null,null,null,null,null,null,"","","",""]
[null,null,null,null,null,null,"","","",""]
[null,null,null,null,null,null,"","","",""]
[null,null,null,null,null,null,"","","",""]
[null,null,null,null,null,null,"","","",""]
[null,null,null,null,null,null,"","","",""]
[null,null,null,null,null,null,"","","",""]
[null,null,null,null,null,null,"","","",""]
[null,null,null,null,null,null,"","","",""]
[null,null,null,null,null,null,"","","",""]
[null,null,null,null,null,null,"","","",""]
[null,null,null,null,null,null,"","","",""]
[null,null,null,null,null,null,"","","",""]
[null,null,null,null,null,null,"","","",""]
[null,null,null,null,null,null,"","","",""]
[null,null,null,null,null,null,"","","",""]
[null,null,null,null,null,null,"","","",""]
[null,null,null,null,null,null,"","","",""]
[null,null,null,null,null,null,"","","",""]
[null,null,null,null,null,null,"","","",""]
[null,null,null,null,null,null,"","","",""]
[null,null,null,null,null,null,"","","",""]
[null,null,null,null,null,null,"","","",""]
[null,null,null,null,null,null,"","","",""]
[null,null,null,null,null,null,"","","",""]
[null,null,null,null,null,null,"","","",""]
[null,null,null,null,null,null,"","","",""]
[null,null,null,null,null,null,"","","",""]
[null,null,null,null,null,null,"","","",""]
[null,null,null,null,null,null,"","","",""]
[null,null,null,null,null,null,"","","",""]
[null,null,null,null,null,null,"","","",""]
[null,null,null,null,null,null,"","","",""]
[null,null,null,null,null,null,"","","",""]
[null,null,null,null,null,null,"","","",""]
[null,null,null,null,null,null,"","","",""]
[null,null,null,null,null,null,"","","",""]
[null,null,null,null,null,null,"","","",""]
[null,null,null,null,null,null,"","","",""]
[null,null,null,null,null,null,"","","",""]
[null,null,null,null,null,null,"","","",""]
[null,null,null,null,null,null,"","","",""]
[null,null,null,null,null,null,"","","",""]
[null,null,null,null,null,null,"","","",""]
[null,null,null,null,null,null,"","","",""]
[null,null,null,null,null,null,"","","",""]
[null,null,null,null,null,null,"","","",""]
[null,null,null,null,null,null,"","","",""]
[null,null,null,null,null,null,"","","",""]
[null,null,null,null,null,null,"","","",""]
[null,null,null,null,null,null,"","","",""]
[null,null,null,null,null,null,"","","",""]
[null,null,null,null,null,null,"","","",""]
[null,null,null,null,null,null,"","","",""]
[null,null,null,null,null,null,"","","",""]
[null,null,null,null,null,null,"","","",""]
[null,null,null,null,null,null,"","","",""]
[null,null,null,null,null,null,"","","",""]
[null,null,null,null,null,null,"","","",""]
[null,null,null,null,null,null,"","","",""]
[null,null,null,null,null,null,"","","",""]
[null,null,null,null,null,null,"","","",""]
[null,null,null,null,null,null,{"$f":"IF(ISBLANK(A2434),\"\",VLOOKUP(A2434,SUPPLIES_SITE_LU,2,FALSE))","v":""},{"$f":"IF(ISBLANK(B2434),\"\",VLOOKUP(B2434,POSITION_ID_SUPP,2,FALSE))","v":""},{"$f":"IF(ISBLANK(D2434),\"\",VLOOKUP(D2434,UNIT_LU,2,FALSE))","v":""},{"$f":"IF(ISBLANK(E2434),\"\",VALUE(TEXT(E2434,\"YYYYMM\")))","v":""}]
[null,null,null,null,null,null,"","","",""]
[null,null,null,null,null,null,"","","",""]
[null,null,null,null,null,null,"","","",""]
[null,null,null,null,null,null,"","","",""]
[null,null,null,null,null,null,"","","",""]
[null,null,null,null,null,null,"","","",""]
[null,null,null,null,null,null,"","","",""]
[null,null,null,null,null,null,"","","",""]
[null,null,null,null,null,null,"","","",""]
[null,null,null,null,null,null,"","","",""]
[null,null,null,null,null,null,"","","",""]
[null,null,null,null,null,null,"","","",""]
[null,null,null,null,null,null,"","","",""]
[null,null,null,null,null,null,"","","",""]
[null,null,null,null,null,null,"","","",""]
[null,null,null,null,null,null,"","","",""]
[null,null,null,null,null,null,"","","",""]
[null,null,null,null,null,null,"","","",""]
[null,null,null,null,null,null,"","","",""]
[null,null,null,null,null,null,"","","",""]
[null,null,null,null,null,null,"","","",""]
[null,null,null,null,null,null,"","","",""]
[null,null,null,null,null,null,"","","",""]
[null,null,null,null,null,null,"","","",""]
[null,null,null,null,null,null,"","","",""]
[null,null,null,null,null,null,"","","",""]
[null,null,null,null,null,null,"","","",""]
[null,null,null,null,null,null,"","","",""]
[null,null,null,null,null,null,"","","",""]
[null,null,null,null,null,null,"","","",""]
[null,null,null,null,null,null,"","","",""]
[null,null,null,null,null,null,"","","",""]
[null,null,null,null,null,null,"","","",""]
[null,null,null,null,null,null,"","","",""]
[null,null,null,null,null,null,"","","",""]
[null,null,null,null,null,null,"","","",""]
[null,null,null,null,null,null,"","","",""]
[null,null,null,null,null,null,"","","",""]
[null,null,null,null,null,null,"","","",""]
[null,null,null,null,null,null,"","","",""]
[null,null,null,null,null,null,"","","",""]
[null,null,null,null,null,null,"","","",""]
[null,null,null,null,null,null,"","","",""]
[null,null,null,null,null,null,"","","",""]
[null,null,null,null,null,null,"","","",""]
[null,null,null,null,null,null,"","","",""]
[null,null,null,null,null,null,"","","",""]
[null,null,null,null,null,null,"","","",""]
[null,null,null,null,null,null,"","","",""]
[null,null,null,null,null,null,"","","",""]
[null,null,null,null,null,null,"","","",""]
[null,null,null,null,null,null,"","","",""]
[null,null,null,null,null,null,"","","",""]
[null,null,null,null,null,null,"","","",""]
[null,null,null,null,null,null,"","","",""]
[null,null,null,null,null,null,"","","",""]
[null,null,null,null,null,null,"","","",""]
[null,null,null,null,null,null,"","","",""]
[null,null,null,null,null,null,"","","",""]
[null,null,null,null,null,null,"","","",""]
[null,null,null,null,null,null,"","","",""]
[null,null,null,null,null,null,"","","",""]
[null,null,null,null,null,null,"","","",""]
[null,null,null,null,null,null,{"$f":"IF(ISBLANK(A2498),\"\",VLOOKUP(A2498,SUPPLIES_SITE_LU,2,FALSE))","v":""},{"$f":"IF(ISBLANK(B2498),\"\",VLOOKUP(B2498,POSITION_ID_SUPP,2,FALSE))","v":""},{"$f":"IF(ISBLANK(D2498),\"\",VLOOKUP(D2498,UNIT_LU,2,FALSE))","v":""},{"$f":"IF(ISBLANK(E2498),\"\",VALUE(TEXT(E2498,\"YYYYMM\")))","v":""}]
[null,null,null,null,null,null,"","","",""]
[null,null,null,null,null,null,"","","",""]
[null,null,null,null,null,null,"","","",""]
[null,null,null,null,null,null,"","","",""]
[null,null,null,null,null,null,"","","",""]
[null,null,null,null,null,null,"","","",""]
[null,null,null,null,null,null,"","","",""]
[null,null,null,null,null,null,"","","",""]
[null,null,null,null,null,null,"","","",""]
[null,null,null,null,null,null,"","","",""]
[null,null,null,null,null,null,"","","",""]
[null,null,null,null,null,null,"","","",""]
[null,null,null,null,null,null,"","","",""]
[null,null,null,null,null,null,"","","",""]
[null,null,null,null,null,null,"","","",""]
[null,null,null,null,null,null,"","","",""]
[null,null,null,null,null,null,"","","",""]
[null,null,null,null,null,null,"","","",""]
[null,null,null,null,null,null,"","","",""]
[null,null,null,null,null,null,"","","",""]
[null,null,null,null,null,null,"","","",""]
[null,null,null,null,null,null,"","","",""]
[null,null,null,null,null,null,"","","",""]
[null,null,null,null,null,null,"","","",""]
[null,null,null,null,null,null,"","","",""]
[null,null,null,null,null,null,"","","",""]
[null,null,null,null,null,null,"","","",""]
[null,null,null,null,null,null,"","","",""]
[null,null,null,null,null,null,"","","",""]
[null,null,null,null,null,null,"","","",""]
[null,null,null,null,null,null,"","","",""]
[null,null,null,null,null,null,"","","",""]
[null,null,null,null,null,null,"","","",""]
[null,null,null,null,null,null,"","","",""]
[null,null,null,null,null,null,"","","",""]
[null,null,null,null,null,null,"","","",""]
[null,null,null,null,null,null,"","","",""]
[null,null,null,null,null,null,"","","",""]
[null,null,null,null,null,null,"","","",""]
[null,null,null,null,null,null,"","","",""]
[null,null,null,null,null,null,"","","",""]
[null,null,null,null,null,null,"","","",""]
[null,null,null,null,null,null,"","","",""]
[null,null,null,null,null,null,"","","",""]
[null,null,null,null,null,null,"","","",""]
[null,null,null,null,null,null,"","","",""]
[null,null,null,null,null,null,"","","",""]
[null,null,null,null,null,null,"","","",""]
[null,null,null,null,null,null,"","","",""]
[null,null,null,null,null,null,"","","",""]
[null,null,null,null,null,null,"","","",""]
[null,null,null,null,null,null,"","","",""]
[null,null,null,null,null,null,"","","",""]
[null,null,null,null,null,null,"","","",""]
[null,null,null,null,null,null,"","","",""]
[null,null,null,null,null,null,"","","",""]
[null,null,null,null,null,null,"","","",""]
[null,null,null,null,null,null,"","","",""]
[null,null,null,null,null,null,"","","",""]
[null,null,null,null,null,null,"","","",""]
[null,null,null,null,null,null,"","","",""]
[null,null,null,null,null,null,"","","",""]
[null,null,null,null,null,null,"","","",""]
[null,null,null,null,null,null,{"$f":"IF(ISBLANK(A2562),\"\",VLOOKUP(A2562,SUPPLIES_SITE_LU,2,FALSE))","v":""},{"$f":"IF(ISBLANK(B2562),\"\",VLOOKUP(B2562,POSITION_ID_SUPP,2,FALSE))","v":""},{"$f":"IF(ISBLANK(D2562),\"\",VLOOKUP(D2562,UNIT_LU,2,FALSE))","v":""},{"$f":"IF(ISBLANK(E2562),\"\",VALUE(TEXT(E2562,\"YYYYMM\")))","v":""}]
[null,null,null,null,null,null,"","","",""]
[null,null,null,null,null,null,"","","",""]
[null,null,null,null,null,null,"","","",""]
[null,null,null,null,null,null,"","","",""]
[null,null,null,null,null,null,"","","",""]
[null,null,null,null,null,null,"","","",""]
[null,null,null,null,null,null,"","","",""]
[null,null,null,null,null,null,"","","",""]
[null,null,null,null,null,null,"","","",""]
[null,null,null,null,null,null,"","","",""]
[null,null,null,null,null,null,"","","",""]
[null,null,null,null,null,null,"","","",""]
[null,null,null,null,null,null,"","","",""]
[null,null,null,null,null,null,"","","",""]
[null,null,null,null,null,null,"","","",""]
[null,null,null,null,null,null,"","","",""]
[null,null,null,null,null,null,"","","",""]
[null,null,null,null,null,null,"","","",""]
[null,null,null,null,null,null,"","","",""]
[null,null,null,null,null,null,"","","",""]
[null,null,null,null,null,null,"","","",""]
[null,null,null,null,null,null,"","","",""]
[null,null,null,null,null,null,"","","",""]
[null,null,null,null,null,null,"","","",""]
[null,null,null,null,null,null,"","","",""]
[null,null,null,null,null,null,"","","",""]
[null,null,null,null,null,null,"","","",""]
[null,null,null,null,null,null,"","","",""]
[null,null,null,null,null,null,"","","",""]
[null,null,null,null,null,null,"","","",""]
[null,null,null,null,null,null,"","","",""]
[null,null,null,null,null,null,"","","",""]
[null,null,null,null,null,null,"","","",""]
[null,null,null,null,null,null,"","","",""]
[null,null,null,null,null,null,"","","",""]
[null,null,null,null,null,null,"","","",""]
[null,null,null,null,null,null,"","","",""]
[null,null,null,null,null,null,"","","",""]
[null,null,null,null,null,null,"","","",""]
[null,null,null,null,null,null,"","","",""]
[null,null,null,null,null,null,"","","",""]
[null,null,null,null,null,null,"","","",""]
[null,null,null,null,null,null,"","","",""]
[null,null,null,null,null,null,"","","",""]
[null,null,null,null,null,null,"","","",""]
[null,null,null,null,null,null,"","","",""]
[null,null,null,null,null,null,"","","",""]
[null,null,null,null,null,null,"","","",""]
[null,null,null,null,null,null,"","","",""]
[null,null,null,null,null,null,"","","",""]
[null,null,null,null,null,null,"","","",""]
[null,null,null,null,null,null,"","","",""]
[null,null,null,null,null,null,"","","",""]
[null,null,null,null,null,null,"","","",""]
[null,null,null,null,null,null,"","","",""]
[null,null,null,null,null,null,"","","",""]
[null,null,null,null,null,null,"","","",""]
[null,null,null,null,null,null,"","","",""]
[null,null,null,null,null,null,"","","",""]
[null,null,null,null,null,null,"","","",""]
[null,null,null,null,null,null,"","","",""]
[null,null,null,null,null,null,"","","",""]
[null,null,null,null,null,null,"","","",""]
[null,null,null,null,null,null,{"$f":"IF(ISBLANK(A2626),\"\",VLOOKUP(A2626,SUPPLIES_SITE_LU,2,FALSE))","v":""},{"$f":"IF(ISBLANK(B2626),\"\",VLOOKUP(B2626,POSITION_ID_SUPP,2,FALSE))","v":""},{"$f":"IF(ISBLANK(D2626),\"\",VLOOKUP(D2626,UNIT_LU,2,FALSE))","v":""},{"$f":"IF(ISBLANK(E2626),\"\",VALUE(TEXT(E2626,\"YYYYMM\")))","v":""}]
[null,null,null,null,null,null,"","","",""]
[null,null,null,null,null,null,"","","",""]
[null,null,null,null,null,null,"","","",""]
[null,null,null,null,null,null,"","","",""]
[null,null,null,null,null,null,"","","",""]
[null,null,null,null,null,null,"","","",""]
[null,null,null,null,null,null,"","","",""]
[null,null,null,null,null,null,"","","",""]
[null,null,null,null,null,null,"","","",""]
[null,null,null,null,null,null,"","","",""]
[null,null,null,null,null,null,"","","",""]
[null,null,null,null,null,null,"","","",""]
[null,null,null,null,null,null,"","","",""]
[null,null,null,null,null,null,"","","",""]
[null,null,null,null,null,null,"","","",""]
[null,null,null,null,null,null,"","","",""]
[null,null,null,null,null,null,"","","",""]
[null,null,null,null,null,null,"","","",""]
[null,null,null,null,null,null,"","","",""]
[null,null,null,null,null,null,"","","",""]
[null,null,null,null,null,null,"","","",""]
[null,null,null,null,null,null,"","","",""]
[null,null,null,null,null,null,"","","",""]
[null,null,null,null,null,null,"","","",""]
[null,null,null,null,null,null,"","","",""]
[null,null,null,null,null,null,"","","",""]
[null,null,null,null,null,null,"","","",""]
[null,null,null,null,null,null,"","","",""]
[null,null,null,null,null,null,"","","",""]
[null,null,null,null,null,null,"","","",""]
[null,null,null,null,null,null,"","","",""]
[null,null,null,null,null,null,"","","",""]
[null,null,null,null,null,null,"","","",""]
[null,null,null,null,null,null,"","","",""]
[null,null,null,null,null,null,"","","",""]
[null,null,null,null,null,null,"","","",""]
[null,null,null,null,null,null,"","","",""]
[null,null,null,null,null,null,"","","",""]
[null,null,null,null,null,null,"","","",""]
[null,null,null,null,null,null,"","","",""]
[null,null,null,null,null,null,"","","",""]
[null,null,null,null,null,null,"","","",""]
[null,null,null,null,null,null,"","","",""]
[null,null,null,null,null,null,"","","",""]
[null,null,null,null,null,null,"","","",""]
[null,null,null,null,null,null,"","","",""]
[null,null,null,null,null,null,"","","",""]
[null,null,null,null,null,null,"","","",""]
[null,null,null,null,null,null,"","","",""]
[null,null,null,null,null,null,"","","",""]
[null,null,null,null,null,null,"","","",""]
[null,null,null,null,null,null,"","","",""]
[null,null,null,null,null,null,"","","",""]
[null,null,null,null,null,null,"","","",""]
[null,null,null,null,null,null,"","","",""]
[null,null,null,null,null,null,"","","",""]
[null,null,null,null,null,null,"","","",""]
[null,null,null,null,null,null,"","","",""]
[null,null,null,null,null,null,"","","",""]
[null,null,null,null,null,null,"","","",""]
[null,null,null,null,null,null,"","","",""]
[null,null,null,null,null,null,"","","",""]
[null,null,null,null,null,null,"","","",""]
[null,null,null,null,null,null,{"$f":"IF(ISBLANK(A2690),\"\",VLOOKUP(A2690,SUPPLIES_SITE_LU,2,FALSE))","v":""},{"$f":"IF(ISBLANK(B2690),\"\",VLOOKUP(B2690,POSITION_ID_SUPP,2,FALSE))","v":""},{"$f":"IF(ISBLANK(D2690),\"\",VLOOKUP(D2690,UNIT_LU,2,FALSE))","v":""},{"$f":"IF(ISBLANK(E2690),\"\",VALUE(TEXT(E2690,\"YYYYMM\")))","v":""}]
[null,null,null,null,null,null,"","","",""]
[null,null,null,null,null,null,"","","",""]
[null,null,null,null,null,null,"","","",""]
[null,null,null,null,null,null,"","","",""]
[null,null,null,null,null,null,"","","",""]
[null,null,null,null,null,null,"","","",""]
[null,null,null,null,null,null,"","","",""]
[null,null,null,null,null,null,"","","",""]
[null,null,null,null,null,null,"","","",""]
[null,null,null,null,null,null,"","","",""]
[null,null,null,null,null,null,"","","",""]
[null,null,null,null,null,null,"","","",""]
[null,null,null,null,null,null,"","","",""]
[null,null,null,null,null,null,"","","",""]
[null,null,null,null,null,null,"","","",""]
[null,null,null,null,null,null,"","","",""]
[null,null,null,null,null,null,"","","",""]
[null,null,null,null,null,null,"","","",""]
[null,null,null,null,null,null,"","","",""]
[null,null,null,null,null,null,"","","",""]
[null,null,null,null,null,null,"","","",""]
[null,null,null,null,null,null,"","","",""]
[null,null,null,null,null,null,"","","",""]
[null,null,null,null,null,null,"","","",""]
[null,null,null,null,null,null,"","","",""]
[null,null,null,null,null,null,"","","",""]
[null,null,null,null,null,null,"","","",""]
[null,null,null,null,null,null,"","","",""]
[null,null,null,null,null,null,"","","",""]
[null,null,null,null,null,null,"","","",""]
[null,null,null,null,null,null,"","","",""]
[null,null,null,null,null,null,"","","",""]
[null,null,null,null,null,null,"","","",""]
[null,null,null,null,null,null,"","","",""]
[null,null,null,null,null,null,"","","",""]
[null,null,null,null,null,null,"","","",""]
[null,null,null,null,null,null,"","","",""]
[null,null,null,null,null,null,"","","",""]
[null,null,null,null,null,null,"","","",""]
[null,null,null,null,null,null,"","","",""]
[null,null,null,null,null,null,"","","",""]
[null,null,null,null,null,null,"","","",""]
[null,null,null,null,null,null,"","","",""]
[null,null,null,null,null,null,"","","",""]
[null,null,null,null,null,null,"","","",""]
[null,null,null,null,null,null,"","","",""]
[null,null,null,null,null,null,"","","",""]
[null,null,null,null,null,null,"","","",""]
[null,null,null,null,null,null,"","","",""]
[null,null,null,null,null,null,"","","",""]
[null,null,null,null,null,null,"","","",""]
[null,null,null,null,null,null,"","","",""]
[null,null,null,null,null,null,"","","",""]
[null,null,null,null,null,null,"","","",""]
[null,null,null,null,null,null,"","","",""]
[null,null,null,null,null,null,"","","",""]
[null,null,null,null,null,null,"","","",""]
[null,null,null,null,null,null,"","","",""]
[null,null,null,null,null,null,"","","",""]
[null,null,null,null,null,null,"","","",""]
[null,null,null,null,null,null,"","","",""]
[null,null,null,null,null,null,"","","",""]
[null,null,null,null,null,null,"","","",""]
[null,null,null,null,null,null,{"$f":"IF(ISBLANK(A2754),\"\",VLOOKUP(A2754,SUPPLIES_SITE_LU,2,FALSE))","v":""},{"$f":"IF(ISBLANK(B2754),\"\",VLOOKUP(B2754,POSITION_ID_SUPP,2,FALSE))","v":""},{"$f":"IF(ISBLANK(D2754),\"\",VLOOKUP(D2754,UNIT_LU,2,FALSE))","v":""},{"$f":"IF(ISBLANK(E2754),\"\",VALUE(TEXT(E2754,\"YYYYMM\")))","v":""}]
[null,null,null,null,null,null,"","","",""]
[null,null,null,null,null,null,"","","",""]
[null,null,null,null,null,null,"","","",""]
[null,null,null,null,null,null,"","","",""]
[null,null,null,null,null,null,"","","",""]
[null,null,null,null,null,null,"","","",""]
[null,null,null,null,null,null,"","","",""]
[null,null,null,null,null,null,"","","",""]
[null,null,null,null,null,null,"","","",""]
[null,null,null,null,null,null,"","","",""]
[null,null,null,null,null,null,"","","",""]
[null,null,null,null,null,null,"","","",""]
[null,null,null,null,null,null,"","","",""]
[null,null,null,null,null,null,"","","",""]
[null,null,null,null,null,null,"","","",""]
[null,null,null,null,null,null,"","","",""]
[null,null,null,null,null,null,"","","",""]
[null,null,null,null,null,null,"","","",""]
[null,null,null,null,null,null,"","","",""]
[null,null,null,null,null,null,"","","",""]
[null,null,null,null,null,null,"","","",""]
[null,null,null,null,null,null,"","","",""]
[null,null,null,null,null,null,"","","",""]
[null,null,null,null,null,null,"","","",""]
[null,null,null,null,null,null,"","","",""]
[null,null,null,null,null,null,"","","",""]
[null,null,null,null,null,null,"","","",""]
[null,null,null,null,null,null,"","","",""]
[null,null,null,null,null,null,"","","",""]
[null,null,null,null,null,null,"","","",""]
[null,null,null,null,null,null,"","","",""]
[null,null,null,null,null,null,"","","",""]
[null,null,null,null,null,null,"","","",""]
[null,null,null,null,null,null,"","","",""]
[null,null,null,null,null,null,"","","",""]
[null,null,null,null,null,null,"","","",""]
[null,null,null,null,null,null,"","","",""]
[null,null,null,null,null,null,"","","",""]
[null,null,null,null,null,null,"","","",""]
[null,null,null,null,null,null,"","","",""]
[null,null,null,null,null,null,"","","",""]
[null,null,null,null,null,null,"","","",""]
[null,null,null,null,null,null,"","","",""]
[null,null,null,null,null,null,"","","",""]
[null,null,null,null,null,null,"","","",""]
[null,null,null,null,null,null,"","","",""]
[null,null,null,null,null,null,"","","",""]
[null,null,null,null,null,null,"","","",""]
[null,null,null,null,null,null,"","","",""]
[null,null,null,null,null,null,"","","",""]
[null,null,null,null,null,null,"","","",""]
[null,null,null,null,null,null,"","","",""]
[null,null,null,null,null,null,"","","",""]
[null,null,null,null,null,null,"","","",""]
[null,null,null,null,null,null,"","","",""]
[null,null,null,null,null,null,"","","",""]
[null,null,null,null,null,null,"","","",""]
[null,null,null,null,null,null,"","","",""]
[null,null,null,null,null,null,"","","",""]
[null,null,null,null,null,null,"","","",""]
[null,null,null,null,null,null,"","","",""]
[null,null,null,null,null,null,"","","",""]
[null,null,null,null,null,null,"","","",""]
[null,null,null,null,null,null,{"$f":"IF(ISBLANK(A2818),\"\",VLOOKUP(A2818,SUPPLIES_SITE_LU,2,FALSE))","v":""},{"$f":"IF(ISBLANK(B2818),\"\",VLOOKUP(B2818,POSITION_ID_SUPP,2,FALSE))","v":""},{"$f":"IF(ISBLANK(D2818),\"\",VLOOKUP(D2818,UNIT_LU,2,FALSE))","v":""},{"$f":"IF(ISBLANK(E2818),\"\",VALUE(TEXT(E2818,\"YYYYMM\")))","v":""}]
[null,null,null,null,null,null,"","","",""]
[null,null,null,null,null,null,"","","",""]
[null,null,null,null,null,null,"","","",""]
[null,null,null,null,null,null,"","","",""]
[null,null,null,null,null,null,"","","",""]
[null,null,null,null,null,null,"","","",""]
[null,null,null,null,null,null,"","","",""]
[null,null,null,null,null,null,"","","",""]
[null,null,null,null,null,null,"","","",""]
[null,null,null,null,null,null,"","","",""]
[null,null,null,null,null,null,"","","",""]
[null,null,null,null,null,null,"","","",""]
[null,null,null,null,null,null,"","","",""]
[null,null,null,null,null,null,"","","",""]
[null,null,null,null,null,null,"","","",""]
[null,null,null,null,null,null,"","","",""]
[null,null,null,null,null,null,"","","",""]
[null,null,null,null,null,null,"","","",""]
[null,null,null,null,null,null,"","","",""]
[null,null,null,null,null,null,"","","",""]
[null,null,null,null,null,null,"","","",""]
[null,null,null,null,null,null,"","","",""]
[null,null,null,null,null,null,"","","",""]
[null,null,null,null,null,null,"","","",""]
[null,null,null,null,null,null,"","","",""]
[null,null,null,null,null,null,"","","",""]
[null,null,null,null,null,null,"","","",""]
[null,null,null,null,null,null,"","","",""]
[null,null,null,null,null,null,"","","",""]
[null,null,null,null,null,null,"","","",""]
[null,null,null,null,null,null,"","","",""]
[null,null,null,null,null,null,"","","",""]
[null,null,null,null,null,null,"","","",""]
[null,null,null,null,null,null,"","","",""]
[null,null,null,null,null,null,"","","",""]
[null,null,null,null,null,null,"","","",""]
[null,null,null,null,null,null,"","","",""]
[null,null,null,null,null,null,"","","",""]
[null,null,null,null,null,null,"","","",""]
[null,null,null,null,null,null,"","","",""]
[null,null,null,null,null,null,"","","",""]
[null,null,null,null,null,null,"","","",""]
[null,null,null,null,null,null,"","","",""]
[null,null,null,null,null,null,"","","",""]
[null,null,null,null,null,null,"","","",""]
[null,null,null,null,null,null,"","","",""]
[null,null,null,null,null,null,"","","",""]
[null,null,null,null,null,null,"","","",""]
[null,null,null,null,null,null,"","","",""]
[null,null,null,null,null,null,"","","",""]
[null,null,null,null,null,null,"","","",""]
[null,null,null,null,null,null,"","","",""]
[null,null,null,null,null,null,"","","",""]
[null,null,null,null,null,null,"","","",""]
[null,null,null,null,null,null,"","","",""]
[null,null,null,null,null,null,"","","",""]
[null,null,null,null,null,null,"","","",""]
[null,null,null,null,null,null,"","","",""]
[null,null,null,null,null,null,"","","",""]
[null,null,null,null,null,null,"","","",""]
[null,null,null,null,null,null,"","","",""]
[null,null,null,null,null,null,"","","",""]
[null,null,null,null,null,null,"","","",""]
[null,null,null,null,null,null,{"$f":"IF(ISBLANK(A2882),\"\",VLOOKUP(A2882,SUPPLIES_SITE_LU,2,FALSE))","v":""},{"$f":"IF(ISBLANK(B2882),\"\",VLOOKUP(B2882,POSITION_ID_SUPP,2,FALSE))","v":""},{"$f":"IF(ISBLANK(D2882),\"\",VLOOKUP(D2882,UNIT_LU,2,FALSE))","v":""},{"$f":"IF(ISBLANK(E2882),\"\",VALUE(TEXT(E2882,\"YYYYMM\")))","v":""}]
[null,null,null,null,null,null,"","","",""]
[null,null,null,null,null,null,"","","",""]
[null,null,null,null,null,null,"","","",""]
[null,null,null,null,null,null,"","","",""]
[null,null,null,null,null,null,"","","",""]
[null,null,null,null,null,null,"","","",""]
[null,null,null,null,null,null,"","","",""]
[null,null,null,null,null,null,"","","",""]
[null,null,null,null,null,null,"","","",""]
[null,null,null,null,null,null,"","","",""]
[null,null,null,null,null,null,"","","",""]
[null,null,null,null,null,null,"","","",""]
[null,null,null,null,null,null,"","","",""]
[null,null,null,null,null,null,"","","",""]
[null,null,null,null,null,null,"","","",""]
[null,null,null,null,null,null,"","","",""]
[null,null,null,null,null,null,"","","",""]
[null,null,null,null,null,null,"","","",""]
[null,null,null,null,null,null,"","","",""]
[null,null,null,null,null,null,"","","",""]
[null,null,null,null,null,null,"","","",""]
[null,null,null,null,null,null,"","","",""]
[null,null,null,null,null,null,"","","",""]
[null,null,null,null,null,null,"","","",""]
[null,null,null,null,null,null,"","","",""]
[null,null,null,null,null,null,"","","",""]
[null,null,null,null,null,null,"","","",""]
[null,null,null,null,null,null,"","","",""]
[null,null,null,null,null,null,"","","",""]
[null,null,null,null,null,null,"","","",""]
[null,null,null,null,null,null,"","","",""]
[null,null,null,null,null,null,"","","",""]
[null,null,null,null,null,null,"","","",""]
[null,null,null,null,null,null,"","","",""]
[null,null,null,null,null,null,"","","",""]
[null,null,null,null,null,null,"","","",""]
[null,null,null,null,null,null,"","","",""]
[null,null,null,null,null,null,"","","",""]
[null,null,null,null,null,null,"","","",""]
[null,null,null,null,null,null,"","","",""]
[null,null,null,null,null,null,"","","",""]
[null,null,null,null,null,null,"","","",""]
[null,null,null,null,null,null,"","","",""]
[null,null,null,null,null,null,"","","",""]
[null,null,null,null,null,null,"","","",""]
[null,null,null,null,null,null,"","","",""]
[null,null,null,null,null,null,"","","",""]
[null,null,null,null,null,null,"","","",""]
[null,null,null,null,null,null,"","","",""]
[null,null,null,null,null,null,"","","",""]
[null,null,null,null,null,null,"","","",""]
[null,null,null,null,null,null,"","","",""]
[null,null,null,null,null,null,"","","",""]
[null,null,null,null,null,null,"","","",""]
[null,null,null,null,null,null,"","","",""]
[null,null,null,null,null,null,"","","",""]
[null,null,null,null,null,null,"","","",""]
[null,null,null,null,null,null,"","","",""]
[null,null,null,null,null,null,"","","",""]
[null,null,null,null,null,null,"","","",""]
[null,null,null,null,null,null,"","","",""]
[null,null,null,null,null,null,"","","",""]
[null,null,null,null,null,null,"","","",""]
[null,null,null,null,null,null,{"$f":"IF(ISBLANK(A2946),\"\",VLOOKUP(A2946,SUPPLIES_SITE_LU,2,FALSE))","v":""},{"$f":"IF(ISBLANK(B2946),\"\",VLOOKUP(B2946,POSITION_ID_SUPP,2,FALSE))","v":""},{"$f":"IF(ISBLANK(D2946),\"\",VLOOKUP(D2946,UNIT_LU,2,FALSE))","v":""},{"$f":"IF(ISBLANK(E2946),\"\",VALUE(TEXT(E2946,\"YYYYMM\")))","v":""}]
[null,null,null,null,null,null,"","","",""]
[null,null,null,null,null,null,"","","",""]
[null,null,null,null,null,null,"","","",""]
[null,null,null,null,null,null,"","","",""]
[null,null,null,null,null,null,"","","",""]
[null,null,null,null,null,null,"","","",""]
[null,null,null,null,null,null,"","","",""]
[null,null,null,null,null,null,"","","",""]
[null,null,null,null,null,null,"","","",""]
[null,null,null,null,null,null,"","","",""]
[null,null,null,null,null,null,"","","",""]
[null,null,null,null,null,null,"","","",""]
[null,null,null,null,null,null,"","","",""]
[null,null,null,null,null,null,"","","",""]
[null,null,null,null,null,null,"","","",""]
[null,null,null,null,null,null,"","","",""]
[null,null,null,null,null,null,"","","",""]
[null,null,null,null,null,null,"","","",""]
[null,null,null,null,null,null,"","","",""]
[null,null,null,null,null,null,"","","",""]
[null,null,null,null,null,null,"","","",""]
[null,null,null,null,null,null,"","","",""]
[null,null,null,null,null,null,"","","",""]
[null,null,null,null,null,null,"","","",""]
[null,null,null,null,null,null,"","","",""]
[null,null,null,null,null,null,"","","",""]
[null,null,null,null,null,null,"","","",""]
[null,null,null,null,null,null,"","","",""]
[null,null,null,null,null,null,"","","",""]
[null,null,null,null,null,null,"","","",""]
[null,null,null,null,null,null,"","","",""]
[null,null,null,null,null,null,"","","",""]
[null,null,null,null,null,null,"","","",""]
[null,null,null,null,null,null,"","","",""]
[null,null,null,null,null,null,"","","",""]
[null,null,null,null,null,null,"","","",""]
[null,null,null,null,null,null,"","","",""]
[null,null,null,null,null,null,"","","",""]
[null,null,null,null,null,null,"","","",""]
[null,null,null,null,null,null,"","","",""]
[null,null,null,null,null,null,"","","",""]
[null,null,null,null,null,null,"","","",""]
[null,null,null,null,null,null,"","","",""]
[null,null,null,null,null,null,"","","",""]
[null,null,null,null,null,null,"","","",""]
[null,null,null,null,null,null,"","","",""]
[null,null,null,null,null,null,"","","",""]
[null,null,null,null,null,null,"","","",""]
[null,null,null,null,null,null,"","","",""]
[null,null,null,null,null,null,"","","",""]
[null,null,null,null,null,null,"","","",""]
[null,null,null,null,null,null,"","","",""]
[null,null,null,null,null,null,"","","",""]
[null,null,null,null,null,null,"","","",""]
[null,null,null,null,null,null,"","","",""]

{"sheet":"Positions & Reference","index":6,"n_rows":123,"n_cols":16,"rows_kept":123,"cut":false,"hidden":true,"merged":[]}
["POSITION_NAME","POSITION_ID","QUESTIONNAIRE_ID","SOURCE",null,"UNIT_NAME","UNIT_ID",null,"BLDG_SITE_NAME","BLDG_SITE_ID",null,"FLEET_SITE_NAME","FLEET_SITE_ID",null,"SUPPLIES_SITE_NAME","SUPPLIES_SITE_ID"]
[]
["Electricity - BC - Integrated Grid - BC Hydro",787,5069,"Buildings",null,"kWh",50]
["Electricity -  BC - Integrated Grid - Fortis",784,5069,"Buildings",null,"GJ",49]
["Electricity -  BC - Integrated Grid - Nelson Hydro",845,5069,"Buildings",null,"l",123]
["Electricity -  BC - Integrated Grid - Penticton Electrical",846,5069,"Buildings",null,"kg",89]
["Natural Gas (Standard)",15,5068,"Buildings",null,"lb",91]
["Natural Gas (R100)",13,5068,"Buildings",null,"unit",190]
["Propane",16,5070,"Buildings"]
["B5",6,5070,"Buildings"]
["B20",5,5070,"Buildings"]
["B100",4,5070,"Buildings"]
["District Energy (T1)",21,5072,"Buildings"]
["District Energy (T2)",22,5072,"Buildings"]
["District Energy (T3)",23,5072,"Buildings"]
["District Energy (T4)",24,5072,"Buildings"]
["District Energy (T5)",25,5072,"Buildings"]
["District Energy (T6)",26,5072,"Buildings"]
["District Energy (T7)",27,5072,"Buildings"]
["District Energy (T8)",28,5072,"Buildings"]
["District Energy (T9)",29,5072,"Buildings"]
["District Energy (T10)",30,5072,"Buildings"]
["Diesel (Marine)",8,5070,"Buildings"]
["Diesel (Standard B4)",7,5070,"Buildings"]
["Fuel Oil (B5)",12,5070,"Buildings"]
["Fuel Oil (Light)",11,5070,"Buildings"]
["Gasoline (Standard E5)",9,5070,"Buildings"]
["Wood Fuel (Industrial)",17,5070,"Buildings"]
["Wood Fuel (Residential)",18,5070,"Buildings"]
["Electricity - Alberta",32,13141,"Buildings"]
["Electricity - Bullfrog",868,13141,"Buildings"]
["Electricity - China",872,13141,"Buildings"]
["Electricity - India",874,13141,"Buildings"]
["Electricity - Japan",875,13141,"Buildings"]
["Electricity - Nova Scotia",869,13141,"Buildings"]
["Electricity - Ontario",870,13141,"Buildings"]
["Electricity - Quebec",871,13141,"Buildings"]
["Electricity - UK",873,13141,"Buildings"]
[]
["Aviation - Gasoline",37,5076,"Fleet"]
["Aviation - Turbo Fuel",38,5076,"Fleet"]
["Heavy Duty Truck - Diesel (Standard)",43,5073,"Fleet"]
["Heavy Duty Truck - Diesel (B5)",42,5074,"Fleet"]
["Heavy Duty Truck - Diesel (B20)",41,5074,"Fleet"]
["Heavy Duty Truck - Diesel (B100)",40,5074,"Fleet"]
["Heavy Duty Truck - Gasoline (Standard)",48,5073,"Fleet"]
["Heavy Duty Truck - Gasoline (E10)",44,5074,"Fleet"]
["Heavy Duty Truck - Gasoline (E15)",46,5074,"Fleet"]
["Heavy Duty Truck - Gasoline (E100)",45,5074,"Fleet"]
["Heavy Duty Truck - Natural Gas",49,5075,"Fleet"]
["Heavy Duty Truck - Propane",50,5075,"Fleet"]
["Light Duty Truck - Diesel (Standard)",55,5073,"Fleet"]
["Light Duty Truck - Diesel (B5)",54,5074,"Fleet"]
["Light Duty Truck - Diesel (B20)",53,5074,"Fleet"]
["Light Duty Truck - Diesel (B100)",52,5074,"Fleet"]
["Light Duty Truck - Gasoline (Standard)",60,5073,"Fleet"]
["Light Duty Truck - Gasoline (E10)",56,5074,"Fleet"]
["Light Duty Truck - Gasoline (E15)",58,5074,"Fleet"]
["Light Duty Truck - Gasoline (E100)",57,5074,"Fleet"]
["Light Duty Truck - Natural Gas",61,5075,"Fleet"]
["Light Duty Truck - Propane",62,5075,"Fleet"]
["Light Duty Vehicle - Diesel (Standard)",67,5073,"Fleet"]
["Light Duty Vehicle - Diesel (B5)",66,5074,"Fleet"]
["Light Duty Vehicle - Diesel (B20)",65,5074,"Fleet"]
["Light Duty Vehicle - Diesel (B100)",64,5074,"Fleet"]
["Light Duty Vehicle - Gasoline (Standard)",72,5073,"Fleet"]
["Light Duty Vehicle - Gasoline (E10)",68,5074,"Fleet"]
["Light Duty Vehicle - Gasoline (E15)",70,5074,"Fleet"]
["Light Duty Vehicle - Gasoline (E100)",69,5074,"Fleet"]
["Light Duty Vehicle - Natural Gas",73,5075,"Fleet"]
["Light Duty Vehicle - Propane",74,5075,"Fleet"]
["Marine - Diesel (Standard)",76,5076,"Fleet"]
["Marine - Gasoline (Standard)",77,5076,"Fleet"]
["Motorcycle - Gasoline (Standard)",79,5076,"Fleet"]
["Off Road Vehicle - Diesel (Standard)",84,5073,"Fleet"]
["Off Road Vehicle - Diesel (B5)",83,5074,"Fleet"]
["Off Road Vehicle - Diesel (B20)",82,5074,"Fleet"]
["Off Road Vehicle - Diesel (B100)",81,5074,"Fleet"]
["Off Road Vehicle - Gasoline (Standard)",89,5073,"Fleet"]
["Off Road Vehicle - Gasoline (E10)",85,5074,"Fleet"]
["Off Road Vehicle - Gasoline (E15)",87,5074,"Fleet"]
["Off Road Vehicle - Gasoline (E100)",86,5074,"Fleet"]
["Off Road Vehicle - Natural Gas",90,5075,"Fleet"]
["Off Road Vehicle - Propane",91,5075,"Fleet"]
[]
["8.5 x 11 - 0% Recycled",107,5077,"Supplies"]
["8.5 x 11 - 10% Recycled",108,5077,"Supplies"]
["8.5 x 11 - 20% Recycled",109,5077,"Supplies"]
["8.5 x 11 - 30% Recycled",110,5077,"Supplies"]
["8.5 x 11 - 40% Recycled",111,5077,"Supplies"]
["8.5 x 11 - 50% Recycled",112,5077,"Supplies"]
["8.5 x 11 - 60% Recycled",113,5077,"Supplies"]
["8.5 x 11 - 70% Recycled",114,5077,"Supplies"]
["8.5 x 11 - 80% Recycled",115,5077,"Supplies"]
["8.5 x 11 - 90% Recycled",116,5077,"Supplies"]
["8.5 x 11 - 100% Recycled",117,5077,"Supplies"]
["8.5 x 14 - 0% Recycled",119,5077,"Supplies"]
["8.5 x 14 - 10% Recycled",120,5077,"Supplies"]
["8.5 x 14 - 20% Recycled",121,5077,"Supplies"]
["8.5 x 14 - 30% Recycled",122,5077,"Supplies"]
["8.5 x 14 - 40% Recycled",123,5077,"Supplies"]
["8.5 x 14 - 50% Recycled",124,5077,"Supplies"]
["8.5 x 14 - 60% Recycled",125,5077,"Supplies"]
["8.5 x 14 - 70% Recycled",126,5077,"Supplies"]
["8.5 x 14 - 80% Recycled",127,5077,"Supplies"]
["8.5 x 14 - 90% Recycled",128,5077,"Supplies"]
["8.5 x 14 - 100% Recycled",129,5077,"Supplies"]
["11 x 17 - 0% Recycled",95,5077,"Supplies"]
["11 x 17 - 10% Recycled",96,5077,"Supplies"]
["11 x 17 - 20% Recycled",97,5077,"Supplies"]
["11 x 17 - 30% Recycled",98,5077,"Supplies"]
["11 x 17 - 40% Recycled",99,5077,"Supplies"]
["11 x 17 - 50% Recycled",100,5077,"Supplies"]
["11 x 17 - 60% Recycled",101,5077,"Supplies"]
["11 x 17 - 70% Recycled",102,5077,"Supplies"]
["11 x 17 - 80% Recycled",103,5077,"Supplies"]
["11 x 17 - 90% Recycled",104,5077,"Supplies"]
["11 x 17 - 100% Recycled",105,5077,"Supplies"]
["HFC R-134",132,5128,"Supplies"]
["HFC R-134a",133,5128,"Supplies"]
["HFC R-404a",134,5128,"Supplies"]
["HFC R-407c",135,5128,"Supplies"]
["HFC R-410a",136,5128,"Supplies"]